Workbook

Sheet START
A1: =muni -> LIM353 Molemole

Sheet Instructions
D2: 2020
X4: Yes
X5: No
W7: Type of Entities Range: | X7: Parent Municipality
X8: Consolidated Information
W10: Date linked | X10: 7
W11: Date | X11: =VLOOKUP(X10,W39:X55,2) -> M07 January | Y11: 2013-08-01
W19: MTREF Range: | X19: 2008
X20: 2009
X21: 2010
X22: 2011
X23: 2012
X24: 2013
X25: 2014
X26: 2015
X27: 2016
X28: 2017
X29: 2018
X30: 2019
X31: 2020
X32: 2021
X33: 2022
W34: MTREF Linked:
W35: MTREF: | X35: 13
X36: =INDEX(X19:X33,X35,1) -> 2020
W37: Fin Year:
X38: =MTREF&"/"&RIGHT(MTREF,2)+1 -> 2020/21
V39: Date/type of report | W39: 1 | X39: M01 July
W40: 2 | X40: M02 August
W41: 3 | X41: M03 September
W42: 4 | X42: M04 October
W43: 5 | X43: M05 November
W44: 6 | X44: M06 December
W45: 7 | X45: M07 January
W46: 8 | X46: M08 February
W47: 9 | X47: M09 March
W48: 10 | X48: M10 April
W49: 11 | X49: M11 May
W50: 12 | X50: M12 June
W51: 13 | X51: Q1 First Quarter
W52: 14 | X52: Q2 Second Quarter
W53: 15 | X53: Q3 Third Quarter
W54: 16 | X54: Q4 Fourth Quarter
W55: 17 | X55: Mid-Year Assessment

Sheet Template names (hidden)
A1: Common sheet headings
A2: Head1 | B2: =HLOOKUP(MTREF,Headings,2) -> 2019/20 | C2: Prior year -1
A3: Head2 | B3: =HLOOKUP(MTREF,Headings,5) -> Budget Year 2020/21 | C3: Year of approved budget
A4: Head2A | B4: =HLOOKUP(MTREF,Headings,4) -> 2020/21 | C4: Approved budget year
A5: Head3 | B5: =HLOOKUP(MTREF,Headings,3) -> 2020/21 Medium Term Revenue & Expenditure Framework | C5: MTREF header name
A6: Head5 | B6: Audited Outcome
A7: Head5A | B7: Outcome
A8: Head5B | B8: Pre-audit outcome
A9: Head6 | B9: Original Budget
A10: Head7 | B10: Adjusted Budget
A11: Head8 | B11: Full Year Forecast
A12: Head9 | B12: =HLOOKUP(MTREF,Headings,5) -> Budget Year 2020/21 | C12: 1st year of MTREF | D12: Year1
A13: Head10 | B13: =HLOOKUP(MTREF,Headings,6) -> Budget Year +1 2021/22 | C13: 2nd year of MTREF | D13: Year2
A14: Head11 | B14: =HLOOKUP(MTREF,Headings,7) -> Budget Year +2 2022/23 | C14: 3rd year of MTREF | D14: Year3
A15: Head12 | B15: Forecast 2010/11 | D15: Year4
A16: Head13 | B16: Forecast 2011/12 | D16: Year5
A17: Head14 | B17: Forecast 2012/13 | D17: Year6
A18: Head15 | B18: Forecast 2013/14 | D18: Year7
A19: Head16 | B19: Forecast 2014/15 | D19: Year8
A20: Head17 | B20: Forecast 2015/16 | D20: Year9
A21: Head18 | B21: Forecast 2016/17 | D21: Year10
A22: Head19 | B22: Forecast 2017/18 | D22: Year11
A23: Head20 | B23: Forecast 2018/19 | D23: Year12
A24: Head21 | B24: Forecast 2019/20 | D24: Year13
A25: Head22 | B25: Forecast 2020/21 | D25: Year14
A26: Head23 | B26: Forecast 2021/22 | D26: Year15
A27: Head24 | B27: Description | D27: Desc
A28: Head25 | B28: Schedule of funding diligence | D28: fdil
A29: Head26 | B29: Vote Description | D29: VDesc
A30: Head27 | B30: Ref
A31: Head27a | B31: References
A32: Head28 | B32: Surplus/ (Deficit) for the year | D32: Result
A33: Head29 | B33: Annual target 2007/08
A34: Head30 | B34: Revised target 2007/08
A35: Head31 | B35: Quarter ended 30 September
A36: Head32 | B36: Quarter ended 31 December
A37: Head33 | B37: Quarter ended 31 March
A38: Head34 | B38: Quarter ended 30 June
A39: Head35 | B39: Variance explanation
A40: Head36 | B40: YTD Actual 31 Dec
A41: Head37 | B41: YTD Budget 31 Dec
A42: Head38 | B42: Monthly actual
A43: Head39 | B43: YearTD actual
A44: Head40 | B44: YearTD budget
A45: Head41 | B45: YTD variance
A46: Head42 | B46: Surplus/ (Deficit) for the yr/period
A47: Head43 | B47: =Head3&" Summary" -> 2020/21 Medium Term Revenue & Expenditure Framework Summary
A48: Head44 | B48: 1996 Census
A49: Head45 | B49: 2001 Census
A50: Head46 | B50: - Adjustments Budget - Month YYYY
A51: Head47 | B51: Previous target year to complete
A52: Head48 | B52: Present value
A53: Head49 | B53: Virement
A54: Head50 | B54: Other Adjusts.
A55: Head51 | B55: Accum. Funds
A56: Head52 | B56: Multi-year capital
A57: Head53 | B57: Unfore. Unavoid.
A58: Head54 | B58: Prior Adjusted
A59: Head55 | B59: Nat. or Prov. Govt
A60: Head56 | B60: Total Adjusts.
A61: Head57 | B61: =date -> M07 January
A62: Head58 | B62: Parent muni.
A63: Head59 | B63: Downward adjusts
A64: Head60 | B64: Month | C64: Report header part name | D64: =MONTH(date) -> 
A65: SFPerf1 | B65: Budgeted Financial Performance
A66: SFPerf2 | B66: Forecast Financial Performance
A67: SFPos1 | B67: Budgeted Financial Position
A68: SFPos2 | B68: Forecast Financial Position
A69: Cash1 | B69: Budget Cash Flow
A70: Cash2 | B70: Forecast Cash Flow
A71: RandM | B71: Expenditure includes repairs & maintenance of R'000
A72: Standard nomenclature
A73: Muni | B73: ='Lookup and lists'!B27 -> LIM353 Molemole
A74: Municipal Entities | B74: 2 | C74: Type of report: | D74: 1
A75: =IF((MuniEntities=1)*(MuniType=2),"YES","NO") -> NO | B75: Does this municipality have entities (consolidated budget and entity budgets required)? YES/NO
A76: s71 (Monthly Mayor report) schedules and charts
A77: S71sum | B77: =IF(Consolques="YES",E77,F77) -> Table C1 Monthly Budget Statement Summary | D77: Table C1 | E77: =D77&"Consolidated Monthly Budget Statement Summary" -> Table C1 Consolidated Monthly Budget Statement Summary | F77: =D77&"Monthly Budget Statement Summary" -> Table C1 Monthly Budget Statement Summary
A78: S71C | B78: Table C3 Monthly Budget Statement - Financial Performance (revenue and expenditure by municipal vote) | D78: Table C3 | E78: =D78&"Consolidated Monthly Budget Statement - Financial Performance (revenue and expenditure by municipal vote) " -> Table C3 Consolidated Monthly Budget Statement - Financial Performance (revenue and expenditure by municipal vote) | F78: =D78&"Monthly Budget Statement - Financial Performance (revenue and expenditure by municipal vote)" -> Table C3 Monthly Budget Statement - Financial Performance (revenue and expenditure by municipal vote)
A79: S71A | B79: =IF(Consolques="YES",E79,F79) -> Table C2 Monthly Budget Statement - Financial Performance (functional classification) | D79: Table C2 | E79: =D79&"Consolidated Monthly Budget Statement - Financial Performance (functional classification) " -> Table C2 Consolidated Monthly Budget Statement - Financial Performance (functional classification) | F79: =D79&"Monthly Budget Statement - Financial Performance (functional classification)" -> Table C2 Monthly Budget Statement - Financial Performance (functional classification)
A80: S71B | B80: =IF(Consolques="YES",E80,F80) -> Table C4 Monthly Budget Statement - Financial Performance (revenue and expenditure) | D80: Table C4 | E80: =D80&"Consolidated Monthly Budget Statement - Financial Performance (revenue and expenditure) " -> Table C4 Consolidated Monthly Budget Statement - Financial Performance (revenue and expenditure) | F80: =D80&"Monthly Budget Statement - Financial Performance (revenue and expenditure)" -> Table C4 Monthly Budget Statement - Financial Performance (revenue and expenditure)
A81: S71D | B81: =IF(Consolques="YES",E81,F81) -> Table C5 Monthly Budget Statement - Capital Expenditure (municipal vote, functional classification and funding) | D81: Table C5 | E81: =D81&"Consolidated Monthly Budget Statement - Capital Expenditure (municipal vote, functional classification and funding " -> Table C5 Consolidated Monthly Budget Statement - Capital Expenditure (municipal vote, functional classification and funding | F81: =D81&"Monthly Budget Statement - Capital Expenditure (municipal vote, functional classification and funding)" -> Table C5 Monthly Budget Statement - Capital Expenditure (municipal vote, functional classification and funding)
A82: S71E | B82: Table C6 Monthly Budget Statement - Financial Position | D82: Table C6 | E82: =D82&"Consolidated Monthly Budget Statement - Financial Position " -> Table C6 Consolidated Monthly Budget Statement - Financial Position | F82: =D82&"Monthly Budget Statement - Financial Position" -> Table C6 Monthly Budget Statement - Financial Position
A83: S71F | B83: Table C7 Monthly Budget Statement - Cash Flow | D83: Table C7 | E83: =D83&"Consolidated Monthly Budget Statement - Cash Flow " -> Table C7 Consolidated Monthly Budget Statement - Cash Flow | F83: =D83&"Monthly Budget Statement - Cash Flow " -> Table C7 Monthly Budget Statement - Cash Flow
A84: S71G | B84: =D84&"Material variance explanations " -> Supporting Table SC1 Material variance explanations | D84: Supporting Table SC1
A85: S71H | B85: =D85&"Monthly Budget Statement - performance indicators " -> Supporting Table SC2 Monthly Budget Statement - performance indicators | D85: Supporting Table SC2
A86: S71I | B86: =D86&"Monthly Budget Statement - aged debtors" -> Supporting Table SC3 Monthly Budget Statement - aged debtors | D86: Supporting Table SC3
A87: S71J | B87: =D87&"Monthly Budget Statement - aged creditors " -> Supporting Table SC4 Monthly Budget Statement - aged creditors | D87: Supporting Table SC4
A88: S71K | B88: =D88&"Monthly Budget Statement - investment portfolio " -> Supporting Table SC5 Monthly Budget Statement - investment portfolio | D88: Supporting Table SC5
A89: S71L | B89: =D89&"Monthly Budget Statement - transfers and grant receipts " -> Supporting Table SC6 Monthly Budget Statement - transfers and grant receipts | D89: Supporting Table SC6
A90: S71M | B90: =D90&" Monthly Budget Statement - transfers and grant expenditure " -> Supporting Table SC7(1) Monthly Budget Statement - transfers and grant expenditure | D90: Supporting Table SC7(1)
A91: S71N | B91: =D91&"Monthly Budget Statement - councillor and staff benefits " -> Supporting Table SC8 Monthly Budget Statement - councillor and staff benefits | D91: Supporting Table SC8
A92: S71O | B92: =D92&"Monthly Budget Statement - actuals and revised targets for cash receipts" -> Supporting Table SC9 Monthly Budget Statement - actuals and revised targets for cash receipts | D92: Supporting Table SC9
A93: S71P | B93: =IF(Consolques="YES",E93,F93) -> NOT REQUIRED - municipality does not have entities or this is the parent municipality's budget | D93: Supporting Table SC10 | E93: =D93&"Monthly Budget Statement - Parent Municipality Financial Performance (revenue and expenditure) " -> Supporting Table SC10 Monthly Budget Statement - Parent Municipality Financial Performance (revenue and expenditure) | F93: NOT REQUIRED - municipality does not have entities or this is the parent municipality's budget
A94: S71Q | B94: NOT REQUIRED - municipality does not have entities or this is the parent municipality's budget | D94: Supporting Table SC11 | E94: =D94&"Monthly Budget Statement - summary of municipal entities" -> Supporting Table SC11 Monthly Budget Statement - summary of municipal entities | F94: NOT REQUIRED - municipality does not have entities or this is the parent municipality's budget
A95: S71R | B95: Supporting Table SC12 Monthly Budget Statement - capital expenditure trend | D95: Supporting Table SC12 | E95: =D95&"Consolidated Monthly Budget Statement - capital expenditure trend " -> Supporting Table SC12 Consolidated Monthly Budget Statement - capital expenditure trend | F95: =D95&"Monthly Budget Statement - capital expenditure trend" -> Supporting Table SC12 Monthly Budget Statement - capital expenditure trend
A96: S71Sa | B96: Supporting Table SC13a Monthly Budget Statement - capital expenditure on new assets by asset class | D96: Supporting Table SC13a | E96: =D96&"Consolidated Monthly Budget Statement - capital expenditure on new assets by asset class" -> Supporting Table SC13a Consolidated Monthly Budget Statement - capital expenditure on new assets by asset class | F96: =D96&"Monthly Budget Statement - capital expenditure on new assets by asset class" -> Supporting Table SC13a Monthly Budget Statement - capital expenditure on new assets by asset class
A97: S71Sb | B97: Supporting Table SC13b Monthly Budget Statement - capital expenditure on renewal of existing assets by asset class | D97: Supporting Table SC13b | E97: =D97&"Consolidated Monthly Budget Statement - capital expenditure on renewal of existing assets by asset class" -> Supporting Table SC13b Consolidated Monthly Budget Statement - capital expenditure on renewal of existing assets by asset class | F97: =D97&"Monthly Budget Statement - capital expenditure on renewal of existing assets by asset class" -> Supporting Table SC13b Monthly Budget Statement - capital expenditure on renewal of existing assets by asset class
A98: S71Sc | B98: Supporting Table SC13c Monthly Budget Statement - expenditure on repairs and maintenance by asset class | D98: Supporting Table SC13c | E98: =D98&"Consolidated Monthly Budget Statement - expenditure on repairs and maintenance by asset class" -> Supporting Table SC13c Consolidated Monthly Budget Statement - expenditure on repairs and maintenance by asset class | F98: =D98&"Monthly Budget Statement - expenditure on repairs and maintenance by asset class" -> Supporting Table SC13c Monthly Budget Statement - expenditure on repairs and maintenance by asset class
A99: S71Sd | B99: Supporting Table SC13d Monthly Budget Statement - depreciation by asset class | D99: Supporting Table SC13d | E99: =D99&"Consolidated Monthly Budget Statement - depreciation by asset class" -> Supporting Table SC13d Consolidated Monthly Budget Statement - depreciation by asset class | F99: =D99&"Monthly Budget Statement - depreciation by asset class" -> Supporting Table SC13d Monthly Budget Statement - depreciation by asset class
A100: S71Se | B100: =IF(Consolques="YES",E100,F100) -> Supporting Table SC13e Monthly Budget Statement - capital expenditure on upgrading of existing assets by asset class | D100: Supporting Table SC13e | E100: =D100&"Consolidated Monthly Budget Statement - capital expenditure on upgrading of existing assets by asset class" -> Supporting Table SC13e Consolidated Monthly Budget Statement - capital expenditure on upgrading of existing assets by asset class | F100: =D100&"Monthly Budget Statement - capital expenditure on upgrading of existing assets by asset class" -> Supporting Table SC13e Monthly Budget Statement - capital expenditure on upgrading of existing assets by asset class
B101: s71 charts listing
B102: =D102&Head2A&" Capital Expenditure Monthly Trend: actual v target" -> Chart C1 2020/21 Capital Expenditure Monthly Trend: actual v target | D102: Chart C1
B103: =D103&Head2A&" Capital Expenditure: YTD actual v YTD target" -> Chart C2 2020/21 Capital Expenditure: YTD actual v YTD target | D103: Chart C2
B104: =D104&"Aged Consumer Debtors Analysis" -> Chart C3 Aged Consumer Debtors Analysis | D104: Chart C3
B105: =D105&"Consumer Debtors (total by Debtor Customer Category)" -> Chart C4 Consumer Debtors (total by Debtor Customer Category) | D105: Chart C4
B106: =D106&"Aged Creditors Analysis" -> Chart C5 Aged Creditors Analysis | D106: Chart C5
A107: S71T | B107: =D107&" Monthly Budget Statement - Expenditure against approved rollovers" -> Supporting Table SC7(2) Monthly Budget Statement - Expenditure against approved rollovers | D107: Supporting Table SC7(2)

Sheet Lookup and lists (hidden)
A1: Description | B1: 2007 | C1: 2008 | D1: 2009 | E1: 2010 | F1: 2011 | G1: 2012 | H1: 2013 | I1: 2014 | J1: 2015 | K1: 2016 | L1: 2017 | M1: 2018 | N1: 2019 | O1: 2020 | Q1: Grants: | R1: National - opex | S1: Provincial - opex | T1: National - capex | U1: Provincial - capex | V1: YESNO
A2: ='Template names'!C2 -> Prior year -1 | B2: 2006/07 | C2: 2007/08 | D2: 2008/09 | E2: =E1-1&"/"&RIGHT(E1,2)-0 -> 2009/10 | F2: =F1-1&"/"&RIGHT(F1,2)-0 -> 2010/11 | G2: 2011/12 | H2: 2012/13 | I2: 2013/14 | J2: 2014/15 | K2: 2015/16 | L2: 2016/17 | M2: 2017/18 | N2: 2018/19 | O2: 2019/20 | R2: Local Government Equitable Share | S2: Health subsidy | T2: Municipal Infrastructure Grant (MIG) | U2: Agriculture | V2: Yes
A3: ='Template names'!C5 -> MTREF header name | B3: 2007/08 Medium Term Revenue & Expenditure Framework | C3: 2008/09 Medium Term Revenue & Expenditure Framework | D3: 2009/10 Medium Term Revenue & Expenditure Framework | E3: =E1&"/"&RIGHT(E1,2)+1&" Medium Term Revenue & Expenditure Framework" -> 2010/11 Medium Term Revenue & Expenditure Framework | F3: =F1&"/"&RIGHT(F1,2)+1&" Medium Term Revenue & Expenditure Framework" -> 2011/12 Medium Term Revenue & Expenditure Framework | G3: 2012/13 Medium Term Revenue & Expenditure Framework | H3: 2013/14 Medium Term Revenue & Expenditure Framework | I3: 2014/15 Medium Term Revenue & Expenditure Framework | J3: 2015/16 Medium Term Revenue & Expenditure Framework | K3: 2016/17 Medium Term Revenue & Expenditure Framework | L3: 2017/18 Medium Term Revenue & Expenditure Framework | M3: 2018/19 Medium Term Revenue & Expenditure Framework | N3: 2019/20 Medium Term Revenue & Expenditure Framework | O3: 2020/21 Medium Term Revenue & Expenditure Framework | R3: RSC Levy Replacement | S3: Ambulance subsidy | T3: Public Transport and Systems | U3: Education | V3: No
A4: ='Template names'!C4 -> Approved budget year | B4: 2007/08 | C4: 2008/09 | D4: 2009/10 | E4: =E1&"/"&RIGHT(E1,2)+1 -> 2010/11 | F4: =F1&"/"&RIGHT(F1,2)+1 -> 2011/12 | G4: 2012/13 | H4: 2013/14 | I4: 2014/15 | J4: 2015/16 | K4: 2016/17 | L4: 2017/18 | M4: 2018/19 | N4: 2019/20 | O4: 2020/21 | R4: Finance Management | S4: Housing | T4: Rural Transport Services and Infrastructure | U4: Health
A5: ='Template names'!C12 -> 1st year of MTREF | B5: Budget Year 2007/08 | C5: Budget Year 2008/09 | D5: Budget Year 2009/10 | E5: ="Budget Year "&E1&"/"&RIGHT(E1,2)+1 -> Budget Year 2010/11 | F5: ="Budget Year "&F1&"/"&RIGHT(F1,2)+1 -> Budget Year 2011/12 | G5: Budget Year 2012/13 | H5: Budget Year 2013/14 | I5: Budget Year 2014/15 | J5: Budget Year 2015/16 | K5: Budget Year 2016/17 | L5: Budget Year 2017/18 | M5: Budget Year 2018/19 | N5: Budget Year 2019/20 | O5: Budget Year 2020/21 | R5: Municipal Systems Improvement | S5: Sport and Recreation | T5: Regional Bulk Infrastructure | U5: Housing and Local Government
A6: ='Template names'!C13 -> 2nd year of MTREF | B6: Budget Year +1 2008/09 | C6: Budget Year +1 2009/10 | D6: Budget Year +1 2010/11 | E6: ="Budget Year +1 "&E1+1&"/"&RIGHT(E1,2)+2 -> Budget Year +1 2011/12 | F6: ="Budget Year +1 "&F1+1&"/"&RIGHT(F1,2)+2 -> Budget Year +1 2012/13 | G6: Budget Year +1 2013/14 | H6: Budget Year +1 2014/15 | I6: Budget Year +1 2015/16 | J6: Budget Year +1 2016/17 | K6: Budget Year +1 2017/18 | L6: Budget Year +1 2018/19 | M6: Budget Year +1 2019/20 | N6: Budget Year +1 2020/21 | O6: Budget Year +1 2021/22 | R6: Water Services Operating Subsidy | T6: Rural Households Infrastructure | U6: Other Departments
A7: ='Template names'!C14 -> 3rd year of MTREF | B7: Budget Year +2 2009/10 | C7: Budget Year +2 2010/11 | D7: Budget Year +2 2011/12 | E7: ="Budget Year +2 "&E1+2&"/"&RIGHT(E1,2)+3 -> Budget Year +2 2012/13 | F7: ="Budget Year +2 "&F1+2&"/"&RIGHT(F1,2)+3 -> Budget Year +2 2013/14 | G7: Budget Year +2 2014/15 | H7: Budget Year +2 2015/16 | I7: Budget Year +2 2016/17 | J7: Budget Year +2 2017/18 | K7: Budget Year +2 2018/19 | L7: Budget Year +2 2019/20 | M7: Budget Year +2 2020/21 | N7: Budget Year +2 2021/22 | O7: Budget Year +2 2022/23 | R7: Energy Efficiency and Demand Management | T7: Neighbourhood Development Partnership | U7: Public Works, Roads, Transport
A8: NOTE: This sheet should not be directly amended - select headings from sheet 'S' | R8: Integrated National Electrification Programme | T8: 2010 FIFA World Cup Stadiums Development | U8: Sport and Recreation
R9: Municipal Drought Relief
R10: 2010 FIFA World Cup Operating
R11: Electricity Demand Side Management
R12: EPWP Incentive
A26: Name link | B26: 141
A27: Name of Muni | B27: =INDEX(B28:B311,B26,1) -> LIM353 Molemole
B28: Choose name from list | C28: Set name on 'Instructions' sheet
B29: BUF Buffalo City | C29: EC EASTERN CAPE
B30: NMA Nelson Mandela Bay | C30: EC EASTERN CAPE
B31: EC101 Dr Beyers Naude | C31: EC EASTERN CAPE
B32: EC102 Blue Crane Route | C32: EC EASTERN CAPE
B33: EC104 Makana | C33: EC EASTERN CAPE
B34: EC105 Ndlambe | C34: EC EASTERN CAPE
B35: EC106 Sundays River Valley | C35: EC EASTERN CAPE
B36: EC108 Kouga | C36: EC EASTERN CAPE
B37: EC109 Kou-Kamma | C37: EC EASTERN CAPE
B38: DC10 Sarah Baartman | C38: EC EASTERN CAPE
B39: EC121 Mbhashe | C39: EC EASTERN CAPE
B40: EC122 Mnquma | C40: EC EASTERN CAPE
B41: EC123 Great Kei | C41: EC EASTERN CAPE
B42: EC124 Amahlathi | C42: EC EASTERN CAPE
B43: EC126 Ngqushwa | C43: EC EASTERN CAPE
B44: EC129 Raymond Mhlaba | C44: EC EASTERN CAPE
B45: DC12 Amathole | C45: EC EASTERN CAPE
B46: EC131 Inxuba Yethemba | C46: EC EASTERN CAPE
B47: EC135 Intsika Yethu | C47: EC EASTERN CAPE
B48: EC136 Emalahleni (Ec) | C48: EC EASTERN CAPE
B49: EC137 Engcobo | C49: EC EASTERN CAPE
B50: EC138 Sakhisizwe | C50: EC EASTERN CAPE
B51: EC139 Enoch Mgijima | C51: EC EASTERN CAPE
B52: DC13 Chris Hani | C52: EC EASTERN CAPE
B53: EC141 Elundini | C53: EC EASTERN CAPE
B54: EC142 Senqu | C54: EC EASTERN CAPE
B55: EC145 Walter Sisulu | C55: EC EASTERN CAPE
B56: DC14 Joe Gqabi | C56: EC EASTERN CAPE
B57: EC153 Ngquza Hills | C57: EC EASTERN CAPE
B58: EC154 Port St Johns | C58: EC EASTERN CAPE
B59: EC155 Nyandeni | C59: EC EASTERN CAPE
B60: EC156 Mhlontlo | C60: EC EASTERN CAPE
B61: EC157 King Sabata Dalindyebo | C61: EC EASTERN CAPE
B62: DC15 O .R. Tambo | C62: EC EASTERN CAPE
B63: EC441 Matatiele | C63: EC EASTERN CAPE
B64: EC442 Umzimvubu | C64: EC EASTERN CAPE
B65: EC443 Mbizana | C65: EC EASTERN CAPE
B66: EC444 Ntabankulu | C66: EC EASTERN CAPE
B67: DC44 Alfred Nzo | C67: EC EASTERN CAPE
B68: MAN Mangaung | C68: FS FREE STATE
B69: FS161 Letsemeng | C69: FS FREE STATE
B70: FS162 Kopanong | C70: FS FREE STATE
B71: FS163 Mohokare | C71: FS FREE STATE
B72: DC16 Xhariep | C72: FS FREE STATE
B73: FS181 Masilonyana | C73: FS FREE STATE
B74: FS182 Tokologo | C74: FS FREE STATE
B75: FS183 Tswelopele | C75: FS FREE STATE
B76: FS184 Matjhabeng | C76: FS FREE STATE
B77: FS185 Nala | C77: FS FREE STATE
B78: DC18 Lejweleputswa | C78: FS FREE STATE
B79: FS191 Setsoto | C79: FS FREE STATE
B80: FS192 Dihlabeng | C80: FS FREE STATE
B81: FS193 Nketoana | C81: FS FREE STATE
B82: FS194 Maluti-a-Phofung | C82: FS FREE STATE
B83: FS195 Phumelela | C83: FS FREE STATE
B84: FS196 Mantsopa | C84: FS FREE STATE
B85: DC19 Thabo Mofutsanyana | C85: FS FREE STATE
B86: FS201 Moqhaka | C86: FS FREE STATE
B87: FS203 Ngwathe | C87: FS FREE STATE
B88: FS204 Metsimaholo | C88: FS FREE STATE
B89: FS205 Mafube | C89: FS FREE STATE
B90: DC20 Fezile Dabi | C90: FS FREE STATE
B91: EKU City of Ekurhuleni | C91: GT GAUTENG
B92: JHB City Of Johannesburg | C92: GT GAUTENG
B93: TSH City Of Tshwane | C93: GT GAUTENG
B94: GT421 Emfuleni | C94: GT GAUTENG
B95: GT422 Midvaal | C95: GT GAUTENG
B96: GT423 Lesedi | C96: GT GAUTENG
B97: DC42 Sedibeng | C97: GT GAUTENG
B98: GT481 Mogale City | C98: GT GAUTENG
B99: GT484 Merafong City | C99: GT GAUTENG
B100: GT485 Rand West City | C100: GT GAUTENG
B101: DC48 West Rand | C101: GT GAUTENG
B102: ETH eThekwini | C102: KZN KWAZULU-NATAL
B103: KZN212 Umdoni | C103: KZN KWAZULU-NATAL
B104: KZN213 Umzumbe | C104: KZN KWAZULU-NATAL
B105: KZN214 uMuziwabantu | C105: KZN KWAZULU-NATAL
B106: KZN216 Ray Nkonyeni | C106: KZN KWAZULU-NATAL
B107: DC21 Ugu | C107: KZN KWAZULU-NATAL
B108: KZN221 uMshwathi | C108: KZN KWAZULU-NATAL
B109: KZN222 uMngeni | C109: KZN KWAZULU-NATAL
B110: KZN223 Mpofana | C110: KZN KWAZULU-NATAL
B111: KZN224 Impendle | C111: KZN KWAZULU-NATAL
B112: KZN225 Msunduzi | C112: KZN KWAZULU-NATAL
B113: KZN226 Mkhambathini | C113: KZN KWAZULU-NATAL
B114: KZN227 Richmond | C114: KZN KWAZULU-NATAL
B115: DC22 uMgungundlovu | C115: KZN KWAZULU-NATAL
B116: KZN235 Okhahlamba | C116: KZN KWAZULU-NATAL
B117: KZN237 Inkosi Langalibalele | C117: KZN KWAZULU-NATAL
B118: KZN238 Alfred Duma | C118: KZN KWAZULU-NATAL
B119: DC23 Uthukela | C119: KZN KWAZULU-NATAL
B120: KZN241 Endumeni | C120: KZN KWAZULU-NATAL
B121: KZN242 Nquthu | C121: KZN KWAZULU-NATAL
B122: KZN244 Msinga | C122: KZN KWAZULU-NATAL
B123: KZN245 Umvoti | C123: KZN KWAZULU-NATAL
B124: DC24 Umzinyathi | C124: KZN KWAZULU-NATAL
B125: KZN252 Newcastle | C125: KZN KWAZULU-NATAL
B126: KZN253 Emadlangeni | C126: KZN KWAZULU-NATAL
B127: KZN254 Dannhauser | C127: KZN KWAZULU-NATAL
B128: DC25 Amajuba | C128: KZN KWAZULU-NATAL
B129: KZN261 eDumbe | C129: KZN KWAZULU-NATAL
B130: KZN262 uPhongolo | C130: KZN KWAZULU-NATAL
B131: KZN263 Abaqulusi | C131: KZN KWAZULU-NATAL
B132: KZN265 Nongoma | C132: KZN KWAZULU-NATAL
B133: KZN266 Ulundi | C133: KZN KWAZULU-NATAL
B134: DC26 Zululand | C134: KZN KWAZULU-NATAL
B135: KZN271 Umhlabuyalingana | C135: KZN KWAZULU-NATAL
B136: KZN272 Jozini | C136: KZN KWAZULU-NATAL
B137: KZN275 Mtubatuba | C137: KZN KWAZULU-NATAL
B138: KZN276 Hlabisa Big Five | C138: KZN KWAZULU-NATAL
B139: DC27 Umkhanyakude | C139: KZN KWAZULU-NATAL
B140: KZN281 Mfolozi | C140: KZN KWAZULU-NATAL
B141: KZN282 uMhlathuze | C141: KZN KWAZULU-NATAL
B142: KZN284 uMlalazi | C142: KZN KWAZULU-NATAL
B143: KZN285 Mthonjaneni | C143: KZN KWAZULU-NATAL
B144: KZN286 Nkandla | C144: KZN KWAZULU-NATAL
B145: DC28 King Cetshwayo | C145: KZN KWAZULU-NATAL
B146: KZN291 Mandeni | C146: KZN KWAZULU-NATAL
B147: KZN292 KwaDukuza | C147: KZN KWAZULU-NATAL
B148: KZN293 Ndwedwe | C148: KZN KWAZULU-NATAL
B149: KZN294 Maphumulo | C149: KZN KWAZULU-NATAL
B150: DC29 iLembe | C150: KZN KWAZULU-NATAL
B151: KZN433 Greater Kokstad | C151: KZN KWAZULU-NATAL
B152: KZN434 Ubuhlebezwe | C152: KZN KWAZULU-NATAL
B153: KZN435 Umzimkhulu | C153: KZN KWAZULU-NATAL
B154: KZN436 Dr Nkosazana Dlamini Zuma | C154: KZN KWAZULU-NATAL
B155: DC43 Harry Gwala | C155: KZN KWAZULU-NATAL
B156: LIM331 Greater Giyani | C156: LIM LIMPOPO
B157: LIM332 Greater Letaba | C157: LIM LIMPOPO
B158: LIM333 Greater Tzaneen | C158: LIM LIMPOPO
B159: LIM334 Ba-Phalaborwa | C159: LIM LIMPOPO
B160: LIM335 Maruleng | C160: LIM LIMPOPO
B161: DC33 Mopani | C161: LIM LIMPOPO
B162: LIM341 Musina | C162: LIM LIMPOPO
B163: LIM343 Thulamela | C163: LIM LIMPOPO
B164: LIM344 Makhado | C164: LIM LIMPOPO
B165: LIM345 Collins Chabane | C165: LIM LIMPOPO
B166: DC34 Vhembe | C166: LIM LIMPOPO
B167: LIM351 Blouberg | C167: LIM LIMPOPO
B168: LIM353 Molemole | C168: LIM LIMPOPO
B169: LIM354 Polokwane | C169: LIM LIMPOPO
B170: LIM355 Lepelle-Nkumpi | C170: LIM LIMPOPO
B171: DC35 Capricorn | C171: LIM LIMPOPO
B172: LIM361 Thabazimbi | C172: LIM LIMPOPO
B173: LIM362 Lephalale | C173: LIM LIMPOPO
B174: LIM366 Bela Bela | C174: LIM LIMPOPO
B175: LIM367 Mogalakwena | C175: LIM LIMPOPO
B176: LIM368 Modimolle-Mookgopong | C176: LIM LIMPOPO
B177: DC36 Waterberg | C177: LIM LIMPOPO
B178: LIM471 Ephraim Mogale | C178: LIM LIMPOPO
B179: LIM472 Elias Motsoaledi | C179: LIM LIMPOPO
B180: LIM473 Makhuduthamaga | C180: LIM LIMPOPO
B181: LIM476 Tubatse Fetakgomo | C181: LIM LIMPOPO
B182: DC47 Sekhukhune | C182: LIM LIMPOPO
B183: MP301 Albert Luthuli | C183: MP MPUMALANGA
B184: MP302 Msukaligwa | C184: MP MPUMALANGA
B185: MP303 Mkhondo | C185: MP MPUMALANGA
B186: MP304 Pixley Ka Seme (MP) | C186: MP MPUMALANGA
B187: MP305 Lekwa | C187: MP MPUMALANGA
B188: MP306 Dipaleseng | C188: MP MPUMALANGA
B189: MP307 Govan Mbeki | C189: MP MPUMALANGA
B190: DC30 Gert Sibande | C190: MP MPUMALANGA
B191: MP311 Victor Khanye | C191: MP MPUMALANGA
B192: MP312 Emalahleni (Mp) | C192: MP MPUMALANGA
B193: MP313 Steve Tshwete | C193: MP MPUMALANGA
B194: MP314 Emakhazeni | C194: MP MPUMALANGA
B195: MP315 Thembisile Hani | C195: MP MPUMALANGA
B196: MP316 Dr J.S. Moroka | C196: MP MPUMALANGA
B197: DC31 Nkangala | C197: MP MPUMALANGA
B198: MP321 Thaba Chweu | C198: MP MPUMALANGA
B199: MP324 Nkomazi | C199: MP MPUMALANGA
B200: MP325 Bushbuckridge | C200: MP MPUMALANGA
B201: MP326 City of Mbombela | C201: MP MPUMALANGA
B202: DC32 Ehlanzeni | C202: MP MPUMALANGA
B203: NC451 Joe Morolong | C203: NC NORTHERN CAPE
B204: NC452 Ga-Segonyana | C204: NC NORTHERN CAPE
B205: NC453 Gamagara | C205: NC NORTHERN CAPE
B206: DC45 John Taolo Gaetsewe | C206: NC NORTHERN CAPE
B207: NC061 Richtersveld | C207: NC NORTHERN CAPE
B208: NC062 Nama Khoi | C208: NC NORTHERN CAPE
B209: NC064 Kamiesberg | C209: NC NORTHERN CAPE
B210: NC065 Hantam | C210: NC NORTHERN CAPE
B211: NC066 Karoo Hoogland | C211: NC NORTHERN CAPE
B212: NC067 Khai-Ma | C212: NC NORTHERN CAPE
B213: DC6 Namakwa | C213: NC NORTHERN CAPE
... 73 more rows

Sheet Org structure
A1: Organisational Structure Votes | C1: Organisational Structure Sub-Votes | E1: Display Sub-Votes
A2: =B2&" - "&C2 -> Vote 01 - Corporate Services | B2: Vote 01 | C2: Corporate Services
A3: =B11&" - "&C11 -> Vote 02 - Municipal Manager | B3: 01.1 | C3: Corporate Services Admin | D3: =CONCATENATE(B3, " - ", C3) -> 01.1 - Corporate Services Admin | E3: 01.1 - Corporate Services Admin
A4: =B17&" - "&C17 -> Vote 03 - Mayors Office | B4: 01.2 | C4: Human Resources | D4: 01.2 - Human Resources | E4: 01.2 - Human Resources
A5: =B23&" - "&C23 -> Vote 04 - Budget And Treasury | B5: 01.3 | C5: Information Technology Services | D5: 01.3 - Information Technology Services | E5: 01.3 - Information Technology Services
A6: =B31&" - "&C31 -> Vote 05 - Community Services | B6: 01.4 | C6: Council Support | D6: 01.4 - Council Support | E6: 01.4 - Council Support
A7: =B40&" - "&C40 -> Vote 06 - Technical Services | B7: 01.5 | C7: Local Economic Development | D7: 01.5 - Local Economic Development | E7: 01.5 - Local Economic Development
A8: =B49&" - "&C49 -> Vote 07 - | B8: 01.6 | C8: Municipal Planning Idp | D8: 01.6 - Municipal Planning Idp | E8: 01.6 - Municipal Planning Idp
A9: Vote 08 - | B9: 01.7 | C9: Town & Regional Planning | D9: 01.7 - Town & Regional Planning | E9: 01.7 - Town & Regional Planning
A10: Vote 09 - | B10: 01.8 | C10: Led Administration | D10: 01.8 - Led Administration | E10: 01.8 - Led Administration
A11: Vote 10 - | B11: Vote 02 | C11: Municipal Manager
A12: Vote 11 - | B12: 02.1 | C12: Municipal Manager Admin | D12: =CONCATENATE(B12, " - ", C12) -> 02.1 - Municipal Manager Admin | E12: 02.1 - Municipal Manager Admin
A13: Vote 12 - | B13: 02.2 | C13: Legal Services | D13: =CONCATENATE(B13, " - ", C13) -> 02.2 - Legal Services | E13: 02.2 - Legal Services
A14: Vote 13 - | B14: 02.3 | C14: Political Office Beares | D14: =CONCATENATE(B14, " - ", C14) -> 02.3 - Political Office Beares | E14: 02.3 - Political Office Beares
A15: Vote 14 - | B15: 02.4 | C15: Pms | D15: =CONCATENATE(B15, " - ", C15) -> 02.4 - Pms | E15: 02.4 - Pms
A16: Vote 15 - Other | B16: 02.5 | C16: Internal Audit | D16: =CONCATENATE(B16, " - ", C16) -> 02.5 - Internal Audit | E16: 02.5 - Internal Audit
B17: Vote 03 | C17: Mayors Office
B18: 03.1 | C18: Mayors Office Admin | D18: =CONCATENATE(B18, " - ", C18) -> 03.1 - Mayors Office Admin | E18: 03.1 - Mayors Office Admin
B19: 03.2 | C19: Office Of The Speaker | D19: =CONCATENATE(B19, " - ", C19) -> 03.2 - Office Of The Speaker | E19: 03.2 - Office Of The Speaker
B20: 03.3 | C20: Office Of The Chief Whip | D20: =CONCATENATE(B20, " - ", C20) -> 03.3 - Office Of The Chief Whip | E20: 03.3 - Office Of The Chief Whip
B21: 03.4 | C21: Exco Members | D21: =CONCATENATE(B21, " - ", C21) -> 03.4 - Exco Members | E21: 03.4 - Exco Members
B22: 03.5 | C22: Council General Administration | D22: =CONCATENATE(B22, " - ", C22) -> 03.5 - Council General Administration | E22: 03.5 - Council General Administration
B23: Vote 04 | C23: Budget And Treasury
B24: 04.1 | C24: Budget And Treasury Admin | D24: =CONCATENATE(B24, " - ", C24) -> 04.1 - Budget And Treasury Admin | E24: 04.1 - Budget And Treasury Admin
B25: 04.2 | C25: Chief Financial Officer Admin | D25: 04.2 - Chief Financial Officer Admin | E25: 04.2 - Chief Financial Officer Admin
B26: 04.3 | C26: Budget & Reporting | D26: 04.3 - Budget & Reporting | E26: 04.3 - Budget & Reporting
B27: 04.4 | C27: Budget & Reporting | D27: 04.4 - Budget & Reporting | E27: 04.4 - Budget & Reporting
B28: 04.5 | C28: Revenue Management | D28: 04.5 - Revenue Management | E28: 04.5 - Revenue Management
B29: 04.6 | C29: Supply Chain Management | D29: 04.6 - Supply Chain Management | E29: 04.6 - Supply Chain Management
B30: 04.7 | C30: Expenditure | D30: 04.7 - Expenditure | E30: 04.7 - Expenditure
B31: Vote 05 | C31: Community Services
B32: 05.1 | C32: Community Services Admin | D32: =CONCATENATE(B32, " - ", C32) -> 05.1 - Community Services Admin | E32: 05.1 - Community Services Admin
B33: 05.2 | C33: Libraries | D33: 05.2 - Libraries | E33: 05.2 - Libraries
B34: 05.3 | C34: Sports Recreation & Social Amenitie | D34: 05.3 - Sports Recreation & Social Amenitie | E34: 05.3 - Sports Recreation & Social Amenitie
B35: 05.4 | C35: Traffic Service | D35: 05.4 - Traffic Service | E35: 05.4 - Traffic Service
B36: 05.5 | C36: Traffic Service | D36: 05.5 - Traffic Service | E36: 05.5 - Traffic Service
B37: 05.6 | C37: Parks; Cemeteries | D37: 05.6 - Parks; Cemeteries | E37: 05.6 - Parks; Cemeteries
B38: 05.7 | C38: Refuse | D38: 05.7 - Refuse | E38: 05.7 - Refuse
B39: 05.8 | C39: Taxi Ranks | D39: 05.8 - Taxi Ranks | E39: 05.8 - Taxi Ranks
B40: Vote 06 | C40: Technical Services
B41: 06.1 | C41: Mpac | D41: =CONCATENATE(B41, " - ", C41) -> 06.1 - Mpac | E41: 06.1 - Mpac
B42: 06.2 | C42: Technical Services Admin | D42: 06.2 - Technical Services Admin | E42: 06.2 - Technical Services Admin
B43: 06.3 | C43: Techn Serv-Roads: Admin | D43: 06.3 - Techn Serv-Roads: Admin | E43: 06.3 - Techn Serv-Roads: Admin
B44: 06.4 | C44: Techn Serv-Stormwater: Admin | D44: 06.4 - Techn Serv-Stormwater: Admin | E44: 06.4 - Techn Serv-Stormwater: Admin
B45: 06.5 | C45: Project Management Unit | D45: 06.5 - Project Management Unit | E45: 06.5 - Project Management Unit
B46: 06.6 | C46: Electrical & Machinery | D46: 06.6 - Electrical & Machinery | E46: 06.6 - Electrical & Machinery
B47: 06.7 | C47: Water | D47: 06.7 - Water | E47: 06.7 - Water
B48: 06.8 | C48: Sanitation | D48: 06.8 - Sanitation | E48: 06.8 - Sanitation
B49: Vote 07
B50: Vote 08
B51: Vote 09
B52: Vote 10
B53: Vote 11
B54: Vote 12
B55: Vote 13
B56: Vote 14
B57: Vote 15 | C57: Other

Sheet Contacts
A1: =muni&" - "&" Contact Information" -> LIM353 Molemole - Contact Information
A3: A. GENERAL INFORMATION
A4: Municipality | B4: =muni -> LIM353 Molemole | C4: Set name on 'Instructions' sheet
A6: Grade | C6: 1 Grade in terms of the Remuneration of Public Office Bearers Act.
A8: Province | B8: =IF(B4>" ",VLOOKUP(B4,'Lookup and lists'!B28:C311,2, FALSE)," ") -> LIM LIMPOPO
A10: Web Address
A12: e-mail Address
A14: B. CONTACT INFORMATION
A15: Postal address:
A16: P.O. Box
A17: City / Town
A18: Postal Code
A20: Street address
A21: Building
A22: Street No. & Name
A23: City / Town
A24: Postal Code
A26: General Contacts
A27: Telephone number
A28: Fax number
A30: C. POLITICAL LEADERSHIP
A31: Speaker: | C31: Secretary/PA to the Speaker:
A32: ID Number | B32: 560618 0882 808 | C32: ID Number | D32: 820119 0609 087
A33: Title | B33: Mrs | C33: Title | D33: Ms
A34: Name | B34: MOREROA M.S | C34: Name | D34: MACHAKA SEBOLLA
A35: Telephone number | B35: 015 501 0243 | C35: Telephone number | D35: 015 501 0243
A36: Cell number | B36: 079 220 7523 | C36: Cell number | D36: 079 728 8360
A37: Fax number | B37: 015 501 0419 | C37: Fax number | D37: 015 501 0419
A38: E-mail address | B38: moreroams@molemole.gov.za | C38: E-mail address | D38: machakas@molemole.gov.za
A40: Mayor/Executive Mayor: | C40: Secretary/PA to the Mayor/Executive Mayor:
A41: ID Number | B41: 660312 5428 081 | C41: ID Number | D41: 850930 1072 080
A42: Title | B42: Mr | C42: Title | D42: Ms
A43: Name | B43: PAYA E | C43: Name | D43: RATHETE MAKETA
A44: Telephone number | B44: 015 501 0243 | C44: Telephone number | D44: 015 501 0243
A45: Cell number | B45: 082 474 2858 | C45: Cell number | D45: 072 958 1970
A46: Fax number | B46: 086 515 8809 | C46: Fax number | D46: 015 501 0419
A47: E-mail address | B47: payae@molemole.gov.za | C47: E-mail address | D47: rathetem@molemole.go.za
A49: Deputy Mayor/Executive Mayor: | C49: Secretary/PA to the Deputy Mayor/Executive Mayor:
A50: ID Number | C50: ID Number
A51: Title | C51: Title
A52: Name | C52: Name
A53: Telephone number | C53: Telephone number
A54: Cell number | C54: Cell number
A55: Fax number | C55: Fax number
A56: E-mail address | C56: E-mail address
A58: D. MANAGEMENT LEADERSHIP
A59: Municipal Manager: | C59: Secretary/PA to the Municipal Manager:
A60: ID Number | B60: 670616 5811 080 | C60: ID Number | D60: 720712 0880 087
A61: Title | B61: Mr | C61: Title | D61: Mrs
A62: Name | B62: MOSENA MAPHALA LAZARUS | C62: Name | D62: SEABELA SUSAN
A63: Telephone number | B63: 015 501 0243 | C63: Telephone number | D63: 015 501 0243
A64: Cell number | B64: 079 803 9833 | C64: Cell number | D64: 079 217 3250
A65: Fax number | B65: 015 501 0419 | C65: Fax number | D65: 015 501 0419
A66: E-mail address | B66: 079 803 9833 | C66: E-mail address | D66: lebepes@molemole.gov.za
A68: Chief Financial Officer | C68: Secretary/PA to the Chief Financial Officer
A69: ID Number | B69: 840716 0427 083 | C69: ID Number | D69: 900906 1348 084
A70: Title | B70: Miss | C70: Title | D70: Miss
A71: Name | B71: ZULU KCW | C71: Name | D71: MAROPENG PHOSA
A72: Telephone number | B72: 015 501 0243 | C72: Telephone number | D72: 015 501 0243
A73: Cell number | B73: 063 878 8894 | C73: Cell number | D73: 073 916 3639
A74: Fax number | B74: 015 501 0419 | C74: Fax number | D74: 015 501 0419
A75: E-mail address | B75: zuluk@molemole.gov.za | C75: E-mail address | D75: phosam@molemole.gov.za
A77: Official responsible for submitting financial information | C77: Official responsible for submitting financial information
A78: ID Number | B78: 820214 0303 086 | C78: ID Number
A79: Title | B79: Mrs | C79: Title
A80: Name | B80: WISO PORTIA | C80: Name
A81: Telephone number | B81: 015 501 0243 | C81: Telephone number
A82: Cell number | B82: 082 488 3823 | C82: Cell number
A83: Fax number | B83: 015 501 0419 | C83: Fax number
A84: E-mail address | B84: mamabolomp@molemole.gov.za | C84: E-mail address
A85: Official responsible for submitting financial information | C85: Official responsible for submitting financial information
A86: ID Number | C86: ID Number
A87: Title | C87: Title
A88: Name | C88: Name
A89: Telephone number | C89: Telephone number
A90: Cell number | C90: Cell number
A91: Fax number | C91: Fax number
A92: E-mail address | C92: E-mail address
A93: Official responsible for submitting financial information | C93: Official responsible for submitting financial information
A94: ID Number | C94: ID Number
A95: Title | C95: Title
A96: Name | C96: Name
A97: Telephone number | C97: Telephone number
A98: Cell number | C98: Cell number
A99: Fax number | C99: Fax number
A100: E-mail address | C100: E-mail address
A101: Official responsible for submitting financial information | C101: Official responsible for submitting financial information
A102: ID Number | C102: ID Number
A103: Title | C103: Title
A104: Name | C104: Name
A105: Telephone number | C105: Telephone number
A106: Cell number | C106: Cell number
A107: Fax number | C107: Fax number
A108: E-mail address | C108: E-mail address
A109: Official responsible for submitting financial information | C109: Official responsible for submitting financial information
A110: ID Number | C110: ID Number
A111: Title | C111: Title
A112: Name | C112: Name
A113: Telephone number | C113: Telephone number
A114: Cell number | C114: Cell number
A115: Fax number | C115: Fax number
A116: E-mail address | C116: E-mail address
A117: Official responsible for submitting financial information | C117: Official responsible for submitting financial information
A118: ID Number | C118: ID Number
A119: Title | C119: Title
A120: Name | C120: Name
A121: Telephone number | C121: Telephone number
A122: Cell number | C122: Cell number
A123: Fax number | C123: Fax number
A124: E-mail address | C124: E-mail address
A125: Official responsible for submitting financial information | C125: Official responsible for submitting financial information
A126: ID Number | C126: ID Number
A127: Title | C127: Title
A128: Name | C128: Name
A129: Telephone number | C129: Telephone number
A130: Cell number | C130: Cell number
A131: Fax number | C131: Fax number
A132: E-mail address | C132: E-mail address
A133: Official responsible for submitting financial information
A134: ID Number
A135: Title
A136: Name
A137: Telephone number
A138: Cell number
A139: Fax number
A140: E-mail address

Sheet C1-Sum
A1: =muni& " - "&s71sum& " - "&date -> LIM353 Molemole - Table C1 Monthly Budget Statement Summary - M07 January
A2: =desc -> Description | B2: =Head1 -> 2019/20 | C2: =Head2 -> Budget Year 2020/21
B3: =Head5 -> Audited Outcome | C3: =Head6 -> Original Budget | D3: =Head7 -> Adjusted Budget | E3: =Head38 -> Monthly actual | F3: =Head39 -> YearTD actual | G3: =Head40 -> YearTD budget | H3: =Head41 -> YTD variance | I3: =Head41 -> YTD variance | J3: =Head8 -> Full Year Forecast
A4: R thousands | I4: %
A5: Financial Performance
A6: Property rates | B6: =SUM('C4-FinPerf RE'!C6:C6) -> 20010885.63 | C6: =SUM('C4-FinPerf RE'!D6:D6) -> 23451683 | D6: =SUM('C4-FinPerf RE'!E6:E6) -> 23451683 | E6: =SUM('C4-FinPerf RE'!F6:F6) -> 3108614.66 | F6: =SUM('C4-FinPerf RE'!G6:G6) -> 33690216.11 | G6: =SUM('C4-FinPerf RE'!H6:H6) -> 13680135 | H6: =F6-G6 -> 20010081.11 | I6: =IF(H6=0,"",H6/G6) -> 1.462710793 | J6: =SUM('C4-FinPerf RE'!K6:K6) -> 23451683
A7: Service charges | B7: =SUM('C4-FinPerf RE'!C7:C10) -> 10503008.53 | C7: =SUM('C4-FinPerf RE'!D7:D10) -> 13663019 | D7: =SUM('C4-FinPerf RE'!E7:E10) -> 13663019 | E7: =SUM('C4-FinPerf RE'!F7:F10) -> 975268.62 | F7: =SUM('C4-FinPerf RE'!G7:G10) -> 6779425.19 | G7: =SUM('C4-FinPerf RE'!H7:H10) -> 7970060 | H7: =F7-G7 -> -1190634.81 | I7: =IF(H7=0,"",H7/G7) -> -0.1493884375 | J7: =SUM('C4-FinPerf RE'!K7:K10) -> 13663019
A8: Investment revenue | B8: ='C4-FinPerf RE'!C13 -> 1729419.11 | C8: ='C4-FinPerf RE'!D13 -> 2215488 | D8: ='C4-FinPerf RE'!E13 -> 2215488 | E8: ='C4-FinPerf RE'!F13 -> 245836.23 | F8: ='C4-FinPerf RE'!G13 -> 1131514.1 | G8: ='C4-FinPerf RE'!H13 -> 1292368 | H8: =F8-G8 -> -160853.9 | I8: =IF(H8=0,"",H8/G8) -> -0.1244644714 | J8: ='C4-FinPerf RE'!K13 -> 2215488
A9: Transfers and subsidies | B9: ='C4-FinPerf RE'!C19 -> 148235565 | C9: ='C4-FinPerf RE'!D19 -> 156595650 | D9: ='C4-FinPerf RE'!E19 -> 185412650 | E9: ='C4-FinPerf RE'!F19 -> 0 | F9: ='C4-FinPerf RE'!G19 -> 70505752.86 | G9: ='C4-FinPerf RE'!H19 -> 105755952 | H9: =F9-G9 -> -35250199.14 | I9: =IF(H9=0,"",H9/G9) -> -0.3333164562 | J9: ='C4-FinPerf RE'!K19 -> 185412650
A10: Other own revenue | B10: ='C4-FinPerf RE'!C12+'C4-FinPerf RE'!C14+'C4-FinPerf RE'!C15+'C4-FinPerf RE'!C16+'C4-FinPerf RE'!C17+'C4-FinPerf RE'!C18+'C4-FinPerf RE'!C20+'C4-FinPerf RE'!C21 -> 6087635.4 | C10: ='C4-FinPerf RE'!D12+'C4-FinPerf RE'!D14+'C4-FinPerf RE'!D15+'C4-FinPerf RE'!D16+'C4-FinPerf RE'!D17+'C4-FinPerf RE'!D18+'C4-FinPerf RE'!D20+'C4-FinPerf RE'!D21 -> 40739332 | D10: ='C4-FinPerf RE'!E12+'C4-FinPerf RE'!E14+'C4-FinPerf RE'!E15+'C4-FinPerf RE'!E16+'C4-FinPerf RE'!E17+'C4-FinPerf RE'!E18+'C4-FinPerf RE'!E20+'C4-FinPerf RE'!E21 -> 33239332 | E10: ='C4-FinPerf RE'!F12+'C4-FinPerf RE'!F14+'C4-FinPerf RE'!F15+'C4-FinPerf RE'!F16+'C4-FinPerf RE'!F17+'C4-FinPerf RE'!F18+'C4-FinPerf RE'!F20+'C4-FinPerf RE'!F21 -> 1283571.07 | F10: ='C4-FinPerf RE'!G12+'C4-FinPerf RE'!G14+'C4-FinPerf RE'!G15+'C4-FinPerf RE'!G16+'C4-FinPerf RE'!G17+'C4-FinPerf RE'!G18+'C4-FinPerf RE'!G20+'C4-FinPerf RE'!G21 -> 8159349.59 | G10: ='C4-FinPerf RE'!H12+'C4-FinPerf RE'!H14+'C4-FinPerf RE'!H15+'C4-FinPerf RE'!H16+'C4-FinPerf RE'!H17+'C4-FinPerf RE'!H18+'C4-FinPerf RE'!H20+'C4-FinPerf RE'!H21 -> 20014545 | H10: =F10-G10 -> -11855195.41 | I10: =IF(H10=0,"",H10/G10) -> -0.5923289992 | J10: ='C4-FinPerf RE'!K12+'C4-FinPerf RE'!K14+'C4-FinPerf RE'!K15+'C4-FinPerf RE'!K16+'C4-FinPerf RE'!K17+'C4-FinPerf RE'!K18+'C4-FinPerf RE'!K20+'C4-FinPerf RE'!K21 -> 33239332
A11: Total Revenue (excluding capital transfers and contributions) | B11: =SUM(B6:B10) -> 186566513.7 | C11: 236665172 | D11: 257982172 | E11: 5613290.58 | F11: 120266257.8 | G11: 148713060 | H11: =F11-G11 -> -28446802.15 | I11: =IF(H11=0,"",H11/G11) -> -0.1912865094 | J11: 257982172
A12: Employee costs | B12: ='C4-FinPerf RE'!C25 -> 84279697.15 | C12: ='C4-FinPerf RE'!D25 -> 98165079 | D12: ='C4-FinPerf RE'!E25 -> 98165079 | E12: ='C4-FinPerf RE'!F25 -> 7241800.14 | F12: ='C4-FinPerf RE'!G25 -> 50477353.65 | G12: ='C4-FinPerf RE'!H25 -> 57264564 | H12: -6787210.35 | I12: -0.118523741 | J12: ='C4-FinPerf RE'!K25 -> 98165079
A13: Remuneration of Councillors | B13: ='C4-FinPerf RE'!C26 -> 12879611.9 | C13: ='C4-FinPerf RE'!D26 -> 15010262 | D13: ='C4-FinPerf RE'!E26 -> 15010262 | E13: ='C4-FinPerf RE'!F26 -> 1078501.34 | F13: ='C4-FinPerf RE'!G26 -> 7555509.38 | G13: ='C4-FinPerf RE'!H26 -> 8756055 | H13: -1200545.62 | I13: -0.1371103334 | J13: ='C4-FinPerf RE'!K26 -> 15010262
A14: Depreciation & asset impairment | B14: ='C4-FinPerf RE'!C28 -> 16379506.42 | C14: ='C4-FinPerf RE'!D28 -> 18672046 | D14: ='C4-FinPerf RE'!E28 -> 19322046 | E14: ='C4-FinPerf RE'!F28 -> 0 | F14: ='C4-FinPerf RE'!G28 -> 8135156.71 | G14: ='C4-FinPerf RE'!H28 -> 11217266 | H14: -3082109.29 | I14: -0.2747647502 | J14: ='C4-FinPerf RE'!K28 -> 19322046
A15: Finance charges | B15: ='C4-FinPerf RE'!C29 -> 254062.37 | C15: ='C4-FinPerf RE'!D29 -> 2183605 | D15: ='C4-FinPerf RE'!E29 -> 2183605 | E15: ='C4-FinPerf RE'!F29 -> 434.82 | F15: ='C4-FinPerf RE'!G29 -> 3259.48 | G15: ='C4-FinPerf RE'!H29 -> 1273776 | H15: -1270516.52 | I15: -0.9974410885 | J15: ='C4-FinPerf RE'!K29 -> 2183605
A16: Materials and bulk purchases | B16: =SUM('C4-FinPerf RE'!C30:C31) -> 13977723.66 | C16: =SUM('C4-FinPerf RE'!D30:D31) -> 17051928 | D16: =SUM('C4-FinPerf RE'!E30:E31) -> 17051928 | E16: =SUM('C4-FinPerf RE'!F30:F31) -> 1976145.04 | F16: =SUM('C4-FinPerf RE'!G30:G31) -> 9826414.59 | G16: =SUM('C4-FinPerf RE'!H30:H31) -> 9946993 | H16: -120578.41 | I16: -0.0121220966 | J16: =SUM('C4-FinPerf RE'!K30:K31) -> 17051928
A17: Transfers and subsidies | B17: ='C4-FinPerf RE'!C33 -> 0 | C17: ='C4-FinPerf RE'!D33 -> 0 | D17: ='C4-FinPerf RE'!E33 -> 0 | E17: ='C4-FinPerf RE'!F33 -> 0 | F17: ='C4-FinPerf RE'!G33 -> 0 | G17: ='C4-FinPerf RE'!H33 -> 0 | H17: 0 | J17: ='C4-FinPerf RE'!K33 -> 0
A18: Other expenditure | B18: ='C4-FinPerf RE'!C36-SUM('C1-Sum'!B12:B17) -> 63663507.02 | C18: ='C4-FinPerf RE'!D36-SUM('C1-Sum'!C12:C17) -> 73169271 | D18: ='C4-FinPerf RE'!E36-SUM('C1-Sum'!D12:D17) -> 78519054 | E18: ='C4-FinPerf RE'!F36-SUM('C1-Sum'!E12:E17) -> 3371100.35 | F18: ='C4-FinPerf RE'!G36-SUM('C1-Sum'!F12:F17) -> 33035124.54 | G18: ='C4-FinPerf RE'!H36-SUM('C1-Sum'!G12:G17) -> 45357587.5 | H18: -12322462.96 | I18: -0.2716736855 | J18: ='C4-FinPerf RE'!K36-SUM('C1-Sum'!J12:J17) -> 78519054
A19: Total Expenditure | B19: =SUM(B12:B18) -> 191434108.5 | C19: 224252191 | D19: 230251974 | E19: 13667981.69 | F19: 109032818.4 | G19: 133816241.5 | H19: -24783423.15 | I19: -0.1852048964 | J19: =SUM(J12:J18) -> 230251974
A20: Surplus/(Deficit) | B20: =B11-B19 -> -4867594.81 | C20: 12412981 | D20: 27730198 | E20: -8054691.11 | F20: 11233439.5 | G20: 14896818.5 | H20: -3663379 | I20: -0.2459168714 | J20: =J11-J19 -> 27730198
A21: ='C4-FinPerf RE'!A39 -> Transfers and subsidies - capital (monetary allocations) (National / Provincial and District) | B21: ='C4-FinPerf RE'!C39 -> 33909773.81 | C21: ='C4-FinPerf RE'!D39 -> 49186350 | D21: ='C4-FinPerf RE'!E39 -> 44886350 | E21: ='C4-FinPerf RE'!F39 -> 0 | F21: ='C4-FinPerf RE'!G39 -> 14374233.75 | G21: ='C4-FinPerf RE'!H39 -> 26542034 | H21: -12167800.25 | I21: -0.458435109 | J21: ='C4-FinPerf RE'!K39 -> 44886350
A22: ='C4-FinPerf RE'!A40&" & "&'C4-FinPerf RE'!A41 -> Transfers and subsidies - capital (monetary allocations) (National / Provincial Departmental Agencies, Households, Non-profit Institutions, Private Enterprises, Public Corporatons, Higher Educational Institutions) & Transfers and subsidies - capital (in-kind - all) | B22: =SUM('C4-FinPerf RE'!C40:C41) -> 0 | C22: =SUM('C4-FinPerf RE'!D40:D41) -> 0 | D22: =SUM('C4-FinPerf RE'!E40:E41) -> 0 | E22: =SUM('C4-FinPerf RE'!F40:F41) -> 0 | F22: =SUM('C4-FinPerf RE'!G40:G41) -> 0 | G22: =SUM('C4-FinPerf RE'!H40:H41) -> 0 | H22: 0 | J22: =SUM('C4-FinPerf RE'!K40:K41) -> 0
A23: Surplus/(Deficit) after capital transfers & contributions | B23: =B20+B21+B22 -> 29042179 | C23: 61599331 | D23: 72616548 | E23: -8054691.11 | F23: 25607673.25 | G23: 41438852.5 | H23: -15831179.25 | I23: -0.3820371052 | J23: =J20+J21+J22 -> 72616548
A24: Share of surplus/ (deficit) of associate | B24: ='C4-FinPerf RE'!C47 -> 0 | C24: ='C4-FinPerf RE'!D47 -> 0 | D24: ='C4-FinPerf RE'!E47 -> 0 | E24: ='C4-FinPerf RE'!F47 -> 0 | F24: ='C4-FinPerf RE'!G47 -> 0 | G24: ='C4-FinPerf RE'!H47 -> 0 | H24: 0 | J24: ='C4-FinPerf RE'!K47 -> 0
A25: Surplus/ (Deficit) for the year | B25: =B23+B24 -> 29042179 | C25: 61599331 | D25: 72616548 | E25: -8054691.11 | F25: 25607673.25 | G25: 41438852.5 | H25: -15831179.25 | I25: -0.3820371052 | J25: =J23+J24 -> 72616548
A27: Capital expenditure & funds sources
A28: Capital expenditure | B28: ='C5-Capex'!C40 -> 38284503.29 | C28: ='C5-Capex'!D40 -> 61599331 | D28: ='C5-Capex'!E40 -> 72616548 | E28: ='C5-Capex'!F40 -> 2917122.36 | F28: ='C5-Capex'!G40 -> 21323889.7 | G28: ='C5-Capex'!H40 -> 41441575.5 | H28: =F28-G28 -> -20117685.8 | I28: =IF(H28=0,"",H28/G28) -> -0.4854469348 | J28: ='C5-Capex'!K40 -> 72616548
A29: Capital transfers recognised | B29: ='C5-Capex'!C70 -> 29015957.46 | C29: ='C5-Capex'!D70 -> 49186331 | D29: ='C5-Capex'!E70 -> 44886331 | E29: ='C5-Capex'!F70 -> 2645926.69 | F29: ='C5-Capex'!G70 -> 17712675.49 | G29: ='C5-Capex'!H70 -> 26542034 | H29: -8829358.51 | I29: -0.3326556853 | J29: ='C5-Capex'!K70 -> 44886331
A31: Borrowing | B31: ='C5-Capex'!C72 -> 0 | C31: ='C5-Capex'!D72 -> 0 | D31: ='C5-Capex'!E72 -> 0 | E31: ='C5-Capex'!F72 -> 0 | F31: ='C5-Capex'!G72 -> 0 | G31: ='C5-Capex'!H72 -> 0 | H31: 0 | J31: ='C5-Capex'!K72 -> 0
A32: Internally generated funds | B32: ='C5-Capex'!C73 -> 9268545.83 | C32: ='C5-Capex'!D73 -> 12413000 | D32: ='C5-Capex'!E73 -> 27730217 | E32: ='C5-Capex'!F73 -> 271195.67 | F32: ='C5-Capex'!G73 -> 3611214.21 | G32: ='C5-Capex'!H73 -> 14899541.5 | H32: -11288327.29 | I32: -0.757629172 | J32: ='C5-Capex'!K73 -> 27730217
A33: Total sources of capital funds | B33: =+B29+B31+B32 -> 38284503.29 | C33: 61599331 | D33: 72616548 | E33: 2917122.36 | F33: 21323889.7 | G33: 41441575.5 | H33: -20117685.8 | I33: -0.4854469348 | J33: =+J29+J31+J32 -> 72616548
A35: Financial position
A36: Total current assets | B36: ='C6-FinPos'!C13 -> 117760968.1 | C36: ='C6-FinPos'!D13 -> 131440281 | D36: ='C6-FinPos'!E13 -> 130426967 | F36: ='C6-FinPos'!F13 -> 88257199.16 | J36: ='C6-FinPos'!G13 -> 130426967
A37: Total non current assets | B37: ='C6-FinPos'!C25 -> 272057083.3 | C37: ='C6-FinPos'!D25 -> 343946323 | D37: ='C6-FinPos'!E25 -> 354963540 | F37: ='C6-FinPos'!F25 -> 285245816.3 | J37: ='C6-FinPos'!G25 -> 354963540
A38: Total current liabilities | B38: ='C6-FinPos'!C35 -> 41938846.65 | C38: ='C6-FinPos'!D35 -> 42234467 | D38: ='C6-FinPos'!E35 -> 42234467 | F38: ='C6-FinPos'!F35 -> 186877084.8 | J38: ='C6-FinPos'!G35 -> 42234467
A39: Total non current liabilities | B39: ='C6-FinPos'!C40 -> 22965829.8 | C39: ='C6-FinPos'!D40 -> 33348923 | D39: ='C6-FinPos'!E40 -> 33348923 | F39: ='C6-FinPos'!F40 -> 22965829.8 | J39: ='C6-FinPos'!G40 -> 33348923
A40: Community wealth/Equity | B40: ='C6-FinPos'!C48 -> 324913375 | C40: ='C6-FinPos'!D48 -> 399803214 | D40: ='C6-FinPos'!E48 -> 409807117 | F40: ='C6-FinPos'!F48 -> 163660100.8 | J40: ='C6-FinPos'!G48 -> 409807117
A42: Cash flows
A43: Net cash from (used) operating | B43: ='C7-CFlow'!C18 -> 13162018.49 | C43: ='C7-CFlow'!D18 -> 61599331 | D43: ='C7-CFlow'!E18 -> 71069792 | E43: ='C7-CFlow'!F18 -> 10619692.56 | F43: ='C7-CFlow'!G18 -> 63445971.75 | G43: ='C7-CFlow'!H18 -> 177031705.8 | H43: =G43-F43 -> 113585734 | I43: =IF(H43=0,"",H43/G43) -> 0.6416123798 | J43: ='C7-CFlow'!K18 -> 71069792
A44: Net cash from (used) investing | B44: ='C7-CFlow'!C28 -> -46194785 | C44: ='C7-CFlow'!D28 -> -61599331 | D44: ='C7-CFlow'!E28 -> -72616548 | E44: ='C7-CFlow'!F28 -> -2917122.36 | F44: ='C7-CFlow'!G28 -> -21323889.7 | G44: ='C7-CFlow'!H28 -> -42359653 | H44: =G44-F44 -> -21035763.3 | I44: =IF(H44=0,"",H44/G44) -> 0.4965990467 | J44: ='C7-CFlow'!K28 -> -72616548
A45: Net cash from (used) financing | B45: ='C7-CFlow'!C37 -> -196521.91 | C45: ='C7-CFlow'!D37 -> -208314 | D45: ='C7-CFlow'!E37 -> -208314 | E45: ='C7-CFlow'!F37 -> 0 | F45: ='C7-CFlow'!G37 -> 0 | G45: ='C7-CFlow'!H37 -> 121520 | H45: =G45-F45 -> 121520 | I45: =IF(H45=0,"",H45/G45) -> 1 | J45: ='C7-CFlow'!K37 -> 208314
A46: Cash/cash equivalents at the month/year end | B46: ='C7-CFlow'!C41 -> -13865763.07 | C46: ='C7-CFlow'!D41 -> 8012608 | D46: ='C7-CFlow'!E41 -> 21254752 | E46: ='C7-CFlow'!F41 -> 0 | F46: ='C7-CFlow'!G41 -> 65133047.2 | G46: ='C7-CFlow'!H41 -> 134793572.8 | H46: =G46-F46 -> 69660525.6 | I46: =IF(H46=0,"",H46/G46) -> 0.5167941182 | J46: ='C7-CFlow'!K41 -> -1338442
A48: Debtors & creditors analysis | B48: ='SC3'!C3 -> 0-30 Days | C48: ='SC3'!D3 -> 31-60 Days | D48: ='SC3'!E3 -> 61-90 Days | E48: ='SC3'!F3 -> 91-120 Days | F48: ='SC3'!G3 -> 121-150 Dys | G48: ='SC3'!H3 -> 151-180 Dys | H48: ='SC3'!I3 -> 181 Dys-1 Yr | I48: ='SC3'!J3 -> Over 1Yr | J48: Total
A49: =LEFT('SC3'!A4,20) -> Debtors Age Analysis
A50: ='SC3'!A14 -> Total By Income Source | B50: ='SC3'!C14 -> 3676517 | C50: ='SC3'!D14 -> 10344485 | D50: ='SC3'!E14 -> 2882926 | E50: ='SC3'!F14 -> 97471554 | F50: ='SC3'!G14 -> 0 | G50: ='SC3'!H14 -> 0 | H50: ='SC3'!I14 -> 0 | I50: ='SC3'!J14 -> 0 | J50: ='SC3'!K14 -> 114375482
A51: =LEFT('SC4'!A5,22) -> Creditors Age Analysis
A52: Total Creditors | B52: ='SC4'!C15 -> 0 | C52: ='SC4'!D15 -> 243584 | D52: ='SC4'!E15 -> 0 | E52: ='SC4'!F15 -> 170064 | F52: ='SC4'!G15 -> 0 | G52: ='SC4'!H15 -> 0 | H52: ='SC4'!I15 -> 0 | I52: ='SC4'!J15 -> 0 | J52: ='SC4'!K15 -> 413648

Sheet C2-FinPerf SC
A1: =muni& " - "&S71A& " - "&date -> LIM353 Molemole - Table C2 Monthly Budget Statement - Financial Performance (functional classification) - M07 January
A2: =desc -> Description | B2: =head27 -> Ref | C2: =Head1 -> 2019/20 | D2: =Head2 -> Budget Year 2020/21
C3: =Head5 -> Audited Outcome | D3: =Head6 -> Original Budget | E3: =Head7 -> Adjusted Budget | F3: =Head38 -> Monthly actual | G3: =Head39 -> YearTD actual | H3: =Head40 -> YearTD budget | I3: =Head41 -> YTD variance | J3: =Head41 -> YTD variance | K3: =Head8 -> Full Year Forecast
A4: R thousands | B4: 1 | J4: %
A5: Revenue - Functional
A6: Governance and administration | C6: =SUM(C7:C9) -> 167736344.2 | D6: 201861893 | E6: 230678893 | F6: 3358349.47 | G6: 104273063 | H6: 132161240 | I6: =G6-H6 -> -27888176.96 | J6: =IF(I6=0,"",I6/H6) -> -0.2110163083 | K6: =SUM(K7:K9) -> 230678893
A7: Executive and council | C7: ='C2C'!C7 -> 0 | D7: ='C2C'!D7 -> 0 | E7: ='C2C'!E7 -> 0 | F7: ='C2C'!F7 -> 0 | G7: ='C2C'!G7 -> 0 | H7: ='C2C'!H7 -> 0 | I7: 0 | J7: =IF(I7=0,"",I7/H7) ->  | K7: ='C2C'!K7 -> 0
A8: Finance and administration | C8: ='C2C'!C10 -> 167736344.2 | D8: ='C2C'!D10 -> 201861893 | E8: ='C2C'!E10 -> 230678893 | F8: ='C2C'!F10 -> 3358349.47 | G8: ='C2C'!G10 -> 104273063 | H8: ='C2C'!H10 -> 132161240 | I8: -27888176.96 | J8: -0.2110163083 | K8: ='C2C'!K10 -> 230678893
A9: Internal audit | C9: ='C2C'!C24 -> 0 | D9: ='C2C'!D24 -> 0 | E9: ='C2C'!E24 -> 0 | F9: ='C2C'!F24 -> 0 | G9: ='C2C'!G24 -> 0 | H9: ='C2C'!H24 -> 0 | I9: 0 | K9: ='C2C'!K24 -> 0
A10: Community and public safety | C10: =SUM(C11:C15) -> 5412608.88 | D10: 10202542 | E10: 10202542 | F10: 1116381.51 | G10: 7560914.99 | H10: 5951456 | I10: 1609458.99 | J10: 0.2704311332 | K10: =SUM(K11:K15) -> 10202542
A11: Community and social services | C11: ='C2C'!C27 -> 1174268.89 | D11: ='C2C'!D27 -> 1317131 | E11: ='C2C'!E27 -> 1317131 | F11: ='C2C'!F27 -> 6056.49 | G11: ='C2C'!G27 -> 562641.12 | H11: ='C2C'!H27 -> 768320 | I11: -205678.88 | J11: -0.2676995002 | K11: ='C2C'!K27 -> 1317131
A12: Sport and recreation | C12: ='C2C'!C49 -> 211716.96 | D12: ='C2C'!D49 -> 247951 | E12: ='C2C'!E49 -> 247951 | F12: ='C2C'!F49 -> 20349.42 | G12: ='C2C'!G49 -> 124620.16 | H12: ='C2C'!H49 -> 144627 | I12: -20006.84 | J12: -0.1383340593 | K12: ='C2C'!K49 -> 247951
A13: Public safety | C13: ='C2C'!C55 -> 4026623.03 | D13: ='C2C'!D55 -> 8637460 | E13: ='C2C'!E55 -> 8637460 | F13: ='C2C'!F55 -> 1089975.6 | G13: ='C2C'!G55 -> 6873653.71 | H13: ='C2C'!H55 -> 5038509 | I13: 1835144.71 | J13: 0.3642237634 | K13: ='C2C'!K55 -> 8637460
A14: Housing | C14: ='C2C'!C64 -> 0 | D14: ='C2C'!D64 -> 0 | E14: ='C2C'!E64 -> 0 | F14: ='C2C'!F64 -> 0 | G14: ='C2C'!G64 -> 0 | H14: ='C2C'!H64 -> 0 | I14: =G14-H14 -> 0 | J14: =IF(I14=0,"",I14/H14) ->  | K14: ='C2C'!K64 -> 0
A15: Health | C15: ='C2C'!C67 -> 0 | D15: ='C2C'!D67 -> 0 | E15: ='C2C'!E67 -> 0 | F15: ='C2C'!F67 -> 0 | G15: ='C2C'!G67 -> 0 | H15: ='C2C'!H67 -> 0 | I15: 0 | K15: ='C2C'!K67 -> 0
A16: Economic and environmental services | C16: =SUM(C17:C19) -> 35739049.46 | D16: 42631504 | E16: 35131504 | F16: 3517.49 | G16: 15255239.21 | H16: 21118354 | I16: -5863114.79 | J16: -0.2776312392 | K16: =SUM(K17:K19) -> 35131504
A17: Planning and development | C17: ='C2C'!C76 -> 35739049.46 | D17: ='C2C'!D76 -> 42631504 | E17: ='C2C'!E76 -> 35131504 | F17: ='C2C'!F76 -> 3517.49 | G17: ='C2C'!G76 -> 15255239.21 | H17: ='C2C'!H76 -> 21118354 | I17: -5863114.79 | J17: -0.2776312392 | K17: ='C2C'!K76 -> 35131504
A18: Road transport | C18: ='C2C'!C87 -> 0 | D18: ='C2C'!D87 -> 0 | E18: ='C2C'!E87 -> 0 | F18: ='C2C'!F87 -> 0 | G18: ='C2C'!G87 -> 0 | H18: ='C2C'!H87 -> 0 | I18: 0 | K18: ='C2C'!K87 -> 0
A19: Environmental protection | C19: ='C2C'!C92 -> 0 | D19: ='C2C'!D92 -> 0 | E19: ='C2C'!E92 -> 0 | F19: ='C2C'!F92 -> 0 | G19: ='C2C'!G92 -> 0 | H19: ='C2C'!H92 -> 0 | I19: 0 | K19: ='C2C'!K92 -> 0
A20: Trading services | C20: =SUM(C21:C24) -> 11588284.95 | D20: =SUM(D21:D24) -> 31155583 | E20: 26855583 | F20: 1135042.11 | G20: 7551274.36 | H20: 16024044 | I20: -8472769.64 | J20: -0.5287535182 | K20: =SUM(K21:K24) -> 26855583
A21: Energy sources | C21: ='C2C'!C100 -> 8487575.06 | D21: ='C2C'!D100 -> 27839719 | E21: ='C2C'!E100 -> 23539719 | F21: ='C2C'!F100 -> 755688.47 | G21: ='C2C'!G100 -> 4693633.18 | H21: ='C2C'!H100 -> 14089797 | I21: =G21-H21 -> -9396163.82 | J21: -0.6668771608 | K21: ='C2C'!K100 -> 23539719
A22: Water management | C22: ='C2C'!C104 -> 295708.09 | D22: ='C2C'!D104 -> 421696 | E22: ='C2C'!E104 -> 421696 | F22: ='C2C'!F104 -> 69081.85 | G22: ='C2C'!G104 -> 700163.92 | H22: ='C2C'!H104 -> 245987 | I22: =G22-H22 -> 454176.92 | J22: 1.846345213 | K22: ='C2C'!K104 -> 421696
A23: Waste water management | C23: ='C2C'!C108 -> 387682.44 | D23: ='C2C'!D108 -> 272922 | E23: ='C2C'!E108 -> 272922 | F23: ='C2C'!F108 -> 78470.16 | G23: ='C2C'!G108 -> 540534.63 | H23: ='C2C'!H108 -> 159201 | I23: =G23-H23 -> 381333.63 | J23: 2.3952967 | K23: ='C2C'!K108 -> 272922
A24: Waste management | C24: ='C2C'!C113 -> 2417319.36 | D24: ='C2C'!D113 -> 2621246 | E24: ='C2C'!E113 -> 2621246 | F24: ='C2C'!F113 -> 231801.63 | G24: ='C2C'!G113 -> 1616942.63 | H24: ='C2C'!H113 -> 1529059 | I24: =G24-H24 -> 87883.63 | J24: 0.05747563044 | K24: ='C2C'!K113 -> 2621246
A25: Other | B25: 4 | C25: ='C2C'!C118 -> 0 | D25: ='C2C'!D118 -> 0 | E25: ='C2C'!E118 -> 0 | F25: ='C2C'!F118 -> 0 | G25: ='C2C'!G118 -> 0 | H25: ='C2C'!H118 -> 0 | I25: =G25-H25 -> 0 | K25: ='C2C'!K118 -> 0
A26: Total Revenue - Functional | B26: 2 | C26: =C6+C10+C16+C20+C25 -> 220476287.5 | D26: =D6+D10+D16+D20+D25 -> 285851522 | E26: 302868522 | F26: 5613290.58 | G26: 134640491.6 | H26: 175255094 | I26: -40614602.4 | J26: -0.2317456313 | K26: =K6+K10+K16+K20+K25 -> 302868522
A28: Expenditure - Functional
A29: Governance and administration | C29: =SUM(C30:C32) -> 104798522.4 | D29: 125926218 | E29: 128029468 | F29: 6192822.67 | G29: 56004020.76 | H29: 74510066 | I29: =G29-H29 -> -18506045.24 | J29: =IF(I29=0,"",I29/H29) -> -0.2483697336 | K29: =SUM(K30:K32) -> 128029468
A30: Executive and council | C30: ='C2C'!C129 -> 31309077.55 | D30: ='C2C'!D129 -> 37012361 | E30: ='C2C'!E129 -> 37012361 | F30: ='C2C'!F129 -> 2055567.76 | G30: ='C2C'!G129 -> 16556588.73 | H30: ='C2C'!H129 -> 21591066 | I30: -5034477.27 | J30: =IF(I30=0,"",I30/H30) -> -0.2331740948 | K30: ='C2C'!K129 -> 37012361
A31: Finance and administration | C31: ='C2C'!C132 -> 66872685.36 | D31: ='C2C'!D132 -> 81709289 | E31: ='C2C'!E132 -> 83812539 | F31: ='C2C'!F132 -> 3996971.72 | G31: ='C2C'!G132 -> 36927749.56 | H31: ='C2C'!H132 -> 48716270 | I31: -11788520.44 | J31: -0.2419832315 | K31: ='C2C'!K132 -> 83812539
A32: Internal audit | C32: ='C2C'!C146 -> 6616759.45 | D32: ='C2C'!D146 -> 7204568 | E32: ='C2C'!E146 -> 7204568 | F32: ='C2C'!F146 -> 140283.19 | G32: ='C2C'!G146 -> 2519682.47 | H32: ='C2C'!H146 -> 4202730 | I32: -1683047.53 | J32: -0.4004652999 | K32: ='C2C'!K146 -> 7204568
A33: Community and public safety | C33: =SUM(C34:C38) -> 24714906.43 | D33: 24189076 | E33: 24600229 | F33: 1678255.15 | G33: 13676361.8 | H33: 14316260.5 | I33: -639898.7 | J33: -0.04469733559 | K33: =SUM(K34:K38) -> 24600229
A34: Community and social services | C34: ='C2C'!C149 -> 6387534.54 | D34: ='C2C'!D149 -> 7046253 | E34: ='C2C'!E149 -> 7180098 | F34: ='C2C'!F149 -> 289556.45 | G34: ='C2C'!G149 -> 2820124.96 | H34: ='C2C'!H149 -> 4177448.5 | I34: -1357323.54 | J34: -0.3249168817 | K34: ='C2C'!K149 -> 7180098
A35: Sport and recreation | C35: ='C2C'!C171 -> 3317681.83 | D35: ='C2C'!D171 -> 2793250 | E35: ='C2C'!E171 -> 3070558 | F35: ='C2C'!F171 -> 181726.96 | G35: ='C2C'!G171 -> 1907839.85 | H35: ='C2C'!H171 -> 1768149 | I35: 139690.85 | J35: 0.07900400362 | K35: ='C2C'!K171 -> 3070558
A36: Public safety | C36: ='C2C'!C177 -> 15009690.06 | D36: ='C2C'!D177 -> 14349573 | E36: ='C2C'!E177 -> 14349573 | F36: ='C2C'!F177 -> 1206971.74 | G36: ='C2C'!G177 -> 8948396.99 | H36: ='C2C'!H177 -> 8370663 | I36: 577733.99 | J36: 0.06901890448 | K36: ='C2C'!K177 -> 14349573
A37: Housing | C37: ='C2C'!C186 -> 0 | D37: ='C2C'!D186 -> 0 | E37: ='C2C'!E186 -> 0 | F37: ='C2C'!F186 -> 0 | G37: ='C2C'!G186 -> 0 | H37: ='C2C'!H186 -> 0 | I37: 0 | K37: ='C2C'!K186 -> 0
A38: Health | C38: ='C2C'!C189 -> 0 | D38: ='C2C'!D189 -> 0 | E38: ='C2C'!E189 -> 0 | F38: ='C2C'!F189 -> 0 | G38: ='C2C'!G189 -> 0 | H38: ='C2C'!H189 -> 0 | I38: 0 | K38: ='C2C'!K189 -> 0
A39: Economic and environmental services | C39: =SUM(C40:C42) -> 12608472.85 | D39: 14588384 | E39: 14588384 | F39: 987639.67 | G39: 5390263.83 | H39: 8510236 | I39: -3119972.17 | J39: -0.3666140598 | K39: =SUM(K40:K42) -> 14588384
A40: Planning and development | C40: ='C2C'!C198 -> 9646016.62 | D40: ='C2C'!D198 -> 11304018 | E40: ='C2C'!E198 -> 11304018 | F40: ='C2C'!F198 -> 862718.26 | G40: ='C2C'!G198 -> 4234944.64 | H40: ='C2C'!H198 -> 6594315 | I40: -2359370.36 | J40: -0.3577885436 | K40: ='C2C'!K198 -> 11304018
A41: Road transport | C41: ='C2C'!C209 -> 2962456.23 | D41: ='C2C'!D209 -> 3284366 | E41: ='C2C'!E209 -> 3284366 | F41: ='C2C'!F209 -> 124921.41 | G41: ='C2C'!G209 -> 1155319.19 | H41: ='C2C'!H209 -> 1915921 | I41: -760601.81 | J41: -0.3969901734 | K41: ='C2C'!K209 -> 3284366
A42: Environmental protection | C42: ='C2C'!C214 -> 0 | D42: ='C2C'!D214 -> 0 | E42: ='C2C'!E214 -> 0 | F42: ='C2C'!F214 -> 0 | G42: ='C2C'!G214 -> 0 | H42: ='C2C'!H214 -> 0 | I42: 0 | K42: ='C2C'!K214 -> 0
A43: Trading services | C43: =SUM(C44:C47) -> 49312206.88 | D43: =SUM(D44:D47) -> 59548513 | E43: 63033893 | F43: 4809264.2 | G43: 33962171.96 | H43: 36479679 | I43: -2517507.04 | J43: -0.0690112169 | K43: =SUM(K44:K47) -> 63033893
A44: Energy sources | C44: ='C2C'!C222 -> 19202883.76 | D44: ='C2C'!D222 -> 21010757 | E44: ='C2C'!E222 -> 21346137 | F44: ='C2C'!F222 -> 2756095.66 | G44: ='C2C'!G222 -> 14012014.92 | H44: ='C2C'!H222 -> 12424039 | I44: 1587975.92 | J44: 0.1278147887 | K44: ='C2C'!K222 -> 21346137
A45: Water management | C45: ='C2C'!C226 -> 6543208.32 | D45: ='C2C'!D226 -> 7558351 | E45: ='C2C'!E226 -> 7558351 | F45: ='C2C'!F226 -> 552570.39 | G45: ='C2C'!G226 -> 3441266.2 | H45: ='C2C'!H226 -> 4409111 | I45: -967844.8 | J45: -0.2195101915 | K45: ='C2C'!K226 -> 7558351
A46: Waste water management | C46: ='C2C'!C230 -> 17215322.65 | D46: ='C2C'!D230 -> 23757820 | E46: ='C2C'!E230 -> 26907820 | F46: ='C2C'!F230 -> 921432.35 | G46: ='C2C'!G230 -> 12952126.85 | H46: ='C2C'!H230 -> 15433880 | I46: -2481753.15 | J46: -0.1607990441 | K46: ='C2C'!K230 -> 26907820
A47: Waste management | C47: ='C2C'!C235 -> 6350792.15 | D47: ='C2C'!D235 -> 7221585 | E47: ='C2C'!E235 -> 7221585 | F47: ='C2C'!F235 -> 579165.8 | G47: ='C2C'!G235 -> 3556763.99 | H47: ='C2C'!H235 -> 4212649 | I47: -655885.01 | J47: -0.1556941986 | K47: ='C2C'!K235 -> 7221585
A48: Other | C48: ='C2C'!C240 -> 0 | D48: ='C2C'!D240 -> 0 | E48: ='C2C'!E240 -> 0 | F48: ='C2C'!F240 -> 0 | G48: ='C2C'!G240 -> 0 | H48: ='C2C'!H240 -> 0 | I48: 0 | K48: ='C2C'!K240 -> 0
A49: Total Expenditure - Functional | B49: 3 | C49: =C29+C33+C39+C43+C48 -> 191434108.5 | D49: =D29+D33+D39+D43+D48 -> 224252191 | E49: 230251974 | F49: 13667981.69 | G49: 109032818.3 | H49: 133816241.5 | I49: -24783423.15 | J49: -0.1852048964 | K49: =K29+K33+K39+K43+K48 -> 230251974
A50: Surplus/ (Deficit) for the year | C50: =C26-C49 -> 29042179 | D50: 61599331 | E50: 72616548 | F50: -8054691.11 | G50: 25607673.25 | H50: 41438852.5 | I50: =I26-I49 -> -15831179.25 | J50: =IF(I50=0,"",I50/H50) -> -0.3820371052 | K50: =K26-K49 -> 72616548
A51: =head27a -> References
A52: 1. Government Finance Statistics Functions and Sub-functions are standardised to assist the compilation of national and international accounts for comparison purposes
A53: 2. Total Revenue by functional classification must reconcile to Total Operating Revenue shown in the Financial Performance Statement
A54: 3. Total Expenditure by functional classification must reconcile to total operating expenditure shown in 'Financial Performance Statement'
A55: 4. All amounts must be classified under a functional classification (modified GFS). The GFS function 'Other' is only for Abbatoirs, Air Transport, Licensing and Regulation, Markets and Tourism - and if used must be supported by footnotes. Nothing else may be placed under 'Other'. Assign associate share to relevant classification

Sheet C2C
A1: =muni& " - "&S71A& " - "&date -> LIM353 Molemole - Table C2 Monthly Budget Statement - Financial Performance (functional classification) - M07 January
A2: =desc -> Description | B2: =head27 -> Ref | C2: =Head1 -> 2019/20 | D2: =Head2 -> Budget Year 2020/21
C3: =Head5 -> Audited Outcome | D3: =Head6 -> Original Budget | E3: =Head7 -> Adjusted Budget | F3: =Head38 -> Monthly actual | G3: =Head39 -> YearTD actual | H3: =Head40 -> YearTD budget | I3: =Head41 -> YTD variance | J3: =Head41 -> YTD variance | K3: =Head8 -> Full Year Forecast
A4: R thousands | B4: 1 | J4: %
A5: Revenue - Functional
A6: Municipal governance and administration | C6: =C7+C10+C24 -> 167736344.2 | D6: 201861893 | E6: 230678893 | F6: 3358349.47 | G6: 104273063 | H6: 132161240 | I6: =G6-H6 -> -27888176.96 | J6: =IF(I6=0,"",I6/H6) -> -0.2110163083 | K6: =K7+K10+K24 -> 230678893
A7: Executive and council | C7: =SUM(C8:C9) -> 0 | D7: =SUM(D8:D9) -> 0 | E7: 0 | F7: 0 | G7: 0 | H7: 0 | I7: =G7-H7 -> 0 | J7: =IF(I7=0,"",I7/H7) ->  | K7: 0
A8: Mayor and Council | C8: 0 | D8: 0 | E8: 0 | F8: 0 | G8: 0 | H8: 0 | I8: 0 | K8: 0
A9: Municipal Manager, Town Secretary and Chief Executive | C9: 0 | D9: 0 | E9: 0 | F9: 0 | G9: 0 | H9: 0 | I9: 0 | K9: 0
A10: Finance and administration | C10: =SUM(C11:C23) -> 167736344.2 | D10: 201861893 | E10: 230678893 | F10: 3358349.47 | G10: 104273063 | H10: 132161240 | I10: =G10-H10 -> -27888176.96 | J10: =IF(I10=0,"",I10/H10) -> -0.2110163083 | K10: =SUM(K11:K23) -> 230678893
A11: Administrative and Corporate Support | C11: 165494796 | D11: 180118425 | E11: 209293425 | F11: 3112465.57 | G11: 103126671.3 | H11: 119656562 | I11: -16529890.73 | J11: -0.1381444565 | K11: 209293425
A12: Asset Management | I12: 0
A13: Finance | C13: 1759035.19 | D13: 21171956 | E13: 21171956 | F13: 245883.9 | G13: 1146391.77 | H13: 12350303 | I13: -11203911.23 | J13: -0.9071770328 | K13: 21171956
A14: Fleet Management | I14: 0
A15: Human Resources | C15: 482513.02 | D15: 571512 | E15: 213512 | F15: 0 | G15: 0 | H15: 154375 | I15: -154375 | J15: -1 | K15: 213512
A16: Information Technology | C16: 0 | D16: 0 | E16: 0 | F16: 0 | G16: 0 | H16: 0 | I16: =G16-H16 -> 0 | J16: =IF(I16=0,"",I16/H16) ->  | K16: 0
A17: Legal Services | C17: 0 | D17: 0 | E17: 0 | F17: 0 | G17: 0 | H17: 0 | I17: 0 | K17: 0
A18: Marketing, Customer Relations, Publicity and Media Co-ordination | I18: 0
A19: Property Services | I19: 0
A20: Risk Management | C20: 0 | D20: 0 | E20: 0 | F20: 0 | G20: 0 | H20: 0 | I20: 0 | K20: 0
A21: Security Services | I21: 0
A22: Supply Chain Management | C22: 0 | D22: 0 | E22: 0 | F22: 0 | G22: 0 | H22: 0 | I22: 0 | K22: 0
A23: Valuation Service | I23: 0
A24: Internal audit | C24: =SUM(C25:C25) -> 0 | D24: 0 | E24: 0 | F24: 0 | G24: 0 | H24: 0 | I24: 0 | K24: =SUM(K25:K25) -> 0
A25: Governance Function | C25: 0 | D25: 0 | E25: 0 | F25: 0 | G25: 0 | H25: 0 | I25: 0 | K25: 0
A26: Community and public safety | C26: =C27+C49+C55+C64+C67 -> 5412608.88 | D26: =D27+D49+D55+D64+D67 -> 10202542 | E26: 10202542 | F26: 1116381.51 | G26: 7560914.99 | H26: 5951456 | I26: 1609458.99 | J26: 0.2704311332 | K26: 10202542
A27: Community and social services | C27: =SUM(C28:C48) -> 1174268.89 | D27: 1317131 | E27: 1317131 | F27: 6056.49 | G27: 562641.12 | H27: 768320 | I27: -205678.88 | J27: -0.2676995002 | K27: =SUM(K28:K48) -> 1317131
A28: Aged Care | I28: =G28-H28 -> 0 | J28: =IF(I28=0,"",I28/H28) -> 
A29: Agricultural | I29: 0
A30: Animal Care and Diseases | I30: 0
A31: Cemeteries, Funeral Parlours and Crematoriums | C31: 7268.89 | D31: 13131 | E31: 13131 | F31: 6056.49 | G31: 11184.07 | H31: 7658 | I31: 3526.07 | J31: 0.4604426743 | K31: 13131
A32: Child Care Facilities | I32: 0
A33: Community Halls and Facilities | C33: 1167000 | D33: 1304000 | E33: 1304000 | F33: 0 | G33: 551457.05 | H33: 760662 | I33: -209204.95 | J33: -0.2750301054 | K33: 1304000
A34: Consumer Protection | I34: 0
A35: Cultural Matters | I35: =G35-H35 -> 0 | J35: =IF(I35=0,"",I35/H35) -> 
A36: Disaster Management | I36: 0
A37: Education | I37: 0
A38: Indigenous and Customary Law | I38: 0
A39: Industrial Promotion | I39: 0
A40: Language Policy | I40: 0
A41: Libraries and Archives | C41: 0 | D41: 0 | E41: 0 | F41: 0 | G41: 0 | H41: 0 | I41: 0 | K41: 0
A42: Literacy Programmes | I42: 0
A43: Media Services | I43: 0
A44: Museums and Art Galleries | I44: 0
A45: Population Development | I45: 0
A46: Provincial Cultural Matters | I46: 0
A47: Theatres | I47: 0
A48: Zoo's | I48: 0
A49: Sport and recreation | C49: =SUM(C50:C54) -> 211716.96 | D49: =SUM(D50:D54) -> 247951 | E49: 247951 | F49: 20349.42 | G49: 124620.16 | H49: 144627 | I49: =G49-H49 -> -20006.84 | J49: =IF(I49=0,"",I49/H49) -> -0.1383340593 | K49: 247951
A50: Beaches and Jetties | I50: 0
A51: Casinos, Racing, Gambling, Wagering | I51: 0
A52: Community Parks (including Nurseries) | I52: 0
A53: Recreational Facilities | C53: 211716.96 | D53: 247951 | E53: 247951 | F53: 20349.42 | G53: 124620.16 | H53: 144627 | I53: -20006.84 | J53: -0.1383340593 | K53: 247951
A54: Sports Grounds and Stadiums | I54: 0
A55: Public safety | C55: =SUM(C56:C63) -> 4026623.03 | D55: =SUM(D56:D63) -> 8637460 | E55: 8637460 | F55: 1089975.6 | G55: 6873653.71 | H55: 5038509 | I55: 1835144.71 | J55: 0.3642237634 | K55: 8637460
A56: Civil Defence | I56: 0
A57: Cleansing | I57: 0
A58: Control of Public Nuisances | I58: =G58-H58 -> 0 | J58: =IF(I58=0,"",I58/H58) -> 
A59: Fencing and Fences | I59: 0
A60: Fire Fighting and Protection | I60: 0
A61: Licensing and Control of Animals | I61: =G61-H61 -> 0 | J61: =IF(I61=0,"",I61/H61) -> 
A62: Police Forces, Traffic and Street Parking Control | C62: 4026623.03 | D62: 8637460 | E62: 8637460 | F62: 1089975.6 | G62: 6873653.71 | H62: 5038509 | I62: =G62-H62 -> 1835144.71 | J62: =IF(I62=0,"",I62/H62) -> 0.3642237634 | K62: 8637460
A63: Pounds | I63: 0
A64: Housing | C64: =SUM(C65:C66) -> 0 | D64: 0 | E64: 0 | F64: 0 | G64: 0 | H64: 0 | I64: =G64-H64 -> 0 | J64: =IF(I64=0,"",I64/H64) ->  | K64: =SUM(K65:K66) -> 0
A65: Housing | I65: =G65-H65 -> 0 | J65: =IF(I65=0,"",I65/H65) -> 
A66: Informal Settlements | I66: =G66-H66 -> 0 | J66: =IF(I66=0,"",I66/H66) -> 
A67: Health | C67: =SUM(C68:C74) -> 0 | D67: 0 | E67: 0 | F67: 0 | G67: 0 | H67: 0 | I67: 0 | K67: =SUM(K68:K74) -> 0
A68: Ambulance | I68: 0
A69: Health Services | I69: 0
A70: Laboratory Services | I70: =G70-H70 -> 0 | J70: =IF(I70=0,"",I70/H70) -> 
A71: Food Control | I71: =G71-H71 -> 0 | J71: =IF(I71=0,"",I71/H71) -> 
A72: Health Surveillance and Prevention of Communicable Diseases including immunizations | I72: 0
A73: Vector Control | I73: 0
A74: Chemical Safety | I74: 0
A75: Economic and environmental services | C75: =C76+C87+C92 -> 35739049.46 | D75: 42631504 | E75: 35131504 | F75: 3517.49 | G75: 15255239.21 | H75: 21118354 | I75: -5863114.79 | J75: -0.2776312392 | K75: =K76+K87+K92 -> 35131504
A76: Planning and development | C76: =SUM(C77:C86) -> 35739049.46 | D76: 42631504 | E76: 35131504 | F76: 3517.49 | G76: 15255239.21 | H76: 21118354 | I76: -5863114.79 | J76: -0.2776312392 | K76: =SUM(K77:K86) -> 35131504
A77: Billboards | I77: =G77-H77 -> 0 | J77: =IF(I77=0,"",I77/H77) -> 
A78: Corporate Wide Strategic Planning (IDPs, LEDs) | C78: 43334.4 | D78: 84283 | E78: 84283 | F78: 3359.36 | G78: 20156.16 | H78: 49154 | I78: -28997.84 | J78: -0.5899385604 | K78: 84283
A79: Central City Improvement District | I79: 0
A80: Development Facilitation | I80: =G80-H80 -> 0 | J80: =IF(I80=0,"",I80/H80) -> 
A81: Economic Development/Planning | C81: 0 | D81: 0 | E81: 0 | F81: 0 | G81: 0 | H81: 0 | I81: =G81-H81 -> 0 | J81: =IF(I81=0,"",I81/H81) ->  | K81: 0
A82: Regional Planning and Development | I82: =G82-H82 -> 0 | J82: =IF(I82=0,"",I82/H82) -> 
A83: Town Planning, Building Regulations and Enforcement, and City Engineer | C83: 34271.21 | D83: 7614221 | E83: 114221 | F83: 158.13 | G83: 7486.72 | H83: 691619 | I83: =G83-H83 -> -684132.28 | J83: =IF(I83=0,"",I83/H83) -> -0.9891750805 | K83: 114221
A84: Project Management Unit | C84: 35661443.85 | D84: 34933000 | E84: 34933000 | F84: 0 | G84: 15227596.33 | H84: 20377581 | I84: -5149984.67 | J84: -0.2527279695 | K84: 34933000
A85: Provincial Planning | I85: 0
A86: Support to Local Municipalities | I86: 0
A87: Road transport | C87: =SUM(C88:C91) -> 0 | D87: 0 | E87: 0 | F87: 0 | G87: 0 | H87: 0 | I87: 0 | K87: =SUM(K88:K91) -> 0
A88: Public Transport | I88: 0
A89: Road and Traffic Regulation | I89: 0
A90: Roads | C90: 0 | D90: 0 | E90: 0 | F90: 0 | G90: 0 | H90: 0 | I90: 0 | K90: 0
A91: Taxi Ranks | I91: 0
A92: Environmental protection | C92: =SUM(C93:C98) -> 0 | D92: =SUM(D93:D98) -> 0 | E92: 0 | F92: 0 | G92: 0 | H92: 0 | I92: 0 | K92: 0
A93: Biodiversity and Landscape | I93: 0
A94: Coastal Protection | I94: 0
A95: Indigenous Forests | I95: =G95-H95 -> 0 | J95: =IF(I95=0,"",I95/H95) -> 
A96: Nature Conservation | I96: =G96-H96 -> 0 | J96: =IF(I96=0,"",I96/H96) -> 
A97: Pollution Control | I97: 0
A98: Soil Conservation | I98: 0
A99: Trading services | C99: =C100+C104+C108+C113 -> 11588284.95 | D99: =D100+D104+D108+D113 -> 31155583 | E99: 26855583 | F99: 1135042.11 | G99: 7551274.36 | H99: 16024044 | I99: -8472769.64 | J99: -0.5287535182 | K99: =K100+K104+K108+K113 -> 26855583
A100: Energy sources | C100: =SUM(C101:C103) -> 8487575.06 | D100: =SUM(D101:D103) -> 27839719 | E100: 23539719 | F100: 755688.47 | G100: 4693633.18 | H100: 14089797 | I100: -9396163.82 | J100: -0.6668771608 | K100: 23539719
A101: Electricity | C101: 8487575.06 | D101: 27839719 | E101: 23539719 | F101: 755688.47 | G101: 4693633.18 | H101: 14089797 | I101: -9396163.82 | J101: -0.6668771608 | K101: 23539719
A102: Street Lighting and Signal Systems | I102: =G102-H102 -> 0 | J102: =IF(I102=0,"",I102/H102) -> 
A103: Nonelectric Energy | I103: 0
A104: Water management | C104: =SUM(C105:C107) -> 295708.09 | D104: =SUM(D105:D107) -> 421696 | E104: 421696 | F104: 69081.85 | G104: 700163.92 | H104: 245987 | I104: 454176.92 | J104: 1.846345213 | K104: 421696
A105: Water Treatment | I105: 0
A106: Water Distribution | C106: 295708.09 | D106: 421696 | E106: 421696 | F106: 69081.85 | G106: 700163.92 | H106: 245987 | I106: =G106-H106 -> 454176.92 | J106: =IF(I106=0,"",I106/H106) -> 1.846345213 | K106: 421696
A107: Water Storage | I107: 0
A108: Waste water management | C108: =SUM(C109:C112) -> 387682.44 | D108: =SUM(D109:D112) -> 272922 | E108: 272922 | F108: 78470.16 | G108: 540534.63 | H108: 159201 | I108: 381333.63 | J108: 2.3952967 | K108: 272922
A109: Public Toilets | I109: 0
A110: Sewerage | C110: 387682.44 | D110: 272922 | E110: 272922 | F110: 78470.16 | G110: 540534.63 | H110: 159201 | I110: 381333.63 | J110: 2.3952967 | K110: 272922
A111: Storm Water Management | C111: 0 | D111: 0 | E111: 0 | F111: 0 | G111: 0 | H111: 0 | I111: =G111-H111 -> 0 | J111: =IF(I111=0,"",I111/H111) ->  | K111: 0
A112: Waste Water Treatment | I112: 0
A113: Waste management | C113: =SUM(C114:C117) -> 2417319.36 | D113: 2621246 | E113: 2621246 | F113: 231801.63 | G113: 1616942.63 | H113: 1529059 | I113: 87883.63 | J113: 0.05747563044 | K113: =SUM(K114:K117) -> 2621246
A114: Recycling | I114: =G114-H114 -> 0 | J114: =IF(I114=0,"",I114/H114) -> 
A115: Solid Waste Disposal (Landfill Sites) | I115: =G115-H115 -> 0 | J115: =IF(I115=0,"",I115/H115) -> 
A116: Solid Waste Removal | C116: 2417319.36 | D116: 2621246 | E116: 2621246 | F116: 231801.63 | G116: 1616942.63 | H116: 1529059 | I116: 87883.63 | J116: 0.05747563044 | K116: 2621246
A117: Street Cleaning | I117: =G117-H117 -> 0 | J117: =IF(I117=0,"",I117/H117) -> 
A118: Other | C118: =SUM(C119:C124) -> 0 | D118: =SUM(D119:D124) -> 0 | E118: 0 | F118: 0 | G118: 0 | H118: 0 | I118: 0 | K118: 0
A119: Abattoirs | I119: 0
A120: Air Transport | I120: 0
A121: Forestry | I121: =G121-H121 -> 0 | J121: =IF(I121=0,"",I121/H121) -> 
A122: Licensing and Regulation | I122: 0
A123: Markets | I123: 0
A124: Tourism | I124: =G124-H124 -> 0 | J124: =IF(I124=0,"",I124/H124) -> 
A125: ="Total "&A5 -> Total Revenue - Functional | B125: 2 | C125: =C6+C26+C75+C99+C118 -> 220476287.5 | D125: 285851522 | E125: 302868522 | F125: 5613290.58 | G125: 134640491.6 | H125: 175255094 | I125: =G125-H125 -> -40614602.4 | J125: =IF(I125=0,"",I125/H125) -> -0.2317456313 | K125: =K6+K26+K75+K99+K118 -> 302868522
A127: Expenditure - Functional
A128: =A6 -> Municipal governance and administration | C128: =C129+C132+C146 -> 104798522.4 | D128: 125926218 | E128: 128029468 | F128: 6192822.67 | G128: 56004020.76 | H128: 74510066 | I128: =G128-H128 -> -18506045.24 | J128: =IF(I128=0,"",I128/H128) -> -0.2483697336 | K128: =K129+K132+K146 -> 128029468
A129: Executive and council | C129: =SUM(C130:C131) -> 31309077.55 | D129: 37012361 | E129: 37012361 | F129: 2055567.76 | G129: 16556588.73 | H129: 21591066 | I129: -5034477.27 | J129: -0.2331740948 | K129: 37012361
A130: Mayor and Council | C130: 23246478.38 | D130: 27873412 | E130: 27873412 | F130: 1683055.14 | G130: 12882603.66 | H130: 16259845 | I130: -3377241.34 | J130: -0.2077043994 | K130: 27873412
A131: Municipal Manager, Town Secretary and Chief Executive | C131: 8062599.17 | D131: 9138949 | E131: 9138949 | F131: 372512.62 | G131: 3673985.07 | H131: 5331221 | I131: -1657235.93 | J131: -0.3108548548 | K131: 9138949
A132: Finance and administration | C132: =SUM(C133:C145) -> 66872685.36 | D132: 81709289 | E132: 83812539 | F132: 3996971.72 | G132: 36927749.56 | H132: 48716270 | I132: -11788520.44 | J132: -0.2419832315 | K132: =SUM(K133:K145) -> 83812539
A133: Administrative and Corporate Support | C133: 27397646.24 | D133: 33598446 | E133: 34291696 | F133: 2336435.34 | G133: 17504949.84 | H133: 19945974 | I133: -2441024.16 | J133: -0.122381798 | K133: 34291696
A134: Asset Management | I134: 0
A135: Finance | C135: 19604601.02 | D135: 24081861 | E135: 24081861 | F135: 860529.59 | G135: 8908924.58 | H135: 14047971 | I135: -5139046.42 | J135: -0.3658212577 | K135: 24081861
A136: Fleet Management | I136: 0
A137: Human Resources | C137: 7268821.76 | D137: 8137296 | E137: 8197296 | F137: 356838.58 | G137: 3479446.51 | H137: 4776875 | I137: -1297428.49 | J137: -0.2716061212 | K137: 8197296
A138: Information Technology | C138: 5297843.64 | D138: 5290163 | E138: 6640163 | F138: 182840.03 | G138: 2788453.91 | H138: 3761006 | I138: -972552.09 | J138: -0.2585882846 | K138: 6640163
A139: Legal Services | C139: 1783687.83 | D139: 2701651 | E139: 2701651 | F139: 0 | G139: 1048702.44 | H139: 1576022 | I139: -527319.56 | J139: -0.3345889588 | K139: 2701651
A140: Marketing, Customer Relations, Publicity and Media Co-ordination | I140: 0
A141: Property Services | I141: 0
A142: Risk Management | C142: 1814194.98 | D142: 2609788 | E142: 2609788 | F142: 0 | G142: 976174.42 | H142: 1522451 | I142: -546276.58 | J142: -0.3588138994 | K142: 2609788
A143: Security Services | I143: 0
A144: Supply Chain Management | C144: 3705889.89 | D144: 5290084 | E144: 5290084 | F144: 260328.18 | G144: 2221097.86 | H144: 3085971 | I144: -864873.14 | J144: -0.280259646 | K144: 5290084
A145: Valuation Service | I145: 0
A146: Internal audit | C146: =SUM(C147:C147) -> 6616759.45 | D146: 7204568 | E146: 7204568 | F146: 140283.19 | G146: 2519682.47 | H146: 4202730 | I146: -1683047.53 | J146: -0.4004652999 | K146: =SUM(K147:K147) -> 7204568
A147: Governance Function | C147: 6616759.45 | D147: 7204568 | E147: 7204568 | F147: 140283.19 | G147: 2519682.47 | H147: 4202730 | I147: -1683047.53 | J147: -0.4004652999 | K147: 7204568
A148: Community and public safety | C148: =C149+C171+C177+C186+C189 -> 24714906.43 | D148: 24189076 | E148: 24600229 | F148: 1678255.15 | G148: 13676361.8 | H148: 14316260.5 | I148: -639898.7 | J148: -0.04469733559 | K148: =K149+K171+K177+K186+K189 -> 24600229
A149: Community and social services | C149: =SUM(C150:C170) -> 6387534.54 | D149: 7046253 | E149: 7180098 | F149: 289556.45 | G149: 2820124.96 | H149: 4177448.5 | I149: -1357323.54 | J149: -0.3249168817 | K149: =SUM(K150:K170) -> 7180098
A150: Aged Care | I150: 0
A151: Agricultural | I151: 0
A152: Animal Care and Diseases | I152: 0
A153: Cemeteries, Funeral Parlours and Crematoriums | C153: 1197154.18 | D153: 1388002 | E153: 1521847 | F153: 87239.32 | G153: 733186.86 | H153: 876640.5 | I153: -143453.64 | J153: -0.1636402151 | K153: 1521847
A154: Child Care Facilities | I154: 0
A155: Community Halls and Facilities | C155: 4523083.2 | D155: 4487344 | E155: 4487344 | F155: 164122.72 | G155: 1817936.54 | H155: 2617727 | I155: -799790.46 | J155: -0.3055285979 | K155: 4487344
A156: Consumer Protection | I156: 0
A157: Cultural Matters | I157: =G157-H157 -> 0 | J157: =IF(I157=0,"",I157/H157) -> 
A158: Disaster Management | I158: =G158-H158 -> 0 | J158: =IF(I158=0,"",I158/H158) -> 
A159: Education | I159: =G159-H159 -> 0 | J159: =IF(I159=0,"",I159/H159) -> 
A160: =A38 -> Indigenous and Customary Law | I160: 0
A161: Industrial Promotion | I161: 0
A162: Language Policy | I162: 0
A163: Libraries and Archives | C163: 667297.16 | D163: 1170907 | E163: 1170907 | F163: 38194.41 | G163: 269001.56 | H163: 683081 | I163: -414079.44 | J163: -0.6061937603 | K163: 1170907
A164: Literacy Programmes | I164: 0
A165: Media Services | I165: 0
A166: Museums and Art Galleries | I166: 0
A167: Population Development | I167: 0
A168: Provincial Cultural Matters | I168: 0
A169: Theatres | I169: 0
A170: Zoo's | I170: 0
A171: Sport and recreation | C171: =SUM(C172:C176) -> 3317681.83 | D171: 2793250 | E171: 3070558 | F171: 181726.96 | G171: 1907839.85 | H171: 1768149 | I171: =G171-H171 -> 139690.85 | J171: =IF(I171=0,"",I171/H171) -> 0.07900400362 | K171: 3070558
A172: Beaches and Jetties | I172: 0
A173: Casinos, Racing, Gambling, Wagering | I173: 0
A174: Community Parks (including Nurseries) | I174: 0
A175: Recreational Facilities | C175: 3317681.83 | D175: 2793250 | E175: 3070558 | F175: 181726.96 | G175: 1907839.85 | H175: 1768149 | I175: 139690.85 | J175: 0.07900400362 | K175: 3070558
A176: Sports Grounds and Stadiums | I176: 0
A177: Public safety | C177: =SUM(C178:C185) -> 15009690.06 | D177: 14349573 | E177: 14349573 | F177: 1206971.74 | G177: 8948396.99 | H177: 8370663 | I177: 577733.99 | J177: 0.06901890448 | K177: 14349573
A178: Civil Defence | I178: 0
A179: Cleansing | I179: 0
A180: Control of Public Nuisances | I180: =G180-H180 -> 0 | J180: =IF(I180=0,"",I180/H180) -> 
A181: Fencing and Fences | I181: 0
A182: Fire Fighting and Protection | I182: 0
A183: Licensing and Control of Animals | I183: =G183-H183 -> 0 | J183: =IF(I183=0,"",I183/H183) -> 
A184: Police Forces, Traffic and Street Parking Control | C184: 15009690.06 | D184: 14349573 | E184: 14349573 | F184: 1206971.74 | G184: 8948396.99 | H184: 8370663 | I184: =G184-H184 -> 577733.99 | J184: =IF(I184=0,"",I184/H184) -> 0.06901890448 | K184: 14349573
A185: Pounds | I185: 0
A186: Housing | C186: =SUM(C187:C188) -> 0 | D186: 0 | E186: 0 | F186: 0 | G186: 0 | H186: 0 | I186: =G186-H186 -> 0 | J186: =IF(I186=0,"",I186/H186) ->  | K186: =SUM(K187:K188) -> 0
A187: Housing | I187: =G187-H187 -> 0 | J187: =IF(I187=0,"",I187/H187) -> 
A188: Informal Settlements | I188: =G188-H188 -> 0 | J188: =IF(I188=0,"",I188/H188) -> 
A189: Health | C189: =SUM(C190:C196) -> 0 | D189: 0 | E189: 0 | F189: 0 | G189: 0 | H189: 0 | I189: 0 | K189: 0
A190: Ambulance | I190: 0
A191: Health Services | I191: 0
A192: =A70 -> Laboratory Services | I192: 0
A193: Food Control | I193: =G193-H193 -> 0 | J193: =IF(I193=0,"",I193/H193) -> 
A194: Health Surveillance and Prevention of Communicable Diseases including immunizations | I194: =G194-H194 -> 0 | J194: =IF(I194=0,"",I194/H194) -> 
A195: Vector Control | I195: 0
A196: Chemical Safety | I196: 0
A197: Economic and environmental services | C197: =C198+C209+C214 -> 12608472.85 | D197: 14588384 | E197: 14588384 | F197: 987639.67 | G197: 5390263.83 | H197: 8510236 | I197: -3119972.17 | J197: -0.3666140598 | K197: =K198+K209+K214 -> 14588384
A198: Planning and development | C198: =SUM(C199:C208) -> 9646016.62 | D198: 11304018 | E198: 11304018 | F198: 862718.26 | G198: 4234944.64 | H198: 6594315 | I198: -2359370.36 | J198: -0.3577885436 | K198: 11304018
A199: Billboards | I199: 0
A200: Corporate Wide Strategic Planning (IDPs, LEDs) | C200: 3029998.72 | D200: 5328786 | E200: 5328786 | F200: 437513.64 | G200: 1093607 | H200: 3108574 | I200: -2014967 | J200: -0.6481965686 | K200: 5328786
A201: Central City Improvement District | I201: 0
... 54 more rows

Sheet C3-FinPerf V
A1: =muni& " - "&S71C& " - "&date -> LIM353 Molemole - Table C3 Monthly Budget Statement - Financial Performance (revenue and expenditure by municipal vote) - M07 January
A2: =Vdesc -> Vote Description | B2: =head27 -> Ref | C2: =Head1 -> 2019/20 | D2: =Head2 -> Budget Year 2020/21
C3: =Head5 -> Audited Outcome | D3: =Head6 -> Original Budget | E3: =Head7 -> Adjusted Budget | F3: =Head38 -> Monthly actual | G3: =Head39 -> YearTD actual | H3: =Head40 -> YearTD budget | I3: =Head41 -> YTD variance | J3: =Head41 -> YTD variance | K3: =Head8 -> Full Year Forecast
A4: R thousands | J4: %
A5: Revenue by Vote | B5: 1
A6: ='Org structure'!A2 -> Vote 01 - Corporate Services | C6: ='C3C'!C6 -> 577474.54 | D6: ='C3C'!D6 -> 8270016 | E6: ='C3C'!E6 -> 412016 | F6: ='C3C'!F6 -> 3517.49 | G6: ='C3C'!G6 -> 27794.9 | H6: ='C3C'!H6 -> 895148 | I6: =G6-H6 -> -867353.1 | J6: =IF(I6=0,"",I6/H6) -> -0.9689493804 | K6: ='C3C'!K6 -> 412016
A7: ='Org structure'!A3 -> Vote 02 - Municipal Manager | C7: ='C3C'!C15 -> 0 | D7: ='C3C'!D15 -> 0 | E7: ='C3C'!E15 -> 0 | F7: ='C3C'!F15 -> 0 | G7: ='C3C'!G15 -> 0 | H7: ='C3C'!H15 -> 0 | I7: 0 | K7: ='C3C'!K15 -> 0
A8: ='Org structure'!A4 -> Vote 03 - Mayors Office | C8: ='C3C'!C21 -> 0 | D8: ='C3C'!D21 -> 0 | E8: ='C3C'!E21 -> 0 | F8: ='C3C'!F21 -> 0 | G8: ='C3C'!G21 -> 0 | H8: ='C3C'!H21 -> 0 | I8: 0 | K8: ='C3C'!K21 -> 0
A9: ='Org structure'!A5 -> Vote 04 - Budget And Treasury | C9: ='C3C'!C27 -> 167236475.3 | D9: ='C3C'!D27 -> 201290381 | E9: ='C3C'!E27 -> 230465381 | F9: ='C3C'!F27 -> 3358349.47 | G9: ='C3C'!G27 -> 104272911 | H9: ='C3C'!H27 -> 132006865 | I9: -27733953.98 | J9: -0.2100947854 | K9: ='C3C'!K27 -> 230465381
A10: ='Org structure'!A6 -> Vote 05 - Community Services | C10: ='C3C'!C35 -> 7829928.24 | D10: ='C3C'!D35 -> 12823788 | E10: ='C3C'!E35 -> 12823788 | F10: ='C3C'!F35 -> 1348183.14 | G10: ='C3C'!G35 -> 9177857.62 | H10: ='C3C'!H35 -> 7480515 | I10: 1697342.62 | J10: 0.2269018403 | K10: ='C3C'!K35 -> 12823788
A11: ='Org structure'!A7 -> Vote 06 - Technical Services | C11: ='C3C'!C44 -> 44832409.44 | D11: ='C3C'!D44 -> 63467337 | E11: ='C3C'!E44 -> 59167337 | F11: ='C3C'!F44 -> 903240.48 | G11: ='C3C'!G44 -> 21161928.06 | H11: ='C3C'!H44 -> 34872566 | I11: -13710637.94 | J11: -0.3931640115 | K11: ='C3C'!K44 -> 59167337
A12: ='Org structure'!A8 -> Vote 07 - | C12: ='C3C'!C53 -> 0 | D12: ='C3C'!D53 -> 0 | E12: ='C3C'!E53 -> 0 | F12: ='C3C'!F53 -> 0 | G12: ='C3C'!G53 -> 0 | H12: ='C3C'!H53 -> 0 | I12: =G12-H12 -> 0 | J12: =IF(I12=0,"",I12/H12) ->  | K12: ='C3C'!K53 -> 0
A13: ='Org structure'!A9 -> Vote 08 - | C13: ='C3C'!C54 -> 0 | D13: ='C3C'!D54 -> 0 | E13: ='C3C'!E54 -> 0 | F13: ='C3C'!F54 -> 0 | G13: ='C3C'!G54 -> 0 | H13: ='C3C'!H54 -> 0 | I13: 0 | K13: ='C3C'!K54 -> 0
A14: ='Org structure'!A10 -> Vote 09 - | C14: ='C3C'!C55 -> 0 | D14: ='C3C'!D55 -> 0 | E14: ='C3C'!E55 -> 0 | F14: ='C3C'!F55 -> 0 | G14: ='C3C'!G55 -> 0 | H14: ='C3C'!H55 -> 0 | I14: 0 | K14: ='C3C'!K55 -> 0
A15: ='Org structure'!A11 -> Vote 10 - | C15: ='C3C'!C56 -> 0 | D15: ='C3C'!D56 -> 0 | E15: ='C3C'!E56 -> 0 | F15: ='C3C'!F56 -> 0 | G15: ='C3C'!G56 -> 0 | H15: ='C3C'!H56 -> 0 | I15: 0 | K15: ='C3C'!K56 -> 0
A16: ='Org structure'!A12 -> Vote 11 - | C16: ='C3C'!C57 -> 0 | D16: ='C3C'!D57 -> 0 | E16: ='C3C'!E57 -> 0 | F16: ='C3C'!F57 -> 0 | G16: ='C3C'!G57 -> 0 | H16: ='C3C'!H57 -> 0 | I16: 0 | K16: ='C3C'!K57 -> 0
A17: ='Org structure'!A13 -> Vote 12 - | C17: ='C3C'!C58 -> 0 | D17: ='C3C'!D58 -> 0 | E17: ='C3C'!E58 -> 0 | F17: ='C3C'!F58 -> 0 | G17: ='C3C'!G58 -> 0 | H17: ='C3C'!H58 -> 0 | I17: 0 | K17: ='C3C'!K58 -> 0
A18: ='Org structure'!A14 -> Vote 13 - | C18: ='C3C'!C59 -> 0 | D18: ='C3C'!D59 -> 0 | E18: ='C3C'!E59 -> 0 | F18: ='C3C'!F59 -> 0 | G18: ='C3C'!G59 -> 0 | H18: ='C3C'!H59 -> 0 | I18: 0 | K18: ='C3C'!K59 -> 0
A19: ='Org structure'!A15 -> Vote 14 - | C19: ='C3C'!C60 -> 0 | D19: ='C3C'!D60 -> 0 | E19: ='C3C'!E60 -> 0 | F19: ='C3C'!F60 -> 0 | G19: ='C3C'!G60 -> 0 | H19: ='C3C'!H60 -> 0 | I19: 0 | K19: ='C3C'!K60 -> 0
A20: ='Org structure'!A16 -> Vote 15 - Other | C20: ='C3C'!C61 -> 0 | D20: ='C3C'!D61 -> 0 | E20: ='C3C'!E61 -> 0 | F20: ='C3C'!F61 -> 0 | G20: ='C3C'!G61 -> 0 | H20: ='C3C'!H61 -> 0 | I20: 0 | K20: ='C3C'!K61 -> 0
A21: Total Revenue by Vote | B21: 2 | C21: =SUM(C6:C20) -> 220476287.5 | D21: =SUM(D6:D20) -> 285851522 | E21: 302868522 | F21: 5613290.58 | G21: 134640491.6 | H21: 175255094 | I21: -40614602.4 | J21: -0.2317456313 | K21: =SUM(K6:K20) -> 302868522
A23: Expenditure by Vote | B23: 1
A24: ='Org structure'!A2 -> Vote 01 - Corporate Services | C24: ='C3C'!C65 -> 46020026.96 | D24: ='C3C'!D65 -> 56666032 | E24: ='C3C'!E65 -> 58769282 | F24: ='C3C'!F65 -> 3537444.97 | G24: ='C3C'!G65 -> 26401715.88 | H24: ='C3C'!H65 -> 34107522 | I24: =G24-H24 -> -7705806.12 | J24: =IF(I24=0,"",I24/H24) -> -0.2259268826 | K24: ='C3C'!K65 -> 58769282
A25: ='Org structure'!A3 -> Vote 02 - Municipal Manager | C25: ='C3C'!C74 -> 18277241.43 | D25: ='C3C'!D74 -> 21654956 | E25: ='C3C'!E74 -> 21654956 | F25: ='C3C'!F74 -> 512795.81 | G25: ='C3C'!G74 -> 8218544.4 | H25: ='C3C'!H74 -> 12632424 | I25: -4413879.6 | J25: -0.3494087596 | K25: ='C3C'!K74 -> 21654956
A26: ='Org structure'!A4 -> Vote 03 - Mayors Office | C26: ='C3C'!C80 -> 16939070.58 | D26: ='C3C'!D80 -> 18760352 | E26: ='C3C'!E80 -> 18760352 | F26: ='C3C'!F80 -> 1259864.75 | G26: ='C3C'!G80 -> 9599684.12 | H26: ='C3C'!H80 -> 10943807 | I26: -1344122.88 | J26: -0.1228204116 | K26: ='C3C'!K80 -> 18760352
A27: ='Org structure'!A5 -> Vote 04 - Budget And Treasury | C27: ='C3C'!C86 -> 30530239.15 | D27: ='C3C'!D86 -> 36935073 | E27: ='C3C'!E86 -> 36935073 | F27: ='C3C'!F86 -> 1599094.49 | G27: ='C3C'!G86 -> 14996130.85 | H27: ='C3C'!H86 -> 21545860 | I27: -6549729.15 | J27: -0.3039901471 | K27: ='C3C'!K86 -> 36935073
A28: ='Org structure'!A6 -> Vote 05 - Community Services | C28: ='C3C'!C94 -> 31065698.58 | D28: ='C3C'!D94 -> 31410661 | E28: ='C3C'!E94 -> 31821814 | F28: ='C3C'!F94 -> 2257420.95 | G28: ='C3C'!G94 -> 17233125.79 | H28: ='C3C'!H94 -> 18528909.5 | I28: -1295783.71 | J28: -0.06993307998 | K28: ='C3C'!K94 -> 31821814
A29: ='Org structure'!A7 -> Vote 06 - Technical Services | C29: ='C3C'!C103 -> 48601831.82 | D29: ='C3C'!D103 -> 58825117 | E29: ='C3C'!E103 -> 62310497 | F29: ='C3C'!F103 -> 4501360.72 | G29: ='C3C'!G103 -> 32583617.31 | H29: ='C3C'!H103 -> 36057719 | I29: -3474101.69 | J29: -0.09634834888 | K29: ='C3C'!K103 -> 62310497
A30: ='Org structure'!A8 -> Vote 07 - | C30: ='C3C'!C112 -> 0 | D30: ='C3C'!D112 -> 0 | E30: ='C3C'!E112 -> 0 | F30: ='C3C'!F112 -> 0 | G30: ='C3C'!G112 -> 0 | H30: ='C3C'!H112 -> 0 | I30: =G30-H30 -> 0 | J30: =IF(I30=0,"",I30/H30) ->  | K30: ='C3C'!K112 -> 0
A31: ='Org structure'!A9 -> Vote 08 - | C31: ='C3C'!C113 -> 0 | D31: ='C3C'!D113 -> 0 | E31: ='C3C'!E113 -> 0 | F31: ='C3C'!F113 -> 0 | G31: ='C3C'!G113 -> 0 | H31: ='C3C'!H113 -> 0 | I31: 0 | K31: ='C3C'!K113 -> 0
A32: ='Org structure'!A10 -> Vote 09 - | C32: ='C3C'!C114 -> 0 | D32: ='C3C'!D114 -> 0 | E32: ='C3C'!E114 -> 0 | F32: ='C3C'!F114 -> 0 | G32: ='C3C'!G114 -> 0 | H32: ='C3C'!H114 -> 0 | I32: 0 | K32: ='C3C'!K114 -> 0
A33: ='Org structure'!A11 -> Vote 10 - | C33: ='C3C'!C115 -> 0 | D33: ='C3C'!D115 -> 0 | E33: ='C3C'!E115 -> 0 | F33: ='C3C'!F115 -> 0 | G33: ='C3C'!G115 -> 0 | H33: ='C3C'!H115 -> 0 | I33: 0 | J33: =IF(I33=0,"",I33/H33) ->  | K33: ='C3C'!K115 -> 0
A34: ='Org structure'!A12 -> Vote 11 - | C34: ='C3C'!C116 -> 0 | D34: ='C3C'!D116 -> 0 | E34: ='C3C'!E116 -> 0 | F34: ='C3C'!F116 -> 0 | G34: ='C3C'!G116 -> 0 | H34: ='C3C'!H116 -> 0 | I34: 0 | J34: =IF(I34=0,"",I34/H34) ->  | K34: ='C3C'!K116 -> 0
A35: ='Org structure'!A13 -> Vote 12 - | C35: ='C3C'!C117 -> 0 | D35: ='C3C'!D117 -> 0 | E35: ='C3C'!E117 -> 0 | F35: ='C3C'!F117 -> 0 | G35: ='C3C'!G117 -> 0 | H35: ='C3C'!H117 -> 0 | I35: 0 | J35: =IF(I35=0,"",I35/H35) ->  | K35: ='C3C'!K117 -> 0
A36: ='Org structure'!A14 -> Vote 13 - | C36: ='C3C'!C118 -> 0 | D36: ='C3C'!D118 -> 0 | E36: ='C3C'!E118 -> 0 | F36: ='C3C'!F118 -> 0 | G36: ='C3C'!G118 -> 0 | H36: ='C3C'!H118 -> 0 | I36: 0 | J36: =IF(I36=0,"",I36/H36) ->  | K36: ='C3C'!K118 -> 0
A37: ='Org structure'!A15 -> Vote 14 - | C37: ='C3C'!C119 -> 0 | D37: ='C3C'!D119 -> 0 | E37: ='C3C'!E119 -> 0 | F37: ='C3C'!F119 -> 0 | G37: ='C3C'!G119 -> 0 | H37: ='C3C'!H119 -> 0 | I37: 0 | J37: =IF(I37=0,"",I37/H37) ->  | K37: ='C3C'!K119 -> 0
A38: ='Org structure'!A16 -> Vote 15 - Other | C38: ='C3C'!C120 -> 0 | D38: ='C3C'!D120 -> 0 | E38: ='C3C'!E120 -> 0 | F38: ='C3C'!F120 -> 0 | G38: ='C3C'!G120 -> 0 | H38: ='C3C'!H120 -> 0 | I38: 0 | K38: ='C3C'!K120 -> 0
A39: Total Expenditure by Vote | B39: 2 | C39: =SUM(C24:C38) -> 191434108.5 | D39: =SUM(D24:D38) -> 224252191 | E39: 230251974 | F39: 13667981.69 | G39: 109032818.3 | H39: 133816241.5 | I39: -24783423.15 | J39: =IF(I39=0,"",I39/H39) -> -0.1852048964 | K39: =SUM(K24:K38) -> 230251974
A40: =result -> Surplus/ (Deficit) for the year | B40: 2 | C40: =C21-C39 -> 29042179 | D40: 61599331 | E40: 72616548 | F40: -8054691.11 | G40: 25607673.25 | H40: 41438852.5 | I40: =I21-I39 -> -15831179.25 | J40: =IF(I40=0,"",I40/H40) -> -0.3820371052 | K40: =K21-K39 -> 72616548
A41: =head27a -> References
A42: 1. Insert 'Vote'; e.g. Department, if different to standard classification structure
A43: 2. Must reconcile to Monthly Budget Statement - Financial Performance Statement (standard classification)

Sheet C3C
A1: =muni& " - "&S71C& " - "&"A"& " - "&date -> LIM353 Molemole - Table C3 Monthly Budget Statement - Financial Performance (revenue and expenditure by municipal vote) - A - M07 January
A2: =Vdesc -> Vote Description | B2: =head27 -> Ref | C2: =Head1 -> 2019/20 | D2: =Head2 -> Budget Year 2020/21 | L2: =Head4 -> 
A3: R thousand | C3: =Head5 -> Audited Outcome | D3: =Head6 -> Original Budget | E3: =Head7 -> Adjusted Budget | F3: =Head38 -> Monthly actual | G3: =Head39 -> YearTD actual | H3: =Head40 -> YearTD budget | I3: =Head41 -> YTD variance | J3: =Head41 -> YTD variance | K3: =Head8 -> Full Year Forecast | L3: =Head12 -> Forecast 2010/11 | M3: =Head13 -> Forecast 2011/12 | N3: =Head14 -> Forecast 2012/13 | O3: =Head15 -> Forecast 2013/14 | P3: =Head16 -> Forecast 2014/15 | Q3: =Head17 -> Forecast 2015/16 | R3: =Head18 -> Forecast 2016/17 | S3: =Head19 -> Forecast 2017/18 | T3: =Head20 -> Forecast 2018/19 | U3: =Head21 -> Forecast 2019/20 | V3: =Head22 -> Forecast 2020/21 | W3: =Head23 -> Forecast 2021/22
J4: %
A5: Revenue by Vote | B5: 1
A6: ='Org structure'!A2 -> Vote 01 - Corporate Services | C6: =SUM(C7:C14) -> 577474.54 | D6: 8270016 | E6: 412016 | F6: 3517.49 | G6: 27794.9 | H6: 895148 | I6: =G6-H6 -> -867353.1 | J6: =IF(I6=0,"",I6/H6) -> -0.9689493804 | K6: =SUM(K7:K14) -> 412016
A7: ='Org structure'!E3 -> 01.1 - Corporate Services Admin | C7: 17355.91 | D7: 0 | E7: 0 | F7: 0 | G7: 152.02 | H7: 0 | I7: =G7-H7 -> 152.02 | J7: =IF(I7=0,"",I7/H7) ->  | K7: 0
A8: ='Org structure'!E4 -> 01.2 - Human Resources | C8: 482513.02 | D8: 571512 | E8: 213512 | F8: 0 | G8: 0 | H8: 154375 | I8: -154375 | J8: -1 | K8: 213512
A9: ='Org structure'!E5 -> 01.3 - Information Technology Services | C9: 0 | D9: 0 | E9: 0 | F9: 0 | G9: 0 | H9: 0 | I9: 0 | K9: 0
A10: ='Org structure'!E6 -> 01.4 - Council Support | C10: 0 | D10: 0 | E10: 0 | F10: 0 | G10: 0 | H10: 0 | I10: 0 | K10: 0
A11: ='Org structure'!E7 -> 01.5 - Local Economic Development | C11: 0 | D11: 0 | E11: 0 | F11: 0 | G11: 0 | H11: 0 | I11: 0 | K11: 0
A12: ='Org structure'!E8 -> 01.6 - Municipal Planning Idp | C12: 43334.4 | D12: 84283 | E12: 84283 | F12: 3359.36 | G12: 20156.16 | H12: 49154 | I12: -28997.84 | J12: -0.5899385604 | K12: 84283
A13: ='Org structure'!E9 -> 01.7 - Town & Regional Planning | C13: 34271.21 | D13: 7614221 | E13: 114221 | F13: 158.13 | G13: 7486.72 | H13: 691619 | I13: -684132.28 | J13: -0.9891750805 | K13: 114221
A14: ='Org structure'!E10 -> 01.8 - Led Administration | C14: 0 | D14: 0 | E14: 0 | F14: 0 | G14: 0 | H14: 0 | I14: 0 | K14: 0
A15: ='Org structure'!A3 -> Vote 02 - Municipal Manager | C15: =SUM(C16:C20) -> 0 | D15: 0 | E15: 0 | F15: 0 | G15: 0 | H15: 0 | I15: 0 | K15: =SUM(K16:K20) -> 0
A16: ='Org structure'!E12 -> 02.1 - Municipal Manager Admin | C16: 0 | D16: 0 | E16: 0 | F16: 0 | G16: 0 | H16: 0 | I16: =G16-H16 -> 0 | J16: =IF(I16=0,"",I16/H16) ->  | K16: 0
A17: ='Org structure'!E13 -> 02.2 - Legal Services | C17: 0 | D17: 0 | E17: 0 | F17: 0 | G17: 0 | H17: 0 | I17: =G17-H17 -> 0 | J17: =IF(I17=0,"",I17/H17) ->  | K17: 0
A18: ='Org structure'!E14 -> 02.3 - Political Office Beares | C18: 0 | D18: 0 | E18: 0 | F18: 0 | G18: 0 | H18: 0 | I18: =G18-H18 -> 0 | J18: =IF(I18=0,"",I18/H18) ->  | K18: 0
A19: ='Org structure'!E15 -> 02.4 - Pms | C19: 0 | D19: 0 | E19: 0 | F19: 0 | G19: 0 | H19: 0 | I19: =G19-H19 -> 0 | J19: =IF(I19=0,"",I19/H19) ->  | K19: 0
A20: ='Org structure'!E16 -> 02.5 - Internal Audit | C20: 0 | D20: 0 | E20: 0 | F20: 0 | G20: 0 | H20: 0 | I20: =G20-H20 -> 0 | J20: =IF(I20=0,"",I20/H20) ->  | K20: 0
A21: ='Org structure'!A4 -> Vote 03 - Mayors Office | C21: =SUM(C22:C26) -> 0 | D21: 0 | E21: 0 | F21: 0 | G21: 0 | H21: 0 | I21: 0 | K21: =SUM(K22:K26) -> 0
A22: ='Org structure'!E18 -> 03.1 - Mayors Office Admin | C22: 0 | D22: 0 | E22: 0 | F22: 0 | G22: 0 | H22: 0 | I22: =G22-H22 -> 0 | J22: =IF(I22=0,"",I22/H22) ->  | K22: 0
A23: ='Org structure'!E19 -> 03.2 - Office Of The Speaker | C23: 0 | D23: 0 | E23: 0 | F23: 0 | G23: 0 | H23: 0 | I23: =G23-H23 -> 0 | J23: =IF(I23=0,"",I23/H23) ->  | K23: 0
A24: ='Org structure'!E20 -> 03.3 - Office Of The Chief Whip | C24: 0 | D24: 0 | E24: 0 | F24: 0 | G24: 0 | H24: 0 | I24: =G24-H24 -> 0 | J24: =IF(I24=0,"",I24/H24) ->  | K24: 0
A25: ='Org structure'!E21 -> 03.4 - Exco Members | C25: 0 | D25: 0 | E25: 0 | F25: 0 | G25: 0 | H25: 0 | I25: =G25-H25 -> 0 | J25: =IF(I25=0,"",I25/H25) ->  | K25: 0
A26: ='Org structure'!E22 -> 03.5 - Council General Administration | C26: 0 | D26: 0 | E26: 0 | F26: 0 | G26: 0 | H26: 0 | I26: =G26-H26 -> 0 | J26: =IF(I26=0,"",I26/H26) ->  | K26: 0
A27: ='Org structure'!A5 -> Vote 04 - Budget And Treasury | C27: =SUM(C28:C34) -> 167236475.3 | D27: 201290381 | E27: 230465381 | F27: 3358349.47 | G27: 104272911 | H27: 132006865 | I27: -27733953.98 | J27: -0.2100947854 | K27: =SUM(K28:K34) -> 230465381
A28: ='Org structure'!E24 -> 04.1 - Budget And Treasury Admin | C28: 165477440.1 | D28: 180118425 | E28: 209293425 | F28: 3112465.57 | G28: 103126519.2 | H28: 119656562 | I28: =G28-H28 -> -16530042.75 | J28: =IF(I28=0,"",I28/H28) -> -0.138145727 | K28: 209293425
A29: ='Org structure'!E25 -> 04.2 - Chief Financial Officer Admin | C29: 0 | D29: 0 | E29: 0 | F29: 0 | G29: 0 | H29: 0 | I29: 0 | K29: 0
A30: ='Org structure'!E26 -> 04.3 - Budget & Reporting | C30: 0 | D30: 0 | E30: 0 | F30: 0 | G30: 0 | H30: 0 | I30: 0 | K30: 0
A31: ='Org structure'!E27 -> 04.4 - Budget & Reporting | C31: 1729419.11 | D31: 2215488 | E31: 2215488 | F31: 245836.23 | G31: 1131514.1 | H31: 1292368 | I31: -160853.9 | J31: -0.1244644714 | K31: 2215488
A32: ='Org structure'!E28 -> 04.5 - Revenue Management | C32: 29616.08 | D32: 18956468 | E32: 18956468 | F32: 47.67 | G32: 14877.67 | H32: 11057935 | I32: -11043057.33 | J32: -0.9986545707 | K32: 18956468
A33: ='Org structure'!E29 -> 04.6 - Supply Chain Management | C33: 0 | D33: 0 | E33: 0 | F33: 0 | G33: 0 | H33: 0 | I33: 0 | K33: 0
A34: ='Org structure'!E30 -> 04.7 - Expenditure | C34: 0 | D34: 0 | E34: 0 | F34: 0 | G34: 0 | H34: 0 | I34: 0 | K34: 0
A35: ='Org structure'!A6 -> Vote 05 - Community Services | C35: =SUM(C36:C43) -> 7829928.24 | D35: 12823788 | E35: 12823788 | F35: 1348183.14 | G35: 9177857.62 | H35: 7480515 | I35: 1697342.62 | J35: 0.2269018403 | K35: =SUM(K36:K43) -> 12823788
A36: ='Org structure'!E32 -> 05.1 - Community Services Admin | C36: 1167000 | D36: 1304000 | E36: 1304000 | F36: 0 | G36: 551457.05 | H36: 760662 | I36: =G36-H36 -> -209204.95 | J36: =IF(I36=0,"",I36/H36) -> -0.2750301054 | K36: 1304000
A37: ='Org structure'!E33 -> 05.2 - Libraries | C37: 0 | D37: 0 | E37: 0 | F37: 0 | G37: 0 | H37: 0 | I37: 0 | K37: 0
A38: ='Org structure'!E34 -> 05.3 - Sports Recreation & Social Amenitie | C38: 211716.96 | D38: 247951 | E38: 247951 | F38: 20349.42 | G38: 124620.16 | H38: 144627 | I38: -20006.84 | J38: -0.1383340593 | K38: 247951
A39: ='Org structure'!E35 -> 05.4 - Traffic Service | C39: 0 | D39: 0 | E39: 0 | F39: 0 | G39: 0 | H39: 0 | I39: 0 | K39: 0
A40: ='Org structure'!E36 -> 05.5 - Traffic Service | C40: 4026623.03 | D40: 8637460 | E40: 8637460 | F40: 1089975.6 | G40: 6873653.71 | H40: 5038509 | I40: 1835144.71 | J40: 0.3642237634 | K40: 8637460
A41: ='Org structure'!E37 -> 05.6 - Parks; Cemeteries | C41: 7268.89 | D41: 13131 | E41: 13131 | F41: 6056.49 | G41: 11184.07 | H41: 7658 | I41: 3526.07 | J41: 0.4604426743 | K41: 13131
A42: ='Org structure'!E38 -> 05.7 - Refuse | C42: 2417319.36 | D42: 2621246 | E42: 2621246 | F42: 231801.63 | G42: 1616942.63 | H42: 1529059 | I42: 87883.63 | J42: 0.05747563044 | K42: 2621246
A43: ='Org structure'!E39 -> 05.8 - Taxi Ranks | C43: 0 | D43: 0 | E43: 0 | F43: 0 | G43: 0 | H43: 0 | I43: 0 | K43: 0
A44: ='Org structure'!A7 -> Vote 06 - Technical Services | C44: =SUM(C45:C52) -> 44832409.44 | D44: 63467337 | E44: 59167337 | F44: 903240.48 | G44: 21161928.06 | H44: 34872566 | I44: -13710637.94 | J44: -0.3931640115 | K44: =SUM(K45:K52) -> 59167337
A45: ='Org structure'!E41 -> 06.1 - Mpac | C45: 0 | D45: 0 | E45: 0 | F45: 0 | G45: 0 | H45: 0 | I45: =G45-H45 -> 0 | J45: =IF(I45=0,"",I45/H45) ->  | K45: 0
A46: ='Org structure'!E42 -> 06.2 - Technical Services Admin | C46: 0 | D46: 0 | E46: 0 | F46: 0 | G46: 0 | H46: 0 | I46: 0 | K46: 0
A47: ='Org structure'!E43 -> 06.3 - Techn Serv-Roads: Admin | C47: 0 | D47: 0 | E47: 0 | F47: 0 | G47: 0 | H47: 0 | I47: 0 | K47: 0
A48: ='Org structure'!E44 -> 06.4 - Techn Serv-Stormwater: Admin | C48: 0 | D48: 0 | E48: 0 | F48: 0 | G48: 0 | H48: 0 | I48: 0 | K48: 0
A49: ='Org structure'!E45 -> 06.5 - Project Management Unit | C49: 35661443.85 | D49: 34933000 | E49: 34933000 | F49: 0 | G49: 15227596.33 | H49: 20377581 | I49: -5149984.67 | J49: -0.2527279695 | K49: 34933000
A50: ='Org structure'!E46 -> 06.6 - Electrical & Machinery | C50: 8487575.06 | D50: 27839719 | E50: 23539719 | F50: 755688.47 | G50: 4693633.18 | H50: 14089797 | I50: -9396163.82 | J50: -0.6668771608 | K50: 23539719
A51: ='Org structure'!E47 -> 06.7 - Water | C51: 295708.09 | D51: 421696 | E51: 421696 | F51: 69081.85 | G51: 700163.92 | H51: 245987 | I51: 454176.92 | J51: 1.846345213 | K51: 421696
A52: ='Org structure'!E48 -> 06.8 - Sanitation | C52: 387682.44 | D52: 272922 | E52: 272922 | F52: 78470.16 | G52: 540534.63 | H52: 159201 | I52: 381333.63 | J52: 2.3952967 | K52: 272922
A53: ='Org structure'!A8 -> Vote 07 - | C53: 0 | D53: 0 | E53: 0 | F53: 0 | G53: 0 | H53: 0 | I53: =G53-H53 -> 0 | J53: =IF(I53=0,"",I53/H53) ->  | K53: 0
A54: ='Org structure'!A9 -> Vote 08 - | C54: 0 | D54: 0 | E54: 0 | F54: 0 | G54: 0 | H54: 0 | I54: 0 | K54: 0
A55: ='Org structure'!A10 -> Vote 09 - | C55: 0 | D55: 0 | E55: 0 | F55: 0 | G55: 0 | H55: 0 | I55: 0 | K55: 0
A56: ='Org structure'!A11 -> Vote 10 - | C56: 0 | D56: 0 | E56: 0 | F56: 0 | G56: 0 | H56: 0 | I56: 0 | K56: 0
A57: ='Org structure'!A12 -> Vote 11 - | C57: 0 | D57: 0 | E57: 0 | F57: 0 | G57: 0 | H57: 0 | I57: 0 | K57: 0
A58: ='Org structure'!A13 -> Vote 12 - | C58: 0 | D58: 0 | E58: 0 | F58: 0 | G58: 0 | H58: 0 | I58: 0 | K58: 0
A59: ='Org structure'!A14 -> Vote 13 - | C59: 0 | D59: 0 | E59: 0 | F59: 0 | G59: 0 | H59: 0 | I59: =G59-H59 -> 0 | J59: =IF(I59=0,"",I59/H59) ->  | K59: 0
A60: ='Org structure'!A15 -> Vote 14 - | C60: 0 | D60: 0 | E60: 0 | F60: 0 | G60: 0 | H60: 0 | I60: 0 | K60: 0
A61: ='Org structure'!A16 -> Vote 15 - Other | C61: 0 | D61: 0 | E61: 0 | F61: 0 | G61: 0 | H61: 0 | I61: 0 | K61: 0
A62: Total Revenue by Vote | B62: 2 | C62: =C6+C15+C21+C27+C35+C44+C53+C54+C55+C56+C57+C58+C59+C60+C61 -> 220476287.5 | D62: 285851522 | E62: 302868522 | F62: 5613290.58 | G62: 134640491.6 | H62: 175255094 | I62: -40614602.4 | J62: -0.2317456313 | K62: =K6+K15+K21+K27+K35+K44+K53+K54+K55+K56+K57+K58+K59+K60+K61 -> 302868522
I63: 0
A64: Expenditure by Vote | B64: 1 | I64: 0
A65: ='Org structure'!A2 -> Vote 01 - Corporate Services | C65: =SUM(C66:C73) -> 46020026.96 | D65: 56666032 | E65: 58769282 | F65: 3537444.97 | G65: 26401715.88 | H65: 34107522 | I65: -7705806.12 | J65: -0.2259268826 | K65: =SUM(K66:K73) -> 58769282
A66: ='Org structure'!E3 -> 01.1 - Corporate Services Admin | C66: 20177898 | D66: 26035318 | E66: 26728568 | F66: 1858198.62 | G66: 13638841.43 | H66: 15534056 | I66: =G66-H66 -> -1895214.57 | J66: =IF(I66=0,"",I66/H66) -> -0.1220038456 | K66: 26728568
A67: ='Org structure'!E4 -> 01.2 - Human Resources | C67: 7268821.76 | D67: 8137296 | E67: 8197296 | F67: 356838.58 | G67: 3479446.51 | H67: 4776875 | I67: -1297428.49 | J67: -0.2716061212 | K67: 8197296
A68: ='Org structure'!E5 -> 01.3 - Information Technology Services | C68: 5297843.64 | D68: 5290163 | E68: 6640163 | F68: 182840.03 | G68: 2788453.91 | H68: 3761006 | I68: -972552.09 | J68: -0.2585882846 | K68: 6640163
A69: ='Org structure'!E6 -> 01.4 - Council Support | C69: 6307407.8 | D69: 7803389 | E69: 7803389 | F69: 423190.39 | G69: 3282919.54 | H69: 4552058 | I69: -1269138.46 | J69: -0.2788054238 | K69: 7803389
A70: ='Org structure'!E7 -> 01.5 - Local Economic Development | C70: 1985744.53 | D70: 2027617 | E70: 2027617 | F70: 136811.16 | G70: 1026852.51 | H70: 1182867 | I70: -156014.49 | J70: -0.1318952088 | K70: 2027617
A71: ='Org structure'!E8 -> 01.6 - Municipal Planning Idp | C71: 3029486.41 | D71: 4939074 | E71: 4939074 | F71: 437513.64 | G71: 1093607 | H71: 2881200 | I71: -1787593 | J71: -0.6204334999 | K71: 4939074
A72: ='Org structure'!E9 -> 01.7 - Town & Regional Planning | C72: 1952312.51 | D72: 2043463 | E72: 2043463 | F72: 142052.55 | G72: 1091594.98 | H72: 1192086 | I72: -100491.02 | J72: -0.08429846504 | K72: 2043463
A73: ='Org structure'!E10 -> 01.8 - Led Administration | C73: 512.31 | D73: 389712 | E73: 389712 | F73: 0 | G73: 0 | H73: 227374 | I73: -227374 | J73: -1 | K73: 389712
A74: ='Org structure'!A3 -> Vote 02 - Municipal Manager | C74: =SUM(C75:C79) -> 18277241.43 | D74: 21654956 | E74: 21654956 | F74: 512795.81 | G74: 8218544.4 | H74: 12632424 | I74: -4413879.6 | J74: -0.3494087596 | K74: =SUM(K75:K79) -> 21654956
A75: ='Org structure'!E12 -> 02.1 - Municipal Manager Admin | C75: 5491848.91 | D75: 7129038 | E75: 7129038 | F75: 279764.56 | G75: 2599922.01 | H75: 4158728 | I75: =G75-H75 -> -1558805.99 | J75: =IF(I75=0,"",I75/H75) -> -0.3748275891 | K75: 7129038
A76: ='Org structure'!E13 -> 02.2 - Legal Services | C76: 1783687.83 | D76: 2701651 | E76: 2701651 | F76: 0 | G76: 1048702.44 | H76: 1576022 | I76: =G76-H76 -> -527319.56 | J76: =IF(I76=0,"",I76/H76) -> -0.3345889588 | K76: 2701651
A77: ='Org structure'!E14 -> 02.3 - Political Office Beares | C77: 1814194.98 | D77: 2609788 | E77: 2609788 | F77: 0 | G77: 976174.42 | H77: 1522451 | I77: =G77-H77 -> -546276.58 | J77: =IF(I77=0,"",I77/H77) -> -0.3588138994 | K77: 2609788
A78: ='Org structure'!E15 -> 02.4 - Pms | C78: 2570750.26 | D78: 2009911 | E78: 2009911 | F78: 92748.06 | G78: 1074063.06 | H78: 1172493 | I78: =G78-H78 -> -98429.94 | J78: =IF(I78=0,"",I78/H78) -> -0.08394927731 | K78: 2009911
A79: ='Org structure'!E16 -> 02.5 - Internal Audit | C79: 6616759.45 | D79: 7204568 | E79: 7204568 | F79: 140283.19 | G79: 2519682.47 | H79: 4202730 | I79: =G79-H79 -> -1683047.53 | J79: =IF(I79=0,"",I79/H79) -> -0.4004652999 | K79: 7204568
A80: ='Org structure'!A4 -> Vote 03 - Mayors Office | C80: =SUM(C81:C85) -> 16939070.58 | D80: 18760352 | E80: 18760352 | F80: 1259864.75 | G80: 9599684.12 | H80: 10943807 | I80: -1344122.88 | J80: -0.1228204116 | K80: =SUM(K81:K85) -> 18760352
A81: ='Org structure'!E18 -> 03.1 - Mayors Office Admin | C81: 2917463.62 | D81: 4443387 | E81: 4443387 | F81: 168938.44 | G81: 1572480.14 | H81: 2592107 | I81: =G81-H81 -> -1019626.86 | J81: =IF(I81=0,"",I81/H81) -> -0.393358322 | K81: 4443387
A82: ='Org structure'!E19 -> 03.2 - Office Of The Speaker | C82: 1046311.5 | D82: 1221682 | E82: 1221682 | F82: 87012.48 | G82: 636196.33 | H82: 712705 | I82: =G82-H82 -> -76508.67 | J82: =IF(I82=0,"",I82/H82) -> -0.1073497029 | K82: 1221682
A83: ='Org structure'!E20 -> 03.3 - Office Of The Chief Whip | C83: 756623.64 | D83: 851035 | E83: 851035 | F83: 58958.07 | G83: 424701.1 | H83: 496454 | I83: =G83-H83 -> -71752.9 | J83: =IF(I83=0,"",I83/H83) -> -0.1445308125 | K83: 851035
A84: ='Org structure'!E21 -> 03.4 - Exco Members | C84: 3614576.41 | D84: 3469897 | E84: 3469897 | F84: 212898.39 | G84: 1989155.41 | H84: 2024134 | I84: =G84-H84 -> -34978.59 | J84: =IF(I84=0,"",I84/H84) -> -0.01728076797 | K84: 3469897
A85: ='Org structure'!E22 -> 03.5 - Council General Administration | C85: 8604095.41 | D85: 8774351 | E85: 8774351 | F85: 732057.37 | G85: 4977151.14 | H85: 5118407 | I85: =G85-H85 -> -141255.86 | J85: =IF(I85=0,"",I85/H85) -> -0.02759762168 | K85: 8774351
A86: ='Org structure'!A5 -> Vote 04 - Budget And Treasury | C86: =SUM(C87:C93) -> 30530239.15 | D86: 36935073 | E86: 36935073 | F86: 1599094.49 | G86: 14996130.85 | H86: 21545860 | I86: =G86-H86 -> -6549729.15 | J86: =IF(I86=0,"",I86/H86) -> -0.3039901471 | K86: =SUM(K87:K93) -> 36935073
A87: ='Org structure'!E24 -> 04.1 - Budget And Treasury Admin | C87: 7219748.24 | D87: 7563128 | E87: 7563128 | F87: 478236.72 | G87: 3866108.41 | H87: 4411918 | I87: =G87-H87 -> -545809.59 | J87: =IF(I87=0,"",I87/H87) -> -0.1237125418 | K87: 7563128
A88: ='Org structure'!E25 -> 04.2 - Chief Financial Officer Admin | C88: -79842.62 | D88: 0 | E88: 0 | F88: 0 | G88: 8946.72 | H88: 0 | I88: 8946.72 | K88: 0
A89: ='Org structure'!E26 -> 04.3 - Budget & Reporting | C89: 0 | D89: 0 | E89: 0 | F89: 0 | G89: 0 | H89: 0 | I89: 0 | K89: 0
A90: ='Org structure'!E27 -> 04.4 - Budget & Reporting | C90: 2519665.86 | D90: 2515756 | E90: 2515756 | F90: 162831.26 | G90: 922800.78 | H90: 1467578 | I90: -544777.22 | J90: -0.3712083583 | K90: 2515756
A91: ='Org structure'!E28 -> 04.5 - Revenue Management | C91: 13529659.99 | D91: 16352796 | E91: 16352796 | F91: 422125.43 | G91: 5948418.9 | H91: 9539222 | I91: -3590803.1 | J91: -0.3764251529 | K91: 16352796
A92: ='Org structure'!E29 -> 04.6 - Supply Chain Management | C92: 3705889.89 | D92: 5290084 | E92: 5290084 | F92: 260328.18 | G92: 2221097.86 | H92: 3085971 | I92: -864873.14 | J92: -0.280259646 | K92: 5290084
A93: ='Org structure'!E30 -> 04.7 - Expenditure | C93: 3635117.79 | D93: 5213309 | E93: 5213309 | F93: 275572.9 | G93: 2028758.18 | H93: 3041171 | I93: -1012412.82 | J93: -0.3329022998 | K93: 5213309
A94: ='Org structure'!A6 -> Vote 05 - Community Services | C94: =SUM(C95:C102) -> 31065698.58 | D94: 31410661 | E94: 31821814 | F94: 2257420.95 | G94: 17233125.79 | H94: 18528909.5 | I94: -1295783.71 | J94: -0.06993307998 | K94: =SUM(K95:K102) -> 31821814
A95: ='Org structure'!E32 -> 05.1 - Community Services Admin | C95: 4523083.2 | D95: 4487344 | E95: 4487344 | F95: 164122.72 | G95: 1817936.54 | H95: 2617727 | I95: =G95-H95 -> -799790.46 | J95: =IF(I95=0,"",I95/H95) -> -0.3055285979 | K95: 4487344
A96: ='Org structure'!E33 -> 05.2 - Libraries | C96: 667297.16 | D96: 1170907 | E96: 1170907 | F96: 38194.41 | G96: 269001.56 | H96: 683081 | I96: -414079.44 | J96: -0.6061937603 | K96: 1170907
A97: ='Org structure'!E34 -> 05.3 - Sports Recreation & Social Amenitie | C97: 3317681.83 | D97: 2793250 | E97: 3070558 | F97: 181726.96 | G97: 1907839.85 | H97: 1768149 | I97: 139690.85 | J97: 0.07900400362 | K97: 3070558
A98: ='Org structure'!E35 -> 05.4 - Traffic Service | C98: 0 | D98: 0 | E98: 0 | F98: 0 | G98: 0 | H98: 0 | I98: 0 | K98: 0
A99: ='Org structure'!E36 -> 05.5 - Traffic Service | C99: 15009690.06 | D99: 14349573 | E99: 14349573 | F99: 1206971.74 | G99: 8948396.99 | H99: 8370663 | I99: 577733.99 | J99: 0.06901890448 | K99: 14349573
A100: ='Org structure'!E37 -> 05.6 - Parks; Cemeteries | C100: 1197154.18 | D100: 1388002 | E100: 1521847 | F100: 87239.32 | G100: 733186.86 | H100: 876640.5 | I100: -143453.64 | J100: -0.1636402151 | K100: 1521847
A101: ='Org structure'!E38 -> 05.7 - Refuse | C101: 6350792.15 | D101: 7221585 | E101: 7221585 | F101: 579165.8 | G101: 3556763.99 | H101: 4212649 | I101: -655885.01 | J101: -0.1556941986 | K101: 7221585
A102: ='Org structure'!E39 -> 05.8 - Taxi Ranks | C102: 0 | D102: 0 | E102: 0 | F102: 0 | G102: 0 | H102: 0 | I102: 0 | K102: 0
A103: ='Org structure'!A7 -> Vote 06 - Technical Services | C103: =SUM(C104:C111) -> 48601831.82 | D103: 58825117 | E103: 62310497 | F103: 4501360.72 | G103: 32583617.31 | H103: 36057719 | I103: -3474101.69 | J103: -0.09634834888 | K103: =SUM(K104:K111) -> 62310497
A104: ='Org structure'!E41 -> 06.1 - Mpac | C104: 0 | D104: 1309671 | E104: 1309671 | F104: 0 | G104: 0 | H104: 763980 | I104: =G104-H104 -> -763980 | J104: =IF(I104=0,"",I104/H104) -> -1 | K104: 1309671
A105: ='Org structure'!E42 -> 06.2 - Technical Services Admin | C105: 162334.5 | D105: 72160 | E105: 72160 | F105: 0 | G105: 67363.51 | H105: 42098 | I105: 25265.51 | J105: 0.60015939 | K105: 72160
A106: ='Org structure'!E43 -> 06.3 - Techn Serv-Roads: Admin | C106: 2962456.23 | D106: 3284366 | E106: 3284366 | F106: 124921.41 | G106: 1155319.19 | H106: 1915921 | I106: -760601.81 | J106: -0.3969901734 | K106: 3284366
A107: ='Org structure'!E44 -> 06.4 - Techn Serv-Stormwater: Admin | C107: 14697710.68 | D107: 21097851 | E107: 24247851 | F107: 693304.09 | G107: 11460219.57 | H107: 13882169 | I107: -2421949.43 | J107: -0.1744647706 | K107: 24247851
A108: ='Org structure'!E45 -> 06.5 - Project Management Unit | C108: 2677960.86 | D108: 1904152 | E108: 1904152 | F108: 146340.91 | G108: 1022890.15 | H108: 1110788 | I108: -87897.85 | J108: -0.07913107632 | K108: 1904152
A109: ='Org structure'!E46 -> 06.6 - Electrical & Machinery | C109: 19040549.26 | D109: 20938597 | E109: 21273977 | F109: 2756095.66 | G109: 13944651.41 | H109: 12381941 | I109: 1562710.41 | J109: 0.12620884 | K109: 21273977
A110: ='Org structure'!E47 -> 06.7 - Water | C110: 6543208.32 | D110: 7558351 | E110: 7558351 | F110: 552570.39 | G110: 3441266.2 | H110: 4409111 | I110: -967844.8 | J110: -0.2195101915 | K110: 7558351
A111: ='Org structure'!E48 -> 06.8 - Sanitation | C111: 2517611.97 | D111: 2659969 | E111: 2659969 | F111: 228128.26 | G111: 1491907.28 | H111: 1551711 | I111: -59803.72 | J111: -0.03854050142 | K111: 2659969
A112: ='Org structure'!A8 -> Vote 07 - | C112: 0 | D112: 0 | E112: 0 | F112: 0 | G112: 0 | H112: 0 | I112: 0 | K112: 0
A113: ='Org structure'!A9 -> Vote 08 - | C113: 0 | D113: 0 | E113: 0 | F113: 0 | G113: 0 | H113: 0 | I113: 0 | K113: 0
A114: ='Org structure'!A10 -> Vote 09 - | C114: 0 | D114: 0 | E114: 0 | F114: 0 | G114: 0 | H114: 0 | I114: =G114-H114 -> 0 | J114: =IF(I114=0,"",I114/H114) ->  | K114: 0
A115: ='Org structure'!A11 -> Vote 10 - | C115: 0 | D115: 0 | E115: 0 | F115: 0 | G115: 0 | H115: 0 | I115: 0 | K115: 0
A116: ='Org structure'!A12 -> Vote 11 - | C116: 0 | D116: 0 | E116: 0 | F116: 0 | G116: 0 | H116: 0 | I116: 0 | K116: 0
A117: ='Org structure'!A13 -> Vote 12 - | C117: 0 | D117: 0 | E117: 0 | F117: 0 | G117: 0 | H117: 0 | I117: 0 | K117: 0
A118: ='Org structure'!A14 -> Vote 13 - | C118: 0 | D118: 0 | E118: 0 | F118: 0 | G118: 0 | H118: 0 | I118: 0 | K118: 0
A119: ='Org structure'!A15 -> Vote 14 - | C119: 0 | D119: 0 | E119: 0 | F119: 0 | G119: 0 | H119: 0 | I119: 0 | K119: 0
A120: ='Org structure'!A16 -> Vote 15 - Other | C120: 0 | D120: 0 | E120: 0 | F120: 0 | G120: 0 | H120: 0 | I120: =G120-H120 -> 0 | J120: =IF(I120=0,"",I120/H120) ->  | K120: 0
A121: Total Expenditure by Vote | B121: 2 | C121: =C65+C74+C80+C86+C94+C103+C112+C113+C114+C115+C116+C117+C118+C119+C120 -> 191434108.5 | D121: 224252191 | E121: 230251974 | F121: 13667981.69 | G121: 109032818.3 | H121: 133816241.5 | I121: -24783423.15 | J121: -0.1852048964 | K121: =K65+K74+K80+K86+K94+K103+K112+K113+K114+K115+K116+K117+K118+K119+K120 -> 230251974
I122: 0 | L122: =#REF!-#REF! ->  | M122: =#REF!-#REF! ->  | N122: =#REF!-#REF! ->  | O122: =#REF!-#REF! ->  | P122: =#REF!-#REF! ->  | Q122: =#REF!-#REF! ->  | R122: =#REF!-#REF! ->  | S122: =#REF!-#REF! ->  | T122: =#REF!-#REF! ->  | U122: =#REF!-#REF! ->  | V122: =#REF!-#REF! ->  | W122: =#REF!-#REF! -> 
A123: =result -> Surplus/ (Deficit) for the year | B123: 2 | C123: =C62-C121 -> 29042179 | D123: 61599331 | E123: 72616548 | F123: -8054691.11 | G123: 25607673.25 | H123: 41438852.5 | I123: -15831179.25 | J123: -0.3820371052 | K123: =K62-K121 -> 72616548
A124: =head27a -> References
A125: 1. Insert 'Vote'; e.g. Department, if different to standard structure
A126: 2. Must reconcile to Financial Performance ('Revenue and Expenditure by Standard Classification' and 'Revenue and Expenditure')
A127: 3. Assign share in 'associate' to relevant Vote
A129: check revenue
A130: check expenditure

Sheet C4-FinPerf RE
A1: =muni& " - "&S71B& " - "&date -> LIM353 Molemole - Table C4 Monthly Budget Statement - Financial Performance (revenue and expenditure) - M07 January
A2: =desc -> Description | B2: =head27 -> Ref | C2: =Head1 -> 2019/20 | D2: =Head2 -> Budget Year 2020/21
C3: =Head5 -> Audited Outcome | D3: =Head6 -> Original Budget | E3: =Head7 -> Adjusted Budget | F3: =Head38 -> Monthly actual | G3: =Head39 -> YearTD actual | H3: =Head40 -> YearTD budget | I3: =Head41 -> YTD variance | J3: =Head41 -> YTD variance | K3: =Head8 -> Full Year Forecast
A4: R thousands | J4: %
A5: Revenue By Source
A6: Property rates | C6: 20010885.63 | D6: 23451683 | E6: 23451683 | F6: 3108614.66 | G6: 33690216.11 | H6: 13680135 | I6: =G6-H6 -> 20010081.11 | J6: =IF(I6=0,"",I6/H6) -> 1.462710793 | K6: 23451683
A7: Service charges - electricity revenue | C7: 8284595.91 | D7: 11271705 | E7: 11271705 | F7: 755650.77 | G7: 4585873.19 | H7: 6575128 | I7: -1989254.81 | J7: -0.3025423703 | K7: 11271705
A8: Service charges - water revenue | C8: 0 | D8: 0 | E8: 0 | F8: -8 | G8: 436994.66 | H8: 0 | I8: 436994.66 | K8: 0
A9: Service charges - sanitation revenue | C9: 0 | D9: 0 | E9: 0 | F9: -156.8 | G9: 272784.9 | H9: 0 | I9: 272784.9 | K9: 0
A10: Service charges - refuse revenue | C10: 2218412.62 | D10: 2391314 | E10: 2391314 | F10: 219782.65 | G10: 1483772.44 | H10: 1394932 | I10: 88840.44 | J10: 0.06368800773 | K10: 2391314
A12: Rental of facilities and equipment | C12: 211370.88 | D12: 244463 | E12: 244463 | F12: 20349.42 | G12: 124620.16 | H12: 142597 | I12: -17976.84 | J12: -0.1260674488 | K12: 244463
A13: Interest earned - external investments | C13: 1729419.11 | D13: 2215488 | E13: 2215488 | F13: 245836.23 | G13: 1131514.1 | H13: 1292368 | I13: -160853.9 | J13: -0.1244644714 | K13: 2215488
A14: Interest earned - outstanding debtors | C14: 912778.17 | D14: 1275117 | E14: 1275117 | F14: 15955.26 | G14: 720028.4 | H14: 743813 | I14: -23784.6 | J14: -0.03197658551 | K14: 1275117
A15: Dividends received | C15: 0 | D15: 0 | E15: 0 | F15: 0 | G15: 0 | H15: 0 | I15: 0 | K15: 0
A16: Fines, penalties and forfeits | C16: 4539294.11 | D16: 4287241 | E16: 4287241 | F16: 1700 | G16: 15205 | H16: 2500883 | I16: -2485678 | J16: -0.9939201474 | K16: 4287241
A17: Licences and permits | C17: -506139.63 | D17: 7383452 | E17: 7383452 | F17: 1088275.6 | G17: 6858448.71 | H17: 4307009 | I17: 2551439.71 | J17: 0.5923924724 | K17: 7383452
A18: Agency services | C18: 681680.78 | D18: 694618 | E18: 694618 | F18: 147716.81 | G18: 398163.34 | H18: 405188 | I18: -7024.66 | J18: -0.01733679181 | K18: 694618
A19: Transfers and subsidies | C19: 148235565 | D19: 156595650 | E19: 185412650 | F19: 0 | G19: 70505752.86 | H19: 105755952 | I19: -35250199.14 | J19: -0.3333164562 | K19: 185412650
A20: Other revenue | C20: 248651.09 | D20: 26854441 | E20: 19354441 | F20: 9573.98 | G20: 42883.98 | H20: 11915055 | I20: -11872171.02 | J20: -0.9964008576 | K20: 19354441
A21: Gains | C21: 0 | D21: 0 | E21: 0 | F21: 0 | G21: 0 | H21: 0 | I21: 0 | K21: 0
A22: Total Revenue (excluding capital transfers and contributions) | C22: =SUM(C6:C10)+SUM(C12:C21) -> 186566513.7 | D22: 236665172 | E22: 257982172 | F22: 5613290.58 | G22: 120266257.8 | H22: 148713060 | I22: -28446802.15 | J22: -0.1912865094 | K22: =SUM(K6:K10)+SUM(K12:K21) -> 257982172
A24: Expenditure By Type
A25: Employee related costs | C25: 84279697.15 | D25: 98165079 | E25: 98165079 | F25: 7241800.14 | G25: 50477353.65 | H25: 57264564 | I25: =G25-H25 -> -6787210.35 | J25: =IF(I25=0,"",I25/H25) -> -0.118523741 | K25: 98165079
A26: Remuneration of councillors | C26: 12879611.9 | D26: 15010262 | E26: 15010262 | F26: 1078501.34 | G26: 7555509.38 | H26: 8756055 | I26: -1200545.62 | J26: -0.1371103334 | K26: 15010262
A27: Debt impairment | C27: 5824884.71 | D27: 6099772 | E27: 6099772 | F27: 0 | G27: 0 | H27: 3558205 | I27: -3558205 | J27: -1 | K27: 6099772
A28: Depreciation & asset impairment | C28: 16379506.42 | D28: 18672046 | E28: 19322046 | F28: 0 | G28: 8135156.71 | H28: 11217266 | I28: -3082109.29 | J28: -0.2747647502 | K28: 19322046
A29: Finance charges | C29: 254062.37 | D29: 2183605 | E29: 2183605 | F29: 434.82 | G29: 3259.48 | H29: 1273776 | I29: -1270516.52 | J29: -0.9974410885 | K29: 2183605
A30: Bulk purchases | C30: 10107195.66 | D30: 11037708 | E30: 11037708 | F30: 1782382.08 | G30: 8163642.87 | H30: 6438663 | I30: 1724979.87 | J30: 0.2679096375 | K30: 11037708
A31: Other materials | C31: 3870528 | D31: 6014220 | E31: 6014220 | F31: 193762.96 | G31: 1662771.72 | H31: 3508330 | I31: -1845558.28 | J31: -0.5260503658 | K31: 6014220
A32: Contracted services | C32: 26876466.16 | D32: 31609079 | E32: 36598862 | F32: 1783504.6 | G32: 18212859.2 | H32: 20933682.5 | I32: -2720823.3 | J32: -0.1299734674 | K32: 36598862
A33: Transfers and subsidies | C33: 0 | D33: 0 | E33: 0 | F33: 0 | G33: 0 | H33: 0 | I33: 0 | K33: 0
A34: Other expenditure | C34: 29565530.22 | D34: 35210420 | E34: 35570420 | F34: 1587595.75 | G34: 14822265.34 | H34: 20719862 | I34: -5897596.66 | J34: -0.2846349392 | K34: 35570420
A35: Losses | C35: 1396625.93 | D35: 250000 | E35: 250000 | F35: 0 | G35: 0 | H35: 145838 | I35: -145838 | J35: -1 | K35: 250000
A36: Total Expenditure | C36: =SUM(C25:C35) -> 191434108.5 | D36: =SUM(D25:D35) -> 224252191 | E36: =SUM(E25:E35) -> 230251974 | F36: 13667981.69 | G36: 109032818.4 | H36: 133816241.5 | I36: -24783423.15 | J36: -0.1852048964 | K36: 230251974
A38: Surplus/(Deficit) | C38: =C22-C36 -> -4867594.81 | D38: 12412981 | E38: 27730198 | F38: -8054691.11 | G38: 11233439.5 | H38: 14896818.5 | I38: =I22-I36 -> -3663379 | J38: -0.2459168714 | K38: =K22-K36 -> 27730198
A39: Transfers and subsidies - capital (monetary allocations) (National / Provincial and District) | C39: 33909773.81 | D39: 49186350 | E39: 44886350 | F39: 0 | G39: 14374233.75 | H39: 26542034 | I39: =G39-H39 -> -12167800.25 | J39: -0.458435109 | K39: 44886350
A40: Transfers and subsidies - capital (monetary allocations) (National / Provincial Departmental Agencies, Households, Non-profit Institutions, Private Enterprises, Public Corporatons, Higher Educational Institutions) | I40: =G40-H40 -> 0
A41: Transfers and subsidies - capital (in-kind - all) | C41: 0 | D41: 0 | E41: 0 | F41: 0 | G41: 0 | H41: 0 | I41: =G41-H41 -> 0 | K41: 0
A42: Surplus/(Deficit) after capital transfers & contributions | C42: =C38+SUM(C39:C41) -> 29042179 | D42: 61599331 | E42: 72616548 | F42: -8054691.11 | G42: 25607673.25 | H42: 41438852.5 | K42: =K38+SUM(K39:K41) -> 72616548
A43: Taxation | I43: =G43-H43 -> 0 | J43: =IF(I43=0,"",I43/H43) -> 
A44: Surplus/(Deficit) after taxation | C44: =C42-C43 -> 29042179 | D44: 61599331 | E44: 72616548 | F44: -8054691.11 | G44: 25607673.25 | H44: 41438852.5 | K44: =K42-K43 -> 72616548
A45: Attributable to minorities
A46: Surplus/(Deficit) attributable to municipality | C46: =SUM(C44:C45) -> 29042179 | D46: 61599331 | E46: 72616548 | F46: -8054691.11 | G46: 25607673.25 | H46: 41438852.5 | K46: =SUM(K44:K45) -> 72616548
A47: Share of surplus/ (deficit) of associate
A48: Surplus/ (Deficit) for the year | C48: =C46+C47 -> 29042179 | D48: 61599331 | E48: 72616548 | F48: -8054691.11 | G48: 25607673.25 | H48: 41438852.5 | K48: =K46+K47 -> 72616548
A49: =head27a -> References
A50: 1. Material variances to be explained on Table SC1
A53: =A22&" including capital transfers/contributions etc" -> Total Revenue (excluding capital transfers and contributions) including capital transfers/contributions etc | C53: =C22+SUM(C39:C41) -> 220476287.5 | D53: 285851522 | E53: 302868522 | F53: 5613290.58 | G53: 134640491.6 | H53: 175255094 | K53: =K22+SUM(K39:K41) -> 302868522

Sheet C5-Capex
A1: =muni& " - "&S71D& " - "&date -> LIM353 Molemole - Table C5 Monthly Budget Statement - Capital Expenditure (municipal vote, functional classification and funding) - M07 January
A2: =Vdesc -> Vote Description | B2: =head27 -> Ref | C2: =Head1 -> 2019/20 | D2: =Head2 -> Budget Year 2020/21
C3: =Head5 -> Audited Outcome | D3: =Head6 -> Original Budget | E3: =Head7 -> Adjusted Budget | F3: =Head38 -> Monthly actual | G3: =Head39 -> YearTD actual | H3: =Head40 -> YearTD budget | I3: =Head41 -> YTD variance | J3: =Head41 -> YTD variance | K3: =Head8 -> Full Year Forecast
A4: R thousands | B4: 1 | J4: %
A5: Multi-Year expenditure appropriation | B5: 2
A6: ='Org structure'!A2 -> Vote 01 - Corporate Services | C6: ='C5C'!C7 -> 1344645.21 | D6: ='C5C'!D7 -> 2953000 | E6: ='C5C'!E7 -> 6553000 | F6: ='C5C'!F7 -> 170430.52 | G6: ='C5C'!G7 -> 497225.26 | H6: ='C5C'!H7 -> 3522588 | I6: =G6-H6 -> -3025362.74 | J6: =IF(I6=0,"",I6/H6) -> -0.8588466037 | K6: ='C5C'!K7 -> 6553000
A7: ='Org structure'!A3 -> Vote 02 - Municipal Manager | C7: ='C5C'!C16 -> 111398 | D7: ='C5C'!D16 -> 950000 | E7: ='C5C'!E16 -> 950000 | F7: ='C5C'!F16 -> 0 | G7: ='C5C'!G16 -> 28985 | H7: ='C5C'!H16 -> 554169 | I7: -525184 | J7: -0.9476964608 | K7: ='C5C'!K16 -> 950000
A8: ='Org structure'!A4 -> Vote 03 - Mayors Office | C8: ='C5C'!C22 -> 0 | D8: ='C5C'!D22 -> 0 | E8: ='C5C'!E22 -> 0 | F8: ='C5C'!F22 -> 0 | G8: ='C5C'!G22 -> 0 | H8: ='C5C'!H22 -> 0 | I8: 0 | K8: ='C5C'!K22 -> 0
A9: ='Org structure'!A5 -> Vote 04 - Budget And Treasury | C9: ='C5C'!C28 -> 58650 | D9: ='C5C'!D28 -> 550000 | E9: ='C5C'!E28 -> 550000 | F9: ='C5C'!F28 -> 0 | G9: ='C5C'!G28 -> 0 | H9: ='C5C'!H28 -> 320838 | I9: -320838 | J9: -1 | K9: ='C5C'!K28 -> 550000
A10: ='Org structure'!A6 -> Vote 05 - Community Services | C10: ='C5C'!C36 -> 714276 | D10: ='C5C'!D36 -> 300000 | E10: ='C5C'!E36 -> 300000 | F10: ='C5C'!F36 -> 0 | G10: ='C5C'!G36 -> 0 | H10: ='C5C'!H36 -> 175000 | I10: -175000 | J10: -1 | K10: ='C5C'!K36 -> 300000
A11: ='Org structure'!A7 -> Vote 06 - Technical Services | C11: ='C5C'!C45 -> 36055534.08 | D11: ='C5C'!D45 -> 56846331 | E11: ='C5C'!E45 -> 64263548 | F11: ='C5C'!F45 -> 2746691.84 | G11: ='C5C'!G45 -> 20797679.44 | H11: ='C5C'!H45 -> 36868980.5 | I11: -16071301.06 | J11: -0.4359030503 | K11: ='C5C'!K45 -> 64263548
A12: ='Org structure'!A8 -> Vote 07 - | C12: ='C5C'!C54 -> 0 | D12: ='C5C'!D54 -> 0 | E12: ='C5C'!E54 -> 0 | F12: ='C5C'!F54 -> 0 | G12: ='C5C'!G54 -> 0 | H12: ='C5C'!H54 -> 0 | I12: =G12-H12 -> 0 | J12: =IF(I12=0,"",I12/H12) ->  | K12: ='C5C'!K54 -> 0
A13: ='Org structure'!A9 -> Vote 08 - | C13: ='C5C'!C55 -> 0 | D13: ='C5C'!D55 -> 0 | E13: ='C5C'!E55 -> 0 | F13: ='C5C'!F55 -> 0 | G13: ='C5C'!G55 -> 0 | H13: ='C5C'!H55 -> 0 | I13: 0 | K13: ='C5C'!K55 -> 0
A14: ='Org structure'!A10 -> Vote 09 - | C14: ='C5C'!C56 -> 0 | D14: ='C5C'!D56 -> 0 | E14: ='C5C'!E56 -> 0 | F14: ='C5C'!F56 -> 0 | G14: ='C5C'!G56 -> 0 | H14: ='C5C'!H56 -> 0 | I14: 0 | K14: ='C5C'!K56 -> 0
A15: ='Org structure'!A11 -> Vote 10 - | C15: ='C5C'!C57 -> 0 | D15: ='C5C'!D57 -> 0 | E15: ='C5C'!E57 -> 0 | F15: ='C5C'!F57 -> 0 | G15: ='C5C'!G57 -> 0 | H15: ='C5C'!H57 -> 0 | I15: 0 | K15: ='C5C'!K57 -> 0
A16: ='Org structure'!A12 -> Vote 11 - | C16: ='C5C'!C58 -> 0 | D16: ='C5C'!D58 -> 0 | E16: ='C5C'!E58 -> 0 | F16: ='C5C'!F58 -> 0 | G16: ='C5C'!G58 -> 0 | H16: ='C5C'!H58 -> 0 | I16: 0 | K16: ='C5C'!K58 -> 0
A17: ='Org structure'!A13 -> Vote 12 - | C17: ='C5C'!C59 -> 0 | D17: ='C5C'!D59 -> 0 | E17: ='C5C'!E59 -> 0 | F17: ='C5C'!F59 -> 0 | G17: ='C5C'!G59 -> 0 | H17: ='C5C'!H59 -> 0 | I17: 0 | K17: ='C5C'!K59 -> 0
A18: ='Org structure'!A14 -> Vote 13 - | C18: ='C5C'!C60 -> 0 | D18: ='C5C'!D60 -> 0 | E18: ='C5C'!E60 -> 0 | F18: ='C5C'!F60 -> 0 | G18: ='C5C'!G60 -> 0 | H18: ='C5C'!H60 -> 0 | I18: =G18-H18 -> 0 | J18: =IF(I18=0,"",I18/H18) ->  | K18: ='C5C'!K60 -> 0
A19: ='Org structure'!A15 -> Vote 14 - | C19: ='C5C'!C61 -> 0 | D19: ='C5C'!D61 -> 0 | E19: ='C5C'!E61 -> 0 | F19: ='C5C'!F61 -> 0 | G19: ='C5C'!G61 -> 0 | H19: ='C5C'!H61 -> 0 | I19: =G19-H19 -> 0 | J19: =IF(I19=0,"",I19/H19) ->  | K19: ='C5C'!K61 -> 0
A20: ='Org structure'!A16 -> Vote 15 - Other | C20: ='C5C'!C62 -> 0 | D20: ='C5C'!D62 -> 0 | E20: ='C5C'!E62 -> 0 | F20: ='C5C'!F62 -> 0 | G20: ='C5C'!G62 -> 0 | H20: ='C5C'!H62 -> 0 | I20: =G20-H20 -> 0 | J20: =IF(I20=0,"",I20/H20) ->  | K20: ='C5C'!K62 -> 0
A21: Total Capital Multi-year expenditure | B21: 4,7 | C21: =SUM(C6:C20) -> 38284503.29 | D21: =SUM(D6:D20) -> 61599331 | E21: 72616548 | F21: 2917122.36 | G21: 21323889.7 | H21: 41441575.5 | I21: -20117685.8 | J21: =IF(I21=0,"",I21/H21) -> -0.4854469348 | K21: =SUM(K6:K20) -> 72616548
A23: Single Year expenditure appropriation | B23: 2
A24: ='C5C'!A67 -> Vote 01 - Corporate Services | C24: ='C5C'!C67 -> 0 | D24: ='C5C'!D67 -> 0 | E24: ='C5C'!E67 -> 0 | F24: ='C5C'!F67 -> 0 | G24: ='C5C'!G67 -> 0 | H24: ='C5C'!H67 -> 0 | I24: =G24-H24 -> 0 | J24: =IF(I24=0,"",I24/H24) ->  | K24: ='C5C'!K67 -> 0
A25: ='C5C'!A76 -> Vote 02 - Municipal Manager | C25: ='C5C'!C76 -> 0 | D25: ='C5C'!D76 -> 0 | E25: ='C5C'!E76 -> 0 | F25: ='C5C'!F76 -> 0 | G25: ='C5C'!G76 -> 0 | H25: ='C5C'!H76 -> 0 | I25: 0 | K25: ='C5C'!K76 -> 0
A26: ='C5C'!A82 -> Vote 03 - Mayors Office | C26: ='C5C'!C82 -> 0 | D26: ='C5C'!D82 -> 0 | E26: ='C5C'!E82 -> 0 | F26: ='C5C'!F82 -> 0 | G26: ='C5C'!G82 -> 0 | H26: ='C5C'!H82 -> 0 | I26: 0 | K26: ='C5C'!K82 -> 0
A27: ='C5C'!A88 -> Vote 04 - Budget And Treasury | C27: ='C5C'!C88 -> 0 | D27: ='C5C'!D88 -> 0 | E27: ='C5C'!E88 -> 0 | F27: ='C5C'!F88 -> 0 | G27: ='C5C'!G88 -> 0 | H27: ='C5C'!H88 -> 0 | I27: 0 | K27: ='C5C'!K88 -> 0
A28: ='C5C'!A96 -> Vote 05 - Community Services | C28: ='C5C'!C96 -> 0 | D28: ='C5C'!D96 -> 0 | E28: ='C5C'!E96 -> 0 | F28: ='C5C'!F96 -> 0 | G28: ='C5C'!G96 -> 0 | H28: ='C5C'!H96 -> 0 | I28: 0 | K28: ='C5C'!K96 -> 0
A29: ='C5C'!A105 -> Vote 06 - Technical Services | C29: ='C5C'!C105 -> 0 | D29: ='C5C'!D105 -> 0 | E29: ='C5C'!E105 -> 0 | F29: ='C5C'!F105 -> 0 | G29: ='C5C'!G105 -> 0 | H29: ='C5C'!H105 -> 0 | I29: 0 | K29: ='C5C'!K105 -> 0
A30: ='Org structure'!A8 -> Vote 07 - | C30: ='C5C'!C114 -> 0 | D30: ='C5C'!D114 -> 0 | E30: ='C5C'!E114 -> 0 | F30: ='C5C'!F114 -> 0 | G30: ='C5C'!G114 -> 0 | H30: ='C5C'!H114 -> 0 | I30: ='C5C'!I114 -> 0 | J30: =IF(I30=0,"",I30/H30) ->  | K30: ='C5C'!K114 -> 0
A31: ='Org structure'!A9 -> Vote 08 - | C31: ='C5C'!C115 -> 0 | D31: ='C5C'!D115 -> 0 | E31: ='C5C'!E115 -> 0 | F31: ='C5C'!F115 -> 0 | G31: ='C5C'!G115 -> 0 | H31: ='C5C'!H115 -> 0 | I31: ='C5C'!I115 -> 0 | K31: ='C5C'!K115 -> 0
A32: ='Org structure'!A10 -> Vote 09 - | C32: ='C5C'!C116 -> 0 | D32: ='C5C'!D116 -> 0 | E32: ='C5C'!E116 -> 0 | F32: ='C5C'!F116 -> 0 | G32: ='C5C'!G116 -> 0 | H32: ='C5C'!H116 -> 0 | I32: ='C5C'!I116 -> 0 | K32: ='C5C'!K116 -> 0
A33: ='Org structure'!A11 -> Vote 10 - | C33: ='C5C'!C117 -> 0 | D33: ='C5C'!D117 -> 0 | E33: ='C5C'!E117 -> 0 | F33: ='C5C'!F117 -> 0 | G33: ='C5C'!G117 -> 0 | H33: ='C5C'!H117 -> 0 | I33: ='C5C'!I117 -> 0 | K33: ='C5C'!K117 -> 0
A34: ='Org structure'!A12 -> Vote 11 - | C34: ='C5C'!C118 -> 0 | D34: ='C5C'!D118 -> 0 | E34: ='C5C'!E118 -> 0 | F34: ='C5C'!F118 -> 0 | G34: ='C5C'!G118 -> 0 | H34: ='C5C'!H118 -> 0 | I34: ='C5C'!I118 -> 0 | K34: ='C5C'!K118 -> 0
A35: ='Org structure'!A13 -> Vote 12 - | C35: ='C5C'!C119 -> 0 | D35: ='C5C'!D119 -> 0 | E35: ='C5C'!E119 -> 0 | F35: ='C5C'!F119 -> 0 | G35: ='C5C'!G119 -> 0 | H35: ='C5C'!H119 -> 0 | I35: ='C5C'!I119 -> 0 | K35: ='C5C'!K119 -> 0
A36: ='Org structure'!A14 -> Vote 13 - | C36: ='C5C'!C120 -> 0 | D36: ='C5C'!D120 -> 0 | E36: ='C5C'!E120 -> 0 | F36: ='C5C'!F120 -> 0 | G36: ='C5C'!G120 -> 0 | H36: ='C5C'!H120 -> 0 | I36: ='C5C'!I120 -> 0 | K36: ='C5C'!K120 -> 0
A37: ='Org structure'!A15 -> Vote 14 - | C37: ='C5C'!C121 -> 0 | D37: ='C5C'!D121 -> 0 | E37: ='C5C'!E121 -> 0 | F37: ='C5C'!F121 -> 0 | G37: ='C5C'!G121 -> 0 | H37: ='C5C'!H121 -> 0 | I37: ='C5C'!I121 -> 0 | K37: ='C5C'!K121 -> 0
A38: ='Org structure'!A16 -> Vote 15 - Other | C38: ='C5C'!C122 -> 0 | D38: ='C5C'!D122 -> 0 | E38: ='C5C'!E122 -> 0 | F38: ='C5C'!F122 -> 0 | G38: ='C5C'!G122 -> 0 | H38: ='C5C'!H122 -> 0 | I38: ='C5C'!I122 -> 0 | K38: ='C5C'!K122 -> 0
A39: Total Capital single-year expenditure | B39: 4 | C39: =SUM(C24:C38) -> 0 | D39: 0 | E39: 0 | F39: 0 | G39: 0 | H39: 0 | I39: 0 | K39: =SUM(K24:K38) -> 0
A40: Total Capital Expenditure | C40: =C39+C21 -> 38284503.29 | D40: 61599331 | E40: 72616548 | F40: 2917122.36 | G40: 21323889.7 | H40: 41441575.5 | I40: -20117685.8 | J40: =IF(I40=0,"",I40/H40) -> -0.4854469348 | K40: =K39+K21 -> 72616548
A42: Capital Expenditure - Functional Classification
A43: Governance and administration | C43: =SUM(C44:C46) -> 1514693.21 | D43: 4453000 | E43: 8053000 | F43: 170430.52 | G43: 526210.26 | H43: 4397595 | I43: =G43-H43 -> -3871384.74 | J43: =IF(I43=0,"",I43/H43) -> -0.8803413548 | K43: =SUM(K44:K46) -> 8053000
A44: Executive and council | C44: 0 | D44: 800000 | E44: 800000 | F44: 0 | G44: 0 | H44: 466669 | I44: -466669 | J44: =IF(I44=0,"",I44/H44) -> -1 | K44: 800000
A45: Finance and administration | C45: 1514693.21 | D45: 3653000 | E45: 7253000 | F45: 170430.52 | G45: 526210.26 | H45: 3930926 | I45: -3404715.74 | J45: -0.8661358011 | K45: 7253000
A46: Internal audit | C46: 0 | D46: 0 | E46: 0 | F46: 0 | G46: 0 | H46: 0 | I46: 0 | K46: 0
A47: Community and public safety | C47: =SUM(C48:C52) -> 714276 | D47: 300000 | E47: 300000 | F47: 0 | G47: 0 | H47: 175000 | I47: -175000 | J47: -1 | K47: =SUM(K48:K52) -> 300000
A48: Community and social services | C48: 0 | D48: 0 | E48: 0 | F48: 0 | G48: 0 | H48: 0 | I48: 0 | K48: 0
A49: Sport and recreation | C49: 714276 | D49: 0 | E49: 0 | F49: 0 | G49: 0 | H49: 0 | I49: 0 | K49: 0
A50: Public safety | C50: 0 | D50: 300000 | E50: 300000 | F50: 0 | G50: 0 | H50: 175000 | I50: -175000 | J50: -1 | K50: 300000
A51: Housing | I51: 0
A52: Health | I52: 0
A53: Economic and environmental services | C53: =SUM(C54:C56) -> 0 | D53: 0 | E53: 0 | F53: 0 | G53: 0 | H53: 0 | I53: 0 | K53: =SUM(K54:K56) -> 0
A54: Planning and development | C54: 0 | D54: 0 | E54: 0 | F54: 0 | G54: 0 | H54: 0 | I54: 0 | K54: 0
A55: Road transport | I55: 0
A56: Environmental protection | I56: 0
A57: Trading services | C57: =SUM(C58:C61) -> 36055534.08 | D57: 56846331 | E57: 64263548 | F57: 2746691.84 | G57: 20797679.44 | H57: 36868980.5 | I57: -16071301.06 | J57: -0.4359030503 | K57: =SUM(K58:K61) -> 64263548
A58: Energy sources | C58: 3329856 | D58: 19400000 | E58: 18100000 | F58: 1610319.93 | G58: 3394051.38 | H58: 10666676 | I58: -7272624.62 | J58: -0.6818079615 | K58: 18100000
A59: Water management | I59: 0
A60: Waste water management | C60: 32725678.08 | D60: 37446331 | E60: 46163548 | F60: 1136371.91 | G60: 17403628.06 | H60: 26202304.5 | I60: -8798676.44 | J60: -0.3357978089 | K60: 46163548
A61: Waste management | C61: 0 | D61: 0 | E61: 0 | F61: 0 | G61: 0 | H61: 0 | I61: 0 | K61: 0
A62: Other | I62: 0
A63: Total Capital Expenditure - Functional Classification | B63: 3 | C63: =C43+C47+C53+C57+C62 -> 38284503.29 | D63: =D43+D47+D53+D57+D62 -> 61599331 | E63: 72616548 | F63: 2917122.36 | G63: 21323889.7 | H63: 41441575.5 | I63: -20117685.8 | J63: -0.4854469348 | K63: =K43+K47+K53+K57+K62 -> 72616548
A65: Funded by:
A66: National Government | C66: 29015957.46 | D66: 49186331 | E66: 44886331 | F66: 2645926.69 | G66: 17712675.49 | H66: 26542034 | I66: =G66-H66 -> -8829358.51 | J66: =IF(I66=0,"",I66/H66) -> -0.3326556853 | K66: 44886331
A67: Provincial Government | C67: 0 | D67: 0 | E67: 0 | F67: 0 | G67: 0 | H67: 0 | I67: 0 | K67: 0
A68: District Municipality | C68: 0 | D68: 0 | E68: 0 | F68: 0 | G68: 0 | H68: 0 | I68: 0 | K68: 0
A69: ='C4-FinPerf RE'!A40 -> Transfers and subsidies - capital (monetary allocations) (National / Provincial Departmental Agencies, Households, Non-profit Institutions, Private Enterprises, Public Corporatons, Higher Educational Institutions) | C69: 0 | D69: 0 | E69: 0 | F69: 0 | G69: 0 | H69: 0 | I69: 0 | K69: 0
A70: Transfers recognised - capital | C70: =SUM(C66:C69) -> 29015957.46 | D70: 49186331 | E70: 44886331 | F70: 2645926.69 | G70: 17712675.49 | H70: 26542034 | I70: -8829358.51 | J70: -0.3326556853 | K70: =SUM(K66:K69) -> 44886331
A72: Borrowing | B72: 6 | I72: 0
A73: Internally generated funds | C73: 9268545.83 | D73: 12413000 | E73: 27730217 | F73: 271195.67 | G73: 3611214.21 | H73: 14899541.5 | I73: -11288327.29 | J73: -0.757629172 | K73: 27730217
A74: Total Capital Funding | C74: =+C70+C72+C73 -> 38284503.29 | D74: 61599331 | E74: 72616548 | F74: 2917122.36 | G74: 21323889.7 | H74: 41441575.5 | I74: -20117685.8 | J74: -0.4854469348 | K74: =+K70+K72+K73 -> 72616548
A75: =head27a -> References
A76: 1. Municipalities may choose to appropriate for capital expenditure for three years or for one year (if one year appropriation projected expenditure required for yr2 and yr3).
A77: 2. Include capital component of PPP unitary payment
A78: 3. Capital expenditure by functional classification must reconcile to the total of multi-year and single year appropriations
A79: 4. Include expenditure on investment property, intangible and biological assets
A81: 6. Include finance leases and PPP capital funding component of unitary payment - total borrowing/repayments to reconcile to changes in Table SA17
A86: check balance | C86: =C40-C74 -> 0 | D86: =D40-D74 -> 0 | E86: 0 | F86: 0 | G86: 0 | H86: 0 | K86: 0

Sheet C5C
A1: =muni& " - "&S71D& " - "&"A"& " - "&date -> LIM353 Molemole - Table C5 Monthly Budget Statement - Capital Expenditure (municipal vote, functional classification and funding) - A - M07 January
A2: =Vdesc -> Vote Description | B2: =head27 -> Ref | C2: =Head1 -> 2019/20 | D2: =Head2 -> Budget Year 2020/21 | L2: =Head4 -> 
A3: R thousand | C3: =Head5 -> Audited Outcome | D3: =Head6 -> Original Budget | E3: =Head7 -> Adjusted Budget | F3: =Head38 -> Monthly actual | G3: =Head39 -> YearTD actual | H3: =Head40 -> YearTD budget | I3: =Head41 -> YTD variance | J3: =Head41 -> YTD variance | K3: =Head8 -> Full Year Forecast | L3: =Head12 -> Forecast 2010/11 | M3: =Head13 -> Forecast 2011/12 | N3: =Head14 -> Forecast 2012/13 | O3: =Head15 -> Forecast 2013/14 | P3: =Head16 -> Forecast 2014/15 | Q3: =Head17 -> Forecast 2015/16 | R3: =Head18 -> Forecast 2016/17 | S3: =Head19 -> Forecast 2017/18 | T3: =Head20 -> Forecast 2018/19 | U3: =Head21 -> Forecast 2019/20 | V3: =Head22 -> Forecast 2020/21 | W3: =Head23 -> Forecast 2021/22
J4: %
A5: Capital expenditure - Municipal Vote
A6: Expenditure of multi-year capital appropriation | B6: 1
A7: ='Org structure'!A2 -> Vote 01 - Corporate Services | C7: =SUM(C8:C15) -> 1344645.21 | D7: 2953000 | E7: 6553000 | F7: 170430.52 | G7: 497225.26 | H7: 3522588 | I7: =G7-H7 -> -3025362.74 | J7: =IF(I7=0,"",I7/H7) -> -0.8588466037 | K7: =SUM(K8:K15) -> 6553000
A8: ='Org structure'!E3 -> 01.1 - Corporate Services Admin | C8: 320578.69 | D8: 300000 | E8: 300000 | F8: 0 | G8: 159642.09 | H8: 175000 | I8: =G8-H8 -> -15357.91 | J8: =IF(I8=0,"",I8/H8) -> -0.08775948571 | K8: 300000
A9: ='Org structure'!E4 -> 01.2 - Human Resources | C9: 28720 | D9: 53000 | E9: 53000 | F9: 0 | G9: 0 | H9: 30919 | I9: -30919 | J9: -1 | K9: 53000
A10: ='Org structure'!E5 -> 01.3 - Information Technology Services | C10: 995346.52 | D10: 2600000 | E10: 6200000 | F10: 170430.52 | G10: 337583.17 | H10: 3316669 | I10: -2979085.83 | J10: -0.8982162013 | K10: 6200000
A11: ='Org structure'!E6 -> 01.4 - Council Support | I11: 0 | K11: 0
A12: ='Org structure'!E7 -> 01.5 - Local Economic Development | C12: 0 | D12: 0 | E12: 0 | F12: 0 | G12: 0 | H12: 0 | I12: 0 | K12: 0
A13: ='Org structure'!E8 -> 01.6 - Municipal Planning Idp | I13: 0 | K13: 0
A14: ='Org structure'!E9 -> 01.7 - Town & Regional Planning | C14: 0 | D14: 0 | E14: 0 | F14: 0 | G14: 0 | H14: 0 | I14: 0 | K14: 0
A15: ='Org structure'!E10 -> 01.8 - Led Administration | I15: 0 | K15: 0
A16: ='Org structure'!A3 -> Vote 02 - Municipal Manager | C16: =SUM(C17:C21) -> 111398 | D16: 950000 | E16: 950000 | F16: 0 | G16: 28985 | H16: 554169 | I16: -525184 | J16: -0.9476964608 | K16: =SUM(K17:K21) -> 950000
A17: ='Org structure'!E12 -> 02.1 - Municipal Manager Admin | C17: 0 | D17: 0 | E17: 0 | F17: 0 | G17: 0 | H17: 0 | I17: =G17-H17 -> 0 | J17: =IF(I17=0,"",I17/H17) ->  | K17: 0
A18: ='Org structure'!E13 -> 02.2 - Legal Services | I18: =G18-H18 -> 0 | J18: =IF(I18=0,"",I18/H18) ->  | K18: 0
A19: ='Org structure'!E14 -> 02.3 - Political Office Beares | C19: 111398 | D19: 150000 | E19: 150000 | F19: 0 | G19: 28985 | H19: 87500 | I19: =G19-H19 -> -58515 | J19: =IF(I19=0,"",I19/H19) -> -0.6687428571 | K19: 150000
A20: ='Org structure'!E15 -> 02.4 - Pms | C20: 0 | D20: 800000 | E20: 800000 | F20: 0 | G20: 0 | H20: 466669 | I20: =G20-H20 -> -466669 | J20: =IF(I20=0,"",I20/H20) -> -1 | K20: 800000
A21: ='Org structure'!E16 -> 02.5 - Internal Audit | C21: 0 | D21: 0 | E21: 0 | F21: 0 | G21: 0 | H21: 0 | I21: =G21-H21 -> 0 | J21: =IF(I21=0,"",I21/H21) ->  | K21: 0
A22: ='Org structure'!A4 -> Vote 03 - Mayors Office | C22: =SUM(C23:C27) -> 0 | D22: 0 | E22: 0 | F22: 0 | G22: 0 | H22: 0 | I22: 0 | K22: =SUM(K23:K27) -> 0
A23: ='Org structure'!E18 -> 03.1 - Mayors Office Admin | I23: =G23-H23 -> 0 | J23: =IF(I23=0,"",I23/H23) ->  | K23: 0
A24: ='Org structure'!E19 -> 03.2 - Office Of The Speaker | I24: =G24-H24 -> 0 | J24: =IF(I24=0,"",I24/H24) ->  | K24: 0
A25: ='Org structure'!E20 -> 03.3 - Office Of The Chief Whip | I25: =G25-H25 -> 0 | J25: =IF(I25=0,"",I25/H25) ->  | K25: 0
A26: ='Org structure'!E21 -> 03.4 - Exco Members | I26: =G26-H26 -> 0 | J26: =IF(I26=0,"",I26/H26) ->  | K26: 0
A27: ='Org structure'!E22 -> 03.5 - Council General Administration | I27: =G27-H27 -> 0 | J27: =IF(I27=0,"",I27/H27) ->  | K27: 0
A28: ='Org structure'!A5 -> Vote 04 - Budget And Treasury | C28: =SUM(C29:C35) -> 58650 | D28: 550000 | E28: 550000 | F28: 0 | G28: 0 | H28: 320838 | I28: -320838 | J28: -1 | K28: =SUM(K29:K35) -> 550000
A29: ='Org structure'!E24 -> 04.1 - Budget And Treasury Admin | I29: =G29-H29 -> 0 | J29: =IF(I29=0,"",I29/H29) ->  | K29: 0
A30: ='Org structure'!E25 -> 04.2 - Chief Financial Officer Admin | I30: 0 | K30: 0
A31: ='Org structure'!E26 -> 04.3 - Budget & Reporting | C31: 0 | D31: 0 | E31: 0 | F31: 0 | G31: 0 | H31: 0 | I31: 0 | K31: 0
A32: ='Org structure'!E27 -> 04.4 - Budget & Reporting | C32: 0 | D32: 350000 | E32: 350000 | F32: 0 | G32: 0 | H32: 204169 | I32: -204169 | J32: -1 | K32: 350000
A33: ='Org structure'!E28 -> 04.5 - Revenue Management | C33: 58650 | D33: 200000 | E33: 200000 | F33: 0 | G33: 0 | H33: 116669 | I33: -116669 | J33: -1 | K33: 200000
A34: ='Org structure'!E29 -> 04.6 - Supply Chain Management | C34: 0 | D34: 0 | E34: 0 | F34: 0 | G34: 0 | H34: 0 | I34: 0 | K34: 0
A35: ='Org structure'!E30 -> 04.7 - Expenditure | I35: 0 | K35: 0
A36: ='Org structure'!A6 -> Vote 05 - Community Services | C36: =SUM(C37:C44) -> 714276 | D36: 300000 | E36: 300000 | F36: 0 | G36: 0 | H36: 175000 | I36: -175000 | J36: -1 | K36: =SUM(K37:K44) -> 300000
A37: ='Org structure'!E32 -> 05.1 - Community Services Admin | C37: 0 | D37: 0 | E37: 0 | F37: 0 | G37: 0 | H37: 0 | I37: =G37-H37 -> 0 | J37: =IF(I37=0,"",I37/H37) ->  | K37: 0
A38: ='Org structure'!E33 -> 05.2 - Libraries | I38: 0 | K38: 0
A39: ='Org structure'!E34 -> 05.3 - Sports Recreation & Social Amenitie | C39: 714276 | D39: 0 | E39: 0 | F39: 0 | G39: 0 | H39: 0 | I39: 0 | K39: 0
A40: ='Org structure'!E35 -> 05.4 - Traffic Service | C40: 0 | D40: 0 | E40: 0 | F40: 0 | G40: 0 | H40: 0 | I40: 0 | K40: 0
A41: ='Org structure'!E36 -> 05.5 - Traffic Service | C41: 0 | D41: 300000 | E41: 300000 | F41: 0 | G41: 0 | H41: 175000 | I41: -175000 | J41: -1 | K41: 300000
A42: ='Org structure'!E37 -> 05.6 - Parks; Cemeteries | C42: 0 | D42: 0 | E42: 0 | F42: 0 | G42: 0 | H42: 0 | I42: 0 | K42: 0
A43: ='Org structure'!E38 -> 05.7 - Refuse | C43: 0 | D43: 0 | E43: 0 | F43: 0 | G43: 0 | H43: 0 | I43: 0 | K43: 0
A44: ='Org structure'!E39 -> 05.8 - Taxi Ranks | I44: 0 | K44: 0
A45: ='Org structure'!A7 -> Vote 06 - Technical Services | C45: =SUM(C46:C53) -> 36055534.08 | D45: 56846331 | E45: 64263548 | F45: 2746691.84 | G45: 20797679.44 | H45: 36868980.5 | I45: -16071301.06 | J45: -0.4359030503 | K45: =SUM(K46:K53) -> 64263548
A46: ='Org structure'!E41 -> 06.1 - Mpac | I46: =G46-H46 -> 0 | J46: =IF(I46=0,"",I46/H46) ->  | K46: 0
A47: ='Org structure'!E42 -> 06.2 - Technical Services Admin | I47: 0 | K47: 0
A48: ='Org structure'!E43 -> 06.3 - Techn Serv-Roads: Admin | I48: 0 | K48: 0
A49: ='Org structure'!E44 -> 06.4 - Techn Serv-Stormwater: Admin | C49: 32725678.08 | D49: 37446331 | E49: 46163548 | F49: 1136371.91 | G49: 17403628.06 | H49: 26202304.5 | I49: -8798676.44 | J49: -0.3357978089 | K49: 46163548
A50: ='Org structure'!E45 -> 06.5 - Project Management Unit | I50: 0 | K50: 0
A51: ='Org structure'!E46 -> 06.6 - Electrical & Machinery | C51: 3329856 | D51: 19400000 | E51: 18100000 | F51: 1610319.93 | G51: 3394051.38 | H51: 10666676 | I51: -7272624.62 | J51: -0.6818079615 | K51: 18100000
A52: ='Org structure'!E47 -> 06.7 - Water | I52: 0 | K52: 0
A53: ='Org structure'!E48 -> 06.8 - Sanitation | I53: 0 | K53: 0
A54: ='Org structure'!A8 -> Vote 07 - | C54: 0 | D54: 0 | E54: 0 | F54: 0 | G54: 0 | H54: 0 | I54: =G54-H54 -> 0 | J54: =IF(I54=0,"",I54/H54) ->  | K54: 0
A55: ='Org structure'!A9 -> Vote 08 - | C55: 0 | D55: 0 | E55: 0 | F55: 0 | G55: 0 | H55: 0 | I55: 0 | K55: 0
A56: ='Org structure'!A10 -> Vote 09 - | C56: 0 | D56: 0 | E56: 0 | F56: 0 | G56: 0 | H56: 0 | I56: 0 | K56: 0
A57: ='Org structure'!A11 -> Vote 10 - | C57: 0 | D57: 0 | E57: 0 | F57: 0 | G57: 0 | H57: 0 | I57: 0 | K57: 0
A58: ='Org structure'!A12 -> Vote 11 - | C58: 0 | D58: 0 | E58: 0 | F58: 0 | G58: 0 | H58: 0 | I58: 0 | K58: 0
A59: ='Org structure'!A13 -> Vote 12 - | C59: 0 | D59: 0 | E59: 0 | F59: 0 | G59: 0 | H59: 0 | I59: 0 | K59: 0
A60: ='Org structure'!A14 -> Vote 13 - | C60: 0 | D60: 0 | E60: 0 | F60: 0 | G60: 0 | H60: 0 | I60: =G60-H60 -> 0 | J60: =IF(I60=0,"",I60/H60) ->  | K60: 0
A61: ='Org structure'!A15 -> Vote 14 - | C61: 0 | D61: 0 | E61: 0 | F61: 0 | G61: 0 | H61: 0 | I61: 0 | K61: 0
A62: ='Org structure'!A16 -> Vote 15 - Other | C62: 0 | D62: 0 | E62: 0 | F62: 0 | G62: 0 | H62: 0 | I62: 0 | K62: 0
A63: Total multi-year capital expenditure | C63: =C7+C16+C22+C28+C36+C45+C54+C55+C56+C57+C58+C59+C60+C61+C62 -> 38284503.29 | D63: 61599331 | E63: 72616548 | F63: 2917122.36 | G63: 21323889.7 | H63: 41441575.5 | I63: -20117685.8 | J63: -0.4854469348 | K63: =K7+K16+K22+K28+K36+K45+K54+K55+K56+K57+K58+K59+K60+K61+K62 -> 72616548
I64: 0
A65: Capital expenditure - Municipal Vote
A66: Expenditue of single-year capital appropriation | B66: 1 | I66: 0
A67: ='Org structure'!A2 -> Vote 01 - Corporate Services | C67: =SUM(C68:C75) -> 0 | D67: 0 | E67: 0 | F67: 0 | G67: 0 | H67: 0 | I67: 0 | K67: =SUM(K68:K75) -> 0
A68: ='Org structure'!E3 -> 01.1 - Corporate Services Admin | C68: 0 | D68: 0 | E68: 0 | F68: 0 | G68: 0 | H68: 0 | I68: 0 | K68: 0
A69: ='Org structure'!E4 -> 01.2 - Human Resources | C69: 0 | D69: 0 | E69: 0 | F69: 0 | G69: 0 | H69: 0 | I69: 0 | K69: 0
A70: ='Org structure'!E5 -> 01.3 - Information Technology Services | C70: 0 | D70: 0 | E70: 0 | F70: 0 | G70: 0 | H70: 0 | I70: 0 | K70: 0
A71: ='Org structure'!E6 -> 01.4 - Council Support | C71: 0 | D71: 0 | E71: 0 | F71: 0 | G71: 0 | H71: 0 | I71: 0 | K71: 0
A72: ='Org structure'!E7 -> 01.5 - Local Economic Development | C72: 0 | D72: 0 | E72: 0 | F72: 0 | G72: 0 | H72: 0 | I72: 0 | K72: 0
A73: ='Org structure'!E8 -> 01.6 - Municipal Planning Idp | C73: 0 | D73: 0 | E73: 0 | F73: 0 | G73: 0 | H73: 0 | I73: 0 | K73: 0
A74: ='Org structure'!E9 -> 01.7 - Town & Regional Planning | C74: 0 | D74: 0 | E74: 0 | F74: 0 | G74: 0 | H74: 0 | I74: 0 | K74: 0
A75: ='Org structure'!E10 -> 01.8 - Led Administration | C75: 0 | D75: 0 | E75: 0 | F75: 0 | G75: 0 | H75: 0 | I75: 0 | K75: 0
A76: ='Org structure'!A3 -> Vote 02 - Municipal Manager | C76: =SUM(C77:C81) -> 0 | D76: 0 | E76: 0 | F76: 0 | G76: 0 | H76: 0 | I76: 0 | K76: =SUM(K77:K81) -> 0
A77: ='Org structure'!E12 -> 02.1 - Municipal Manager Admin | C77: 0 | D77: 0 | E77: 0 | F77: 0 | G77: 0 | H77: 0 | I77: 0 | K77: 0
A78: ='Org structure'!E13 -> 02.2 - Legal Services | C78: 0 | D78: 0 | E78: 0 | F78: 0 | G78: 0 | H78: 0 | I78: 0 | K78: 0
A79: ='Org structure'!E14 -> 02.3 - Political Office Beares | C79: 0 | D79: 0 | E79: 0 | F79: 0 | G79: 0 | H79: 0 | I79: 0 | K79: 0
A80: ='Org structure'!E15 -> 02.4 - Pms | C80: 0 | D80: 0 | E80: 0 | F80: 0 | G80: 0 | H80: 0 | I80: 0 | K80: 0
A81: ='Org structure'!E16 -> 02.5 - Internal Audit | C81: 0 | D81: 0 | E81: 0 | F81: 0 | G81: 0 | H81: 0 | I81: 0 | K81: 0
A82: ='Org structure'!A4 -> Vote 03 - Mayors Office | C82: =SUM(C83:C87) -> 0 | D82: 0 | E82: 0 | F82: 0 | G82: 0 | H82: 0 | I82: 0 | K82: =SUM(K83:K87) -> 0
A83: ='Org structure'!E18 -> 03.1 - Mayors Office Admin | C83: 0 | D83: 0 | E83: 0 | F83: 0 | G83: 0 | H83: 0 | I83: 0 | K83: 0
A84: ='Org structure'!E19 -> 03.2 - Office Of The Speaker | C84: 0 | D84: 0 | E84: 0 | F84: 0 | G84: 0 | H84: 0 | I84: =G84-H84 -> 0 | J84: =IF(I84=0,"",I84/H84) ->  | K84: 0
A85: ='Org structure'!E20 -> 03.3 - Office Of The Chief Whip | C85: 0 | D85: 0 | E85: 0 | F85: 0 | G85: 0 | H85: 0 | I85: 0 | K85: 0
A86: ='Org structure'!E21 -> 03.4 - Exco Members | C86: 0 | D86: 0 | E86: 0 | F86: 0 | G86: 0 | H86: 0 | I86: 0 | K86: 0
A87: ='Org structure'!E22 -> 03.5 - Council General Administration | C87: 0 | D87: 0 | E87: 0 | F87: 0 | G87: 0 | H87: 0 | I87: 0 | K87: 0
A88: ='Org structure'!A5 -> Vote 04 - Budget And Treasury | C88: =SUM(C89:C95) -> 0 | D88: 0 | E88: 0 | F88: 0 | G88: 0 | H88: 0 | I88: 0 | K88: =SUM(K89:K95) -> 0
A89: ='Org structure'!E24 -> 04.1 - Budget And Treasury Admin | C89: 0 | D89: 0 | E89: 0 | F89: 0 | G89: 0 | H89: 0 | I89: 0 | K89: 0
A90: ='Org structure'!E25 -> 04.2 - Chief Financial Officer Admin | C90: 0 | D90: 0 | E90: 0 | F90: 0 | G90: 0 | H90: 0 | I90: 0 | K90: 0
A91: ='Org structure'!E26 -> 04.3 - Budget & Reporting | C91: 0 | D91: 0 | E91: 0 | F91: 0 | G91: 0 | H91: 0 | I91: 0 | K91: 0
A92: ='Org structure'!E27 -> 04.4 - Budget & Reporting | C92: 0 | D92: 0 | E92: 0 | F92: 0 | G92: 0 | H92: 0 | I92: 0 | K92: 0
A93: ='Org structure'!E28 -> 04.5 - Revenue Management | C93: 0 | D93: 0 | E93: 0 | F93: 0 | G93: 0 | H93: 0 | I93: 0 | K93: 0
A94: ='Org structure'!E29 -> 04.6 - Supply Chain Management | C94: 0 | D94: 0 | E94: 0 | F94: 0 | G94: 0 | H94: 0 | I94: 0 | K94: 0
A95: ='Org structure'!E30 -> 04.7 - Expenditure | C95: 0 | D95: 0 | E95: 0 | F95: 0 | G95: 0 | H95: 0 | I95: 0 | K95: 0
A96: ='Org structure'!A6 -> Vote 05 - Community Services | C96: =SUM(C97:C104) -> 0 | D96: 0 | E96: 0 | F96: 0 | G96: 0 | H96: 0 | I96: 0 | K96: =SUM(K97:K104) -> 0
A97: ='Org structure'!E32 -> 05.1 - Community Services Admin | C97: 0 | D97: 0 | E97: 0 | F97: 0 | G97: 0 | H97: 0 | I97: 0 | K97: 0
A98: ='Org structure'!E33 -> 05.2 - Libraries | C98: 0 | D98: 0 | E98: 0 | F98: 0 | G98: 0 | H98: 0 | I98: 0 | K98: 0
A99: ='Org structure'!E34 -> 05.3 - Sports Recreation & Social Amenitie | C99: 0 | D99: 0 | E99: 0 | F99: 0 | G99: 0 | H99: 0 | I99: 0 | K99: 0
A100: ='Org structure'!E35 -> 05.4 - Traffic Service | C100: 0 | D100: 0 | E100: 0 | F100: 0 | G100: 0 | H100: 0 | I100: 0 | K100: 0
A101: ='Org structure'!E36 -> 05.5 - Traffic Service | C101: 0 | D101: 0 | E101: 0 | F101: 0 | G101: 0 | H101: 0 | I101: 0 | K101: 0
A102: ='Org structure'!E37 -> 05.6 - Parks; Cemeteries | C102: 0 | D102: 0 | E102: 0 | F102: 0 | G102: 0 | H102: 0 | I102: 0 | K102: 0
A103: ='Org structure'!E38 -> 05.7 - Refuse | C103: 0 | D103: 0 | E103: 0 | F103: 0 | G103: 0 | H103: 0 | I103: 0 | K103: 0
A104: ='Org structure'!E39 -> 05.8 - Taxi Ranks | C104: 0 | D104: 0 | E104: 0 | F104: 0 | G104: 0 | H104: 0 | I104: 0 | K104: 0
A105: ='Org structure'!A7 -> Vote 06 - Technical Services | C105: =SUM(C106:C113) -> 0 | D105: 0 | E105: 0 | F105: 0 | G105: 0 | H105: 0 | I105: 0 | K105: =SUM(K106:K113) -> 0
A106: ='Org structure'!E41 -> 06.1 - Mpac | C106: 0 | D106: 0 | E106: 0 | F106: 0 | G106: 0 | H106: 0 | I106: 0 | K106: 0
A107: ='Org structure'!E42 -> 06.2 - Technical Services Admin | C107: 0 | D107: 0 | E107: 0 | F107: 0 | G107: 0 | H107: 0 | I107: 0 | K107: 0
A108: ='Org structure'!E43 -> 06.3 - Techn Serv-Roads: Admin | C108: 0 | D108: 0 | E108: 0 | F108: 0 | G108: 0 | H108: 0 | I108: 0 | K108: 0
A109: ='Org structure'!E44 -> 06.4 - Techn Serv-Stormwater: Admin | C109: 0 | D109: 0 | E109: 0 | F109: 0 | G109: 0 | H109: 0 | I109: 0 | K109: 0
A110: ='Org structure'!E45 -> 06.5 - Project Management Unit | C110: 0 | D110: 0 | E110: 0 | F110: 0 | G110: 0 | H110: 0 | I110: 0 | K110: 0
A111: ='Org structure'!E46 -> 06.6 - Electrical & Machinery | C111: 0 | D111: 0 | E111: 0 | F111: 0 | G111: 0 | H111: 0 | I111: 0 | K111: 0
A112: ='Org structure'!E47 -> 06.7 - Water | C112: 0 | D112: 0 | E112: 0 | F112: 0 | G112: 0 | H112: 0 | I112: 0 | K112: 0
A113: ='Org structure'!E48 -> 06.8 - Sanitation | C113: 0 | D113: 0 | E113: 0 | F113: 0 | G113: 0 | H113: 0 | I113: 0 | K113: 0
A114: ='Org structure'!A8 -> Vote 07 - | C114: 0 | D114: 0 | E114: 0 | F114: 0 | G114: 0 | H114: 0 | I114: 0 | K114: 0
A115: ='Org structure'!A9 -> Vote 08 - | C115: 0 | D115: 0 | E115: 0 | F115: 0 | G115: 0 | H115: 0 | I115: 0 | K115: 0
A116: ='Org structure'!A10 -> Vote 09 - | C116: 0 | D116: 0 | E116: 0 | F116: 0 | G116: 0 | H116: 0 | I116: =G116-H116 -> 0 | J116: =IF(I116=0,"",I116/H116) ->  | K116: 0
A117: ='Org structure'!A11 -> Vote 10 - | C117: 0 | D117: 0 | E117: 0 | F117: 0 | G117: 0 | H117: 0 | I117: 0 | K117: 0
A118: ='Org structure'!A12 -> Vote 11 - | C118: 0 | D118: 0 | E118: 0 | F118: 0 | G118: 0 | H118: 0 | I118: 0 | K118: 0
A119: ='Org structure'!A13 -> Vote 12 - | C119: 0 | D119: 0 | E119: 0 | F119: 0 | G119: 0 | H119: 0 | I119: 0 | K119: 0
A120: ='Org structure'!A14 -> Vote 13 - | C120: 0 | D120: 0 | E120: 0 | F120: 0 | G120: 0 | H120: 0 | I120: 0 | K120: 0
A121: ='Org structure'!A15 -> Vote 14 - | C121: 0 | D121: 0 | E121: 0 | F121: 0 | G121: 0 | H121: 0 | I121: 0 | K121: 0
A122: ='Org structure'!A16 -> Vote 15 - Other | C122: 0 | D122: 0 | E122: 0 | F122: 0 | G122: 0 | H122: 0 | I122: =G122-H122 -> 0 | J122: =IF(I122=0,"",I122/H122) ->  | K122: 0
A123: Total single-year capital expenditure | C123: =C67+C76+C82+C88+C96+C105+C114+C115+C116+C117+C118+C119+C120+C121+C122 -> 0 | D123: 0 | E123: 0 | F123: 0 | G123: 0 | H123: 0 | I123: 0 | K123: =K67+K76+K82+K88+K96+K105+K114+K115+K116+K117+K118+K119+K120+K121+K122 -> 0
A124: Total Capital Expenditure | C124: =C63+C123 -> 38284503.29 | D124: 61599331 | E124: 72616548 | F124: 2917122.36 | G124: 21323889.7 | H124: 41441575.5 | I124: -20117685.8 | J124: -0.4854469348 | K124: =K63+K123 -> 72616548
A125: =head27a -> References
A126: 1. Insert 'Vote'; e.g. Department, if different to standard structure

Sheet C6-FinPos
A1: =muni& " - "&S71E& " - "&date -> LIM353 Molemole - Table C6 Monthly Budget Statement - Financial Position - M07 January
A2: =desc -> Description | B2: =head27 -> Ref | C2: =Head1 -> 2019/20 | D2: =Head2 -> Budget Year 2020/21
C3: =Head5 -> Audited Outcome | D3: =Head6 -> Original Budget | E3: =Head7 -> Adjusted Budget | F3: =Head39 -> YearTD actual | G3: =Head8 -> Full Year Forecast
A4: R thousands | B4: 1
A5: ASSETS
A6: Current assets
A7: Cash | C7: 23010965.15 | D7: 8220922 | E7: 7207608 | F7: 65133047.2 | G7: 7207608
A8: Call investment deposits | C8: 0 | D8: 0 | E8: 0 | F8: 0 | G8: 0
A9: Consumer debtors | C9: 73798915.68 | D9: 104223044 | E9: 104223044 | F9: 72822569.63 | G9: 104223044
A10: Other debtors | C10: 20689782.89 | D10: 18687635 | E10: 18687635 | F10: -49959722.1 | G10: 18687635
A11: Current portion of long-term receivables | C11: 0 | D11: 33282 | E11: 33282 | F11: 0 | G11: 33282
A12: Inventory | C12: 261304.43 | D12: 275398 | E12: 275398 | F12: 261304.43 | G12: 275398
A13: Total current assets | C13: =SUM(C7:C12) -> 117760968.1 | D13: =SUM(D7:D12) -> 131440281 | E13: =SUM(E7:E12) -> 130426967 | F13: =SUM(F7:F12) -> 88257199.16 | G13: =SUM(G7:G12) -> 130426967
A15: Non current assets
A16: Long-term receivables
A17: Investments | C17: 0 | D17: 0 | E17: 0 | F17: 0 | G17: 0
A18: Investment property | C18: 1657667.59 | D18: 1596320 | E18: 1596320 | F18: 1636000.91 | G18: 1596320
A19: Investments in Associate
A20: Property, plant and equipment | C20: 270100925.6 | D20: 339145410 | E20: 350162627 | F20: 283494000.9 | G20: 350162627
A22: Biological
A23: Intangible | C23: -69659.86 | D23: 2836443 | E23: 2836443 | F23: -252335.53 | G23: 2836443
A24: Other non-current assets | C24: 368150 | D24: 368150 | E24: 368150 | F24: 368150 | G24: 368150
A25: Total non current assets | C25: =SUM(C16:C20)+SUM(C22:C24) -> 272057083.3 | D25: =SUM(D16:D20)+SUM(D22:D24) -> 343946323 | E25: =SUM(E16:E20)+SUM(E22:E24) -> 354963540 | F25: =SUM(F16:F20)+SUM(F22:F24) -> 285245816.3 | G25: =SUM(G16:G20)+SUM(G22:G24) -> 354963540
A26: TOTAL ASSETS | C26: =C13+C25 -> 389818051.5 | D26: =D13+D25 -> 475386604 | E26: =E13+E25 -> 485390507 | F26: =F13+F25 -> 373503015.5 | G26: =G13+G25 -> 485390507
A28: LIABILITIES
A29: Current liabilities
A30: Bank overdraft | C30: 0 | D30: 0 | E30: 0 | F30: 0 | G30: 0
A31: Borrowing | C31: 251667.55 | D31: 69014 | E31: 69014 | F31: 251667.55 | G31: 69014
A32: Consumer deposits | C32: 504476.48 | D32: 623969 | E32: 623969 | F32: 504926.48 | G32: 623969
A33: Trade and other payables | C33: 40976702.72 | D33: 41018214 | E33: 41018214 | F33: 185939530.8 | G33: 41018214
A34: Provisions | C34: 205999.9 | D34: 523270 | E34: 523270 | F34: 180959.98 | G34: 523270
A35: Total current liabilities | C35: =SUM(C30:C34) -> 41938846.65 | D35: =SUM(D30:D34) -> 42234467 | E35: =SUM(E30:E34) -> 42234467 | F35: =SUM(F30:F34) -> 186877084.8 | G35: =SUM(G30:G34) -> 42234467
A37: Non current liabilities
A38: Borrowing | C38: 0 | D38: 6131428 | E38: 6131428 | F38: 0 | G38: 6131428
A39: Provisions | C39: 22965829.8 | D39: 27217495 | E39: 27217495 | F39: 22965829.8 | G39: 27217495
A40: Total non current liabilities | C40: =SUM(C38:C39) -> 22965829.8 | D40: =SUM(D38:D39) -> 33348923 | E40: =SUM(E38:E39) -> 33348923 | F40: =SUM(F38:F39) -> 22965829.8 | G40: =SUM(G38:G39) -> 33348923
A41: TOTAL LIABILITIES | C41: =C35+C40 -> 64904676.45 | D41: =D35+D40 -> 75583390 | E41: =E35+E40 -> 75583390 | F41: =F35+F40 -> 209842914.6 | G41: =G35+G40 -> 75583390
A43: NET ASSETS | B43: 2 | C43: =C26-C41 -> 324913375 | D43: =D26-D41 -> 399803214 | E43: =E26-E41 -> 409807117 | F43: =F26-F41 -> 163660100.8 | G43: =G26-G41 -> 409807117
A45: COMMUNITY WEALTH/EQUITY
A46: Accumulated Surplus/(Deficit) | C46: 277218355.1 | D46: 349332256 | E46: 359336159 | F46: 115965081 | G46: 359336159
A47: Reserves | C47: 47695019.87 | D47: 50470958 | E47: 50470958 | F47: 47695019.87 | G47: 50470958
A48: TOTAL COMMUNITY WEALTH/EQUITY | B48: 2 | C48: =SUM(C46:C47) -> 324913375 | D48: =SUM(D46:D47) -> 399803214 | E48: =SUM(E46:E47) -> 409807117 | F48: =SUM(F46:F47) -> 163660100.8 | G48: =SUM(G46:G47) -> 409807117
A49: =head27a -> References
A50: 1. Material variances to be explained in Table SC1
A51: 2. Net assets must balance with Total Community Wealth/Equity
A54: check balance | C54: =C43-C48 -> 0 | D54: =D43-D48 -> 0 | E54: =E43-E48 -> 0 | F54: =F43-F48 -> 0 | G54: =G43-G48 -> 0

Sheet C7-CFlow
A1: =muni& " - "&S71F& " - "&date -> LIM353 Molemole - Table C7 Monthly Budget Statement - Cash Flow - M07 January
A2: =desc -> Description | B2: =head27 -> Ref | C2: =Head1 -> 2019/20 | D2: =Head2 -> Budget Year 2020/21
C3: =Head5 -> Audited Outcome | D3: =Head6 -> Original Budget | E3: =Head7 -> Adjusted Budget | F3: =Head38 -> Monthly actual | G3: =Head39 -> YearTD actual | H3: =Head40 -> YearTD budget | I3: =Head41 -> YTD variance | J3: =Head41 -> YTD variance | K3: =Head8 -> Full Year Forecast
A4: R thousands | B4: 1 | J4: %
A5: CASH FLOW FROM OPERATING ACTIVITIES
A6: Receipts
A7: Property rates | C7: 5633217 | D7: ='[6]C4-FinPerf RE'!E6 -> 23451683 | E7: 6751683 | F7: ='SC9'!I6 -> 287620 | G7: =31985476+F7 -> 32273096 | H7: =31985476+G7 -> 64258572 | I7: =G7-H7 -> -31985476 | J7: =IF(I7=0,"",I7/H7) -> -0.4977620106 | K7: 6751683
A8: Service charges | C8: 8746699 | D8: ='[6]C4-FinPerf RE'!E7+'[6]C4-FinPerf RE'!E10 -> 13663019 | E8: 9113019 | F8: ='SC9'!I7+'SC9'!I10 -> 940101 | G8: =2589868+F8 -> 3529969 | H8: 35515445 | I8: -31985476 | J8: =IF(I8=0,"",I8/H8) -> -0.9006074963 | K8: 9113019
A9: Other revenue | C9: -6371821.38 | D9: ='[6]C4-FinPerf RE'!D12+'[6]C4-FinPerf RE'!D16+'[6]C4-FinPerf RE'!D17+'[6]C4-FinPerf RE'!D18+'[6]C4-FinPerf RE'!D20 -> 39464215 | E9: 12964215 | F9: ='SC9'!I12+'SC9'!I16+'SC9'!I17+'SC9'!I18 -> 1138414.02 | G9: =3676295.86+F9 -> 4814709.88 | H9: 36800185.88 | I9: -31985476 | J9: =IF(I9=0,"",I9/H9) -> -0.8691661532 | K9: 12964215
A10: Transfers and Subsidies - Operational | C10: 142887000 | D10: ='[6]C4-FinPerf RE'!E19 -> 156595650 | E10: 185054650 | F10: 0 | G10: 70580000 | H10: 102565476 | I10: -31985476 | J10: =IF(I10=0,"",I10/H10) -> -0.311854215 | K10: 185054650
A11: Transfers and Subsidies - Capital | C11: 35151000 | D11: ='[6]C4-FinPerf RE'!E39 -> 49186350 | E11: 44886350 | F11: ='SC9'!I24 -> 21647000 | G11: =21000000+F11 -> 42647000 | H11: 74632476 | I11: -31985476 | J11: =IF(I11=0,"",I11/H11) -> -0.428573159 | K11: 44886350
A12: Interest | C12: 1377896.17 | D12: ='[6]C4-FinPerf RE'!D13+'[6]C4-FinPerf RE'!D14 -> 3490605 | E12: 3490605 | F12: ='SC9'!I13+'SC9'!I14 -> 274539.23 | G12: =1321761.28+F12 -> 1596300.51 | H12: 33581776.51 | I12: -31985476 | J12: -0.952465275 | K12: 3490605
A13: Dividends | I13: 0
A14: Payments
A15: Suppliers and employees | C15: -174157411.6 | D15: -224252191 | E15: -189007125 | F15: =-'SC9'!I46-F16 -> -13667546.87 | G15: =-78325174.56+F15 -> -91992721.43 | H15: =-78325174.56+G15 -> -170317896 | I15: =H15-G15 -> -78325174.56 | J15: 0.459876363 | K15: -189007125
A16: Finance charges | C16: -104560.71 | E16: -2183605 | F16: =-'SC9'!I38 -> -434.82 | G16: =-1947.39+F16 -> -2382.21 | H16: =-1947.39+G16 -> -4329.6 | I16: =H16-G16 -> -1947.39 | J16: 0.4497851996 | K16: -2183605
A17: Transfers and Grants | C17: 0 | D17: 0 | E17: 0 | F17: 0 | G17: 0 | H17: 0 | I17: =H17-G17 -> 0 | K17: 0
A18: NET CASH FROM/(USED) OPERATING ACTIVITIES | C18: =SUM(C7:C13)+SUM(C15:C17) -> 13162018.49 | D18: 61599331 | E18: 71069792 | F18: 10619692.56 | G18: 63445971.75 | H18: 177031705.8 | I18: =H18-G18 -> 113585734 | J18: 0.6416123798 | K18: =SUM(K7:K13)+SUM(K15:K17) -> 71069792
A20: CASH FLOWS FROM INVESTING ACTIVITIES
A21: Receipts
A22: Proceeds on disposal of PPE | I22: =G22-H22 -> 0 | J22: =IF(I22=0,"",I22/H22) -> 
A24: Decrease (increase) in non-current receivables | I24: =G24-H24 -> 0
A25: Decrease (increase) in non-current investments | C25: 0 | D25: 0 | E25: 0 | F25: 0 | G25: 0 | H25: 0 | I25: =G25-H25 -> 0 | K25: 0
A26: Payments
A27: Capital assets | C27: -46194785 | D27: -61599331 | E27: -72616548 | F27: =-'SC9'!I49 -> -2917122.36 | G27: =-18406767.34+F27 -> -21323889.7 | H27: =E27/12*7 -> -42359653 | I27: =H27-G27 -> -21035763.3 | J27: 0.4965990467 | K27: =E27 -> -72616548
A28: NET CASH FROM/(USED) INVESTING ACTIVITIES | C28: =SUM(C22:C25)+C27 -> -46194785 | D28: =SUM(D22:D25)+D27 -> -61599331 | E28: -72616548 | F28: -2917122.36 | G28: -21323889.7 | H28: -42359653 | I28: =H28-G28 -> -21035763.3 | J28: 0.4965990467 | K28: =SUM(K22:K25)+K27 -> -72616548
A30: CASH FLOWS FROM FINANCING ACTIVITIES
A31: Receipts
A32: Short term loans | I32: =G32-H32 -> 0 | J32: =IF(I32=0,"",I32/H32) -> 
A33: Borrowing long term/refinancing | I33: =G33-H33 -> 0
A34: Increase (decrease) in consumer deposits | I34: =G34-H34 -> 0
A35: Payments
A36: Repayment of borrowing | C36: -196521.91 | D36: -208314 | E36: -208314 | F36: 0 | G36: 0 | H36: 121520 | I36: =H36-G36 -> 121520 | J36: 1 | K36: 208314
A37: NET CASH FROM/(USED) FINANCING ACTIVITIES | C37: =SUM(C32:C34)+C36 -> -196521.91 | D37: -208314 | E37: -208314 | F37: 0 | G37: 0 | H37: 121520 | I37: =H37-G37 -> 121520 | J37: 1 | K37: =SUM(K32:K34)+K36 -> 208314
A39: NET INCREASE/ (DECREASE) IN CASH HELD | C39: =C18+C28+C37 -> -33229288.42 | D39: -208314 | E39: -1755070 | F39: 7702570.2 | G39: 42122082.05 | H39: 134793572.8 | K39: =K18+K28+K37 -> -1338442
A40: Cash/cash equivalents at beginning: | C40: 19363525.35 | D40: 8220922 | E40: 23009822 | G40: 23010965.15
A41: Cash/cash equivalents at month/year end: | C41: =C39+C40 -> -13865763.07 | D41: =D39+D40 -> 8012608 | E41: =E39+E40 -> 21254752 | G41: =G39+G40 -> 65133047.2 | H41: =H39+H40 -> 134793572.8 | K41: =K39+K40 -> -1338442
A42: References
A43: 1. Material variances to be explained in Table SC1

Sheet SC1
A1: =muni& " - "&S71G& " - "&date -> LIM353 Molemole - Supporting Table SC1 Material variance explanations - M07 January
A2: =head27 -> Ref | B2: =desc -> Description
C3: Variance | D3: Reasons for material deviations | E3: Remedial or corrective steps/remarks
B4: R thousands
A5: 1 | B5: ='C4-FinPerf RE'!A5 -> Revenue By Source
B7: SOURCE
B8: Property Rates | C8: -146271.079
B9: Fines, Penalties And Forfeits | C9: 99392.014
B10: Licences And Permits | C10: -59239.247
B11: Transfers And Subsidies | C11: 33331.645
B12: Other Revenue | C12: 99640.085
B13: Transfers And Subsidies - Capital (Monetary Allocations) (National / Provincial And District) | C13: 45843.51
B14: Service Charges - Electricity Revenue | C14: 30254.237
B15: Rental Of Facilities And Equipment | C15: 12606.744
B16: Interest Earned - External Investments | C16: 12446.447
B17: VOTE
B18: Corporate Services | C18: 96894.938
B19: Budget And Treasury | C19: 21009.478
B20: Technical Services | C20: 39316.401
B21: STANDARD CLASSIFICATION
B22: Community And Social Services | C22: 26769.95
B23: Sport And Recreation | C23: 13833.405
B24: Finance And Administration | C24: 21101.63
B25: Planning And Development | C25: 27763.123
B26: Energy Sources | C26: 66687.716
A30: 2 | B30: ='C4-FinPerf RE'!A24 -> Expenditure By Type
B32: SOURCE
B33: Employee Related Costs | C33: 11852.374
B34: Other Expenditure | C34: 28463.493
B35: Debt Impairment | C35: 100000
B36: Depreciation & Asset Impairment | C36: 27476.475
B37: Bulk Purchases | C37: -26790.963
B38: Contracted Services | C38: 12997.346
B39: VOTE
B40: Corporate Services | C40: 22592.688
B41: Municipal Manager | C41: 34940.875
B42: Budget And Treasury | C42: 30399.014
B43: STANDARD CLASSIFICATION
B44: Sport And Recreation | C44: -7900.4
B45: Public Safety | C45: -6901.89
B46: Executive And Council | C46: 23317.409
B47: Finance And Administration | C47: 24198.323
B48: Energy Sources | C48: -12781.478
A52: 3 | B52: =RIGHT('C5-Capex'!A40,19) -> Capital Expenditure
B54: VOTE
B55: Corporate Services | C55: 85884.66
B56: Technical Services | C56: 43590.305
B57: STANDARD CLASSIFICATION
B58: Finance And Administration | C58: 86613.58
B59: Energy Sources | C59: 68180.796
B60: Waste Water Management | C60: 33579.78
A64: 4 | B64: Financial Position
B65: Variances was not Calculated
A69: 5 | B69: Cash Flow
A74: 6 | B74: Measureable performance
A79: 7 | B79: Municipal Entities
A85: =head27a -> References
A86: 1. Revenue for each source, vote and standard classification
A87: 2. Expenditure for each type, vote and standard classification
A88: 3. Capital expenditure for each vote and standard classification
A89: 4. Explain any material variances between the annual budget and the expected financial position based on current trends
A90: 5. Cash receipts by source and cash payments by type where not explained under revenue and expenditure
A91: 6. For Sept, Dec, Mar and Jun statements explain any material variances in achievement of measurable performance objectives

Sheet SC2
A1: =muni& " - "&S71H& " - "&Head57 -> LIM353 Molemole - Supporting Table SC2 Monthly Budget Statement - performance indicators - M07 January
A2: Description of financial indicator | B2: Basis of calculation | C2: =head27 -> Ref | D2: =Head1 -> 2019/20 | E2: =Head2 -> Budget Year 2020/21
D3: =Head5 -> Audited Outcome | E3: =Head6 -> Original Budget | F3: =Head7 -> Adjusted Budget | G3: =Head39 -> YearTD actual | H3: =Head8 -> Full Year Forecast
A5: Borrowing Management
A7: Capital Charges to Operating Expenditure | B7: Interest & principal paid/Operating Expenditure | D7: =IF(ISERROR((D42-D43)/D45),0,((D42-D43)/D45)) -> 0.0003005757984 | E7: =IF(ISERROR((E42+E44)/E45),0,((E42+E44)/E45)) -> 0.09300087953 | F7: =IF(ISERROR((F42+F44)/F45),0,((F42+F44)/F45)) -> 0.09340050653 | G7: =IF(ISERROR((G42+G44)/G45),0,((G42+G44)/G45)) -> 2.989448543e-05 | H7: =IF(ISERROR((H42+H44)/H45),0,((H42+H44)/H45)) -> 0.07467413504
A8: Borrowed funding of 'own' capital expenditure | B8: Borrowings/Capital expenditure excl. transfers and grants | D8: =IF(ISERROR(D47/D46),0,(D47/D46)) -> 0 | E8: =IF(ISERROR(E47/E46),0,(E47/E46)) -> 0 | F8: =IF(ISERROR(F47/F46),0,(F47/F46)) -> 0 | G8: =IF(ISERROR(G47/G46),0,(G47/G46)) -> 0 | H8: =IF(ISERROR(H47/H46),0,(H47/H46)) -> 0
A9: Safety of Capital
A10: Debt to Equity | B10: Loans, Accounts Payable, Overdraft & Tax Provision/ Funds & Reserves | D10: =IF(ISERROR(D48/D49),0,(D48/D49)) -> 0.1268903451 | E10: =IF(ISERROR(E48/E49),0,(E48/E49)) -> 0.1181047434 | F10: =IF(ISERROR(F48/F49),0,(F48/F49)) -> 0.1152216593 | G10: =IF(ISERROR(G48/G49),0,(G48/G49)) -> 1.13767007 | H10: =IF(ISERROR(H48/H49),0,(H48/H49)) -> 0.1152216593
A11: Gearing | B11: Long Term Borrowing/ Funds & Reserves | D11: =IF(ISERROR(D51/D50),0,(D51/D50)) -> 0 | E11: =IF(ISERROR(E51/E50),0,(E51/E50)) -> 0.1214842801 | F11: =IF(ISERROR(F51/F50),0,(F51/F50)) -> 0.1214842801 | G11: =IF(ISERROR(G51/G50),0,(G51/G50)) -> 0 | H11: =IF(ISERROR(H51/H50),0,(H51/H50)) -> 0.1214842801
A12: Liquidity
A13: Current Ratio | B13: Current assets/current liabilities | C13: 1 | D13: =IF(ISERROR(D52/D53),0,(D52/D53)) -> 2.807920998 | E13: =IF(ISERROR(E52/E53),0,(E52/E53)) -> 3.112156737 | F13: =IF(ISERROR(F52/F53),0,(F52/F53)) -> 3.088164153 | G13: =IF(ISERROR(G52/G53),0,(G52/G53)) -> 0.4722740578 | H13: =IF(ISERROR(H52/H53),0,(H52/H53)) -> 3.088164153
A14: Liquidity Ratio | B14: Monetary Assets/Current Liabilities | D14: =IF(ISERROR(D54/D53),0,(D54/D53)) -> 0.5486790169 | E14: =IF(ISERROR(E54/E53),0,(E54/E53)) -> 0.1946495974 | F14: =IF(ISERROR(F54/F53),0,(F54/F53)) -> 0.1706570134 | G14: =IF(ISERROR(G54/G53),0,(G54/G53)) -> 0.3485341569 | H14: =IF(ISERROR(H54/H53),0,(H54/H53)) -> 0.1706570134
A15: Revenue Management
A16: Annual Debtors Collection Rate (Payment Level %) | B16: Last 12 Mths Receipts/ Last 12 Mths Billing
A17: Outstanding Debtors to Revenue | B17: Total Outstanding Debtors to Annual Revenue | D17: =IF(ISERROR(D59/D55),0,(D59/D55)) -> 0.5064611901 | E17: =IF(ISERROR(E59/E55),0,(E59/E55)) -> 0.5194848062 | F17: =IF(ISERROR(F59/F55),0,(F59/F55)) -> 0.4765599113 | G17: =IF(ISERROR(G59/G55),0,(G59/G55)) -> 0.1901019283 | H17: =IF(ISERROR(H59/H55),0,(H59/H55)) -> 0.4765599113
A18: Longstanding Debtors Recovered | B18: Debtors > 12 Mths Recovered/Total Debtors > 12 Months Old | D18: =IF(ISERROR(D64/D63),0,(D64/D63)) -> 0 | E18: =IF(ISERROR(E64/E63),0,(E64/E63)) -> 0 | F18: =IF(ISERROR(F64/F63),0,(F64/F63)) -> 0 | G18: =IF(ISERROR(G64/G63),0,(G64/G63)) -> 0 | H18: =IF(ISERROR(H64/H63),0,(H64/H63)) -> 0
A19: Creditors Management
A20: Creditors System Efficiency | B20: % of Creditors Paid Within Terms (within MFMA s 65(e))
A21: Funding of Provisions
A22: Percentage Of Provisions Not Funded | B22: Unfunded Provisions/Total Provisions
A23: Other Indicators
A24: Electricity Distribution Losses | B24: % Volume (units purchased and generated less units sold)/units purchased and generated | C24: 2
A25: Water Distribution Losses | B25: % Volume (units purchased and own source less units sold)/Total units purchased and own source | C25: 2
A26: Employee costs | B26: Employee costs/Total Revenue - capital revenue | D26: =IF(ISERROR(D40/D55),0,(D40/D55)) -> 0.4517407517 | E26: =IF(ISERROR(E40/E55),0,(E40/E55)) -> 0.4147846435 | F26: =IF(ISERROR(F40/F55),0,(F40/F55)) -> 0.3805110959 | G26: =IF(ISERROR(G40/G55),0,(G40/G55)) -> 0.4197133473 | H26: =IF(ISERROR(H40/H55),0,(H40/H55)) -> 0.3805110959
A27: Repairs & Maintenance | B27: R&M/Total Revenue - capital revenue | D27: =IF(ISERROR(D41/D55),0,(D41/D55)) -> 0.03366203315 | E27: =IF(ISERROR(E41/E55),0,(E41/E55)) -> 0.03706712283 | F27: =IF(ISERROR(F41/F55),0,(F41/F55)) -> 0.05195189224 | G27: =IF(ISERROR(G41/G55),0,(G41/G55)) -> 0.06835910418 | H27: =IF(ISERROR(H41/H55),0,(H41/H55)) -> 0.05195189224
A28: Interest & Depreciation | B28: I&D/Total Revenue - capital revenue | D28: =IF(ISERROR((D42+D44)/D55),0,((D42+D44)/D55)) -> 0.08915623956 | E28: =IF(ISERROR((E42+E44)/E55),0,((E42+E44)/E55)) -> 0.08812302555 | F28: =IF(ISERROR((F42+F44)/F55),0,((F42+F44)/F55)) -> 0.08336099674 | G28: =IF(ISERROR((G42+G44)/G55),0,((G42+G44)/G55)) -> 2.710219856e-05 | H28: =IF(ISERROR((H42+H44)/H55),0,((H42+H44)/H55)) -> 0.06664750074
A29: IDP regulation financial viability indicators
A30: i. Debt coverage | B30: (Total Operating Revenue - Operating Grants)/Debt service payments due within financial year)
A31: ii. O/S Service Debtors to Revenue | B31: Total outstanding service debtors/annual revenue received for services
A32: iii. Cost coverage | B32: (Available cash + Investments)/monthly fixed operational expenditure
A33: References
A34: 1. Consumer debtors > 12 months old are excluded from current assets.
A35: 2. Material variances to be explained.
A37: Calculations
A38: ='C6-FinPos'!A38 -> Borrowing | D38: ='C6-FinPos'!C38 -> 0 | E38: ='C6-FinPos'!D38 -> 6131428 | F38: ='C6-FinPos'!E38 -> 6131428 | G38: ='C6-FinPos'!F38 -> 0 | H38: 0
A39: Total Assets | D39: ='C6-FinPos'!C26 -> 389818051.5 | E39: ='C6-FinPos'!D26 -> 475386604 | F39: ='C6-FinPos'!E26 -> 485390507 | G39: ='C6-FinPos'!F26 -> 373503015.5 | H39: ='C6-FinPos'!G26 -> 485390507
A40: ='C4-FinPerf RE'!A25 -> Employee related costs | D40: ='C4-FinPerf RE'!C25 -> 84279697.15 | E40: ='C4-FinPerf RE'!D25 -> 98165079 | F40: ='C4-FinPerf RE'!E25 -> 98165079 | G40: ='C4-FinPerf RE'!G25 -> 50477353.65 | H40: ='C4-FinPerf RE'!K25 -> 98165079
A41: =A27 -> Repairs & Maintenance | D41: 6280208.17 | E41: 8772497 | F41: 13402662 | G41: 8221293.65 | H41: 13402662
A42: Interest (finance charges) | D42: ='C4-FinPerf RE'!C29 -> 254062.37 | E42: ='C4-FinPerf RE'!D29 -> 2183605 | F42: ='C4-FinPerf RE'!E29 -> 2183605 | G42: ='C4-FinPerf RE'!G29 -> 3259.48 | H42: ='C4-FinPerf RE'!K29 -> 2183605
A43: Principal paid | D43: =-'C7-CFlow'!C36 -> 196521.91 | E43: =-'C7-CFlow'!D36 -> 208314 | F43: =-'C7-CFlow'!E36 -> 208314 | G43: =-'C7-CFlow'!G36 -> 0 | H43: =-'C7-CFlow'!K36 -> -208314
A44: Depreciation | D44: ='C4-FinPerf RE'!C28 -> 16379506.42 | E44: ='C4-FinPerf RE'!D28 -> 18672046 | F44: ='C4-FinPerf RE'!E28 -> 19322046 | H44: ='C4-FinPerf RE'!K26 -> 15010262
A45: Operating expenditure | D45: ='C4-FinPerf RE'!C36 -> 191434108.5 | E45: ='C4-FinPerf RE'!D36 -> 224252191 | F45: ='C4-FinPerf RE'!E36 -> 230251974 | G45: ='C4-FinPerf RE'!G36 -> 109032818.4 | H45: ='C4-FinPerf RE'!K36 -> 230251974
A46: ='C5-Capex'!A40 -> Total Capital Expenditure | D46: ='C5-Capex'!C40 -> 38284503.29 | E46: ='C5-Capex'!D40 -> 61599331 | F46: ='C5-Capex'!E40 -> 72616548 | G46: ='C5-Capex'!G40 -> 21323889.7 | H46: ='C5-Capex'!K40 -> 72616548
A47: Borrowed funding for capital | D47: ='C5-Capex'!C72 -> 0 | E47: ='C5-Capex'!D72 -> 0 | F47: ='C5-Capex'!E72 -> 0 | G47: ='C5-Capex'!G72 -> 0 | H47: ='C5-Capex'!K72 -> 0
A48: Debt | D48: ='C6-FinPos'!C30+'C6-FinPos'!C31+'C6-FinPos'!C33+'C6-FinPos'!C38 -> 41228370.27 | E48: ='C6-FinPos'!D30+'C6-FinPos'!D31+'C6-FinPos'!D33+'C6-FinPos'!D38 -> 47218656 | F48: ='C6-FinPos'!E30+'C6-FinPos'!E31+'C6-FinPos'!E33+'C6-FinPos'!E38 -> 47218656 | G48: ='C6-FinPos'!F30+'C6-FinPos'!F31+'C6-FinPos'!F33+'C6-FinPos'!F38 -> 186191198.4 | H48: ='C6-FinPos'!G30+'C6-FinPos'!G31+'C6-FinPos'!G33+'C6-FinPos'!G38 -> 47218656
A49: Equity | D49: ='C6-FinPos'!C48 -> 324913375 | E49: ='C6-FinPos'!D48 -> 399803214 | F49: ='C6-FinPos'!E48 -> 409807117 | G49: ='C6-FinPos'!F48 -> 163660100.8 | H49: ='C6-FinPos'!G48 -> 409807117
A50: ='C6-FinPos'!A47 -> Reserves | D50: ='C6-FinPos'!C47 -> 47695019.87 | E50: ='C6-FinPos'!D47 -> 50470958 | F50: ='C6-FinPos'!E47 -> 50470958 | G50: ='C6-FinPos'!F47 -> 47695019.87 | H50: ='C6-FinPos'!G47 -> 50470958
A51: ='C6-FinPos'!A38 -> Borrowing | D51: ='C6-FinPos'!C38 -> 0 | E51: ='C6-FinPos'!D38 -> 6131428 | F51: ='C6-FinPos'!E38 -> 6131428 | G51: ='C6-FinPos'!F38 -> 0 | H51: ='C6-FinPos'!G38 -> 6131428
A52: ='C6-FinPos'!A6 -> Current assets | D52: ='C6-FinPos'!C13 -> 117760968.1 | E52: ='C6-FinPos'!D13 -> 131440281 | F52: ='C6-FinPos'!E13 -> 130426967 | G52: ='C6-FinPos'!F13 -> 88257199.16 | H52: ='C6-FinPos'!G13 -> 130426967
A53: ='C6-FinPos'!A29 -> Current liabilities | D53: ='C6-FinPos'!C35 -> 41938846.65 | E53: ='C6-FinPos'!D35 -> 42234467 | F53: ='C6-FinPos'!E35 -> 42234467 | G53: ='C6-FinPos'!F35 -> 186877084.8 | H53: ='C6-FinPos'!G35 -> 42234467
A54: Monetary assets | D54: ='C6-FinPos'!C7+'C6-FinPos'!C8 -> 23010965.15 | E54: ='C6-FinPos'!D7+'C6-FinPos'!D8 -> 8220922 | F54: ='C6-FinPos'!E7+'C6-FinPos'!E8 -> 7207608 | G54: ='C6-FinPos'!F7+'C6-FinPos'!F8 -> 65133047.2 | H54: ='C6-FinPos'!G7+'C6-FinPos'!G8 -> 7207608
A55: ='C4-FinPerf RE'!A22 -> Total Revenue (excluding capital transfers and contributions) | D55: ='C4-FinPerf RE'!C22 -> 186566513.7 | E55: ='C4-FinPerf RE'!D22 -> 236665172 | F55: ='C4-FinPerf RE'!E22 -> 257982172 | G55: ='C4-FinPerf RE'!G22 -> 120266257.8 | H55: ='C4-FinPerf RE'!K22 -> 257982172
A56: ='C4-FinPerf RE'!A19 -> Transfers and subsidies | D56: ='C4-FinPerf RE'!C19 -> 148235565 | E56: ='C4-FinPerf RE'!D19 -> 156595650 | F56: ='C4-FinPerf RE'!E19 -> 185412650 | G56: ='C4-FinPerf RE'!G19 -> 70505752.86 | H56: ='C4-FinPerf RE'!K19 -> 185412650
A57: ='C4-FinPerf RE'!A39 -> Transfers and subsidies - capital (monetary allocations) (National / Provincial and District) | D57: ='C4-FinPerf RE'!C39 -> 33909773.81 | E57: ='C4-FinPerf RE'!D39 -> 49186350 | F57: ='C4-FinPerf RE'!E39 -> 44886350 | G57: ='C4-FinPerf RE'!G39 -> 14374233.75 | H57: ='C4-FinPerf RE'!K39 -> 44886350
A58: Debt service payments | D58: ='C7-CFlow'!C12+'C7-CFlow'!C36 -> 1181374.26 | E58: ='C7-CFlow'!D12+'C7-CFlow'!D36 -> 3282291 | F58: ='C7-CFlow'!E12+'C7-CFlow'!E36 -> 3282291 | G58: ='C7-CFlow'!G16+'C7-CFlow'!G36 -> -2382.21 | H58: ='C7-CFlow'!K16+'C7-CFlow'!K36 -> -1975291
A59: Outstanding debtors (receivables) | D59: ='C6-FinPos'!C9+'C6-FinPos'!C10+'C6-FinPos'!C11+'C6-FinPos'!C16 -> 94488698.57 | E59: ='C6-FinPos'!D9+'C6-FinPos'!D10+'C6-FinPos'!D11+'C6-FinPos'!D16 -> 122943961 | F59: ='C6-FinPos'!E9+'C6-FinPos'!E10+'C6-FinPos'!E11+'C6-FinPos'!E16 -> 122943961 | G59: ='C6-FinPos'!F9+'C6-FinPos'!F10+'C6-FinPos'!F11+'C6-FinPos'!F16 -> 22862847.53 | H59: ='C6-FinPos'!G9+'C6-FinPos'!G10+'C6-FinPos'!G11+'C6-FinPos'!G16 -> 122943961
A60: Annual services revenue | D60: =SUM('C4-FinPerf RE'!C7:C11) -> 10503008.53 | E60: =SUM('C4-FinPerf RE'!D7:D11) -> 13663019 | F60: =SUM('C4-FinPerf RE'!E7:E11) -> 13663019 | G60: =SUM('C4-FinPerf RE'!G7:G11) -> 6779425.19
A61: Cash + investments | B61: Including LT investments | D61: ='C6-FinPos'!C7+'C6-FinPos'!C8+'C6-FinPos'!C17-'C6-FinPos'!C30 -> 23010965.15 | E61: ='C6-FinPos'!D7+'C6-FinPos'!D8+'C6-FinPos'!D17-'C6-FinPos'!D30 -> 8220922 | F61: ='C6-FinPos'!E7+'C6-FinPos'!E8+'C6-FinPos'!E17-'C6-FinPos'!E30 -> 7207608 | G61: ='C6-FinPos'!F7+'C6-FinPos'!F8+'C6-FinPos'!F17-'C6-FinPos'!F30 -> 65133047.2 | H61: ='C6-FinPos'!G7+'C6-FinPos'!G8+'C6-FinPos'!G17-'C6-FinPos'!G30 -> 7207608
A62: Fixed operational expend. (monthly)
A63: Longstanding debtors outstanding | D63: ='C6-FinPos'!C16 -> 0 | E63: ='C6-FinPos'!D16 -> 0 | F63: ='C6-FinPos'!E16 -> 0 | G63: ='C6-FinPos'!F16 -> 0 | H63: ='C6-FinPos'!G16 -> 0
A64: Longstanding debtors recovered
A65: Attorney collections

Sheet SC3
A1: =muni& " - "&S71I& " - "&Head57 -> LIM353 Molemole - Supporting Table SC3 Monthly Budget Statement - aged debtors - M07 January
A2: =desc -> Description | C2: =Head2 -> Budget Year 2020/21
A3: R thousands | B3: NT Code | C3: 0-30 Days | D3: 31-60 Days | E3: 61-90 Days | F3: 91-120 Days | G3: 121-150 Dys | H3: 151-180 Dys | I3: 181 Dys-1 Yr | J3: Over 1Yr | K3: Total | L3: Total over 90 days | M3: Actual Bad Debts Written Off against Debtors | N3: Impairment - Bad Debts i.t.o Council Policy
A4: Debtors Age Analysis By Income Source
A5: Trade and Other Receivables from Exchange Transactions - Water | B5: 1200 | C5: 178319 | D5: 65446 | E5: 108889 | F5: 3410944 | K5: =SUM(C5:J5) -> 3763598 | L5: =SUM(F5:J5) -> 3410944
A6: Trade and Other Receivables from Exchange Transactions - Electricity | B6: 1300 | C6: 11826 | D6: 179666 | E6: 96909 | F6: 1834125 | K6: =SUM(C6:J6) -> 2122526 | L6: =SUM(F6:J6) -> 1834125
A7: Receivables from Non-exchange Transactions - Property Rates | B7: 1400 | C7: 111002 | D7: 110699 | E7: 114200 | F7: 10660708 | K7: =SUM(C7:J7) -> 10996609 | L7: 10660708
A8: Receivables from Exchange Transactions - Waste Water Management | B8: 1500 | C8: 65945 | D8: 64611 | E8: 63808 | F8: 1800766 | K8: 1995130 | L8: 1800766
A9: Receivables from Exchange Transactions - Waste Management | B9: 1600 | C9: 215730 | D9: 213953 | E9: 212017 | F9: 9918477 | K9: 10560177 | L9: =SUM(F9:J9) -> 9918477
A10: Receivables from Exchange Transactions - Property Rental Debtors | B10: 1700 | C10: 0 | D10: 0 | E10: 0 | F10: 0 | K10: 0 | L10: =SUM(F10:J10) -> 0
A11: Interest on Arrear Debtor Accounts | B11: 1810 | C11: 0 | D11: 0 | E11: 0 | F11: 0 | K11: 0 | L11: 0
A12: Recoverable unauthorised, irregular, fruitless and wasteful expenditure | B12: 1820 | C12: 0 | D12: 0 | E12: 0 | F12: 0 | K12: 0 | L12: 0
A13: Other | B13: 1900 | C13: 3093695 | D13: 9710110 | E13: 2287103 | F13: 69846534 | K13: 84937442 | L13: =SUM(F13:J13) -> 69846534
A14: Total By Income Source | B14: 2000 | C14: =SUM(C5:C13) -> 3676517 | D14: 10344485 | E14: 2882926 | F14: 97471554 | G14: 0 | H14: 0 | I14: 0 | J14: 0 | K14: 114375482 | L14: =SUM(L5:L13) -> 97471554 | M14: 0 | N14: 0
A15: =Head1&" - totals only" -> 2019/20 - totals only | K15: =SUM(C15:J15) -> 0 | L15: =SUM(F15:J15) -> 0
A16: Debtors Age Analysis By Customer Group
A17: Organs of State | B17: 2200 | C17: 1622198 | D17: 1497421 | E17: 1473195 | F17: 32504749 | K17: =SUM(C17:J17) -> 37097563 | L17: =SUM(F17:J17) -> 32504749
A18: Commercial | B18: 2300 | C18: 235042 | D18: 255270 | E18: 190613 | F18: 7558265 | K18: =SUM(C18:J18) -> 8239190 | L18: =SUM(F18:J18) -> 7558265
A19: Households | B19: 2400 | C19: 659849 | D19: 699461 | E19: 651001 | F19: 25639918 | K19: =SUM(C19:J19) -> 27650229 | L19: =SUM(F19:J19) -> 25639918
A20: Other | B20: 2500 | C20: 1159428 | D20: 7892333 | E20: 568117 | F20: 31768622 | K20: =SUM(C20:J20) -> 41388500 | L20: =SUM(F20:J20) -> 31768622
A21: Total By Customer Group | B21: 2600 | C21: =SUM(C17:C20) -> 3676517 | D21: 10344485 | E21: 2882926 | F21: 97471554 | G21: 0 | H21: 0 | I21: 0 | J21: =SUM(J17:J20) -> 0 | K21: =SUM(K17:K20) -> 114375482 | L21: =SUM(L17:L20) -> 97471554 | M21: =SUM(M17:M20) -> 0 | N21: =SUM(N17:N20) -> 0
A22: Notes
A23: Material increases in value of debtors' categories compared to previous month to be explained
A24: Bad debts = amounts actually written off in the month
A25: Total by Income Source must reconcile with Total by Customer Group
C26: =C14-C21 -> 0 | D26: =D14-D21 -> 0 | E26: =E14-E21 -> 0 | F26: 0 | G26: 0 | H26: 0 | I26: 0 | J26: =J14-J21 -> 0 | K26: 0
C27: =IF(C26=0,"","MUST AGREE") ->  | D27: =IF(D26=0,"","MUST AGREE") -> 

Sheet SC4
A1: =muni& " - "&S71J& " - "&Head57 -> LIM353 Molemole - Supporting Table SC4 Monthly Budget Statement - aged creditors - M07 January
A2: =desc -> Description | B2: NT Code | C2: =Head2 -> Budget Year 2020/21 | L2: Prior year totals for chart (same period)
C3: 0 - 30 Days | D3: 31 - 60 Days | E3: 61 - 90 Days | F3: 91 - 120 Days | G3: 121 - 150 Days | H3: 151 - 180 Days | I3: 181 Days - 1 Year | J3: Over 1 Year | K3: Total
A4: R thousands
A5: Creditors Age Analysis By Customer Type
A6: Bulk Electricity | B6: 0100 | K6: =SUM(C6:J6) -> 0
A7: Bulk Water | B7: 0200 | K7: =SUM(C7:J7) -> 0
A8: PAYE deductions | B8: 0300 | K8: 0
A9: VAT (output less input) | B9: 0400 | K9: 0
A10: Pensions / Retirement deductions | B10: 0500 | K10: 0
A11: Loan repayments | B11: 0600 | K11: 0
A12: Trade Creditors | B12: 0700 | K12: 0
A13: Auditor General | B13: 0800 | K13: 0
A14: Other | B14: 0900 | D14: 243584 | F14: 170064 | K14: =SUM(C14:J14) -> 413648
A15: Total By Customer Type | B15: 1000 | C15: =SUM(C6:C14) -> 0 | D15: =SUM(D6:D14) -> 243584 | E15: 0 | F15: 170064 | G15: 0 | H15: 0 | I15: 0 | J15: 0 | K15: =SUM(K6:K14) -> 413648 | L15: =SUM(L6:L14) -> 0
A16: Notes
A17: Material increases in value of creditors' categories compared to previous month to be explained

Sheet SC5
A1: =muni& " - "&S71K& " - "&Head57 -> LIM353 Molemole - Supporting Table SC5 Monthly Budget Statement - investment portfolio - M07 January
A2: Investments by maturity Name of institution & investment ID | B2: Ref | C2: Period of Investment | D2: Type of Investment | E2: Capital Guarantee (Yes/ No) | F2: Variable or Fixed interest rate | G2: Interest Rate ᶟ | H2: Commission Paid (Rands) | I2: Commission Recipient | J2: Expiry date of investment | K2: Opening balance | L2: Interest to be realised | M2: Partial / Premature Withdrawal (4) | N2: Investment Top Up | O2: Closing Balance
A3: R thousands | C3: Yrs/Months
A4: Municipality
O5: =SUM(K5:N5) -> 0
A6: Municipality sub-total | K6: =SUM(K5:K5) -> 0 | M6: =SUM(M5:M5) -> 0 | N6: =SUM(N5:N5) -> 0 | O6: =SUM(O5:O5) -> 0
A8: Entities
O9: =SUM(K9:N9) -> 0
O10: 0
O11: 0
O12: 0
O13: 0
O14: 0
O15: 0
A16: Entities sub-total | K16: =SUM(K9:K15) -> 0 | M16: =SUM(M9:M15) -> 0 | N16: =SUM(N9:N15) -> 0 | O16: =SUM(O9:O15) -> 0
A18: TOTAL INVESTMENTS AND INTEREST | B18: 2 | K18: =K6+K16 -> 0 | M18: =M6+M16 -> 0 | N18: =N6+N16 -> 0 | O18: =O6+O16 -> 0
A19: =head27a -> References
A20: 2. List investments in expiry date order
A21: 3. If 'variable' is selected in column F, input interest rate range
A22: 4. Withdrawals to be entered as negative

Sheet SC6
A1: =muni& " - "&S71L& " - "&Head57 -> LIM353 Molemole - Supporting Table SC6 Monthly Budget Statement - transfers and grant receipts - M07 January
A2: =desc -> Description | B2: =head27 -> Ref | C2: =Head1 -> 2019/20 | D2: =Head2 -> Budget Year 2020/21
C3: =Head5 -> Audited Outcome | D3: =Head6 -> Original Budget | E3: =Head7 -> Adjusted Budget | F3: =Head38 -> Monthly actual | G3: =Head39 -> YearTD actual | H3: =Head40 -> YearTD budget | I3: =Head41 -> YTD variance | J3: =Head41 -> YTD variance | K3: =Head8 -> Full Year Forecast
A4: R thousands | J4: %
A5: RECEIPTS: | B5: 1,2
A7: Operating Transfers and Grants
A8: National Government: | C8: =SUM(C9:C14) -> 148235565 | D8: 156595650 | E8: 185770650 | F8: 0 | G8: 70505752.86 | H8: 105755952 | I8: =G8-H8 -> -35250199.14 | J8: =IF(H8=0,"",I8/H8) -> -0.3333164562 | K8: =SUM(K9:K14) -> 185770650
A9: Equitable Share | C9: 142577970.4 | D9: 150787000 | E9: 179962000 | F9: 0 | G9: 67854000 | H9: 102546581 | I9: -34692581 | J9: -0.3383104601 | K9: 179962000
A10: Expanded Public Works Programme Integrated Grant | C10: 1167000 | D10: 1304000 | E10: 1304000 | F10: 0 | G10: 551457.05 | H10: 760662 | I10: -209204.95 | J10: -0.2750301054 | K10: 1304000
A11: Local Government Financial Management Grant | C11: 2400848.57 | D11: 2400000 | E11: 2400000 | F11: 0 | G11: 1246933.23 | H11: 1400000 | I11: -153066.77 | J11: -0.1093334071 | K11: 2400000
A12: Municipal Demarcation Transition Grant | C12: 0 | D12: 0 | E12: 0 | F12: 0 | G12: 0 | H12: 0 | I12: 0 | K12: 0
A13: Municipal Disaster Relief Grant | C13: 338076 | D13: 358000 | E13: 358000 | F13: 0 | G13: 0 | H13: 29831 | I13: -29831 | J13: -1 | K13: 358000
A14: Municipal Infrastructure Grant | C14: 1751670.04 | D14: 1746650 | E14: 1746650 | F14: 0 | G14: 853362.58 | H14: 1018878 | I14: -165515.42 | J14: -0.1624487132 | K14: 1746650
A15: Other transfers and grants [insert description] | I15: =G15-H15 -> 0 | J15: =IF(I15=0,"",I15/H15) -> 
A16: Provincial Government: | C16: =SUM(C17:C17) -> 0 | D16: 0 | E16: 0 | F16: 0 | G16: 0 | H16: 0 | I16: =G16-H16 -> 0 | J16: =IF(H16=0,"",I16/H16) ->  | K16: =SUM(K17:K17) -> 0
A17: Other | C17: 0 | D17: 0 | E17: 0 | F17: 0 | G17: 0 | H17: 0 | I17: =G17-H17 -> 0 | J17: =IF(H17=0,"",I17/H17) ->  | K17: 0
A18: Other transfers and grants [insert description] | I18: =G18-H18 -> 0
A19: District Municipality: | C19: =SUM(C20:C22) -> 0 | D19: 0 | E19: 0 | F19: 0 | G19: 0 | H19: 0 | I19: =G19-H19 -> 0 | J19: =IF(H19=0,"",I19/H19) ->  | K19: =SUM(K20:K22) -> 0
A20: Assistance to Local Municipalities | C20: 0 | D20: 0 | E20: 0 | F20: 0 | G20: 0 | H20: 0 | I20: 0 | K20: 0
A21: Community and Social Services | C21: 0 | D21: 0 | E21: 0 | F21: 0 | G21: 0 | H21: 0 | I21: 0 | K21: 0
A22: Planning and Development | C22: 0 | D22: 0 | E22: 0 | F22: 0 | G22: 0 | H22: 0 | I22: 0 | K22: 0
A23: Other grant providers: | C23: =SUM(C24:C24) -> 0 | D23: 0 | E23: 0 | F23: 0 | G23: 0 | H23: 0 | I23: 0 | K23: =SUM(K24:K24) -> 0
A24: Non-statutory Forces | C24: 0 | D24: 0 | E24: 0 | F24: 0 | G24: 0 | H24: 0 | I24: 0 | K24: 0
A25: Total Operating Transfers and Grants | B25: 5 | C25: =C8+C16+C19+C23 -> 148235565 | D25: 156595650 | E25: 185770650 | F25: 0 | G25: 70505752.86 | H25: 105755952 | I25: -35250199.14 | J25: -0.3333164562 | K25: =K8+K16+K19+K23 -> 185770650
A27: Capital Transfers and Grants
A28: =A8 -> National Government: | C28: =SUM(C29:C33) -> 33909773.81 | D28: 49186350 | E28: 44886350 | F28: 0 | G28: 14374233.75 | H28: 26542034 | I28: =G28-H28 -> -12167800.25 | J28: =IF(H28=0,"",I28/H28) -> -0.458435109 | K28: =SUM(K29:K33) -> 44886350
A29: Energy Efficiency and Demand Side Management Grant | C29: 0 | D29: 3000000 | E29: 2700000 | F29: 0 | G29: 0 | H29: 1600000 | I29: -1600000 | J29: -1 | K29: 2700000
A30: Expanded Public Works Programme Integrated Grant | C30: 0 | D30: 0 | E30: 0 | F30: 0 | G30: 0 | H30: 0 | I30: 0 | K30: 0
A31: Integrated National Electrification Programme Grant | C31: 0 | D31: 13000000 | E31: 9000000 | F31: 0 | G31: 0 | H31: 5583331 | I31: -5583331 | J31: -1 | K31: 9000000
A32: Local Government Financial Management Grant | C32: 0 | D32: 0 | E32: 0 | F32: 0 | G32: 0 | H32: 0 | I32: 0 | K32: 0
A33: Municipal Infrastructure Grant | C33: 33909773.81 | D33: 33186350 | E33: 33186350 | F33: 0 | G33: 14374233.75 | H33: 19358703 | I33: -4984469.25 | J33: -0.2574795042 | K33: 33186350
A34: =A16 -> Provincial Government: | C34: =SUM(C35:C35) -> 0 | D34: 0 | E34: 0 | F34: 0 | G34: 0 | H34: 0 | I34: =G34-H34 -> 0 | J34: =IF(I34=0,"",I34/H34) ->  | K34: =SUM(K35:K35) -> 0
A35: [insert description] | I35: 0 | J35: =IF(I35=0,"",I35/H35) -> 
A36: =A19 -> District Municipality: | C36: =SUM(C37:C37) -> 0 | D36: 0 | E36: 0 | F36: 0 | G36: 0 | H36: 0 | I36: =G36-H36 -> 0 | J36: =IF(H36=0,"",I36/H36) ->  | K36: =SUM(K37:K37) -> 0
A37: Assistance to Local Municipalities | C37: 0 | D37: 0 | E37: 0 | F37: 0 | G37: 0 | H37: 0 | I37: =G37-H37 -> 0 | J37: =IF(H37=0,"",I37/H37) ->  | K37: 0
A38: =A23 -> Other grant providers: | C38: =SUM(C39:C39) -> 0 | D38: 0 | E38: 0 | F38: 0 | G38: 0 | H38: 0 | I38: 0 | J38: =IF(I38=0,"",I38/H38) ->  | K38: =SUM(K39:K39) -> 0
A39: [insert description] | I39: 0 | J39: =IF(I39=0,"",I39/H39) -> 
A40: Total Capital Transfers and Grants | B40: 5 | C40: =C28+C34+C36+C38 -> 33909773.81 | D40: 49186350 | E40: 44886350 | F40: 0 | G40: 14374233.75 | H40: 26542034 | I40: -12167800.25 | J40: -0.458435109 | K40: =K28+K34+K36+K38 -> 44886350
A42: TOTAL RECEIPTS OF TRANSFERS & GRANTS | B42: 5 | C42: =C25+C40 -> 182145338.8 | D42: 205782000 | E42: 230657000 | F42: 0 | G42: 84879986.61 | H42: 132297986 | I42: -47417999.39 | J42: -0.35841815 | K42: =K25+K40 -> 230657000
A43: =head27a -> References
A44: 1. Each grant is listed by name as gazetted together with the name of the transferring department or municipality, donor or other organisation
A45: 2. Grant expenditure must be separately listed for each grant received
A46: 3. Replacement of RSC levies
A47: 4. Housing subsidies for housing where ownership transferred
A48: 5. Total recurrent/capital grants and subsidies must reconcile to the 'Financial Performance' Statement

Sheet SC7(1)
A1: =muni& " - "&S71M& " - "&Head57 -> LIM353 Molemole - Supporting Table SC7(1) Monthly Budget Statement - transfers and grant expenditure - M07 January
A2: =desc -> Description | B2: =head27 -> Ref | C2: =Head1 -> 2019/20 | D2: =Head2 -> Budget Year 2020/21
C3: =Head5 -> Audited Outcome | D3: =Head6 -> Original Budget | E3: =Head7 -> Adjusted Budget | F3: =Head38 -> Monthly actual | G3: =Head39 -> YearTD actual | H3: =Head40 -> YearTD budget | I3: =Head41 -> YTD variance | J3: =Head41 -> YTD variance | K3: =Head8 -> Full Year Forecast
A4: R thousands | J4: %
A5: EXPENDITURE
A7: Operating expenditure of Transfers and Grants
A8: ='SC6'!A8 -> National Government: | C8: =SUM(C9:C15) -> 111054596.7 | D8: 128891261 | E8: 128251261 | F8: 8562158.82 | G8: 63319004.51 | H8: 74868295 | I8: -11549290.49 | J8: =IF(I8=0,"",I8/H8) -> -0.1542614332 | K8: =SUM(K9:K15) -> 128251261
I9: =G9-H9 -> 0
A10: Equitable Share | C10: 106938904.5 | D10: 123435269 | E10: 123795269 | F10: 8358942.18 | G10: 61312364.35 | H10: 72185584 | I10: =G10-H10 -> -10873219.65 | J10: =IF(H10=0,"",I10/H10) -> -0.1506286858 | K10: 123795269
A11: Expanded Public Works Programme Integrated Grant | C11: 1167000 | D11: 1304000 | E11: 1304000 | F11: 90300 | G11: 641757.05 | H11: 760669 | I11: -118911.95 | J11: -0.1563254845 | K11: 1304000
A12: Local Government Financial Management Grant | C12: 2627600.27 | D12: 3102117 | E12: 3102117 | F12: 112916.64 | G12: 1364883.11 | H12: 1809605 | I12: -444721.89 | J12: -0.2457563336 | K12: 3102117
A13: Municipal Demarcation Transition Grant | C13: 0 | D13: 0 | E13: 0 | F13: 0 | G13: 0 | H13: 0 | I13: 0 | K13: 0
A14: Municipal Disaster Relief Grant | C14: 279766 | D14: 1000000 | E14: 0 | F14: 0 | G14: 0 | H14: 83338 | I14: -83338 | J14: -1 | K14: 0
A15: Municipal Infrastructure Grant | C15: 41325.95 | D15: 49875 | E15: 49875 | F15: 0 | G15: 0 | H15: 29099 | I15: -29099 | J15: -1 | K15: 49875
A16: ='SC6'!A16 -> Provincial Government: | C16: =SUM(C17:C18) -> 0 | D16: 0 | E16: 0 | F16: 0 | G16: 0 | H16: 0 | I16: 0 | K16: =SUM(K17:K18) -> 0
I17: =G17-H17 -> 0
A18: Other | C18: 0 | D18: 0 | E18: 0 | F18: 0 | G18: 0 | H18: 0 | I18: =G18-H18 -> 0 | J18: =IF(H18=0,"",I18/H18) ->  | K18: 0
A19: ='SC6'!A19 -> District Municipality: | C19: =SUM(C20:C20) -> 0 | D19: 0 | E19: 0 | F19: 0 | G19: 0 | H19: 0 | I19: 0 | K19: =SUM(K20:K20) -> 0
I20: 0
A21: Assistance to Local Municipalities | C21: 0 | D21: 0 | E21: 0 | F21: 0 | G21: 0 | H21: 0 | I21: =G21-H21 -> 0 | J21: =IF(H21=0,"",I21/H21) ->  | K21: 0
A22: Community and Social Services | C22: 0 | D22: 0 | E22: 0 | F22: 0 | G22: 0 | H22: 0 | I22: =G22-H22 -> 0 | J22: =IF(H22=0,"",I22/H22) ->  | K22: 0
A23: ='SC6'!A23 -> Other grant providers: | C23: =SUM(C24:C24) -> 0 | D23: 0 | E23: 0 | F23: 0 | G23: 0 | H23: 0 | I23: 0 | K23: =SUM(K24:K24) -> 0
I24: 0
A25: Municipal Demarcation Board | C25: 108913.5 | D25: 313500 | E25: 313500 | F25: 0 | G25: 0 | H25: 182875 | I25: =G25-H25 -> -182875 | J25: =IF(H25=0,"",I25/H25) -> -1 | K25: 313500
A26: Total operating expenditure of Transfers and Grants: | C26: =C8+C16+C19+C23 -> 111054596.7 | D26: 128891261 | E26: 128251261 | F26: 8562158.82 | G26: 63319004.51 | H26: 74868295 | I26: -11549290.49 | J26: -0.1542614332 | K26: =K8+K16+K19+K23 -> 128251261
A28: Capital expenditure of Transfers and Grants
A29: ='SC6'!A28 -> National Government: | C29: =SUM(C30:C32) -> 29015957.46 | D29: 49186331 | E29: 44886331 | F29: 2645926.69 | G29: 17712675.49 | H29: 26542034 | I29: -8829358.51 | J29: =IF(I29=0,"",I29/H29) -> -0.3326556853 | K29: =SUM(K30:K32) -> 44886331
A30: Energy Efficiency and Demand Side Management Grant | C30: 0 | D30: 3000000 | E30: 2700000 | F30: 0 | G30: 0 | H30: 1600000 | I30: =G30-H30 -> -1600000 | J30: =IF(H30=0,"",I30/H30) -> -1 | K30: 2700000
A31: Integrated National Electrification Programme Grant | C31: 0 | D31: 13000000 | E31: 9000000 | F31: 1509554.78 | G31: 1509554.78 | H31: 5583338 | I31: =G31-H31 -> -4073783.22 | J31: =IF(H31=0,"",I31/H31) -> -0.7296322057 | K31: 9000000
A32: Municipal Infrastructure Grant | C32: 29015957.46 | D32: 33186331 | E32: 33186331 | F32: 1136371.91 | G32: 16203120.71 | H32: 19358696 | I32: =G32-H32 -> -3155575.29 | J32: =IF(H32=0,"",I32/H32) -> -0.1630055707 | K32: 33186331
A33: ='SC6'!A34 -> Provincial Government: | C33: =SUM(C34:C34) -> 0 | D33: 0 | E33: 0 | F33: 0 | G33: 0 | H33: 0 | I33: =G33-H33 -> 0 | K33: =SUM(K34:K34) -> 0
A34: Other | C34: 0 | D34: 0 | E34: 0 | F34: 0 | G34: 0 | H34: 0 | I34: =G34-H34 -> 0 | J34: =IF(H34=0,"",I34/H34) ->  | K34: 0
A35: ='SC6'!A36 -> District Municipality: | C35: =SUM(C36:C36) -> 0 | D35: 0 | E35: 0 | F35: 0 | G35: 0 | H35: 0 | I35: 0 | K35: =SUM(K36:K36) -> 0
A36: Community and Social Services | C36: 0 | D36: 0 | E36: 0 | F36: 0 | G36: 0 | H36: 0 | I36: =G36-H36 -> 0 | J36: =IF(H36=0,"",I36/H36) ->  | K36: 0
A37: ='SC6'!A38 -> Other grant providers: | C37: =SUM(C38:C39) -> 0 | D37: 0 | E37: 0 | F37: 0 | G37: 0 | H37: 0 | I37: 0 | K37: =SUM(K38:K39) -> 0
A38: Municipal Demarcation Board | C38: 0 | D38: 0 | E38: 0 | F38: 0 | G38: 0 | H38: 0 | I38: =G38-H38 -> 0 | J38: =IF(H38=0,"",I38/H38) ->  | K38: 0
A39: Municipal Infrastructure Investment Unit | C39: 0 | D39: 0 | E39: 0 | F39: 0 | G39: 0 | H39: 0 | I39: =G39-H39 -> 0 | J39: =IF(H39=0,"",I39/H39) ->  | K39: 0
A40: Total capital expenditure of Transfers and Grants | C40: =C29+C33+C35+C37 -> 29015957.46 | D40: 49186331 | E40: 44886331 | F40: 2645926.69 | G40: 17712675.49 | H40: 26542034 | I40: -8829358.51 | J40: =IF(I40=0,"",I40/H40) -> -0.3326556853 | K40: =K29+K33+K35+K37 -> 44886331
A42: TOTAL EXPENDITURE OF TRANSFERS AND GRANTS | C42: =C26+C40 -> 140070554.2 | D42: 178077592 | E42: 173137592 | F42: 11208085.51 | G42: 81031680 | H42: 101410329 | I42: -20378649 | J42: =IF(I42=0,"",I42/H42) -> -0.2009524 | K42: =K26+K40 -> 173137592
A43: =head27a -> References

Sheet SC7(2)
A1: =muni& " - "&S71T& " - "&Head57 -> LIM353 Molemole - Supporting Table SC7(2) Monthly Budget Statement - Expenditure against approved rollovers - M07 January
A2: =desc -> Description | B2: =head27 -> Ref | C2: =Head2 -> Budget Year 2020/21
C3: ="Approved Rollover " &Head1 -> Approved Rollover 2019/20 | D3: =Head38 -> Monthly actual | E3: =Head39 -> YearTD actual | F3: =Head41 -> YTD variance | G3: =Head41 -> YTD variance
A4: R thousands | G4: %
A5: EXPENDITURE
A7: Operating expenditure of Approved Roll-overs
A8: ='SC6'!A8 -> National Government: | C8: =SUM(C9:C9) -> 0 | D8: =SUM(D9:D9) -> 0 | E8: =SUM(E9:E9) -> 0 | F8: =SUM(F9:F9) -> 0 | G8: =IF(F8=0,"",F8/C8) -> 
A9: Local Government Equitable Share | C9: 0 | D9: 0 | E9: 0 | F9: =E9-C9 -> 0 | G9: =IF(C9=0,"",F9/C9) -> 
A10: ='SC6'!A16 -> Provincial Government: | C10: =SUM(C11:C11) -> 0 | D10: =SUM(D11:D11) -> 0 | E10: =SUM(E11:E11) -> 0 | F10: =SUM(F11:F11) -> 0 | G10: =IF(F10=0,"",F10/C10) -> 
F11: =C11-E11 -> 0
A12: ='SC6'!A19 -> District Municipality: | C12: =SUM(C13:C13) -> 0 | D12: =SUM(D13:D13) -> 0 | E12: =SUM(E13:E13) -> 0 | F12: =SUM(F13:F13) -> 0
F13: =C13-E13 -> 0
A14: ='SC6'!A23 -> Other grant providers: | C14: =SUM(C15:C15) -> 0 | D14: =SUM(D15:D15) -> 0 | E14: =SUM(E15:E15) -> 0 | F14: =SUM(F15:F15) -> 0
F15: =C15-E15 -> 0
A16: Total operating expenditure of Approved Roll-overs | C16: =C8+C10+C12+C14 -> 0 | D16: =D8+D10+D12+D14 -> 0 | E16: =E8+E10+E12+E14 -> 0 | F16: =F8+F10+F12+F14 -> 0
A18: Capital expenditure of Approved Roll-overs
A19: ='SC6'!A28 -> National Government: | C19: =SUM(C20:C20) -> 0 | D19: =SUM(D20:D20) -> 0 | E19: =SUM(E20:E20) -> 0 | F19: =SUM(F20:F20) -> 0
F20: =C20-E20 -> 0
A21: ='SC6'!A34 -> Provincial Government: | C21: =SUM(C22:C22) -> 0 | D21: =SUM(D22:D22) -> 0 | E21: =SUM(E22:E22) -> 0 | F21: =SUM(F22:F22) -> 0
F22: =C22-E22 -> 0
A23: ='SC6'!A36 -> District Municipality: | C23: =SUM(C24:C24) -> 0 | D23: =SUM(D24:D24) -> 0 | E23: =SUM(E24:E24) -> 0 | F23: =SUM(F24:F24) -> 0
F24: =C24-E24 -> 0
A25: ='SC6'!A38 -> Other grant providers: | C25: =SUM(C26:C26) -> 0 | D25: =SUM(D26:D26) -> 0 | E25: =SUM(E26:E26) -> 0 | F25: =SUM(F26:F26) -> 0
F26: =C26-E26 -> 0
A27: Total capital expenditure of Approved Roll-overs | C27: =C19+C21+C23+C25 -> 0 | D27: =D19+D21+D23+D25 -> 0 | E27: =E19+E21+E23+E25 -> 0 | F27: =F19+F21+F23+F25 -> 0
A29: TOTAL EXPENDITURE OF APPROVED ROLL-OVERS | C29: =C16+C27 -> 0 | D29: =D16+D27 -> 0 | E29: =E16+E27 -> 0 | F29: =F16+F27 -> 0
A30: =head27a -> References

Sheet SC8
A1: =muni& " - "&S71N& " - "&Head57 -> LIM353 Molemole - Supporting Table SC8 Monthly Budget Statement - councillor and staff benefits - M07 January
A2: Summary of Employee and Councillor remuneration | B2: =head27 -> Ref | C2: =Head1 -> 2019/20 | D2: =Head2 -> Budget Year 2020/21
C3: =Head5 -> Audited Outcome | D3: =Head6 -> Original Budget | E3: =Head7 -> Adjusted Budget | F3: =Head38 -> Monthly actual | G3: =Head39 -> YearTD actual | H3: =Head40 -> YearTD budget | I3: =Head41 -> YTD variance | J3: =Head41 -> YTD variance | K3: =Head8 -> Full Year Forecast
A4: R thousands | J4: %
B5: 1 | C5: A | D5: B | E5: C | K5: D
A6: Councillors (Political Office Bearers plus Other)
A7: Basic Salaries and Wages | C7: 8658909.42 | D7: 9975475 | E7: 9975475 | F7: 746477.87 | G7: 5069933.57 | H7: 5819051 | I7: =G7-H7 -> -749117.43 | J7: =IF(I7=0,"",I7/H7) -> -0.1287353264 | K7: 9975475
A8: Pension and UIF Contributions | I8: 0
A9: Medical Aid Contributions | I9: 0
A10: Motor Vehicle Allowance | I10: =G10-H10 -> 0 | J10: =IF(I10=0,"",I10/H10) -> 
A11: Cellphone Allowance | C11: 1334400 | D11: 1709626 | E11: 1709626 | F11: 118400 | G11: 828800 | H11: 997304 | I11: =G11-H11 -> -168504 | J11: =IF(I11=0,"",I11/H11) -> -0.1689595149 | K11: 1709626
A12: Housing Allowances | I12: =G12-H12 -> 0 | J12: =IF(I12=0,"",I12/H12) -> 
A13: Other benefits and allowances | C13: 2886302.48 | D13: 3325161 | E13: 3325161 | F13: 213623.47 | G13: 1656775.81 | H13: 1939700 | I13: -282924.19 | J13: -0.145859767 | K13: 3325161
A14: Sub Total - Councillors | C14: =SUM(C7:C13) -> 12879611.9 | D14: 15010262 | E14: 15010262 | F14: 1078501.34 | G14: 7555509.38 | H14: 8756055 | I14: -1200545.62 | J14: -0.1371103334 | K14: 15010262
A15: % increase | B15: 4 | D15: =IF(D14=0,"",(D14/C14)-1) -> 0.1654281291 | E15: =IF(E14=0,"",(E14/C14)-1) -> 0.1654281291 | K15: =IF(K14=0,"",(K14/C14)-1) -> 0.1654281291
A17: Senior Managers of the Municipality | B17: 3
A18: Basic Salaries and Wages | C18: 4543272.19 | D18: 4274934 | E18: 4274934 | F18: 393840.58 | G18: 2742254.77 | H18: 2493736 | I18: =G18-H18 -> 248518.77 | J18: =IF(I18=0,"",I18/H18) -> 0.0996572091 | K18: 4274934
A19: Pension and UIF Contributions | C19: 0 | D19: 0 | E19: 0 | F19: 0 | G19: 0 | H19: 0 | I19: 0 | K19: 0
A20: Medical Aid Contributions | C20: 0 | D20: 0 | E20: 0 | F20: 0 | G20: 0 | H20: 0 | I20: 0 | K20: 0
A21: Overtime | C21: 0 | D21: 0 | E21: 0 | F21: 0 | G21: 0 | H21: 0 | I21: 0 | K21: 0
A22: Performance Bonus | C22: 0 | D22: 212761 | E22: 212761 | F22: 0 | G22: 0 | H22: 124131 | I22: =G22-H22 -> -124131 | J22: =IF(I22=0,"",I22/H22) -> -1 | K22: 212761
A23: Motor Vehicle Allowance | C23: 157193.2 | D23: 864406 | E23: 864406 | F23: 19810.65 | G23: 138674.55 | H23: 504245 | I23: =G23-H23 -> -365570.45 | J23: =IF(I23=0,"",I23/H23) -> -0.7249857708 | K23: 864406
A24: Cellphone Allowance | C24: 193333.14 | D24: 233750 | E24: 233750 | F24: 13333.32 | G24: 103333.23 | H24: 136367 | I24: =G24-H24 -> -33033.77 | J24: =IF(I24=0,"",I24/H24) -> -0.2422416714 | K24: 233750
A25: Housing Allowances | C25: 0 | D25: 0 | E25: 0 | F25: 0 | G25: 0 | H25: 0 | I25: =G25-H25 -> 0 | J25: =IF(I25=0,"",I25/H25) ->  | K25: 0
A26: Other benefits and allowances | C26: 0 | D26: 349788 | E26: 349788 | F26: 0 | G26: 0 | H26: 204071 | I26: -204071 | J26: -1 | K26: 349788
A27: Payments in lieu of leave | C27: 0 | D27: 0 | E27: 0 | F27: 0 | G27: 0 | H27: 0 | I27: 0 | K27: 0
A28: Long service awards | C28: 0 | D28: 0 | E28: 0 | F28: 0 | G28: 0 | H28: 0 | I28: 0 | K28: 0
A29: Post-retirement benefit obligations | B29: 2 | C29: 0 | D29: 0 | E29: 0 | F29: 0 | G29: 0 | H29: 0 | I29: 0 | K29: 0
A30: Sub Total - Senior Managers of Municipality | C30: =SUM(C18:C29) -> 4893798.53 | D30: 5935639 | E30: 5935639 | F30: =SUM(F18:F29) -> 426984.55 | G30: =SUM(G18:G29) -> 2984262.55 | H30: =SUM(H18:H29) -> 3462550 | I30: -478287.45 | J30: =IF(I30=0,"",I30/H30) -> -0.1381315649 | K30: 5935639
A31: % increase | B31: 4 | D31: =IF(D30=0,"",(D30/C30)-1) -> 0.2128899389 | E31: =IF(E30=0,"",(E30/C30)-1) -> 0.2128899389 | K31: =IF(K30=0,"",(K30/C30)-1) -> 0.2128899389
A33: Other Municipal Staff
A34: Basic Salaries and Wages | C34: 50942512.79 | D34: 54619530 | E34: 54619530 | F34: 4428557.08 | G34: 31144498.54 | H34: 31861543 | I34: =G34-H34 -> -717044.46 | J34: =IF(I34=0,"",I34/H34) -> -0.02250501365 | K34: 54619530
A35: Pension and UIF Contributions | C35: 9874746.42 | D35: 11651387 | E35: 11651387 | F35: 865962.66 | G35: 6086066.28 | H35: 6796888 | I35: -710821.72 | J35: -0.1045804668 | K35: 11651387
A36: Medical Aid Contributions | C36: 4127157.03 | D36: 5102117 | E36: 5102117 | F36: 375315.96 | G36: 2536136.24 | H36: 2976351 | I36: -440214.76 | J36: -0.147904182 | K36: 5102117
A37: Overtime | C37: 0 | D37: 0 | E37: 0 | F37: 0 | G37: 0 | H37: 0 | I37: 0 | K37: 0
A38: Performance Bonus | C38: 5333457.17 | D38: 5749717 | E38: 5749717 | F38: 467222.65 | G38: 2619755.71 | H38: 3354218 | I38: -734462.29 | J38: -0.2189667726 | K38: 5749717
A39: Motor Vehicle Allowance | C39: 5010847.63 | D39: 5903770 | E39: 5903770 | F39: 444238.82 | G39: 3258533.28 | H39: 3443930 | I39: =G39-H39 -> -185396.72 | J39: =IF(I39=0,"",I39/H39) -> -0.0538328944 | K39: 5903770
A40: Cellphone Allowance | C40: 914343.09 | D40: 1064317 | E40: 1064317 | F40: 73746.82 | G40: 535988.71 | H40: 620900 | I40: =G40-H40 -> -84911.29 | J40: =IF(I40=0,"",I40/H40) -> -0.136755178 | K40: 1064317
A41: Housing Allowances | C41: 182795.61 | D41: 371545 | E41: 371545 | F41: 14467.65 | G41: 105131.54 | H41: 216797 | I41: =G41-H41 -> -111665.46 | J41: =IF(I41=0,"",I41/H41) -> -0.5150692122 | K41: 371545
A42: Other benefits and allowances | C42: 1408523.84 | D42: 2669846 | E42: 2669846 | F42: 145303.95 | G42: 865549.18 | H42: 1557633 | I42: -692083.82 | J42: -0.4443176409 | K42: 2669846
A43: Payments in lieu of leave | C43: 2399742.03 | D43: 1806968 | E43: 1806968 | F43: 0 | G43: 333581.28 | H43: 1054172 | I43: -720590.72 | J43: -0.683560861 | K43: 1806968
A44: Long service awards | C44: 532895.01 | D44: 1190577 | E44: 1190577 | F44: 0 | G44: 7850.34 | H44: 694582 | I44: -686731.66 | J44: -0.9886977491 | K44: 1190577
A45: Post-retirement benefit obligations | B45: 2 | C45: -1341122 | D45: 2099666 | E45: 2099666 | F45: 0 | G45: 0 | H45: 1225000 | I45: -1225000 | J45: -1 | K45: 2099666
A46: Sub Total - Other Municipal Staff | C46: =SUM(C34:C45) -> 79385898.62 | D46: 92229440 | E46: 92229440 | F46: =SUM(F34:F45) -> 6814815.59 | G46: =SUM(G34:G45) -> 47493091.1 | H46: =SUM(H34:H45) -> 53802014 | I46: -6308922.9 | J46: =IF(I46=0,"",I46/H46) -> -0.1172618352 | K46: 92229440
A47: % increase | B47: 4 | D47: =IF(D46=0,"",(D46/C46)-1) -> 0.1617861812 | E47: =IF(E46=0,"",(E46/C46)-1) -> 0.1617861812 | K47: =IF(K46=0,"",(K46/C46)-1) -> 0.1617861812
A49: Total Parent Municipality | C49: =C14+C30+C46 -> 97159309.05 | D49: =D14+D30+D46 -> 113175341 | E49: 113175341 | F49: 8320301.48 | G49: 58032863.03 | H49: 66020619 | I49: =G49-H49 -> -7987755.97 | J49: =IF(I49=0,"",I49/H49) -> -0.1209888076 | K49: 113175341
D50: =IF(D49=0,"",(D49/C49)-1) -> 0.1648429997 | E50: =IF(E49=0,"",(E49/C49)-1) -> 0.1648429997 | K50: =IF(K49=0,"",(K49/C49)-1) -> 0.1648429997
A51: Unpaid salary, allowances & benefits in arrears:
A53: Board Members of Entities
A54: Basic Salaries and Wages | I54: =G54-H54 -> 0 | J54: =IF(I54=0,"",I54/H54) -> 
A55: Pension and UIF Contributions | I55: 0
A56: Medical Aid Contributions | I56: 0
A57: Overtime | I57: =G57-H57 -> 0 | J57: =IF(I57=0,"",I57/H57) -> 
A58: Performance Bonus | I58: =G58-H58 -> 0 | J58: =IF(I58=0,"",I58/H58) -> 
A59: Motor Vehicle Allowance | I59: =G59-H59 -> 0 | J59: =IF(I59=0,"",I59/H59) -> 
A60: Cellphone Allowance | I60: =G60-H60 -> 0 | J60: =IF(I60=0,"",I60/H60) -> 
A61: Housing Allowances | I61: =G61-H61 -> 0 | J61: =IF(I61=0,"",I61/H61) -> 
A62: Other benefits and allowances | I62: 0
A63: Board Fees | I63: =G63-H63 -> 0 | J63: =IF(I63=0,"",I63/H63) -> 
A64: Payments in lieu of leave | I64: 0
A65: Long service awards | I65: 0
A66: Post-retirement benefit obligations | I66: 0
A67: Sub Total - Board Members of Entities | B67: 2 | C67: =SUM(C54:C66) -> 0 | D67: 0 | E67: 0 | F67: =SUM(F54:F66) -> 0 | G67: =SUM(G54:G66) -> 0 | H67: =SUM(H54:H66) -> 0 | I67: 0 | J67: =IF(I67=0,"",I67/H67) ->  | K67: 0
A68: % increase | B68: 4 | D68: =IF(D67=0,"",(D67/C67)-1) ->  | E68: =IF(E67=0,"",(E67/C67)-1) ->  | K68: =IF(K67=0,"",(K67/C67)-1) -> 
A70: Senior Managers of Entities
A71: Basic Salaries and Wages | I71: =G71-H71 -> 0 | J71: =IF(I71=0,"",I71/H71) -> 
A72: Pension and UIF Contributions | I72: 0
A73: Medical Aid Contributions | I73: 0
A74: Overtime | I74: 0
A75: Performance Bonus | I75: =G75-H75 -> 0 | J75: =IF(I75=0,"",I75/H75) -> 
A76: Motor Vehicle Allowance | I76: =G76-H76 -> 0 | J76: =IF(I76=0,"",I76/H76) -> 
A77: Cellphone Allowance | I77: =G77-H77 -> 0 | J77: =IF(I77=0,"",I77/H77) -> 
A78: Housing Allowances | I78: =G78-H78 -> 0 | J78: =IF(I78=0,"",I78/H78) -> 
A79: Other benefits and allowances | I79: 0
A80: Payments in lieu of leave | I80: 0
A81: Long service awards | I81: 0
A82: Post-retirement benefit obligations | B82: 2 | I82: 0
A83: Sub Total - Senior Managers of Entities | C83: =SUM(C71:C82) -> 0 | D83: 0 | E83: 0 | F83: =SUM(F71:F82) -> 0 | G83: =SUM(G71:G82) -> 0 | H83: =SUM(H71:H82) -> 0 | I83: 0 | J83: =IF(I83=0,"",I83/H83) ->  | K83: 0
A84: % increase | B84: 4 | D84: =IF(D83=0,"",(D83/C83)-1) ->  | E84: =IF(E83=0,"",(E83/C83)-1) ->  | K84: =IF(K83=0,"",(K83/C83)-1) -> 
A86: Other Staff of Entities
A87: Basic Salaries and Wages | I87: =G87-H87 -> 0 | J87: =IF(I87=0,"",I87/H87) -> 
A88: Pension and UIF Contributions | I88: 0
A89: Medical Aid Contributions | I89: =G89-H89 -> 0 | J89: =IF(I89=0,"",I89/H89) -> 
A90: Overtime | I90: =G90-H90 -> 0 | J90: =IF(I90=0,"",I90/H90) -> 
A91: Performance Bonus | I91: =G91-H91 -> 0 | J91: =IF(I91=0,"",I91/H91) -> 
A92: Motor Vehicle Allowance | I92: =G92-H92 -> 0 | J92: =IF(I92=0,"",I92/H92) -> 
A93: Cellphone Allowance | I93: 0
A94: Housing Allowances | I94: 0
A95: Other benefits and allowances | I95: 0
A96: Payments in lieu of leave | I96: 0
A97: Long service awards | I97: 0
A98: Post-retirement benefit obligations | I98: 0
A99: Sub Total - Other Staff of Entities | C99: =SUM(C87:C98) -> 0 | D99: 0 | E99: 0 | F99: 0 | G99: 0 | H99: 0 | I99: 0 | J99: =IF(I99=0,"",I99/H99) ->  | K99: =SUM(K87:K98) -> 0
A100: % increase | B100: 4 | D100: =IF(D99=0,"",(D99/C99)-1) ->  | E100: =IF(E99=0,"",(E99/C99)-1) ->  | K100: =IF(K99=0,"",(K99/C99)-1) -> 
A102: Total Municipal Entities | C102: =C67+C83+C99 -> 0 | D102: 0 | E102: 0 | F102: 0 | G102: 0 | H102: 0 | I102: =G102-H102 -> 0 | J102: =IF(I102=0,"",I102/H102) ->  | K102: =K67+K83+K99 -> 0
A104: TOTAL SALARY, ALLOWANCES & BENEFITS | C104: =C49+C102 -> 97159309.05 | D104: 113175341 | E104: 113175341 | F104: 8320301.48 | G104: 58032863.03 | H104: 66020619 | I104: =G104-H104 -> -7987755.97 | J104: =IF(I104=0,"",I104/H104) -> -0.1209888076 | K104: =K49+K102 -> 113175341
A105: % increase | B105: 4 | D105: =IF(D104=0,"",(D104/C104)-1) -> 0.1648429997 | E105: =IF(E104=0,"",(E104/C104)-1) -> 0.1648429997 | K105: =IF(K104=0,"",(K104/C104)-1) -> 0.1648429997
A106: TOTAL MANAGERS AND STAFF | C106: =C30+C46+C83+C99 -> 84279697.15 | D106: 98165079 | E106: 98165079 | F106: 7241800.14 | G106: 50477353.65 | H106: 57264564 | I106: -6787210.35 | J106: =IF(I106=0,"",I106/H106) -> -0.118523741 | K106: =K30+K46+K83+K99 -> 98165079
A107: =head27a -> References
A108: 1. Include 'Loans and advances' where applicable if any reportable amounts until phased compliance with s164 of MFMA achieved
A109: 2. If benefits in kind are provided (e.g. provision of living quarters) the full market value must be shown as the cost to the municipality
A110: 3. s57 of the Systems Act
A111: 4. B/A, C/A, D/A
A112: Column Definitions:
A113: A. Audited actual 2005/06 (audited financial statements). If audited amounts unavailable, unaudited amounts must be provided with a note stating these are unaudited
A114: B. The original budget approved by council for the 2006/07 budget year.
A115: C. The budget for 2006/07 budget year as adjusted by council resolution in terms of section 28 of the MFMA.
A116: D. An estimate of final actual amounts (pre audit - 2006/07 budget year) at the time of preparing the budget for the 2007/08 budget year. This may differ from C.

Sheet SC9
A1: =muni& " - "&S71O& " - "&Head57 -> LIM353 Molemole - Supporting Table SC9 Monthly Budget Statement - actuals and revised targets for cash receipts - M07 January
A2: =desc -> Description | B2: =head27 -> Ref | C2: =Head2 -> Budget Year 2020/21 | O2: ='Template names'!B5 -> 2020/21 Medium Term Revenue & Expenditure Framework
C3: July | D3: August | E3: Sept | F3: October | G3: Nov | H3: Dec | I3: January | J3: Feb | K3: March | L3: April | M3: May | N3: June | O3: =Head9 -> Budget Year 2020/21 | P3: =Head10 -> Budget Year +1 2021/22 | Q3: =Head11 -> Budget Year +2 2022/23
A4: R thousands | B4: 1 | C4: Outcome | D4: Outcome | E4: Outcome | F4: Outcome | G4: Outcome | H4: Outcome | I4: Outcome | J4: Budget | K4: Budget | L4: Budget | M4: Budget | N4: Budget
A5: Cash Receipts By Source
A6: Property rates | C6: =57+30593+50604+20796+840 -> 102890 | D6: =18914+31124+134791+1763 -> 186592 | E6: =52856+14708+60732+735 -> 129031 | F6: =178+297785+20779+18496294 -> 18815036 | G6: =3506+164411+54835+12648891+9315 -> 12880958 | H6: =456+53258+77590+128684+29635 -> 289623 | I6: =456+53256+77590+126684+29634 -> 287620 | J6: 0 | K6: 0 | L6: 0 | M6: 0 | N6: =O6-SUM(C6:M6) -> -25940067 | O6: 6751683 | P6: 11480162 | Q6: 12628178
A7: Service charges - electricity revenue | C7: 111013 | D7: 630539 | E7: =19129+597594 -> 616723 | F7: =30144+1108707 -> 1138851 | G7: =559458+97882 -> 657340 | H7: =359021+526866 -> 885887 | I7: =359021+552480 -> 911501 | J7: 0 | K7: 0 | L7: 0 | M7: 0 | N7: 2519851 | O7: 7471705 | P7: 2522895 | Q7: 2774481
A8: Service charges - water revenue | C8: 0 | D8: 0 | E8: 0 | F8: 0 | G8: 0 | H8: 0 | I8: 0 | J8: 0 | K8: 0 | L8: 0 | M8: 0 | N8: 0 | O8: 0 | P8: 1145064 | Q8: 1259570
A9: Service charges - sanitation revenue | C9: 0 | D9: 0 | E9: 0 | F9: 0 | G9: 0 | H9: 0 | I9: 0 | J9: 0 | K9: 0 | L9: 0 | M9: 0 | N9: 0 | O9: 0 | P9: 534430 | Q9: 587873
A10: Service charges - refuse | C10: 15695 | D10: 7090 | E10: 17620 | F10: 11667 | G10: 17673 | H10: 28600 | I10: 28600 | J10: 0 | K10: 0 | L10: 0 | M10: 0 | N10: 1514369 | O10: 1641314 | P10: 3667551 | Q10: 3899236
A12: Rental of facilities and equipment | D12: 17802.88 | E12: 17802.88 | F12: 35605.76 | G12: ='[7]C4-FinPerf RE'!F12 -> 17802.88 | H12: ='[8]C4-FinPerf RE'!F12 -> 15256.34 | I12: ='C4-FinPerf RE'!F12 -> 20349.42 | J12: 0 | K12: 0 | L12: 0 | M12: 0 | N12: 119842.84 | O12: 244463 | P12: 255708 | Q12: 267470
A13: Interest earned - external investments | C13: 88205 | D13: 151149 | E13: 142945.74 | F13: 130429.2 | G13: ='[7]C4-FinPerf RE'!F13 -> 152873.08 | H13: ='[8]C4-FinPerf RE'!F13 -> 171637.43 | I13: ='C4-FinPerf RE'!F13 -> 245836.23 | N13: 1132412.32 | O13: 2215488
A14: Interest earned - outstanding debtors | C14: 4139 | D14: 4041 | E14: 6582 | F14: 1874 | G14: =798+1758+692+790+2544+111+161+3+34+782160 -> 789051 | H14: =190+19167+3057+524+1959+2773+26+2896+69 -> 30661 | I14: =190+19167+3057+524+2773+26+2897+69 -> 28703 | N14: 410066 | O14: 1275117
A15: Dividends received | F15: 0 | N15: 0 | O15: 0
A16: Fines, penalties and forfeits | C16: 0 | D16: 3700 | E16: 0 | F16: 250 | G16: ='[7]C4-FinPerf RE'!F16 -> 5705 | H16: ='[8]C4-FinPerf RE'!F16 -> 3850 | I16: ='C4-FinPerf RE'!F16 -> 1700 | J16: 0 | K16: 0 | L16: 0 | M16: 0 | N16: 4272036 | O16: 4287241 | P16: 1349739 | Q16: 1413005
A17: Licences and permits | C17: 0 | D17: 1114254.54 | E17: 834153.37 | F17: 1140026.04 | G17: ='[7]C4-FinPerf RE'!F17 -> 1518183.83 | H17: ='[8]C4-FinPerf RE'!F17 -> 1163555.33 | I17: ='C4-FinPerf RE'!F17 -> 1088275.6 | J17: 0 | K17: 0 | L17: 0 | M17: 0 | N17: 525003.29 | O17: 7383452 | P17: 7723091 | Q17: 8078353
A18: Agency services | C18: 0 | D18: 14041 | E18: 26301 | F18: 13986 | G18: =6754+13120+20 -> 19894 | H18: =12252+10998+4770+69 -> 28089 | I18: =12252+10998+4770+69 -> 28089 | J18: 0 | K18: 0 | L18: 0 | M18: 0 | N18: 564218 | O18: 694618 | P18: 726570 | Q18: 759992
A19: Transfers and Subsidies - Operational | C19: 67854000 | D19: 2726000 | E19: 0 | F19: 0 | G19: 0 | H19: 74358000 | I19: 0 | J19: 0 | K19: 0 | L19: 0 | M19: 0 | N19: 40474650 | O19: =[9]SB15!$P$19 -> 185412650 | P19: 0 | Q19: 0
A20: Other revenue | C20: 0 | D20: 0 | E20: 0 | F20: 0 | G20: 0 | H20: 0 | I20: 0 | J20: 0 | K20: 0 | L20: 0 | M20: 0 | N20: 7854441 | O20: 7854441 | P20: -18191419 | Q20: -19332988
A21: Cash Receipts by Source | C21: =SUM(C6:C10)+SUM(C12:C20) -> 68175942 | D21: =SUM(D6:D10)+SUM(D12:D20) -> 4855209.42 | E21: 1791158.99 | F21: 21287725 | G21: 16059480.79 | H21: 76975159.1 | I21: 2640674.25 | J21: 0 | K21: 0 | L21: 0 | M21: 0 | N21: 33446822.45 | O21: 225232172 | P21: 11213791 | Q21: 12335170
N22: =O22-SUM(C22:M22) -> 0
A23: Other Cash Flows by Source | N23: 0
A24: ='C4-FinPerf RE'!A39 -> Transfers and subsidies - capital (monetary allocations) (National / Provincial and District) | C24: =19500000 -> 19500000 | D24: 1500000 | E24: =499900 -> 499900 | F24: 0 | G24: 0 | H24: 0 | I24: =7500000+13560000+587000 -> 21647000 | J24: 0 | K24: 0 | L24: 0 | M24: 0 | N24: 1739431 | O24: 44886331 | P24: 41852050 | Q24: 44802400
A25: ='C4-FinPerf RE'!A40 -> Transfers and subsidies - capital (monetary allocations) (National / Provincial Departmental Agencies, Households, Non-profit Institutions, Private Enterprises, Public Corporatons, Higher Educational Institutions) | N25: 0
A26: Proceeds on Disposal of Fixed and Intangible Assets | N26: 0
A27: Short term loans | N27: 0
A28: Borrowing long term/refinancing | N28: 0
A29: Increase (decrease) in consumer deposits | C29: 0 | D29: 0 | E29: 0 | F29: 0 | G29: 0 | H29: 0 | I29: 0 | J29: 0 | K29: 0 | L29: 0 | M29: 0 | N29: 0 | O29: 0 | P29: 0 | Q29: 0
A31: Decrease (increase) in non-current receivables | N31: 0
A32: Decrease (increase) in non-current investments | C32: 0 | D32: 0 | E32: 0 | F32: 0 | G32: 0 | H32: 0 | I32: 0 | J32: 0 | K32: 0 | L32: 0 | M32: 0 | N32: 0 | O32: 0 | P32: 0 | Q32: 0
A33: Total Cash Receipts by Source | C33: =SUM(C21:C29)+SUM(C31:C32) -> 87675942 | D33: =SUM(D21:D29)+SUM(D31:D32) -> 6355209.42 | E33: 2291058.99 | F33: 21287725 | G33: 16059480.79 | H33: 76975159.1 | I33: 24287674.25 | J33: 0 | K33: 0 | L33: 0 | M33: 0 | N33: 35186253.45 | O33: 270118503 | P33: 53065841 | Q33: 57137570
N34: =O34-SUM(C34:M34) -> 0
A35: Cash Payments by Type | N35: 0
A36: Employee related costs | C36: 0 | D36: 14100137.39 | E36: ='[10]C4-FinPerf RE'!F25 -> 7143672.73 | F36: =VLOOKUP('[11]C4-FinPerf RE'!A25,'[11]C4-FinPerf RE'!A25:F35,6,FALSE) -> 7616521.34 | G36: =VLOOKUP(A36:A45,'[7]C4-FinPerf RE'!A25:F35,6,FALSE) -> 7228590.37 | H36: ='[8]C4-FinPerf RE'!F25 -> 7146631.68 | I36: ='C4-FinPerf RE'!F25 -> 7241800.14 | J36: 0 | K36: 0 | L36: 0 | M36: 0 | N36: 47687725.35 | O36: 98165079 | P36: 105054599 | Q36: 112379006
A37: Remuneration of councillors | D37: 2161002.68 | E37: ='[10]C4-FinPerf RE'!F26 -> 1080501.34 | F37: =VLOOKUP('[11]C4-FinPerf RE'!A26,'[11]C4-FinPerf RE'!A26:F36,6,FALSE) -> 1078501.34 | G37: =VLOOKUP(A37:A46,'[7]C4-FinPerf RE'!A26:F36,6,FALSE) -> 1078501.34 | H37: ='[8]C4-FinPerf RE'!F26 -> 1078501.34 | I37: ='C4-FinPerf RE'!F26 -> 1078501.34 | N37: 7454752.62 | O37: 15010262 | P37: 16060977 | Q37: 17185245
A38: Interest paid | D38: 770.09 | E38: ='[10]C4-FinPerf RE'!F29 -> 453.36 | F38: =VLOOKUP('[11]C4-FinPerf RE'!A27,'[11]C4-FinPerf RE'!A27:F37,6,FALSE) -> 0 | G38: ='[7]C4-FinPerf RE'!F29 -> 404.74 | H38: ='[8]C4-FinPerf RE'!F29 -> 772.56 | I38: ='C4-FinPerf RE'!F29 -> 434.82 | N38: 2180769.43 | O38: 2183605 | P38: 2090320 | Q38: 1979521
A39: Bulk purchases - Electricity | C39: 0 | D39: 2590034.1 | E39: ='[10]C4-FinPerf RE'!F30 -> 1817727.2 | F39: 1008036.34 | G39: ='[7]C4-FinPerf RE'!F30 -> 965463.15 | H39: ='[8]C4-FinPerf RE'!F30 -> 0 | I39: ='C4-FinPerf RE'!F30 -> 1782382.08 | J39: 0 | K39: 0 | L39: 0 | M39: 0 | N39: 2874065.13 | O39: 11037708 | P39: 11502469 | Q39: 12339289
A40: Bulk purchases - Water & Sewer | F40: =VLOOKUP('[11]C4-FinPerf RE'!A29,'[11]C4-FinPerf RE'!A29:F39,6,FALSE) -> 423.91 | G40: 0 | N40: -423.91
A41: Other materials | D41: 301726.82 | E41: ='[10]C4-FinPerf RE'!F31 -> 296088.21 | F41: 212803.78 | G41: ='[7]C4-FinPerf RE'!F31 -> 409901.77 | H41: ='[8]C4-FinPerf RE'!F31 -> 248488.18 | I41: ='C4-FinPerf RE'!F31 -> 193762.96 | N41: 3851448.28 | O41: 5514220 | P41: 5766234 | Q41: 6029767
A42: Contracted services | D42: 2263316.07 | E42: ='[10]C4-FinPerf RE'!F32 -> 1400695.48 | F42: 2737540.17 | G42: =VLOOKUP(A42:A51,'[7]C4-FinPerf RE'!A31:F41,6,FALSE) -> 2893486.01 | H42: ='[8]C4-FinPerf RE'!F32 -> 7134316.87 | I42: ='C4-FinPerf RE'!F32 -> 1783504.6 | N42: 2102318.8 | O42: 20315178 | P42: 18761799 | Q42: 19964904
A43: Grants and subsidies paid - other municipalities | C43: 0 | D43: 0 | E43: 0 | F43: 0 | G43: 0 | H43: 0 | I43: 0 | J43: 0 | K43: 0 | L43: 0 | M43: 0 | N43: 0
A44: Grants and subsidies paid - other | F44: =VLOOKUP('[11]C4-FinPerf RE'!A33,'[11]C4-FinPerf RE'!A33:F43,6,FALSE) -> 0 | G44: 0 | N44: 0 | O44: 0 | P44: 0 | Q44: 0
A45: General expenses | C45: 0 | D45: 1900945.91 | E45: ='[10]C4-FinPerf RE'!F34 -> 2662821.56 | F45: =VLOOKUP('[11]C4-FinPerf RE'!A34,'[11]C4-FinPerf RE'!A34:F44,6,FALSE) -> 3538180.07 | G45: ='[7]C4-FinPerf RE'!F34 -> 2978904.96 | H45: ='[8]C4-FinPerf RE'!F34 -> 2153817.09 | I45: ='C4-FinPerf RE'!F34 -> 1587595.75 | J45: 0 | K45: 0 | L45: 0 | M45: 0 | N45: 21359561.66 | O45: 36181827 | P45: 22736645.05 | Q45: 23716870.71
A46: Cash Payments by Type | B46: =SUM(B36:B45) -> 0 | C46: =SUM(C36:C45) -> 0 | D46: =SUM(D36:D45) -> 23317933.06 | E46: 14401959.88 | F46: 16192006.95 | G46: 15555252.34 | H46: 17762527.72 | I46: 13667981.69 | J46: 0 | K46: 0 | L46: 0 | M46: 0 | N46: 87510217.36 | O46: 188407879 | P46: 181973043 | Q46: 193594602.7
N47: =O47-SUM(C47:M47) -> 0
A48: Other Cash Flows/Payments by Type
A49: Capital assets | C49: 0 | D49: 0 | E49: 6014144.52 | F49: 2043057.47 | G49: 2669340.98 | H49: ='[8]C5-Capex'!F74 -> 7680224.37 | I49: ='C5-Capex'!F74 -> 2917122.36 | J49: 0 | K49: 0 | L49: 0 | M49: 0 | N49: =O49-SUM(C49:M49) -> 51292658.3 | O49: 72616548 | P49: 55851050 | Q49: 60591560
A50: Repayment of borrowing | C50: 0 | D50: 0 | E50: 0 | F50: 0 | G50: 0 | H50: 0 | I50: 0 | J50: 0 | K50: 0 | L50: 0 | M50: 0 | N50: =O50-SUM(C50:M50) -> 0 | O50: 0 | P50: 0 | Q50: 0
A51: Other Cash Flows/Payments | N51: =O51-SUM(C51:M51) -> 0
A52: Total Cash Payments by Type | B52: =SUM(B46:B51) -> 0 | C52: 0 | D52: 23317933.06 | E52: 20416104.4 | F52: 18235064.42 | G52: 18224593.32 | H52: 25442752.09 | I52: 16585104.05 | J52: 0 | K52: 0 | L52: 0 | M52: 0 | N52: 138802875.7 | O52: 261024427 | P52: 237824093 | Q52: 254186162.7
N53: =O53-SUM(C53:M53) -> 0
A54: NET INCREASE/(DECREASE) IN CASH HELD | B54: =B33-B52 -> 0 | C54: 87675942 | D54: -16962723.64 | E54: -18125045.41 | F54: 3052660.58 | G54: -2165112.53 | H54: 51532407.01 | I54: 7702570.2 | J54: 0 | K54: 0 | L54: 0 | M54: 0 | N54: -103616622.2 | O54: 9094076 | P54: -184758252 | Q54: -197048592.7
A55: Cash/cash equivalents at the month/year beginning: | C55: 23009822 | D55: 0 | E55: 0 | F55: 0 | G55: 0 | H55: 0 | I55: 0 | J55: 459896.23 | K55: 459896.23 | L55: 459896.23 | M55: 459896.23 | N55: =M56 -> 459896.23 | O55: 6194295 | P55: 17439237 | Q55: 18333820
A56: Cash/cash equivalents at the month/year end: | C56: =C54+C55 -> 110685764 | D56: =D54+D55 -> -16962723.64 | E56: =E54+E55 -> -18125045.41 | F56: 3052660.58 | G56: -2165112.53 | H56: 51532407.01 | I56: 7702570.2 | J56: 459896.23 | K56: 459896.23 | L56: 459896.23 | M56: 459896.23 | N56: -103156726 | O56: =O54+O55 -> 15288371 | P56: =P54+P55 -> -167319015 | Q56: =Q54+Q55 -> -178714772.7
A57: =head27a -> References
A58: 1. Replace 'budget' heading with adjusted budget, or 'outcome' only for month/s complete
A59: 2. Total of monthly amounts must always agree to the approved or adjusted budget
A60: 3. Amend 'cash-at-beginning' when prior year actual known (as part of the adjustments budget)
E65: =E46+E64 -> 14401959.88 | F65: 16192006.95 | G65: 15555252.34 | H65: 17762527.72 | I65: 13667981.69 | J65: 0 | K65: 0 | L65: 0 | N65: =N46+N64 -> 87510217.36 | O65: 188407879 | P65: 181973043
E66: =E54-E64 -> -18125045.41 | F66: 3052660.58 | G66: -2165112.53 | H66: 51532407.01 | I66: 7702570.2 | J66: 0 | K66: 0 | L66: 0 | M66: =M54-M64 -> 0 | N66: =N54-N64 -> -103616622.2 | O66: 9094076 | P66: -184758252

Sheet SC10
A1: =muni& " - "&S71P& " - "&Head57 -> LIM353 Molemole - NOT REQUIRED - municipality does not have entities or this is the parent municipality's budget - M07 January
A2: =desc -> Description | B2: =head27 -> Ref | C2: =Head1 -> 2019/20 | D2: =Head2 -> Budget Year 2020/21
C3: =Head5 -> Audited Outcome | D3: =Head6 -> Original Budget | E3: =Head7 -> Adjusted Budget | F3: =Head38 -> Monthly actual | G3: =Head39 -> YearTD actual | H3: =Head40 -> YearTD budget | I3: =Head41 -> YTD variance | J3: =Head41 -> YTD variance | K3: =Head8 -> Full Year Forecast
A4: R thousands | B4: 1 | J4: %
A5: ='C4-FinPerf RE'!A5 -> Revenue By Source
A6: ='C4-FinPerf RE'!A6 -> Property rates | I6: =G6-H6 -> 0 | J6: =IF(I6=0,"",I6/H6) -> 
A7: ='C4-FinPerf RE'!A7 -> Service charges - electricity revenue | I7: 0 | J7: =IF(I7=0,"",I7/H7) -> 
A8: ='C4-FinPerf RE'!A8 -> Service charges - water revenue | I8: 0
A9: ='C4-FinPerf RE'!A9 -> Service charges - sanitation revenue | I9: 0
A10: ='C4-FinPerf RE'!A10 -> Service charges - refuse revenue | I10: 0
A12: ='C4-FinPerf RE'!A12 -> Rental of facilities and equipment | I12: 0
A13: ='C4-FinPerf RE'!A13 -> Interest earned - external investments | I13: 0
A14: ='C4-FinPerf RE'!A14 -> Interest earned - outstanding debtors | I14: 0
A15: ='C4-FinPerf RE'!A15 -> Dividends received | I15: 0
A16: ='C4-FinPerf RE'!A16 -> Fines, penalties and forfeits | I16: 0
A17: ='C4-FinPerf RE'!A17 -> Licences and permits | I17: 0
A18: ='C4-FinPerf RE'!A18 -> Agency services | I18: 0
A19: ='C4-FinPerf RE'!A19 -> Transfers and subsidies | I19: 0
A20: ='C4-FinPerf RE'!A20 -> Other revenue | I20: 0
A21: ='C4-FinPerf RE'!A21 -> Gains | I21: 0
A22: Total Revenue (excluding capital transfers and contributions) | C22: =SUM(C6:C10)+SUM(C12:C21) -> 0 | D22: 0 | E22: 0 | F22: 0 | G22: 0 | H22: 0 | I22: =G22-H22 -> 0 | K22: =SUM(K6:K10)+SUM(K12:K21) -> 0
A24: Expenditure By Type
A25: ='C4-FinPerf RE'!A25 -> Employee related costs | I25: =G25-H25 -> 0 | J25: =IF(I25=0,"",I25/H25) -> 
A26: ='C4-FinPerf RE'!A26 -> Remuneration of councillors | I26: 0
A27: ='C4-FinPerf RE'!A27 -> Debt impairment | I27: 0
A28: ='C4-FinPerf RE'!A28 -> Depreciation & asset impairment | I28: 0
A29: ='C4-FinPerf RE'!A29 -> Finance charges | I29: 0
A30: ='C4-FinPerf RE'!A30 -> Bulk purchases | I30: 0
A31: ='C4-FinPerf RE'!A31 -> Other materials | I31: 0
A32: ='C4-FinPerf RE'!A32 -> Contracted services | I32: 0
A33: ='C4-FinPerf RE'!A33 -> Transfers and subsidies | I33: 0
A34: ='C4-FinPerf RE'!A34 -> Other expenditure | I34: 0
A35: ='C4-FinPerf RE'!A35 -> Losses | I35: 0
A36: Total Expenditure | C36: =SUM(C25:C35) -> 0 | D36: 0 | E36: 0 | F36: 0 | G36: 0 | H36: 0 | I36: 0 | K36: =SUM(K25:K35) -> 0
I37: 0
A38: ='C4-FinPerf RE'!A38 -> Surplus/(Deficit) | C38: =C22-C36 -> 0 | D38: 0 | E38: 0 | F38: 0 | G38: 0 | H38: 0 | I38: 0 | K38: =K22-K36 -> 0
A39: ='C4-FinPerf RE'!A39 -> Transfers and subsidies - capital (monetary allocations) (National / Provincial and District) | I39: 0
A40: ='C4-FinPerf RE'!A40 -> Transfers and subsidies - capital (monetary allocations) (National / Provincial Departmental Agencies, Households, Non-profit Institutions, Private Enterprises, Public Corporatons, Higher Educational Institutions) | I40: 0
A41: ='C4-FinPerf RE'!A41 -> Transfers and subsidies - capital (in-kind - all) | I41: 0
A42: ='C4-FinPerf RE'!A42 -> Surplus/(Deficit) after capital transfers & contributions | C42: =C38+SUM(C39:C41) -> 0 | D42: =D38+SUM(D39:D41) -> 0 | E42: 0 | F42: 0 | G42: 0 | H42: 0 | I42: 0 | K42: 0
A43: ='C4-FinPerf RE'!A43 -> Taxation | I43: 0
A44: ='C4-FinPerf RE'!A44 -> Surplus/(Deficit) after taxation | C44: =C42-C43 -> 0 | D44: 0 | E44: 0 | F44: 0 | G44: 0 | H44: 0 | I44: 0 | K44: =K42-K43 -> 0
A45: =head27a -> References
A46: 1. Votes (consolidated) are revenue sources and expenditure type

Sheet SC11
A1: =muni& " - "&S71Q& " - "&Head57 -> LIM353 Molemole - NOT REQUIRED - municipality does not have entities or this is the parent municipality's budget - M07 January
A2: =desc -> Description | B2: =head27 -> Ref | C2: =Head1 -> 2019/20 | D2: =Head2 -> Budget Year 2020/21
C3: =Head5 -> Audited Outcome | D3: =Head6 -> Original Budget | E3: =Head7 -> Adjusted Budget | F3: =Head38 -> Monthly actual | G3: =Head39 -> YearTD actual | H3: =Head40 -> YearTD budget | I3: =Head41 -> YTD variance | J3: =Head41 -> YTD variance | K3: =Head8 -> Full Year Forecast
A4: R thousands | J4: %
A5: Revenue By Municipal Entity
A6: Insert name of municipal entity | I6: =G6-H6 -> 0 | J6: =IF(I6=0,"",I6/H6) -> 
I7: 0 | J7: =IF(I7=0,"",I7/H7) -> 
I8: 0
I9: 0
I10: 0
I11: 0
I12: 0
I13: 0
I14: 0
I15: 0
A16: Total Operating Revenue | B16: 1 | C16: =SUM(C6:C15) -> 0 | D16: 0 | E16: 0 | F16: 0 | G16: 0 | H16: 0 | I16: 0 | K16: =SUM(K6:K15) -> 0
A18: Expenditure By Municipal Entity
A19: =A6 -> Insert name of municipal entity | I19: 0 | J19: =IF(I19=0,"",I19/H19) -> 
A20: =IF(A7="","",A7) ->  | I20: 0
A21: =IF(A8="","",A8) ->  | I21: 0
I22: 0
I23: 0
I24: 0
I25: 0
I26: 0
I27: 0
I28: 0
A29: Total Operating Expenditure | B29: 2 | C29: =SUM(C19:C28) -> 0 | D29: 0 | E29: 0 | F29: 0 | G29: 0 | H29: 0 | I29: 0 | K29: =SUM(K19:K28) -> 0
A31: =Head42 -> Surplus/ (Deficit) for the yr/period | C31: =C16-C29 -> 0 | D31: =D16-D29 -> 0 | E31: 0 | F31: 0 | G31: 0 | H31: 0 | I31: =I16+I29 -> 0 | K31: 0
A32: Capital Expenditure By Municipal Entity
A33: =$A$6 -> Insert name of municipal entity | I33: 0
A34: =IF(A7="","",A7) ->  | I34: 0
A35: =IF(A8="","",A8) ->  | I35: 0
I36: 0
I37: 0
I38: 0
I39: 0
I40: 0
I41: 0
A43: Total Capital Expenditure | B43: 3 | C43: =SUM(C32:C42) -> 0 | D43: =SUM(D32:D42) -> 0 | E43: 0 | F43: 0 | G43: 0 | H43: =SUM(H32:H42) -> 0 | I43: =G43-H43 -> 0 | K43: 0
A44: =head27a -> References
A45: 1. Must reconcile to the sum of all municipal entity monthly revenue reports
A46: 2. Must reconcile to the sum of all municipal entity monthly expenditure reports
A47: 3. YTD = Year to date; FAV - favourable variance or unfavourable variance
A48: 4. Material variances to be explained
A49: 5. Insert additional 'Adjustment' Budget column for each Adjustment made by an entity

Sheet SC12
A1: =muni& " - "&S71R& " - "&Head57 -> LIM353 Molemole - Supporting Table SC12 Monthly Budget Statement - capital expenditure trend - M07 January
A2: Month | B2: =Head1 -> 2019/20 | C2: =Head2 -> Budget Year 2020/21
B3: =Head5 -> Audited Outcome | C3: =Head6 -> Original Budget | D3: =Head7 -> Adjusted Budget | E3: =Head38 -> Monthly actual | F3: =Head39 -> YearTD actual | G3: =Head40 -> YearTD budget | H3: =Head41 -> YTD variance | I3: =Head41 -> YTD variance | J3: % spend of Original Budget
A4: R thousands | I4: %
A5: Monthly expenditure performance trend
A6: July | B6: 0 | C6: 5133277.6 | D6: 5133281 | E6: 0 | F6: =IF(E6>0,E6,"") ->  | G6: =IF(D6>0,D6,C6) -> 5133281 | H6: =IF(F6="",0,G6-F6) -> 0 | I6: =IF(F6="","",IF(H6=0,"",H6/G6)) ->  | J6: =IF(F6="","",F6/$C$18) -> 
A7: August | B7: 3441483.44 | C7: 5133277.6 | D7: 5133281 | E7: 0 | F7: =IF(E7>0,E7+F6,"") ->  | G7: =IF(D7>0,D7+D6,C7+C6) -> 10266562 | H7: 0
A8: September | B8: 9697847.38 | C8: 5133277.6 | D8: 6235002.7 | E8: 6014144.52 | F8: =IF(E8>0,E8+F7,"") ->  | G8: =IF(D8>0,D8+G7,C8+G7) -> 16501564.7
A9: October | B9: 3203359.7 | C9: 5133277.6 | D9: 6235002.7 | E9: 2043057.47 | G9: =IF(D9>0,D9+G8,C9+G8) -> 22736567.4
A10: November | B10: 11102523.85 | C10: 5133277.6 | D10: 6235002.7 | E10: 2669340.98 | G10: 28971570.1
A11: December | B11: 4052075.73 | C11: 5133277.6 | D11: 6235002.7 | E11: 7680224.37 | G11: 35206572.8
A12: January | B12: 596000.62 | C12: 5133277.6 | D12: 6235002.7 | E12: 2917122.36 | G12: 41441575.5
A13: February | B13: 1172668.61 | C13: 5133277.6 | D13: 6235002.7 | E13: 0 | G13: 47676578.2 | H13: 0
A14: March | B14: 493150.94 | C14: 5133277.6 | D14: 6235002.7 | E14: 0 | G14: 53911580.9 | H14: 0
A15: April | B15: 688431.84 | C15: 5133277.6 | D15: 6235002.7 | E15: 0 | G15: 60146583.6 | H15: 0
A16: May | B16: 172650 | C16: 5133277.6 | D16: 6235002.7 | E16: 0 | G16: 66381586.3 | H16: 0
A17: June | B17: 2869620.34 | C17: 5133277.4 | D17: 6234961.7 | E17: 0 | G17: 72616548 | H17: =IF(F17="",0,G17-F17) -> 0 | I17: =IF(F17="","",IF(H17=0,"",H17/G17)) ->  | J17: =IF(F17="","",F17/$C$18) -> 
A18: Total Capital expenditure | B18: =SUM(B6:B17) -> 37489812.45 | C18: =SUM(C6:C17) -> 61599331 | D18: =SUM(D6:D17) -> 72616548 | E18: =SUM(E6:E17) -> 21323889.7

Sheet SC13a
A1: =muni& " - "&S71Sa& " - "&Head57 -> LIM353 Molemole - Supporting Table SC13a Monthly Budget Statement - capital expenditure on new assets by asset class - M07 January
A2: =desc -> Description | B2: =head27 -> Ref | C2: =Head1 -> 2019/20 | D2: =Head2 -> Budget Year 2020/21
C3: =Head5 -> Audited Outcome | D3: =Head6 -> Original Budget | E3: =Head7 -> Adjusted Budget | F3: =Head38 -> Monthly actual | G3: =Head39 -> YearTD actual | H3: =Head40 -> YearTD budget | I3: =Head41 -> YTD variance | J3: =Head41 -> YTD variance | K3: =Head8 -> Full Year Forecast
A4: R thousands | B4: 1 | J4: %
A5: Capital expenditure on new assets by Asset Class/Sub-class
A7: Infrastructure | C7: =C8+C13+C17+C27+C38+C45+C53+C63+C69 -> 31570223.46 | D7: 52646331 | E7: 52213548 | F7: 2746691.84 | G7: 18754762.09 | H7: 30493980.5 | I7: =H7-G7 -> 11739218.41 | J7: =IF(I7=0,"",I7/H7) -> 0.3849683845 | K7: =K8+K13+K17+K27+K38+K45+K53+K63+K69 -> 52213548
A8: Roads Infrastructure | C8: =SUM(C9:C12) -> 29015957.46 | D8: 34446331 | E8: 36813548 | F8: 1136371.91 | G8: 16203120.71 | H8: 21277304.5 | I8: 5074183.79 | J8: 0.238478694 | K8: =SUM(K9:K12) -> 36813548
A9: Roads | C9: 29015957.46 | D9: 34446331 | E9: 36813548 | F9: 1136371.91 | G9: 16203120.71 | H9: 21277304.5 | I9: 5074183.79 | J9: 0.238478694 | K9: 36813548
A10: Road Structures | I10: 0
A11: Road Furniture | I11: 0
A12: Capital Spares | I12: 0
A13: Storm water Infrastructure | C13: =SUM(C14:C16) -> 0 | D13: 0 | E13: 0 | F13: 0 | G13: 0 | H13: 0 | I13: 0 | K13: =SUM(K14:K16) -> 0
A14: Drainage Collection | I14: 0
A15: Storm water Conveyance | I15: 0
A16: Attenuation | I16: 0
A17: Electrical Infrastructure | C17: =SUM(C18:C26) -> 2554266 | D17: 18200000 | E17: 15400000 | F17: 1610319.93 | G17: 2551641.38 | H17: 9216676 | I17: 6665034.62 | J17: 0.7231494977 | K17: =SUM(K18:K26) -> 15400000
A18: Power Plants | I18: 0
A19: HV Substations | I19: 0
A20: HV Switching Station | I20: 0
A21: HV Transmission Conductors | I21: 0
A22: MV Substations | I22: 0
A23: MV Switching Stations | I23: 0
A24: MV Networks | I24: 0
A25: LV Networks | C25: 2554266 | D25: 18200000 | E25: 15400000 | F25: 1610319.93 | G25: 2551641.38 | H25: 9216676 | I25: 6665034.62 | J25: 0.7231494977 | K25: 15400000
A26: Capital Spares | I26: 0
A27: Water Supply Infrastructure | C27: =SUM(C28:C37) -> 0 | D27: 0 | E27: 0 | F27: 0 | G27: 0 | H27: 0 | I27: 0 | K27: =SUM(K28:K37) -> 0
A28: Dams and Weirs | I28: 0
A29: Boreholes | I29: 0
A30: Reservoirs | I30: 0
A31: Pump Stations | I31: 0
A32: Water Treatment Works | I32: 0
A33: Bulk Mains | I33: 0
A34: Distribution | I34: 0
A35: Distribution Points | I35: 0
A36: PRV Stations | I36: 0
A37: Capital Spares | I37: 0
A38: Sanitation Infrastructure | C38: =SUM(C39:C44) -> 0 | D38: 0 | E38: 0 | F38: 0 | G38: 0 | H38: 0 | I38: =H38-G38 -> 0 | J38: =IF(I38=0,"",I38/H38) ->  | K38: =SUM(K39:K44) -> 0
A39: Pump Station | I39: 0
A40: Reticulation | I40: =H40-G40 -> 0 | J40: =IF(I40=0,"",I40/H40) -> 
A41: Waste Water Treatment Works | I41: =H41-G41 -> 0 | J41: =IF(I41=0,"",I41/H41) -> 
A42: Outfall Sewers | I42: =H42-G42 -> 0 | J42: =IF(I42=0,"",I42/H42) -> 
A43: Toilet Facilities | I43: 0
A44: Capital Spares | I44: 0
A45: Solid Waste Infrastructure | C45: =SUM(C46:C52) -> 0 | D45: 0 | E45: 0 | F45: 0 | G45: 0 | H45: 0 | I45: =H45-G45 -> 0 | J45: =IF(I45=0,"",I45/H45) ->  | K45: =SUM(K46:K52) -> 0
A46: Landfill Sites | C46: 0 | D46: 0 | E46: 0 | F46: 0 | G46: 0 | H46: 0 | I46: 0 | K46: 0
A47: Waste Transfer Stations | I47: 0
A48: Waste Processing Facilities | I48: =H48-G48 -> 0 | J48: =IF(I48=0,"",I48/H48) -> 
A49: Waste Drop-off Points | I49: 0
A50: Waste Separation Facilities | I50: 0
A51: Electricity Generation Facilities | I51: 0
A52: Capital Spares | I52: 0
A53: Rail Infrastructure | C53: =SUM(C54:C62) -> 0 | D53: 0 | E53: 0 | F53: 0 | G53: 0 | H53: 0 | I53: 0 | K53: =SUM(K54:K62) -> 0
A54: Rail Lines | I54: 0
A55: Rail Structures | I55: 0
A56: Rail Furniture | I56: 0
A57: Drainage Collection | I57: 0
A58: Storm water Conveyance | I58: 0
A59: Attenuation | I59: 0
A60: MV Substations | I60: 0
A61: LV Networks | I61: 0
A62: Capital Spares | I62: 0
A63: Coastal Infrastructure | C63: =SUM(C64:C68) -> 0 | D63: 0 | E63: 0 | F63: 0 | G63: 0 | H63: 0 | I63: 0 | K63: =SUM(K64:K68) -> 0
A64: Sand Pumps | I64: 0
A65: Piers | I65: 0
A66: Revetments | I66: 0
A67: Promenades | I67: 0
A68: Capital Spares | I68: 0
A69: Information and Communication Infrastructure | C69: =SUM(C70:C73) -> 0 | D69: 0 | E69: 0 | F69: 0 | G69: 0 | H69: 0 | I69: =H69-G69 -> 0 | J69: =IF(I69=0,"",I69/H69) ->  | K69: =SUM(K70:K73) -> 0
A70: Data Centres | I70: =H70-G70 -> 0
A71: Core Layers | I71: =H71-G71 -> 0
A72: Distribution Layers | I72: =H72-G72 -> 0
A73: Capital Spares | I73: =H73-G73 -> 0
A75: Community Assets | C75: =+C76+C99 -> 0 | D75: 0 | E75: 0 | F75: 0 | G75: 0 | H75: 0 | I75: =H75-G75 -> 0 | K75: =+K76+K99 -> 0
A76: Community Facilities | C76: =SUM(C77:C98) -> 0 | D76: 0 | E76: 0 | F76: 0 | G76: 0 | H76: 0 | I76: =H76-G76 -> 0 | J76: =IF(I76=0,"",I76/H76) ->  | K76: =SUM(K77:K98) -> 0
A77: Halls | C77: 0 | D77: 0 | E77: 0 | F77: 0 | G77: 0 | H77: 0 | I77: 0 | K77: 0
A78: Centres | I78: 0
A79: Crèches | I79: 0
A80: Clinics/Care Centres | I80: 0
A81: Fire/Ambulance Stations | I81: 0
A82: Testing Stations | C82: 0 | D82: 0 | E82: 0 | F82: 0 | G82: 0 | H82: 0 | I82: 0 | K82: 0
A83: Museums | I83: 0
A84: Galleries | I84: 0
A85: Theatres | I85: 0
A86: Libraries | I86: 0
A87: Cemeteries/Crematoria | I87: 0
A88: Police | I88: =H88-G88 -> 0 | J88: =IF(I88=0,"",I88/H88) -> 
A89: Purls | I89: 0
A90: Public Open Space | C90: 0 | D90: 0 | E90: 0 | F90: 0 | G90: 0 | H90: 0 | I90: 0 | K90: 0
A91: Nature Reserves | I91: 0
A92: Public Ablution Facilities | I92: 0
A93: Markets | C93: 0 | D93: 0 | E93: 0 | F93: 0 | G93: 0 | H93: 0 | I93: 0 | K93: 0
A94: Stalls | I94: 0
A95: Abattoirs | I95: 0
A96: Airports | I96: 0
A97: Taxi Ranks/Bus Terminals | I97: 0
A98: Capital Spares | I98: 0
A99: Sport and Recreation Facilities | C99: =SUM(C100:C102) -> 0 | D99: 0 | E99: 0 | F99: 0 | G99: 0 | H99: 0 | I99: 0 | K99: =SUM(K100:K102) -> 0
A100: Indoor Facilities | I100: 0
A101: Outdoor Facilities | C101: 0 | D101: 0 | E101: 0 | F101: 0 | G101: 0 | H101: 0 | I101: 0 | K101: 0
A102: Capital Spares | I102: 0
A103: Heritage assets | C103: =SUM(C104:C108) -> 0 | D103: 0 | E103: 0 | F103: 0 | G103: 0 | H103: 0 | I103: 0 | K103: =SUM(K104:K108) -> 0
A104: Monuments | I104: 0
A105: Historic Buildings | I105: 0
A106: Works of Art | I106: 0
A107: Conservation Areas | I107: 0
A108: Other Heritage | I108: 0
I109: 0
A110: Investment properties | C110: =+C111+C114 -> 0 | D110: 0 | E110: 0 | F110: 0 | G110: 0 | H110: 0 | I110: 0 | K110: =+K111+K114 -> 0
A111: Revenue Generating | C111: =SUM(C112:C113) -> 0 | D111: 0 | E111: 0 | F111: 0 | G111: 0 | H111: 0 | I111: 0 | K111: =SUM(K112:K113) -> 0
A112: Improved Property | I112: 0
A113: Unimproved Property | I113: 0
A114: Non-revenue Generating | C114: =SUM(C115:C116) -> 0 | D114: 0 | E114: 0 | F114: 0 | G114: 0 | H114: 0 | I114: 0 | K114: =SUM(K115:K116) -> 0
A115: Improved Property | I115: 0
A116: Unimproved Property | I116: 0
A117: Other assets | C117: =+C118+C130 -> 94250 | D117: 0 | E117: 0 | F117: 0 | G117: 0 | H117: 0 | I117: 0 | K117: =+K118+K130 -> 0
A118: Operational Buildings | C118: =SUM(C119:C129) -> 94250 | D118: 0 | E118: 0 | F118: 0 | G118: 0 | H118: 0 | I118: 0 | K118: =SUM(K119:K129) -> 0
A119: Municipal Offices | C119: 94250 | D119: 0 | E119: 0 | F119: 0 | G119: 0 | H119: 0 | I119: 0 | K119: 0
A120: Pay/Enquiry Points | I120: 0 | J120: =IF(I120=0,"",I120/H120) -> 
A121: Building Plan Offices | I121: 0
A122: Workshops | C122: 0 | D122: 0 | E122: 0 | F122: 0 | G122: 0 | H122: 0 | I122: 0 | K122: 0
A123: Yards | I123: 0
A124: Stores | I124: 0
A125: Laboratories | I125: 0
A126: Training Centres | I126: 0
A127: Manufacturing Plant | I127: 0
A128: Depots | I128: 0
A129: Capital Spares | I129: 0
A130: Housing | C130: =SUM(C131:C133) -> 0 | D130: 0 | E130: 0 | F130: 0 | G130: 0 | H130: 0 | I130: 0 | K130: =SUM(K131:K133) -> 0
A131: Staff Housing | I131: 0
A132: Social Housing | I132: 0
A133: Capital Spares | I133: 0
A135: Biological or Cultivated Assets | C135: =SUM(C136:C136) -> 0 | D135: 0 | E135: 0 | F135: 0 | G135: 0 | H135: 0 | I135: =H135-G135 -> 0 | K135: =SUM(K136) -> 0
A136: Biological or Cultivated Assets | I136: =H136-G136 -> 0
A138: Intangible Assets | C138: =SUM(C139:C140) -> 58650 | D138: 1350000 | E138: 1350000 | F138: 0 | G138: 0 | H138: 787507 | I138: =H138-G138 -> 787507 | J138: 1 | K138: =SUM(K139:K140) -> 1350000
A139: Servitudes | I139: 0
A140: Licences and Rights | C140: =SUM(C141:C146) -> 58650 | D140: 1350000 | E140: 1350000 | F140: 0 | G140: 0 | H140: 787507 | I140: 787507 | J140: 1 | K140: =SUM(K141:K146) -> 1350000
A141: Water Rights | I141: 0
A142: Effluent Licenses | I142: 0
A143: Solid Waste Licenses | I143: 0
A144: Computer Software and Applications | C144: 58650 | D144: 1350000 | E144: 1350000 | F144: 0 | G144: 0 | H144: 787507 | I144: 787507 | J144: 1 | K144: 1350000
A145: Load Settlement Software Applications | I145: 0
A146: Unspecified | I146: 0
A148: Computer Equipment | C148: =SUM(C149:C149) -> 995346.52 | D148: 600000 | E148: 1200000 | F148: 170430.52 | G148: 337583.17 | H148: 650000 | I148: =H148-G148 -> 312416.83 | J148: =IF(I148=0,"",I148/H148) -> 0.4806412769 | K148: =SUM(K149) -> 1200000
A149: Computer Equipment | C149: 995346.52 | D149: 600000 | E149: 1200000 | F149: 170430.52 | G149: 337583.17 | H149: 650000 | I149: =H149-G149 -> 312416.83 | J149: =IF(I149=0,"",I149/H149) -> 0.4806412769 | K149: 1200000
A151: Furniture and Office Equipment | C151: =SUM(C152:C152) -> 255048.69 | D151: 353000 | E151: 353000 | F151: 0 | G151: 159642.09 | H151: 205919 | I151: =H151-G151 -> 46276.91 | J151: =IF(I151=0,"",I151/H151) -> 0.2247335603 | K151: =SUM(K152) -> 353000
A152: Furniture and Office Equipment | C152: 255048.69 | D152: 353000 | E152: 353000 | F152: 0 | G152: 159642.09 | H152: 205919 | I152: =H152-G152 -> 46276.91 | J152: =IF(I152=0,"",I152/H152) -> 0.2247335603 | K152: 353000
J153: =IF(I153=0,"",I153/H153) -> 
A154: Machinery and Equipment | C154: =SUM(C155:C155) -> 111398 | D154: 150000 | E154: 150000 | F154: 0 | G154: 28985 | H154: 87500 | I154: =H154-G154 -> 58515 | J154: =IF(I154=0,"",I154/H154) -> 0.6687428571 | K154: =SUM(K155) -> 150000
A155: Machinery and Equipment | C155: 111398 | D155: 150000 | E155: 150000 | F155: 0 | G155: 28985 | H155: 87500 | I155: =H155-G155 -> 58515 | J155: =IF(I155=0,"",I155/H155) -> 0.6687428571 | K155: 150000
A157: Transport Assets | C157: =SUM(C158:C158) -> 1676455.97 | D157: 0 | E157: 0 | F157: 0 | G157: 0 | H157: 0 | I157: =H157-G157 -> 0 | J157: =IF(I157=0,"",I157/H157) ->  | K157: =SUM(K158) -> 0
A158: Transport Assets | C158: 1676455.97 | D158: 0 | E158: 0 | F158: 0 | G158: 0 | H158: 0 | I158: =H158-G158 -> 0 | J158: =IF(I158=0,"",I158/H158) ->  | K158: 0
A160: Land | C160: =SUM(C161:C161) -> 0 | D160: 0 | E160: 0 | F160: 0 | G160: 0 | H160: 0 | I160: =H160-G160 -> 0 | J160: =IF(I160=0,"",I160/H160) ->  | K160: =SUM(K161) -> 0
A161: Land | I161: =H161-G161 -> 0 | J161: =IF(I161=0,"",I161/H161) -> 
A163: Zoo's, Marine and Non-biological Animals | C163: =SUM(C164:C164) -> 0 | D163: 0 | E163: 0 | F163: 0 | G163: 0 | H163: 0 | I163: =H163-G163 -> 0 | J163: =IF(I163=0,"",I163/H163) ->  | K163: =SUM(K164) -> 0
A164: Zoo's, Marine and Non-biological Animals | I164: =H164-G164 -> 0 | J164: =IF(I164=0,"",I164/H164) -> 
J165: =IF(I165=0,"",I165/H165) -> 
A166: Total Capital Expenditure on new assets | B166: 1 | C166: =C7+C75+C103+C110+C117+C135+C138+C148+C151+C154+C157+C160+C163 -> 34761372.64 | D166: 55099331 | E166: 55266548 | F166: 2917122.36 | G166: 19280972.35 | H166: 32224906.5 | I166: =H166-G166 -> 12943934.15 | J166: =IF(I166=0,"",I166/H166) -> 0.4016748396 | K166: =K7+K75+K103+K110+K117+K135+K138+K148+K151+K154+K157+K160+K163 -> 55266548
A168: =head27a -> References
A169: 1. Total Capital Expenditure on new assets (SC13a) plus Total Capital Expenditure on renewal of existing assets (SC13b) plus Total Capital Expenditure on upgrading of existing assets (SC13e) must reconcile to total capital expenditure in Table C5
A171: check balance | C171: =C166+SC13b!C166+SC13e!C166-'C5-Capex'!C40 -> 0 | D171: =D166+SC13b!D166+SC13e!D166-'C5-Capex'!D40 -> 0 | E171: =E166+SC13b!E166+SC13e!E166-'C5-Capex'!E40 -> 0 | F171: =F166+SC13b!F166+SC13e!F166-'C5-Capex'!F40 -> 0 | G171: =G166+SC13b!G166+SC13e!G166-'C5-Capex'!G40 -> 0 | H171: =H166+SC13b!H166+SC13e!H166-'C5-Capex'!H40 -> 0 | K171: =K166+SC13b!K166+SC13e!K166-'C5-Capex'!K40 -> 0

Sheet SC13b
A1: =muni& " - "&S71Sb& " - "&Head57 -> LIM353 Molemole - Supporting Table SC13b Monthly Budget Statement - capital expenditure on renewal of existing assets by asset class - M07 January
A2: =desc -> Description | B2: =head27 -> Ref | C2: =Head1 -> 2019/20 | D2: =Head2 -> Budget Year 2020/21
C3: =Head5 -> Audited Outcome | D3: =Head6 -> Original Budget | E3: =Head7 -> Adjusted Budget | F3: =Head38 -> Monthly actual | G3: =Head39 -> YearTD actual | H3: =Head40 -> YearTD budget | I3: =Head41 -> YTD variance | J3: =Head41 -> YTD variance | K3: =Head8 -> Full Year Forecast
A4: R thousands | B4: 1 | J4: %
A5: Capital expenditure on renewal of existing assets by Asset Class/Sub-class
A7: Infrastructure | C7: =C8+C13+C17+C27+C38+C45+C53+C63+C69 -> 775590 | D7: 1200000 | E7: 2700000 | F7: 0 | G7: 842410 | H7: 1450000 | I7: =H7-G7 -> 607590 | J7: =IF(I7=0,"",I7/H7) -> 0.4190275862 | K7: =K8+K13+K17+K27+K38+K45+K53+K63+K69 -> 2700000
A8: Roads Infrastructure | C8: =SUM(C9:C12) -> 0 | D8: 0 | E8: 0 | F8: 0 | G8: 0 | H8: 0 | I8: 0 | K8: =SUM(K9:K12) -> 0
A9: Roads | C9: 0 | D9: 0 | E9: 0 | F9: 0 | G9: 0 | H9: 0 | I9: 0 | K9: 0
A10: Road Structures | I10: 0
A11: Road Furniture | I11: 0
A12: Capital Spares | I12: 0
A13: Storm water Infrastructure | C13: =SUM(C14:C16) -> 0 | D13: 0 | E13: 0 | F13: 0 | G13: 0 | H13: 0 | I13: 0 | K13: =SUM(K14:K16) -> 0
A14: Drainage Collection | I14: 0
A15: Storm water Conveyance | I15: 0
A16: Attenuation | I16: 0
A17: Electrical Infrastructure | C17: =SUM(C18:C26) -> 775590 | D17: 1200000 | E17: 2700000 | F17: 0 | G17: 842410 | H17: 1450000 | I17: 607590 | J17: 0.4190275862 | K17: =SUM(K18:K26) -> 2700000
A18: Power Plants | I18: 0
A19: HV Substations | I19: 0
A20: HV Switching Station | I20: 0
A21: HV Transmission Conductors | I21: 0
A22: MV Substations | I22: 0
A23: MV Switching Stations | I23: 0
A24: MV Networks | C24: 0 | D24: 0 | E24: 0 | F24: 0 | G24: 0 | H24: 0 | I24: 0 | K24: 0
A25: LV Networks | C25: 775590 | D25: 1200000 | E25: 2700000 | F25: 0 | G25: 842410 | H25: 1450000 | I25: 607590 | J25: 0.4190275862 | K25: 2700000
A26: Capital Spares | I26: 0
A27: Water Supply Infrastructure | C27: =SUM(C28:C37) -> 0 | D27: 0 | E27: 0 | F27: 0 | G27: 0 | H27: 0 | I27: 0 | K27: =SUM(K28:K37) -> 0
A28: Dams and Weirs | I28: 0
A29: Boreholes | I29: 0
A30: Reservoirs | I30: 0
A31: Pump Stations | I31: 0
A32: Water Treatment Works | I32: 0
A33: Bulk Mains | I33: 0
A34: Distribution | I34: 0
A35: Distribution Points | I35: 0
A36: PRV Stations | I36: 0
A37: Capital Spares | I37: 0
A38: Sanitation Infrastructure | C38: =SUM(C39:C44) -> 0 | D38: 0 | E38: 0 | F38: 0 | G38: 0 | H38: 0 | I38: 0 | K38: =SUM(K39:K44) -> 0
A39: Pump Station | I39: 0
A40: Reticulation | I40: 0
A41: Waste Water Treatment Works | I41: 0
A42: Outfall Sewers | I42: 0
A43: Toilet Facilities | I43: 0
A44: Capital Spares | I44: 0
A45: Solid Waste Infrastructure | C45: =SUM(C46:C52) -> 0 | D45: 0 | E45: 0 | F45: 0 | G45: 0 | H45: 0 | I45: 0 | K45: =SUM(K46:K52) -> 0
A46: Landfill Sites | I46: 0
A47: Waste Transfer Stations | I47: 0
A48: Waste Processing Facilities | I48: 0
A49: Waste Drop-off Points | I49: 0
A50: Waste Separation Facilities | I50: 0
A51: Electricity Generation Facilities | I51: 0
A52: Capital Spares | I52: 0
A53: Rail Infrastructure | C53: =SUM(C54:C62) -> 0 | D53: 0 | E53: 0 | F53: 0 | G53: 0 | H53: 0 | I53: 0 | K53: =SUM(K54:K62) -> 0
A54: Rail Lines | I54: 0
A55: Rail Structures | I55: 0
A56: Rail Furniture | I56: 0
A57: Drainage Collection | I57: 0
A58: Storm water Conveyance | I58: 0
A59: Attenuation | I59: 0
A60: MV Substations | I60: 0
A61: LV Networks | C61: 0 | D61: 0 | E61: 0 | F61: 0 | G61: 0 | H61: 0 | I61: 0 | K61: 0
A62: Capital Spares | I62: 0
A63: Coastal Infrastructure | C63: =SUM(C64:C68) -> 0 | D63: 0 | E63: 0 | F63: 0 | G63: 0 | H63: 0 | I63: 0 | K63: =SUM(K64:K68) -> 0
A64: Sand Pumps | I64: 0
A65: Piers | I65: 0
A66: Revetments | I66: 0
A67: Promenades | I67: 0
A68: Capital Spares | I68: 0
A69: Information and Communication Infrastructure | C69: =SUM(C70:C73) -> 0 | D69: 0 | E69: 0 | F69: 0 | G69: 0 | H69: 0 | I69: 0 | K69: =SUM(K70:K73) -> 0
A70: Data Centres | I70: 0
A71: Core Layers | I71: 0
A72: Distribution Layers | I72: 0
A73: Capital Spares | I73: 0
A75: Community Assets | C75: =+C76+C99 -> 898256.36 | D75: 3000000 | E75: 9350000 | F75: 0 | G75: 1200507.35 | H75: 4925000 | I75: 3724492.65 | J75: 0.7562421624 | K75: =+K76+K99 -> 9350000
A76: Community Facilities | C76: =SUM(C77:C98) -> 0 | D76: 0 | E76: 0 | F76: 0 | G76: 0 | H76: 0 | I76: 0 | K76: =SUM(K77:K98) -> 0
A77: Halls | C77: 0 | D77: 0 | E77: 0 | F77: 0 | G77: 0 | H77: 0 | I77: 0 | K77: 0
A78: Centres | I78: 0
A79: Crèches | I79: 0
A80: Clinics/Care Centres | I80: 0
A81: Fire/Ambulance Stations | I81: 0
A82: Testing Stations | I82: 0
A83: Museums | I83: 0
A84: Galleries | I84: 0
A85: Theatres | I85: 0
A86: Libraries | I86: 0
A87: Cemeteries/Crematoria | C87: 0 | D87: 0 | E87: 0 | F87: 0 | G87: 0 | H87: 0 | I87: 0 | K87: 0
A88: Police | I88: 0
A89: Purls | I89: 0
A90: Public Open Space | I90: 0
A91: Nature Reserves | I91: 0
A92: Public Ablution Facilities | I92: 0
A93: Markets | I93: 0
A94: Stalls | I94: 0
A95: Abattoirs | I95: 0
A96: Airports | I96: 0
A97: Taxi Ranks/Bus Terminals | I97: 0
A98: Capital Spares | I98: 0
A99: Sport and Recreation Facilities | C99: =SUM(C100:C102) -> 898256.36 | D99: 3000000 | E99: 9350000 | F99: 0 | G99: 1200507.35 | H99: 4925000 | I99: 3724492.65 | J99: 0.7562421624 | K99: =SUM(K100:K102) -> 9350000
A100: Indoor Facilities | C100: 0 | D100: 0 | E100: 0 | F100: 0 | G100: 0 | H100: 0 | I100: 0 | K100: 0
A101: Outdoor Facilities | C101: 898256.36 | D101: 3000000 | E101: 9350000 | F101: 0 | G101: 1200507.35 | H101: 4925000 | I101: =H101-G101 -> 3724492.65 | J101: =IF(I101=0,"",I101/H101) -> 0.7562421624 | K101: 9350000
A102: Capital Spares | I102: 0
A103: Heritage assets | C103: =SUM(C104:C108) -> 0 | D103: 0 | E103: 0 | F103: 0 | G103: 0 | H103: 0 | I103: 0 | K103: =SUM(K104:K108) -> 0
A104: Monuments | I104: 0
A105: Historic Buildings | I105: 0
A106: Works of Art | I106: 0
A107: Conservation Areas | I107: 0
A108: Other Heritage | I108: 0
I109: 0
A110: Investment properties | C110: =+C111+C114 -> 0 | D110: 0 | E110: 0 | F110: 0 | G110: 0 | H110: 0 | I110: 0 | K110: =+K111+K114 -> 0
A111: Revenue Generating | C111: =SUM(C112:C113) -> 0 | D111: 0 | E111: 0 | F111: 0 | G111: 0 | H111: 0 | I111: 0 | K111: =SUM(K112:K113) -> 0
A112: Improved Property | I112: 0
A113: Unimproved Property | I113: 0
A114: Non-revenue Generating | C114: =SUM(C115:C116) -> 0 | D114: 0 | E114: 0 | F114: 0 | G114: 0 | H114: 0 | I114: 0 | K114: =SUM(K115:K116) -> 0
A115: Improved Property | I115: 0
A116: Unimproved Property | I116: =H116-G116 -> 0 | J116: =IF(I116=0,"",I116/H116) -> 
A117: Other assets | C117: =+C118+C130 -> 1849284.29 | D117: 0 | E117: 0 | F117: 0 | G117: 0 | H117: 0 | I117: 0 | K117: =+K118+K130 -> 0
A118: Operational Buildings | C118: =SUM(C119:C129) -> 1849284.29 | D118: 0 | E118: 0 | F118: 0 | G118: 0 | H118: 0 | I118: 0 | K118: =SUM(K119:K129) -> 0
A119: Municipal Offices | C119: 1849284.29 | D119: 0 | E119: 0 | F119: 0 | G119: 0 | H119: 0 | I119: 0 | K119: 0
A120: Pay/Enquiry Points | I120: 0
A121: Building Plan Offices | I121: 0
A122: Workshops | I122: 0
A123: Yards | I123: 0
A124: Stores | I124: 0
A125: Laboratories | I125: 0
A126: Training Centres | I126: 0
A127: Manufacturing Plant | I127: 0
A128: Depots | I128: 0
A129: Capital Spares | I129: 0
A130: Housing | C130: =SUM(C131:C133) -> 0 | D130: 0 | E130: 0 | F130: 0 | G130: 0 | H130: 0 | I130: 0 | K130: =SUM(K131:K133) -> 0
A131: Staff Housing | I131: 0
A132: Social Housing | I132: 0
A133: Capital Spares | I133: 0
A135: Biological or Cultivated Assets | C135: =SUM(C136:C136) -> 0 | D135: 0 | E135: 0 | F135: 0 | G135: 0 | H135: 0 | I135: =H135-G135 -> 0 | K135: =SUM(K136) -> 0
A136: Biological or Cultivated Assets | I136: =H136-G136 -> 0
J137: =IF(I137=0,"",I137/H137) -> 
A138: Intangible Assets | C138: =SUM(C139:C140) -> 0 | D138: 0 | E138: 0 | F138: 0 | G138: 0 | H138: 0 | I138: =H138-G138 -> 0 | K138: =SUM(K139:K140) -> 0
A139: Servitudes | I139: 0
A140: Licences and Rights | C140: =SUM(C141:C146) -> 0 | D140: 0 | E140: 0 | F140: 0 | G140: 0 | H140: 0 | I140: 0 | K140: =SUM(K141:K146) -> 0
A141: Water Rights | I141: 0
A142: Effluent Licenses | I142: 0
A143: Solid Waste Licenses | I143: 0
A144: Computer Software and Applications | C144: 0 | D144: 0 | E144: 0 | F144: 0 | G144: 0 | H144: 0 | I144: 0 | K144: 0
A145: Load Settlement Software Applications | I145: 0
A146: Unspecified | I146: 0
A148: Computer Equipment | C148: =SUM(C149:C149) -> 0 | D148: 2000000 | E148: 5000000 | F148: 0 | G148: 0 | H148: 2666669 | I148: =H148-G148 -> 2666669 | J148: =IF(I148=0,"",I148/H148) -> 1 | K148: =SUM(K149) -> 5000000
A149: Computer Equipment | C149: 0 | D149: 2000000 | E149: 5000000 | F149: 0 | G149: 0 | H149: 2666669 | I149: =H149-G149 -> 2666669 | J149: =IF(I149=0,"",I149/H149) -> 1 | K149: 5000000
A151: Furniture and Office Equipment | C151: =SUM(C152:C152) -> 0 | D151: 0 | E151: 0 | F151: 0 | G151: 0 | H151: 0 | I151: =H151-G151 -> 0 | J151: =IF(I151=0,"",I151/H151) ->  | K151: =SUM(K152) -> 0
A152: Furniture and Office Equipment | I152: =H152-G152 -> 0 | J152: =IF(I152=0,"",I152/H152) -> 
J153: =IF(I153=0,"",I153/H153) -> 
A154: Machinery and Equipment | C154: =SUM(C155:C155) -> 0 | D154: 0 | E154: 0 | F154: 0 | G154: 0 | H154: 0 | I154: =H154-G154 -> 0 | J154: =IF(I154=0,"",I154/H154) ->  | K154: =SUM(K155) -> 0
A155: Machinery and Equipment | C155: 0 | D155: 0 | E155: 0 | F155: 0 | G155: 0 | H155: 0 | I155: =H155-G155 -> 0 | J155: =IF(I155=0,"",I155/H155) ->  | K155: 0
A157: Transport Assets | C157: =SUM(C158:C158) -> 0 | D157: 0 | E157: 0 | F157: 0 | G157: 0 | H157: 0 | I157: =H157-G157 -> 0 | J157: =IF(I157=0,"",I157/H157) ->  | K157: =SUM(K158) -> 0
A158: Transport Assets | I158: =H158-G158 -> 0 | J158: =IF(I158=0,"",I158/H158) -> 
A160: Land | C160: =SUM(C161:C161) -> 0 | D160: 0 | E160: 0 | F160: 0 | G160: 0 | H160: 0 | I160: =H160-G160 -> 0 | J160: =IF(I160=0,"",I160/H160) ->  | K160: =SUM(K161) -> 0
A161: Land | I161: =H161-G161 -> 0 | J161: =IF(I161=0,"",I161/H161) -> 
J162: .
A163: Zoo's, Marine and Non-biological Animals | C163: =SUM(C164:C164) -> 0 | D163: 0 | E163: 0 | F163: 0 | G163: 0 | H163: 0 | I163: =H163-G163 -> 0 | J163: =IF(I163=0,"",I163/H163) ->  | K163: =SUM(K164) -> 0
A164: Zoo's, Marine and Non-biological Animals | I164: =H164-G164 -> 0 | J164: =IF(I164=0,"",I164/H164) -> 
J165: =IF(I165=0,"",I165/H165) -> 
A166: Total Capital Expenditure on renewal of existing assets | B166: 1 | C166: =C7+C75+C103+C110+C117+C135+C138+C148+C151+C154+C157+C160+C163 -> 3523130.65 | D166: 6200000 | E166: 17050000 | F166: 0 | G166: 2042917.35 | H166: 9041669 | I166: =H166-G166 -> 6998751.65 | J166: =IF(I166=0,"",I166/H166) -> 0.7740552823 | K166: =K7+K75+K103+K110+K117+K135+K138+K148+K151+K154+K157+K160+K163 -> 17050000
A168: =head27a -> References
A169: 1. Total Capital Expenditure on new assets (SC13a) plus Total Capital Expenditure on renewal of existing assets (SC13b) plus Total Capital Expenditure on upgrading of existing assets (SC13e) must reconcile to total capital expenditure in Table C5
A171: check balance | C171: =C166+SC13a!C166+SC13e!C166-'C5-Capex'!C40 -> 0 | D171: =D166+SC13a!D166+SC13e!D166-'C5-Capex'!D40 -> 0 | E171: =E166+SC13a!E166+SC13e!E166-'C5-Capex'!E40 -> 0 | F171: =F166+SC13a!F166+SC13e!F166-'C5-Capex'!F40 -> 0 | G171: =G166+SC13a!G166+SC13e!G166-'C5-Capex'!G40 -> 0 | H171: =H166+SC13a!H166+SC13e!H166-'C5-Capex'!H40 -> 0 | K171: =K166+SC13a!K166+SC13e!K166-'C5-Capex'!K40 -> 0

Sheet SC13c
A1: =muni& " - "&S71Sc& " - "&Head57 -> LIM353 Molemole - Supporting Table SC13c Monthly Budget Statement - expenditure on repairs and maintenance by asset class - M07 January
A2: =desc -> Description | B2: =head27 -> Ref | C2: =Head1 -> 2019/20 | D2: =Head2 -> Budget Year 2020/21
C3: =Head5 -> Audited Outcome | D3: =Head6 -> Original Budget | E3: =Head7 -> Adjusted Budget | F3: =Head38 -> Monthly actual | G3: =Head39 -> YearTD actual | H3: =Head40 -> YearTD budget | I3: =Head41 -> YTD variance | J3: =Head41 -> YTD variance | K3: =Head8 -> Full Year Forecast
A4: R thousands | B4: 1 | J4: %
A5: Repairs and maintenance expenditure by Asset Class/Sub-class
A7: Infrastructure | C7: =C8+C13+C17+C27+C38+C45+C53+C63+C69 -> 1289849.36 | D7: 2545620 | E7: 3881000 | F7: 143691.3 | G7: 3829135.61 | H7: 2152635 | I7: =H7-G7 -> -1676500.61 | J7: =IF(I7=0,"",I7/H7) -> -0.7788132266 | K7: =K8+K13+K17+K27+K38+K45+K53+K63+K69 -> 3881000
A8: Roads Infrastructure | C8: =SUM(C9:C12) -> 1289849.36 | D8: 2545620 | E8: 3881000 | F8: 143691.3 | G8: 3829135.61 | H8: 2152635 | I8: -1676500.61 | J8: -0.7788132266 | K8: =SUM(K9:K12) -> 3881000
A9: Roads | C9: 1289849.36 | D9: 2545620 | E9: 3881000 | F9: 143691.3 | G9: 3829135.61 | H9: 2152635 | I9: -1676500.61 | J9: -0.7788132266 | K9: 3881000
A10: Road Structures | C10: 0 | D10: 0 | E10: 0 | F10: 0 | G10: 0 | H10: 0 | I10: 0 | K10: 0
A11: Road Furniture | I11: 0
A12: Capital Spares | I12: 0
A13: Storm water Infrastructure | C13: =SUM(C14:C16) -> 0 | D13: 0 | E13: 0 | F13: 0 | G13: 0 | H13: 0 | I13: 0 | K13: =SUM(K14:K16) -> 0
A14: Drainage Collection | I14: 0
A15: Storm water Conveyance | I15: 0
A16: Attenuation | I16: 0
A17: Electrical Infrastructure | C17: =SUM(C18:C26) -> 0 | D17: 0 | E17: 0 | F17: 0 | G17: 0 | H17: 0 | I17: 0 | K17: =SUM(K18:K26) -> 0
A18: Power Plants | I18: 0
A19: HV Substations | I19: 0
A20: HV Switching Station | I20: 0
A21: HV Transmission Conductors | I21: 0
A22: MV Substations | I22: 0
A23: MV Switching Stations | I23: 0
A24: MV Networks | I24: 0
A25: LV Networks | I25: 0
A26: Capital Spares | I26: 0
A27: Water Supply Infrastructure | C27: =SUM(C28:C37) -> 0 | D27: 0 | E27: 0 | F27: 0 | G27: 0 | H27: 0 | I27: 0 | K27: =SUM(K28:K37) -> 0
A28: Dams and Weirs | I28: 0
A29: Boreholes | I29: 0
A30: Reservoirs | I30: 0
A31: Pump Stations | I31: 0
A32: Water Treatment Works | I32: 0
A33: Bulk Mains | I33: 0
A34: Distribution | I34: 0
A35: Distribution Points | I35: 0
A36: PRV Stations | I36: 0
A37: Capital Spares | I37: 0
A38: Sanitation Infrastructure | C38: =SUM(C39:C44) -> 0 | D38: 0 | E38: 0 | F38: 0 | G38: 0 | H38: 0 | I38: 0 | K38: =SUM(K39:K44) -> 0
A39: Pump Station | I39: 0
A40: Reticulation | I40: 0
A41: Waste Water Treatment Works | I41: 0
A42: Outfall Sewers | I42: 0
A43: Toilet Facilities | I43: 0
A44: Capital Spares | I44: 0
A45: Solid Waste Infrastructure | C45: =SUM(C46:C52) -> 0 | D45: 0 | E45: 0 | F45: 0 | G45: 0 | H45: 0 | I45: 0 | K45: =SUM(K46:K52) -> 0
A46: Landfill Sites | I46: 0
A47: Waste Transfer Stations | I47: 0
A48: Waste Processing Facilities | I48: 0
A49: Waste Drop-off Points | I49: 0
A50: Waste Separation Facilities | I50: 0
A51: Electricity Generation Facilities | I51: 0
A52: Capital Spares | I52: 0
A53: Rail Infrastructure | C53: =SUM(C54:C62) -> 0 | D53: 0 | E53: 0 | F53: 0 | G53: 0 | H53: 0 | I53: 0 | K53: =SUM(K54:K62) -> 0
A54: Rail Lines | I54: 0
A55: Rail Structures | I55: 0
A56: Rail Furniture | I56: 0
A57: Drainage Collection | I57: 0
A58: Storm water Conveyance | I58: 0
A59: Attenuation | I59: 0
A60: MV Substations | I60: 0
A61: LV Networks | I61: 0
A62: Capital Spares | I62: 0
A63: Coastal Infrastructure | C63: =SUM(C64:C68) -> 0 | D63: 0 | E63: 0 | F63: 0 | G63: 0 | H63: 0 | I63: 0 | K63: =SUM(K64:K68) -> 0
A64: Sand Pumps | I64: 0
A65: Piers | I65: 0
A66: Revetments | I66: 0
A67: Promenades | I67: 0
A68: Capital Spares | I68: 0
A69: Information and Communication Infrastructure | C69: =SUM(C70:C73) -> 0 | D69: 0 | E69: 0 | F69: 0 | G69: 0 | H69: 0 | I69: 0 | K69: =SUM(K70:K73) -> 0
A70: Data Centres | I70: 0
A71: Core Layers | I71: 0
A72: Distribution Layers | I72: 0
A73: Capital Spares | I73: 0
A75: Community Assets | C75: =+C76+C99 -> 55600 | D75: 166155 | E75: 300000 | F75: 0 | G75: 88490 | H75: 163851.5 | I75: 75361.5 | J75: 0.4599378095 | K75: =+K76+K99 -> 300000
A76: Community Facilities | C76: =SUM(C77:C98) -> 55600 | D76: 166155 | E76: 300000 | F76: 0 | G76: 88490 | H76: 163851.5 | I76: 75361.5 | J76: 0.4599378095 | K76: =SUM(K77:K98) -> 300000
A77: Halls | C77: 0 | D77: 0 | E77: 0 | F77: 0 | G77: 0 | H77: 0 | I77: 0 | K77: 0
A78: Centres | I78: 0
A79: Crèches | I79: 0
A80: Clinics/Care Centres | I80: 0
A81: Fire/Ambulance Stations | I81: 0
A82: Testing Stations | I82: 0
A83: Museums | I83: 0
A84: Galleries | I84: 0
A85: Theatres | I85: 0
A86: Libraries | I86: 0
A87: Cemeteries/Crematoria | C87: 55600 | D87: 166155 | E87: 300000 | F87: 0 | G87: 88490 | H87: 163851.5 | I87: 75361.5 | J87: 0.4599378095 | K87: 300000
A88: Police | I88: 0
A89: Purls | I89: 0
A90: Public Open Space | I90: 0
A91: Nature Reserves | I91: 0
A92: Public Ablution Facilities | I92: 0
A93: Markets | I93: 0
A94: Stalls | I94: 0
A95: Abattoirs | I95: 0
A96: Airports | I96: 0
A97: Taxi Ranks/Bus Terminals | I97: 0
A98: Capital Spares | I98: 0
A99: Sport and Recreation Facilities | C99: =SUM(C100:C102) -> 0 | D99: 0 | E99: 0 | F99: 0 | G99: 0 | H99: 0 | I99: 0 | K99: =SUM(K100:K102) -> 0
A100: Indoor Facilities | I100: 0
A101: Outdoor Facilities | C101: 0 | D101: 0 | E101: 0 | F101: 0 | G101: 0 | H101: 0 | I101: =H101-G101 -> 0 | J101: =IF(I101=0,"",I101/H101) ->  | K101: 0
A102: Capital Spares | I102: 0
A103: Heritage assets | C103: =SUM(C104:C108) -> 0 | D103: 0 | E103: 0 | F103: 0 | G103: 0 | H103: 0 | I103: 0 | K103: =SUM(K104:K108) -> 0
A104: Monuments | I104: 0
A105: Historic Buildings | I105: 0
A106: Works of Art | I106: 0
A107: Conservation Areas | I107: 0
A108: Other Heritage | I108: 0
I109: 0
A110: Investment properties | C110: =+C111+C114 -> 0 | D110: 0 | E110: 0 | F110: 0 | G110: 0 | H110: 0 | I110: 0 | K110: =+K111+K114 -> 0
A111: Revenue Generating | C111: =SUM(C112:C113) -> 0 | D111: 0 | E111: 0 | F111: 0 | G111: 0 | H111: 0 | I111: 0 | K111: =SUM(K112:K113) -> 0
A112: Improved Property | I112: 0
A113: Unimproved Property | I113: 0
A114: Non-revenue Generating | C114: =SUM(C115:C116) -> 0 | D114: 0 | E114: 0 | F114: 0 | G114: 0 | H114: 0 | I114: 0 | K114: =SUM(K115:K116) -> 0
A115: Improved Property | I115: 0
A116: Unimproved Property | I116: =H116-G116 -> 0 | J116: =IF(I116=0,"",I116/H116) -> 
A117: Other assets | C117: =+C118+C130 -> 555083.98 | D117: 889060 | E117: 1750000 | F117: 29880 | G117: 1159079.39 | H117: 949100 | I117: -209979.39 | J117: -0.2212405331 | K117: =+K118+K130 -> 1750000
A118: Operational Buildings | C118: =SUM(C119:C129) -> 555083.98 | D118: 889060 | E118: 1750000 | F118: 29880 | G118: 1159079.39 | H118: 949100 | I118: -209979.39 | J118: -0.2212405331 | K118: =SUM(K119:K129) -> 1750000
A119: Municipal Offices | C119: 555083.98 | D119: 889060 | E119: 1750000 | F119: 29880 | G119: 1159079.39 | H119: 949100 | I119: -209979.39 | J119: -0.2212405331 | K119: 1750000
A120: Pay/Enquiry Points | I120: 0
A121: Building Plan Offices | I121: 0
A122: Workshops | I122: 0
A123: Yards | I123: 0
A124: Stores | I124: 0
A125: Laboratories | I125: 0
A126: Training Centres | I126: 0
A127: Manufacturing Plant | I127: 0
A128: Depots | I128: 0
A129: Capital Spares | I129: 0
A130: Housing | C130: =SUM(C131:C133) -> 0 | D130: 0 | E130: 0 | F130: 0 | G130: 0 | H130: 0 | I130: 0 | K130: =SUM(K131:K133) -> 0
A131: Staff Housing | I131: 0
A132: Social Housing | I132: 0
A133: Capital Spares | I133: 0
A135: Biological or Cultivated Assets | C135: =SUM(C136:C136) -> 0 | D135: 0 | E135: 0 | F135: 0 | G135: 0 | H135: 0 | I135: =H135-G135 -> 0 | K135: =SUM(K136) -> 0
A136: Biological or Cultivated Assets | I136: =H136-G136 -> 0
J137: =IF(I137=0,"",I137/H137) -> 
A138: Intangible Assets | C138: =SUM(C139:C140) -> 0 | D138: 0 | E138: 0 | F138: 0 | G138: 0 | H138: 0 | I138: =H138-G138 -> 0 | K138: =SUM(K139:K140) -> 0
A139: Servitudes | I139: 0
A140: Licences and Rights | C140: =SUM(C141:C146) -> 0 | D140: 0 | E140: 0 | F140: 0 | G140: 0 | H140: 0 | I140: 0 | K140: =SUM(K141:K146) -> 0
A141: Water Rights | I141: 0
A142: Effluent Licenses | I142: 0
A143: Solid Waste Licenses | I143: 0
A144: Computer Software and Applications | I144: 0
A145: Load Settlement Software Applications | I145: 0
A146: Unspecified | I146: 0
A148: Computer Equipment | C148: =SUM(C149:C149) -> 1005744.77 | D148: 1500000 | E148: 2300000 | F148: 28382.41 | G148: 535444.43 | H148: 1275007 | I148: =H148-G148 -> 739562.57 | J148: =IF(I148=0,"",I148/H148) -> 0.5800458899 | K148: =SUM(K149) -> 2300000
A149: Computer Equipment | C149: 1005744.77 | D149: 1500000 | E149: 2300000 | F149: 28382.41 | G149: 535444.43 | H149: 1275007 | I149: =H149-G149 -> 739562.57 | J149: =IF(I149=0,"",I149/H149) -> 0.5800458899 | K149: 2300000
A151: Furniture and Office Equipment | C151: =SUM(C152:C152) -> 70483.69 | D151: 209000 | E151: 209000 | F151: 0 | G151: 97610 | H151: 121919 | I151: =H151-G151 -> 24309 | J151: =IF(I151=0,"",I151/H151) -> 0.1993864779 | K151: =SUM(K152) -> 209000
A152: Furniture and Office Equipment | C152: 70483.69 | D152: 209000 | E152: 209000 | F152: 0 | G152: 97610 | H152: 121919 | I152: =H152-G152 -> 24309 | J152: =IF(I152=0,"",I152/H152) -> 0.1993864779 | K152: 209000
J153: =IF(I153=0,"",I153/H153) -> 
A154: Machinery and Equipment | C154: =SUM(C155:C155) -> 2533127.48 | D154: 2214326 | E154: 3214326 | F154: 298134.43 | G154: 2014212.05 | H154: 1791703 | I154: =H154-G154 -> -222509.05 | J154: =IF(I154=0,"",I154/H154) -> -0.1241885792 | K154: =SUM(K155) -> 3214326
A155: Machinery and Equipment | C155: 2533127.48 | D155: 2214326 | E155: 3214326 | F155: 298134.43 | G155: 2014212.05 | H155: 1791703 | I155: =H155-G155 -> -222509.05 | J155: =IF(I155=0,"",I155/H155) -> -0.1241885792 | K155: 3214326
A157: Transport Assets | C157: =SUM(C158:C158) -> 770318.89 | D157: 1248336 | E157: 1748336 | F157: 0 | G157: 497322.17 | H157: 978196 | I157: =H157-G157 -> 480873.83 | J157: =IF(I157=0,"",I157/H157) -> 0.4915925132 | K157: =SUM(K158) -> 1748336
A158: Transport Assets | C158: 770318.89 | D158: 1248336 | E158: 1748336 | F158: 0 | G158: 497322.17 | H158: 978196 | I158: =H158-G158 -> 480873.83 | J158: =IF(I158=0,"",I158/H158) -> 0.4915925132 | K158: 1748336
A160: Land | C160: =SUM(C161:C161) -> 0 | D160: 0 | E160: 0 | F160: 0 | G160: 0 | H160: 0 | I160: =H160-G160 -> 0 | J160: =IF(I160=0,"",I160/H160) ->  | K160: =SUM(K161) -> 0
A161: Land | I161: =H161-G161 -> 0 | J161: =IF(I161=0,"",I161/H161) -> 
A163: Zoo's, Marine and Non-biological Animals | C163: =SUM(C164:C164) -> 0 | D163: 0 | E163: 0 | F163: 0 | G163: 0 | H163: 0 | I163: =H163-G163 -> 0 | J163: =IF(I163=0,"",I163/H163) ->  | K163: =SUM(K164) -> 0
A164: Zoo's, Marine and Non-biological Animals | I164: =H164-G164 -> 0 | J164: =IF(I164=0,"",I164/H164) -> 
J165: =IF(I165=0,"",I165/H165) -> 
A166: Total Repairs and Maintenance Expenditure | B166: 1 | C166: =C7+C75+C103+C110+C117+C135+C138+C148+C151+C154+C157+C160+C163 -> 6280208.17 | D166: 8772497 | E166: 13402662 | F166: 500088.14 | G166: 8221293.65 | H166: 7432411.5 | I166: -788882.15 | J166: -0.1061408064 | K166: =K7+K75+K103+K110+K117+K135+K138+K148+K151+K154+K157+K160+K163 -> 13402662

Sheet SC13d
A1: =muni& " - "&S71Sd& " - "&Head57 -> LIM353 Molemole - Supporting Table SC13d Monthly Budget Statement - depreciation by asset class - M07 January
A2: =desc -> Description | B2: =head27 -> Ref | C2: =Head1 -> 2019/20 | D2: =Head2 -> Budget Year 2020/21
C3: =Head5 -> Audited Outcome | D3: =Head6 -> Original Budget | E3: =Head7 -> Adjusted Budget | F3: =Head38 -> Monthly actual | G3: =Head39 -> YearTD actual | H3: =Head40 -> YearTD budget | I3: =Head41 -> YTD variance | J3: =Head41 -> YTD variance | K3: =Head8 -> Full Year Forecast
A4: R thousands | B4: 1 | J4: %
A5: Depreciation by Asset Class/Sub-class
A7: Infrastructure | C7: =C8+C13+C17+C27+C38+C45+C53+C63+C69 -> 7434183.7 | D7: 10287696 | E7: 10937696 | F7: 0 | G7: 4256929.24 | H7: 6326177 | I7: =H7-G7 -> 2069247.76 | J7: =IF(I7=0,"",I7/H7) -> 0.3270929283 | K7: =K8+K13+K17+K27+K38+K45+K53+K63+K69 -> 10937696
A8: Roads Infrastructure | C8: =SUM(C9:C12) -> 6837693.67 | D8: 6066454 | E8: 6716454 | F8: 0 | G8: 3853891.85 | H8: 3863780 | I8: 9888.15 | J8: 0.002559190741 | K8: =SUM(K9:K12) -> 6716454
A9: Roads | C9: 6735357.65 | D9: 6015396 | E9: 6665396 | F9: 0 | G9: 3783171.73 | H9: 3833981 | I9: 50809.27 | J9: 0.0132523531 | K9: 6665396
A10: Road Structures | C10: 0 | D10: 0 | E10: 0 | F10: 0 | G10: 0 | H10: 0 | I10: 0 | K10: 0
A11: Road Furniture | C11: 102336.02 | D11: 51058 | E11: 51058 | F11: 0 | G11: 70720.12 | H11: 29799 | I11: -40921.12 | J11: -1.373238028 | K11: 51058
A12: Capital Spares | C12: 0 | D12: 0 | E12: 0 | F12: 0 | G12: 0 | H12: 0 | I12: 0 | K12: 0
A13: Storm water Infrastructure | C13: =SUM(C14:C16) -> 0 | D13: 0 | E13: 0 | F13: 0 | G13: 0 | H13: 0 | I13: 0 | K13: =SUM(K14:K16) -> 0
A14: Drainage Collection | C14: 0 | D14: 0 | E14: 0 | F14: 0 | G14: 0 | H14: 0 | I14: 0 | K14: 0
A15: Storm water Conveyance | C15: 0 | D15: 0 | E15: 0 | F15: 0 | G15: 0 | H15: 0 | I15: 0 | K15: 0
A16: Attenuation | C16: 0 | D16: 0 | E16: 0 | F16: 0 | G16: 0 | H16: 0 | I16: 0 | K16: 0
A17: Electrical Infrastructure | C17: =SUM(C18:C26) -> 596490.03 | D17: 4221242 | E17: 4221242 | F17: 0 | G17: 403037.39 | H17: 2462397 | I17: 2059359.61 | J17: 0.8363231477 | K17: =SUM(K18:K26) -> 4221242
A18: Power Plants | C18: 0 | D18: 0 | E18: 0 | F18: 0 | G18: 0 | H18: 0 | I18: 0 | K18: 0
A19: HV Substations | C19: 0 | D19: 0 | E19: 0 | F19: 0 | G19: 0 | H19: 0 | I19: 0 | K19: 0
A20: HV Switching Station | C20: 0 | D20: 0 | E20: 0 | F20: 0 | G20: 0 | H20: 0 | I20: 0 | K20: 0
A21: HV Transmission Conductors | C21: 0 | D21: 0 | E21: 0 | F21: 0 | G21: 0 | H21: 0 | I21: 0 | K21: 0
A22: MV Substations | C22: 0 | D22: 0 | E22: 0 | F22: 0 | G22: 0 | H22: 0 | I22: 0 | K22: 0
A23: MV Switching Stations | C23: 0 | D23: 0 | E23: 0 | F23: 0 | G23: 0 | H23: 0 | I23: 0 | K23: 0
A24: MV Networks | C24: 82120.91 | D24: 0 | E24: 0 | F24: 0 | G24: 150125.65 | H24: 0 | I24: -150125.65 | K24: 0
A25: LV Networks | C25: 514369.12 | D25: 4221242 | E25: 4221242 | F25: 0 | G25: 252911.74 | H25: 2462397 | I25: 2209485.26 | J25: 0.8972904288 | K25: 4221242
A26: Capital Spares | C26: 0 | D26: 0 | E26: 0 | F26: 0 | G26: 0 | H26: 0 | I26: 0 | K26: 0
A27: Water Supply Infrastructure | C27: =SUM(C28:C37) -> 0 | D27: 0 | E27: 0 | F27: 0 | G27: 0 | H27: 0 | I27: 0 | K27: =SUM(K28:K37) -> 0
A28: Dams and Weirs | C28: 0 | D28: 0 | E28: 0 | F28: 0 | G28: 0 | H28: 0 | I28: 0 | K28: 0
A29: Boreholes | C29: 0 | D29: 0 | E29: 0 | F29: 0 | G29: 0 | H29: 0 | I29: 0 | K29: 0
A30: Reservoirs | C30: 0 | D30: 0 | E30: 0 | F30: 0 | G30: 0 | H30: 0 | I30: 0 | K30: 0
A31: Pump Stations | C31: 0 | D31: 0 | E31: 0 | F31: 0 | G31: 0 | H31: 0 | I31: 0 | K31: 0
A32: Water Treatment Works | C32: 0 | D32: 0 | E32: 0 | F32: 0 | G32: 0 | H32: 0 | I32: 0 | K32: 0
A33: Bulk Mains | C33: 0 | D33: 0 | E33: 0 | F33: 0 | G33: 0 | H33: 0 | I33: 0 | K33: 0
A34: Distribution | C34: 0 | D34: 0 | E34: 0 | F34: 0 | G34: 0 | H34: 0 | I34: 0 | K34: 0
A35: Distribution Points | C35: 0 | D35: 0 | E35: 0 | F35: 0 | G35: 0 | H35: 0 | I35: 0 | K35: 0
A36: PRV Stations | C36: 0 | D36: 0 | E36: 0 | F36: 0 | G36: 0 | H36: 0 | I36: 0 | K36: 0
A37: Capital Spares | C37: 0 | D37: 0 | E37: 0 | F37: 0 | G37: 0 | H37: 0 | I37: 0 | K37: 0
A38: Sanitation Infrastructure | C38: =SUM(C39:C44) -> 0 | D38: 0 | E38: 0 | F38: 0 | G38: 0 | H38: 0 | I38: 0 | K38: =SUM(K39:K44) -> 0
A39: Pump Station | C39: 0 | D39: 0 | E39: 0 | F39: 0 | G39: 0 | H39: 0 | I39: 0 | K39: 0
A40: Reticulation | C40: 0 | D40: 0 | E40: 0 | F40: 0 | G40: 0 | H40: 0 | I40: 0 | K40: 0
A41: Waste Water Treatment Works | C41: 0 | D41: 0 | E41: 0 | F41: 0 | G41: 0 | H41: 0 | I41: 0 | K41: 0
A42: Outfall Sewers | C42: 0 | D42: 0 | E42: 0 | F42: 0 | G42: 0 | H42: 0 | I42: 0 | K42: 0
A43: Toilet Facilities | C43: 0 | D43: 0 | E43: 0 | F43: 0 | G43: 0 | H43: 0 | I43: 0 | K43: 0
A44: Capital Spares | C44: 0 | D44: 0 | E44: 0 | F44: 0 | G44: 0 | H44: 0 | I44: 0 | K44: 0
A45: Solid Waste Infrastructure | C45: =SUM(C46:C52) -> 0 | D45: 0 | E45: 0 | F45: 0 | G45: 0 | H45: 0 | I45: 0 | K45: =SUM(K46:K52) -> 0
A46: Landfill Sites | C46: 0 | D46: 0 | E46: 0 | F46: 0 | G46: 0 | H46: 0 | I46: 0 | K46: 0
A47: Waste Transfer Stations | C47: 0 | D47: 0 | E47: 0 | F47: 0 | G47: 0 | H47: 0 | I47: 0 | K47: 0
A48: Waste Processing Facilities | C48: 0 | D48: 0 | E48: 0 | F48: 0 | G48: 0 | H48: 0 | I48: 0 | K48: 0
A49: Waste Drop-off Points | C49: 0 | D49: 0 | E49: 0 | F49: 0 | G49: 0 | H49: 0 | I49: 0 | K49: 0
A50: Waste Separation Facilities | C50: 0 | D50: 0 | E50: 0 | F50: 0 | G50: 0 | H50: 0 | I50: 0 | K50: 0
A51: Electricity Generation Facilities | C51: 0 | D51: 0 | E51: 0 | F51: 0 | G51: 0 | H51: 0 | I51: 0 | K51: 0
A52: Capital Spares | C52: 0 | D52: 0 | E52: 0 | F52: 0 | G52: 0 | H52: 0 | I52: 0 | K52: 0
A53: Rail Infrastructure | C53: =SUM(C54:C62) -> 0 | D53: 0 | E53: 0 | F53: 0 | G53: 0 | H53: 0 | I53: 0 | K53: =SUM(K54:K62) -> 0
A54: Rail Lines | C54: 0 | D54: 0 | E54: 0 | F54: 0 | G54: 0 | H54: 0 | I54: 0 | K54: 0
A55: Rail Structures | C55: 0 | D55: 0 | E55: 0 | F55: 0 | G55: 0 | H55: 0 | I55: 0 | K55: 0
A56: Rail Furniture | C56: 0 | D56: 0 | E56: 0 | F56: 0 | G56: 0 | H56: 0 | I56: 0 | K56: 0
A57: Drainage Collection | C57: 0 | D57: 0 | E57: 0 | F57: 0 | G57: 0 | H57: 0 | I57: 0 | K57: 0
A58: Storm water Conveyance | C58: 0 | D58: 0 | E58: 0 | F58: 0 | G58: 0 | H58: 0 | I58: 0 | K58: 0
A59: Attenuation | C59: 0 | D59: 0 | E59: 0 | F59: 0 | G59: 0 | H59: 0 | I59: 0 | K59: 0
A60: MV Substations | C60: 0 | D60: 0 | E60: 0 | F60: 0 | G60: 0 | H60: 0 | I60: 0 | K60: 0
A61: LV Networks | C61: 0 | D61: 0 | E61: 0 | F61: 0 | G61: 0 | H61: 0 | I61: 0 | K61: 0
A62: Capital Spares | C62: 0 | D62: 0 | E62: 0 | F62: 0 | G62: 0 | H62: 0 | I62: 0 | K62: 0
A63: Coastal Infrastructure | C63: =SUM(C64:C68) -> 0 | D63: 0 | E63: 0 | F63: 0 | G63: 0 | H63: 0 | I63: 0 | K63: =SUM(K64:K68) -> 0
A64: Sand Pumps | C64: 0 | D64: 0 | E64: 0 | F64: 0 | G64: 0 | H64: 0 | I64: 0 | K64: 0
A65: Piers | C65: 0 | D65: 0 | E65: 0 | F65: 0 | G65: 0 | H65: 0 | I65: 0 | K65: 0
A66: Revetments | C66: 0 | D66: 0 | E66: 0 | F66: 0 | G66: 0 | H66: 0 | I66: 0 | K66: 0
A67: Promenades | C67: 0 | D67: 0 | E67: 0 | F67: 0 | G67: 0 | H67: 0 | I67: 0 | K67: 0
A68: Capital Spares | C68: 0 | D68: 0 | E68: 0 | F68: 0 | G68: 0 | H68: 0 | I68: 0 | K68: 0
A69: Information and Communication Infrastructure | C69: =SUM(C70:C73) -> 0 | D69: 0 | E69: 0 | F69: 0 | G69: 0 | H69: 0 | I69: 0 | K69: =SUM(K70:K73) -> 0
A70: Data Centres | I70: 0
A71: Core Layers | I71: 0
A72: Distribution Layers | I72: 0
A73: Capital Spares | I73: 0
A75: Community Assets | C75: =+C76+C99 -> 1576453.08 | D75: 1376629 | E75: 1376629 | F75: 0 | G75: 683869.19 | H75: 803047 | I75: 119177.81 | J75: 0.1484070173 | K75: =+K76+K99 -> 1376629
A76: Community Facilities | C76: =SUM(C77:C98) -> 1438700.44 | D76: 1376629 | E76: 1376629 | F76: 0 | G76: 614992.86 | H76: 803047 | I76: 188054.14 | J76: 0.2341757581 | K76: =SUM(K77:K98) -> 1376629
A77: Halls | C77: 164923.54 | D77: 713508 | E77: 713508 | F77: 0 | G77: 82474.19 | H77: 416220 | I77: 333745.81 | J77: 0.8018495267 | K77: 713508
A78: Centres | C78: 920001.35 | D78: 0 | E78: 0 | F78: 0 | G78: 353566.95 | H78: 0 | I78: -353566.95 | K78: 0
A79: Crèches | C79: 0 | D79: 0 | E79: 0 | F79: 0 | G79: 0 | H79: 0 | I79: 0 | K79: 0
A80: Clinics/Care Centres | C80: 0 | D80: 0 | E80: 0 | F80: 0 | G80: 0 | H80: 0 | I80: 0 | K80: 0
A81: Fire/Ambulance Stations | C81: 0 | D81: 0 | E81: 0 | F81: 0 | G81: 0 | H81: 0 | I81: 0 | K81: 0
A82: Testing Stations | C82: 0 | D82: 11742 | E82: 11742 | F82: 0 | G82: 0 | H82: 6853 | I82: 6853 | J82: 1 | K82: 11742
A83: Museums | C83: 0 | D83: 0 | E83: 0 | F83: 0 | G83: 0 | H83: 0 | I83: 0 | K83: 0
A84: Galleries | C84: 0 | D84: 0 | E84: 0 | F84: 0 | G84: 0 | H84: 0 | I84: 0 | K84: 0
A85: Theatres | C85: 0 | D85: 0 | E85: 0 | F85: 0 | G85: 0 | H85: 0 | I85: 0 | K85: 0
A86: Libraries | C86: 0 | D86: 0 | E86: 0 | F86: 0 | G86: 0 | H86: 0 | I86: 0 | K86: 0
A87: Cemeteries/Crematoria | C87: 0 | D87: 0 | E87: 0 | F87: 0 | G87: 0 | H87: 0 | I87: 0 | K87: 0
A88: Police | C88: 0 | D88: 0 | E88: 0 | F88: 0 | G88: 0 | H88: 0 | I88: 0 | K88: 0
A89: Purls | C89: 0 | D89: 0 | E89: 0 | F89: 0 | G89: 0 | H89: 0 | I89: 0 | K89: 0
A90: Public Open Space | C90: 0 | D90: 651379 | E90: 651379 | F90: 0 | G90: 0 | H90: 379974 | I90: 379974 | J90: 1 | K90: 651379
A91: Nature Reserves | C91: 0 | D91: 0 | E91: 0 | F91: 0 | G91: 0 | H91: 0 | I91: 0 | K91: 0
A92: Public Ablution Facilities | C92: 31356.09 | D92: 0 | E92: 0 | F92: 0 | G92: 15772.69 | H92: 0 | I92: -15772.69 | K92: 0
A93: Markets | C93: 35386.57 | D93: 0 | E93: 0 | F93: 0 | G93: 17786.62 | H93: 0 | I93: -17786.62 | K93: 0
A94: Stalls | C94: 0 | D94: 0 | E94: 0 | F94: 0 | G94: 0 | H94: 0 | I94: 0 | K94: 0
A95: Abattoirs | C95: 0 | D95: 0 | E95: 0 | F95: 0 | G95: 0 | H95: 0 | I95: 0 | K95: 0
A96: Airports | C96: 0 | D96: 0 | E96: 0 | F96: 0 | G96: 0 | H96: 0 | I96: 0 | K96: 0
A97: Taxi Ranks/Bus Terminals | C97: 287032.89 | D97: 0 | E97: 0 | F97: 0 | G97: 145392.41 | H97: 0 | I97: -145392.41 | K97: 0
A98: Capital Spares | C98: 0 | D98: 0 | E98: 0 | F98: 0 | G98: 0 | H98: 0 | I98: 0 | K98: 0
A99: Sport and Recreation Facilities | C99: =SUM(C100:C102) -> 137752.64 | D99: 0 | E99: 0 | F99: 0 | G99: 68876.33 | H99: 0 | I99: -68876.33 | K99: =SUM(K100:K102) -> 0
A100: Indoor Facilities | I100: 0
A101: Outdoor Facilities | C101: 137752.64 | D101: 0 | E101: 0 | F101: 0 | G101: 68876.33 | H101: 0 | I101: =H101-G101 -> -68876.33 | J101: =IF(I101=0,"",I101/H101) ->  | K101: 0
A102: Capital Spares | I102: 0
A103: Heritage assets | C103: =SUM(C104:C108) -> 0 | D103: 0 | E103: 0 | F103: 0 | G103: 0 | H103: 0 | I103: 0 | K103: =SUM(K104:K108) -> 0
A104: Monuments | I104: 0
A105: Historic Buildings | I105: 0
A106: Works of Art | I106: 0
A107: Conservation Areas | I107: 0
A108: Other Heritage | C108: 0 | D108: 0 | E108: 0 | F108: 0 | G108: 0 | H108: 0 | I108: 0 | K108: 0
I109: 0
A110: Investment properties | C110: =+C111+C114 -> 43333.37 | D110: 50879 | E110: 50879 | F110: 0 | G110: 21666.68 | H110: 29680 | I110: 8013.32 | J110: 0.269990566 | K110: =+K111+K114 -> 50879
A111: Revenue Generating | C111: =SUM(C112:C113) -> 43333.37 | D111: 50879 | E111: 50879 | F111: 0 | G111: 21666.68 | H111: 29680 | I111: 8013.32 | J111: 0.269990566 | K111: =SUM(K112:K113) -> 50879
A112: Improved Property | C112: 43333.37 | D112: 0 | E112: 0 | F112: 0 | G112: 21666.68 | H112: 0 | I112: -21666.68 | K112: 0
A113: Unimproved Property | C113: 0 | D113: 50879 | E113: 50879 | F113: 0 | G113: 0 | H113: 29680 | I113: 29680 | J113: 1 | K113: 50879
A114: Non-revenue Generating | C114: =SUM(C115:C116) -> 0 | D114: 0 | E114: 0 | F114: 0 | G114: 0 | H114: 0 | I114: 0 | K114: =SUM(K115:K116) -> 0
A115: Improved Property | I115: 0
A116: Unimproved Property | C116: 0 | D116: 0 | E116: 0 | F116: 0 | G116: 0 | H116: 0 | I116: =H116-G116 -> 0 | J116: =IF(I116=0,"",I116/H116) ->  | K116: 0
A117: Other assets | C117: =+C118+C130 -> 1401097.39 | D117: 1212028 | E117: 1212028 | F117: 0 | G117: 772245.26 | H117: 707028 | I117: -65217.26 | J117: -0.09224141052 | K117: =+K118+K130 -> 1212028
A118: Operational Buildings | C118: =SUM(C119:C129) -> 1401097.39 | D118: 1212028 | E118: 1212028 | F118: 0 | G118: 772245.26 | H118: 707028 | I118: -65217.26 | J118: -0.09224141052 | K118: =SUM(K119:K129) -> 1212028
A119: Municipal Offices | C119: 1396294.08 | D119: 1212028 | E119: 1212028 | F119: 0 | G119: 772245.26 | H119: 707028 | I119: -65217.26 | J119: -0.09224141052 | K119: 1212028
A120: Pay/Enquiry Points | C120: 0 | D120: 0 | E120: 0 | F120: 0 | G120: 0 | H120: 0 | I120: 0 | K120: 0
A121: Building Plan Offices | C121: 4803.31 | D121: 0 | E121: 0 | F121: 0 | G121: 0 | H121: 0 | I121: 0 | K121: 0
A122: Workshops | C122: 0 | D122: 0 | E122: 0 | F122: 0 | G122: 0 | H122: 0 | I122: 0 | K122: 0
A123: Yards | C123: 0 | D123: 0 | E123: 0 | F123: 0 | G123: 0 | H123: 0 | I123: 0 | K123: 0
A124: Stores | C124: 0 | D124: 0 | E124: 0 | F124: 0 | G124: 0 | H124: 0 | I124: 0 | K124: 0
A125: Laboratories | C125: 0 | D125: 0 | E125: 0 | F125: 0 | G125: 0 | H125: 0 | I125: 0 | K125: 0
A126: Training Centres | C126: 0 | D126: 0 | E126: 0 | F126: 0 | G126: 0 | H126: 0 | I126: 0 | K126: 0
A127: Manufacturing Plant | C127: 0 | D127: 0 | E127: 0 | F127: 0 | G127: 0 | H127: 0 | I127: 0 | K127: 0
A128: Depots | C128: 0 | D128: 0 | E128: 0 | F128: 0 | G128: 0 | H128: 0 | I128: 0 | K128: 0
A129: Capital Spares | C129: 0 | D129: 0 | E129: 0 | F129: 0 | G129: 0 | H129: 0 | I129: 0 | K129: 0
A130: Housing | C130: =SUM(C131:C133) -> 0 | D130: 0 | E130: 0 | F130: 0 | G130: 0 | H130: 0 | I130: 0 | K130: =SUM(K131:K133) -> 0
A131: Staff Housing | C131: 0 | D131: 0 | E131: 0 | F131: 0 | G131: 0 | H131: 0 | I131: 0 | K131: 0
A132: Social Housing | C132: 0 | D132: 0 | E132: 0 | F132: 0 | G132: 0 | H132: 0 | I132: 0 | K132: 0
A133: Capital Spares | C133: 0 | D133: 0 | E133: 0 | F133: 0 | G133: 0 | H133: 0 | I133: 0 | K133: 0
A135: Biological or Cultivated Assets | C135: =SUM(C136:C136) -> 0 | D135: 0 | E135: 0 | F135: 0 | G135: 0 | H135: 0 | I135: =H135-G135 -> 0 | K135: =SUM(K136) -> 0
A136: Biological or Cultivated Assets | I136: =H136-G136 -> 0
J137: =IF(I137=0,"",I137/H137) -> 
A138: Intangible Assets | C138: =SUM(C139:C140) -> 908264.46 | D138: 856176 | E138: 856176 | F138: 0 | G138: 182675.67 | H138: 499450 | I138: =H138-G138 -> 316774.33 | J138: 0.634246331 | K138: =SUM(K139:K140) -> 856176
A139: Servitudes | C139: 0 | D139: 0 | E139: 0 | F139: 0 | G139: 0 | H139: 0 | I139: 0 | K139: 0
A140: Licences and Rights | C140: =SUM(C141:C146) -> 908264.46 | D140: 856176 | E140: 856176 | F140: 0 | G140: 182675.67 | H140: 499450 | I140: 316774.33 | J140: 0.634246331 | K140: =SUM(K141:K146) -> 856176
A141: Water Rights | I141: 0
A142: Effluent Licenses | I142: 0
A143: Solid Waste Licenses | I143: 0
A144: Computer Software and Applications | C144: 908264.46 | D144: 856176 | E144: 856176 | F144: 0 | G144: 182675.67 | H144: 499450 | I144: 316774.33 | J144: 0.634246331 | K144: 856176
A145: Load Settlement Software Applications | I145: 0
A146: Unspecified | C146: 0 | D146: 0 | E146: 0 | F146: 0 | G146: 0 | H146: 0 | I146: 0 | K146: 0
A148: Computer Equipment | C148: =SUM(C149:C149) -> 417301.66 | D148: 238756 | E148: 238756 | F148: 0 | G148: 311445.35 | H148: 139321 | I148: =H148-G148 -> -172124.35 | J148: =IF(I148=0,"",I148/H148) -> -1.235451583 | K148: =SUM(K149) -> 238756
A149: Computer Equipment | C149: 417301.66 | D149: 238756 | E149: 238756 | F149: 0 | G149: 311445.35 | H149: 139321 | I149: =H149-G149 -> -172124.35 | J149: =IF(I149=0,"",I149/H149) -> -1.235451583 | K149: 238756
A151: Furniture and Office Equipment | C151: =SUM(C152:C152) -> 1399858.88 | D151: 839237 | E151: 839237 | F151: 0 | G151: 810304.82 | H151: 489643 | I151: =H151-G151 -> -320661.82 | J151: =IF(I151=0,"",I151/H151) -> -0.654889011 | K151: =SUM(K152) -> 839237
A152: Furniture and Office Equipment | C152: 1399858.88 | D152: 839237 | E152: 839237 | F152: 0 | G152: 810304.82 | H152: 489643 | I152: =H152-G152 -> -320661.82 | J152: =IF(I152=0,"",I152/H152) -> -0.654889011 | K152: 839237
J153: =IF(I153=0,"",I153/H153) -> 
A154: Machinery and Equipment | C154: =SUM(C155:C155) -> 1109205.63 | D154: 2350864 | E154: 2350864 | F154: 0 | G154: 472939.03 | H154: 1371356 | I154: =H154-G154 -> 898416.97 | J154: =IF(I154=0,"",I154/H154) -> 0.6551303746 | K154: =SUM(K155) -> 2350864
A155: Machinery and Equipment | C155: 1109205.63 | D155: 2350864 | E155: 2350864 | F155: 0 | G155: 472939.03 | H155: 1371356 | I155: =H155-G155 -> 898416.97 | J155: =IF(I155=0,"",I155/H155) -> 0.6551303746 | K155: 2350864
A157: Transport Assets | C157: =SUM(C158:C158) -> 2089808.25 | D157: 1459781 | E157: 1459781 | F157: 0 | G157: 623081.47 | H157: 851564 | I157: =H157-G157 -> 228482.53 | J157: =IF(I157=0,"",I157/H157) -> 0.2683092874 | K157: =SUM(K158) -> 1459781
A158: Transport Assets | C158: 2089808.25 | D158: 1459781 | E158: 1459781 | F158: 0 | G158: 623081.47 | H158: 851564 | I158: =H158-G158 -> 228482.53 | J158: =IF(I158=0,"",I158/H158) -> 0.2683092874 | K158: 1459781
A160: Land | C160: =SUM(C161:C161) -> 0 | D160: 0 | E160: 0 | F160: 0 | G160: 0 | H160: 0 | I160: =H160-G160 -> 0 | J160: =IF(I160=0,"",I160/H160) ->  | K160: =SUM(K161) -> 0
A161: Land | C161: 0 | D161: 0 | E161: 0 | F161: 0 | G161: 0 | H161: 0 | I161: =H161-G161 -> 0 | J161: =IF(I161=0,"",I161/H161) ->  | K161: 0
A163: Zoo's, Marine and Non-biological Animals | C163: =SUM(C164:C164) -> 0 | D163: 0 | E163: 0 | F163: 0 | G163: 0 | H163: 0 | I163: =H163-G163 -> 0 | J163: =IF(I163=0,"",I163/H163) ->  | K163: =SUM(K164) -> 0
A164: Zoo's, Marine and Non-biological Animals | C164: 0 | D164: 0 | E164: 0 | F164: 0 | G164: 0 | H164: 0 | I164: =H164-G164 -> 0 | J164: =IF(I164=0,"",I164/H164) ->  | K164: 0
J165: =IF(I165=0,"",I165/H165) -> 
A166: Total Depreciation | B166: 1 | C166: =C7+C75+C103+C110+C117+C135+C138+C148+C151+C154+C157+C160+C163 -> 16379506.42 | D166: 18672046 | E166: 19322046 | F166: 0 | G166: 8135156.71 | H166: 11217266 | I166: 3082109.29 | J166: 0.2747647502 | K166: =K7+K75+K103+K110+K117+K135+K138+K148+K151+K154+K157+K160+K163 -> 19322046

Sheet SC13e
A1: =muni& " - "&S71Se& " - "&Head57 -> LIM353 Molemole - Supporting Table SC13e Monthly Budget Statement - capital expenditure on upgrading of existing assets by asset class - M07 January
A2: =desc -> Description | B2: =head27 -> Ref | C2: =Head1 -> 2019/20 | D2: =Head2 -> Budget Year 2020/21
C3: =Head5 -> Audited Outcome | D3: =Head6 -> Original Budget | E3: =Head7 -> Adjusted Budget | F3: =Head38 -> Monthly actual | G3: =Head39 -> YearTD actual | H3: =Head40 -> YearTD budget | I3: =Head41 -> YTD variance | J3: =Head41 -> YTD variance | K3: =Head8 -> Full Year Forecast
A4: R thousands | B4: 1 | J4: %
A5: Capital expenditure on upgrading of existing assets by Asset Class/Sub-class
A7: Infrastructure | C7: =C8+C13+C17+C27+C38+C45+C53+C63+C69 -> 0 | D7: 0 | E7: 0 | F7: 0 | G7: 0 | H7: 0 | I7: =H7-G7 -> 0 | J7: =IF(I7=0,"",I7/H7) ->  | K7: =K8+K13+K17+K27+K38+K45+K53+K63+K69 -> 0
A8: Roads Infrastructure | C8: =SUM(C9:C12) -> 0 | D8: 0 | E8: 0 | F8: 0 | G8: 0 | H8: 0 | I8: 0 | K8: =SUM(K9:K12) -> 0
A9: Roads | I9: 0
A10: Road Structures | I10: 0
A11: Road Furniture | I11: 0
A12: Capital Spares | I12: 0
A13: Storm water Infrastructure | C13: =SUM(C14:C16) -> 0 | D13: 0 | E13: 0 | F13: 0 | G13: 0 | H13: 0 | I13: 0 | K13: =SUM(K14:K16) -> 0
A14: Drainage Collection | I14: 0
A15: Storm water Conveyance | I15: 0
A16: Attenuation | I16: 0
A17: Electrical Infrastructure | C17: =SUM(C18:C26) -> 0 | D17: 0 | E17: 0 | F17: 0 | G17: 0 | H17: 0 | I17: 0 | K17: =SUM(K18:K26) -> 0
A18: Power Plants | I18: 0
A19: HV Substations | I19: 0
A20: HV Switching Station | I20: 0
A21: HV Transmission Conductors | I21: 0
A22: MV Substations | I22: 0
A23: MV Switching Stations | I23: 0
A24: MV Networks | I24: 0
A25: LV Networks | I25: 0
A26: Capital Spares | I26: 0
A27: Water Supply Infrastructure | C27: =SUM(C28:C37) -> 0 | D27: 0 | E27: 0 | F27: 0 | G27: 0 | H27: 0 | I27: 0 | K27: =SUM(K28:K37) -> 0
A28: Dams and Weirs | I28: 0
A29: Boreholes | I29: 0
A30: Reservoirs | I30: 0
A31: Pump Stations | I31: 0
A32: Water Treatment Works | I32: 0
A33: Bulk Mains | I33: 0
A34: Distribution | I34: 0
A35: Distribution Points | I35: 0
A36: PRV Stations | I36: 0
A37: Capital Spares | I37: 0
A38: Sanitation Infrastructure | C38: =SUM(C39:C44) -> 0 | D38: 0 | E38: 0 | F38: 0 | G38: 0 | H38: 0 | I38: 0 | K38: =SUM(K39:K44) -> 0
A39: Pump Station | I39: 0
A40: Reticulation | I40: 0
A41: Waste Water Treatment Works | I41: 0
A42: Outfall Sewers | I42: 0
A43: Toilet Facilities | I43: 0
A44: Capital Spares | I44: 0
A45: Solid Waste Infrastructure | C45: =SUM(C46:C52) -> 0 | D45: 0 | E45: 0 | F45: 0 | G45: 0 | H45: 0 | I45: 0 | K45: =SUM(K46:K52) -> 0
A46: Landfill Sites | C46: 0 | D46: 0 | E46: 0 | F46: 0 | G46: 0 | H46: 0 | I46: 0 | K46: 0
A47: Waste Transfer Stations | I47: 0
A48: Waste Processing Facilities | I48: 0
A49: Waste Drop-off Points | I49: 0
A50: Waste Separation Facilities | I50: 0
A51: Electricity Generation Facilities | I51: 0
A52: Capital Spares | I52: 0
A53: Rail Infrastructure | C53: =SUM(C54:C62) -> 0 | D53: 0 | E53: 0 | F53: 0 | G53: 0 | H53: 0 | I53: 0 | K53: =SUM(K54:K62) -> 0
A54: Rail Lines | I54: 0
A55: Rail Structures | I55: 0
A56: Rail Furniture | I56: 0
A57: Drainage Collection | I57: 0
A58: Storm water Conveyance | I58: 0
A59: Attenuation | I59: 0
A60: MV Substations | I60: 0
A61: LV Networks | I61: 0
A62: Capital Spares | I62: 0
A63: Coastal Infrastructure | C63: =SUM(C64:C68) -> 0 | D63: 0 | E63: 0 | F63: 0 | G63: 0 | H63: 0 | I63: 0 | K63: =SUM(K64:K68) -> 0
A64: Sand Pumps | I64: 0
A65: Piers | I65: 0
A66: Revetments | I66: 0
A67: Promenades | I67: 0
A68: Capital Spares | I68: 0
A69: Information and Communication Infrastructure | C69: =SUM(C70:C73) -> 0 | D69: 0 | E69: 0 | F69: 0 | G69: 0 | H69: 0 | I69: 0 | K69: =SUM(K70:K73) -> 0
A70: Data Centres | I70: 0
A71: Core Layers | I71: 0
A72: Distribution Layers | I72: 0
A73: Capital Spares | I73: 0
A75: Community Assets | C75: =+C76+C99 -> 0 | D75: 0 | E75: 0 | F75: 0 | G75: 0 | H75: 0 | I75: 0 | K75: =+K76+K99 -> 0
A76: Community Facilities | C76: =SUM(C77:C98) -> 0 | D76: 0 | E76: 0 | F76: 0 | G76: 0 | H76: 0 | I76: 0 | K76: =SUM(K77:K98) -> 0
A77: Halls | I77: 0
A78: Centres | I78: 0
A79: Crèches | I79: 0
A80: Clinics/Care Centres | I80: 0
A81: Fire/Ambulance Stations | I81: 0
A82: Testing Stations | I82: 0
A83: Museums | I83: 0
A84: Galleries | I84: 0
A85: Theatres | I85: 0
A86: Libraries | I86: 0
A87: Cemeteries/Crematoria | I87: 0
A88: Police | I88: 0
A89: Purls | I89: 0
A90: Public Open Space | I90: 0
A91: Nature Reserves | I91: 0
A92: Public Ablution Facilities | I92: 0
A93: Markets | I93: 0
A94: Stalls | I94: 0
A95: Abattoirs | I95: 0
A96: Airports | I96: 0
A97: Taxi Ranks/Bus Terminals | I97: 0
A98: Capital Spares | I98: 0
A99: Sport and Recreation Facilities | C99: =SUM(C100:C102) -> 0 | D99: 0 | E99: 0 | F99: 0 | G99: 0 | H99: 0 | I99: 0 | K99: =SUM(K100:K102) -> 0
A100: Indoor Facilities | I100: 0
A101: Outdoor Facilities | C101: 0 | D101: 0 | E101: 0 | F101: 0 | G101: 0 | H101: 0 | I101: =H101-G101 -> 0 | J101: =IF(I101=0,"",I101/H101) ->  | K101: 0
A102: Capital Spares | I102: 0
A103: Heritage assets | C103: =SUM(C104:C108) -> 0 | D103: 0 | E103: 0 | F103: 0 | G103: 0 | H103: 0 | I103: 0 | K103: =SUM(K104:K108) -> 0
A104: Monuments | I104: 0
A105: Historic Buildings | I105: 0
A106: Works of Art | I106: 0
A107: Conservation Areas | I107: 0
A108: Other Heritage | I108: 0
I109: 0
A110: Investment properties | C110: =+C111+C114 -> 0 | D110: 0 | E110: 0 | F110: 0 | G110: 0 | H110: 0 | I110: 0 | K110: =+K111+K114 -> 0
A111: Revenue Generating | C111: =SUM(C112:C113) -> 0 | D111: 0 | E111: 0 | F111: 0 | G111: 0 | H111: 0 | I111: 0 | K111: =SUM(K112:K113) -> 0
A112: Improved Property | I112: 0
A113: Unimproved Property | I113: 0
A114: Non-revenue Generating | C114: =SUM(C115:C116) -> 0 | D114: 0 | E114: 0 | F114: 0 | G114: 0 | H114: 0 | I114: 0 | K114: =SUM(K115:K116) -> 0
A115: Improved Property | I115: 0
A116: Unimproved Property | I116: =H116-G116 -> 0 | J116: =IF(I116=0,"",I116/H116) -> 
A117: Other assets | C117: =+C118+C130 -> 0 | D117: 0 | E117: 0 | F117: 0 | G117: 0 | H117: 0 | I117: 0 | K117: =+K118+K130 -> 0
A118: Operational Buildings | C118: =SUM(C119:C129) -> 0 | D118: 0 | E118: 0 | F118: 0 | G118: 0 | H118: 0 | I118: 0 | K118: =SUM(K119:K129) -> 0
A119: Municipal Offices | C119: 0 | D119: 0 | E119: 0 | F119: 0 | G119: 0 | H119: 0 | I119: 0 | K119: 0
A120: Pay/Enquiry Points | I120: 0
A121: Building Plan Offices | I121: 0
A122: Workshops | I122: 0
A123: Yards | I123: 0
A124: Stores | I124: 0
A125: Laboratories | I125: 0
A126: Training Centres | I126: 0
A127: Manufacturing Plant | I127: 0
A128: Depots | I128: 0
A129: Capital Spares | I129: 0
A130: Housing | C130: =SUM(C131:C133) -> 0 | D130: 0 | E130: 0 | F130: 0 | G130: 0 | H130: 0 | I130: 0 | K130: =SUM(K131:K133) -> 0
A131: Staff Housing | I131: 0
A132: Social Housing | I132: 0
A133: Capital Spares | I133: 0
A135: Biological or Cultivated Assets | C135: =SUM(C136:C136) -> 0 | D135: 0 | E135: 0 | F135: 0 | G135: 0 | H135: 0 | I135: =H135-G135 -> 0 | K135: =SUM(K136) -> 0
A136: Biological or Cultivated Assets | I136: =H136-G136 -> 0
J137: =IF(I137=0,"",I137/H137) -> 
A138: Intangible Assets | C138: =SUM(C139:C140) -> 0 | D138: 0 | E138: 0 | F138: 0 | G138: 0 | H138: 0 | I138: =H138-G138 -> 0 | K138: =SUM(K139:K140) -> 0
A139: Servitudes | I139: 0
A140: Licences and Rights | C140: =SUM(C141:C146) -> 0 | D140: 0 | E140: 0 | F140: 0 | G140: 0 | H140: 0 | I140: 0 | K140: =SUM(K141:K146) -> 0
A141: Water Rights | I141: 0
A142: Effluent Licenses | I142: 0
A143: Solid Waste Licenses | I143: 0
A144: Computer Software and Applications | I144: 0
A145: Load Settlement Software Applications | I145: 0
A146: Unspecified | I146: 0
A148: Computer Equipment | C148: =SUM(C149:C149) -> 0 | D148: 0 | E148: 0 | F148: 0 | G148: 0 | H148: 0 | I148: =H148-G148 -> 0 | J148: =IF(I148=0,"",I148/H148) ->  | K148: =SUM(K149) -> 0
A149: Computer Equipment | I149: =H149-G149 -> 0 | J149: =IF(I149=0,"",I149/H149) -> 
A151: Furniture and Office Equipment | C151: =SUM(C152:C152) -> 0 | D151: 0 | E151: 0 | F151: 0 | G151: 0 | H151: 0 | I151: =H151-G151 -> 0 | J151: =IF(I151=0,"",I151/H151) ->  | K151: =SUM(K152) -> 0
A152: Furniture and Office Equipment | C152: 0 | D152: 0 | E152: 0 | F152: 0 | G152: 0 | H152: 0 | I152: =H152-G152 -> 0 | J152: =IF(I152=0,"",I152/H152) ->  | K152: 0
J153: =IF(I153=0,"",I153/H153) -> 
A154: Machinery and Equipment | C154: =SUM(C155:C155) -> 0 | D154: 300000 | E154: 300000 | F154: 0 | G154: 0 | H154: 175000 | I154: =H154-G154 -> 175000 | J154: =IF(I154=0,"",I154/H154) -> 1 | K154: =SUM(K155) -> 300000
A155: Machinery and Equipment | C155: 0 | D155: 300000 | E155: 300000 | F155: 0 | G155: 0 | H155: 175000 | I155: =H155-G155 -> 175000 | J155: =IF(I155=0,"",I155/H155) -> 1 | K155: 300000
A157: Transport Assets | C157: =SUM(C158:C158) -> 0 | D157: 0 | E157: 0 | F157: 0 | G157: 0 | H157: 0 | I157: =H157-G157 -> 0 | J157: =IF(I157=0,"",I157/H157) ->  | K157: =SUM(K158) -> 0
A158: Transport Assets | I158: =H158-G158 -> 0 | J158: =IF(I158=0,"",I158/H158) -> 
